Workbook

Sheet Introduction
C4: Joint Monitoring Programme for Water Supply, Sanitation and Hygiene
C6: Estimates on household water, sanitation and hygiene by wealth quintile and sub-national region in
C7: =+Water!B5 -> Guyana
C9: Updated May 2021
C11: Follow the links below to find the following information:
C13: JMP Estimates
C14: WASH status and trends by wealth quintile (customized quintiles made without water and sanitation assets)
C15: Water
C16: Sanitation
C17: Hygiene
C19: Data inputs
C20: customized wealth quintiles and subnational data:
C21: =IF(INDIRECT(CONCATENATE("Water","!B105"))=0,"",INDIRECT(CONCATENATE("Water","!B105"))) -> DHS05
C22: =IF(INDIRECT(CONCATENATE("Water","!B106"))=0,"",INDIRECT(CONCATENATE("Water","!B106"))) -> MICS07
C23: =IF(INDIRECT(CONCATENATE("Water","!B107"))=0,"",INDIRECT(CONCATENATE("Water","!B107"))) -> DHS09
C24: =IF(INDIRECT(CONCATENATE("Water","!B108"))=0,"",INDIRECT(CONCATENATE("Water","!B108"))) -> MICS14
C25: =IF(INDIRECT(CONCATENATE("Water","!B109"))=0,"",INDIRECT(CONCATENATE("Water","!B109"))) -> MICS20
C26: =IF(INDIRECT(CONCATENATE("Water","!B110"))=0,"",INDIRECT(CONCATENATE("Water","!B110"))) -> 
C27: =IF(INDIRECT(CONCATENATE("Water","!B111"))=0,"",INDIRECT(CONCATENATE("Water","!B111"))) -> 
C28: =IF(INDIRECT(CONCATENATE("Water","!B112"))=0,"",INDIRECT(CONCATENATE("Water","!B112"))) -> 
C29: =IF(INDIRECT(CONCATENATE("Water","!B113"))=0,"",INDIRECT(CONCATENATE("Water","!B113"))) -> 
C30: =IF(INDIRECT(CONCATENATE("Water","!B114"))=0,"",INDIRECT(CONCATENATE("Water","!B114"))) -> 
C31: =IF(INDIRECT(CONCATENATE("Water","!B115"))=0,"",INDIRECT(CONCATENATE("Water","!B115"))) -> 
C32: =IF(INDIRECT(CONCATENATE("Water","!B116"))=0,"",INDIRECT(CONCATENATE("Water","!B116"))) -> 
L55: =+IF(ISNUMBER(M48), "", "Insufficient data to estimate safely managed sanitation services at national level") -> Insufficient data to estimate safely managed sanitation services at national level

Sheet Water
A1: BGD
B4: Summary of trends in use of drinking water by wealth quintile (%)
B5: =IF(ISERROR(INDIRECT(CONCATENATE($B105,"!A2"))),"",INDIRECT(CONCATENATE($B105,"!A2"))) -> Guyana
B7: =B118 -> National use of drinking water sources, 2000–2020 | J7: =B218 -> Urban use of drinking water sources, 2000–2020 | R7: =B318 -> Rural use of drinking water sources, 2000–2020
B31: =IF(ISERROR(INDIRECT(CONCATENATE($B105,"!A2"))),"",INDIRECT(CONCATENATE($B105,"!A2"))) -> Guyana | F31: Poorest | J31: Poor | N31: Middle | R31: Rich | V31: Richest
F32: Basic | G32: Limited | H32: Unimproved | I32: Surface water | J32: Basic | K32: Limited | L32: Unimproved | M32: Surface water | N32: Basic | O32: Limited | P32: Unimproved | Q32: Surface water | R32: Basic | S32: Limited | T32: Unimproved | U32: Surface water | V32: Basic | W32: Limited | X32: Unimproved | Y32: Surface water
B33: NATIONAL | D33: Estimate | E33: =C99 -> 2000 | F33: =E99 -> 67.46235796 | G33: =F99 -> 0.7366831013 | H33: 9.785228508 | I33: 22.01573043 | J33: =J99 -> 96.13788127 | K33: =K99 -> 0.4592204794 | L33: 1.732023161 | M33: 1.670875093 | N33: =O99 -> 97.19884538 | O33: =P99 -> 1.039057187 | P33: 0.8734514647 | Q33: 0.8886459661 | R33: =T99 -> 98.06016312 | S33: =U99 -> 0.8601378286 | T33: 0.7009614667 | U33: 0.3787375851 | V33: =Y99 -> 98.94050973 | W33: =Z99 -> 0.6533114385 | X33: 0.3862151584 | Y33: 0.0199636766
E34: =C100 -> 2020 | F34: =E100 -> 86.64439029 | G34: 0.9461492317 | H34: 7.806297889 | I34: 4.603162585 | J34: =J100 -> 98.43056646 | K34: 0.4701719169 | L34: 0.7807418606 | M34: 0.3185197579 | N34: =O100 -> 98.79296689 | O34: 1.056098371 | P34: 0.1348546435 | Q34: 0.01608009401 | R34: =T100 -> 98.53292455 | S34: 0.8642846704 | T34: 0.5285648435 | U34: 0.07422593938 | V34: =Y100 -> 99.02698469 | W34: 0.653882439 | X34: 0.2918897363 | Y34: 0.02724313244
B36: URBAN | D36: Estimate | E36: =C199 -> 2000 | F36: =E199 -> 97.47889991 | G36: =F199 -> 1.184212452 | H36: 0.9884290396 | I36: 0.3484586016 | J36: =J199 -> 97.73386566 | K36: =K199 -> 1.052907101 | L36: 0.789622946 | M36: 0.4236042959 | N36: =O199 -> 98.70060249 | O36: =P199 -> 1.299397506 | P36: 0 | Q36: 0 | R36: =T199 -> 97.88344639 | S36: =U199 -> 1.122055588 | T36: 0.9944980265 | U36: 0 | V36: =Y199 -> 98.75974724 | W36: =Z199 -> 1.240252765 | X36: 0 | Y36: 0
E37: =C200 -> 2020 | F37: =E200 -> 95.35980328 | G37: 1.158468823 | H37: 3.481727899 | I37: 0 | J37: =J200 -> 98.26895253 | K37: 1.058671702 | L37: 0.6723757665 | M37: 0 | N37: =O200 -> 97.82055466 | O37: 1.28781164 | P37: 0.8916337035 | Q37: 0 | R37: =T200 -> 98.66910634 | S37: 1.131061749 | T37: 0.07641724987 | U37: 0.123414659 | V37: =Y200 -> 98.3863095 | W37: 1.235563028 | X37: 0.3781274764 | Y37: 0
B39: RURAL | D39: Estimate | E39: =C299 -> 2000 | F39: =E299 -> 56.86897149 | G39: =F299 -> 0.6037357449 | H39: 13.25416102 | I39: 29.27313175 | J39: =J299 -> 93.98654822 | K39: =K299 -> 0.3461463975 | L39: 2.115617526 | M39: 3.55168786 | N39: =O299 -> 96.3725747 | O39: =P299 -> 1.009660138 | P39: 1.303079954 | Q39: 1.314685208 | R39: =T299 -> 98.34678314 | S39: =U299 -> 0.5319251909 | T39: 0.6615592286 | U39: 0.4597324386 | V39: =Y299 -> 98.69120139 | W39: =Z299 -> 0.6183814162 | X39: 0.6042870101 | Y39: 0.08613018342
E40: =C300 -> 2020 | F40: =E300 -> 83.91926675 | G40: 0.8909086922 | H40: 9.373976876 | I40: 5.815847682 | J40: =J300 -> 98.46599171 | K40: 0.3626438991 | L40: 0.5255078656 | M40: 0.6458565229 | N40: =O300 -> 98.85063412 | O40: 1.035621858 | P40: 0.017000419 | Q40: 0.09674360264 | R40: =T300 -> 98.75977845 | S40: 0.5341589458 | T40: 0.6072784812 | U40: 0.0987841231 | V40: =Y300 -> 99.18749593 | W40: 0.6214911091 | X40: 0.1910129563 | Y40: 0
A97: NATIONAL | D97: Poorest | I97: Poor | N97: Middle | S97: Rich | X97: Richest
D98: Improved | E98: Basic | F98: Limited | G98: Unimproved | H98: Surface water | I98: Improved | J98: Basic | K98: Limited | L98: Unimproved | M98: Surface water | N98: Improved | O98: Basic | P98: Limited | Q98: Unimproved | R98: Surface water | S98: Improved | T98: Basic | U98: Limited | V98: Unimproved | W98: Surface water | X98: Improved | Y98: Basic | Z98: Limited | AA98: Unimproved | AB98: Surface water
A99: Forecast period: | C99: 2000 | D99: =IF((D101+H101)>100,D101*100/(D101+H101),D101) -> 68.19904107 | E99: =D99*AVERAGEIF(E105:E116,">0")/100 -> 67.46235796 | F99: =D99*(100-AVERAGEIF(E105:E116,">0"))/100 -> 0.7366831013 | G99: =100-(E99+F99+H99) -> 9.785228508 | H99: =IF((D101+H101)>100,H101*100/(D101+H101),H101) -> 22.01573043 | I99: =IF((I101+M101)>100,I101*100/(I101+M101),I101) -> 96.59710175 | J99: =I99*AVERAGEIF(J105:J116,">0")/100 -> 96.13788127 | K99: =I99*(100-AVERAGEIF(J105:J116,">0"))/100 -> 0.4592204794 | L99: =100-(J99+K99+M99) -> 1.732023161 | M99: =IF((I101+M101)>100,M101*100/(I101+M101),M101) -> 1.670875093 | N99: =IF((N101+R101)>100,N101*100/(N101+R101),N101) -> 98.23790257 | O99: =N99*AVERAGEIF(O105:O116,">0")/100 -> 97.19884538 | P99: =N99*(100-AVERAGEIF(O105:O116,">0"))/100 -> 1.039057187 | Q99: =100-(O99+P99+R99) -> 0.8734514647 | R99: =IF((N101+R101)>100,R101*100/(N101+R101),R101) -> 0.8886459661 | S99: =IF((S101+W101)>100,S101*100/(S101+W101),S101) -> 98.92030095 | T99: =S99*AVERAGEIF(T105:T116,">0")/100 -> 98.06016312 | U99: =S99*(100-AVERAGEIF(T105:T116,">0"))/100 -> 0.8601378286 | V99: =100-(T99+U99+W99) -> 0.7009614667 | W99: =IF((S101+W101)>100,W101*100/(S101+W101),W101) -> 0.3787375851 | X99: =IF((X101+AB101)>100,X101*100/(X101+AB101),X101) -> 99.59382116 | Y99: =X99*AVERAGEIF(Y105:Y116,">0")/100 -> 98.94050973 | Z99: =X99*(100-AVERAGEIF(Y105:Y116,">0"))/100 -> 0.6533114385 | AA99: =100-(Y99+Z99+AB99) -> 0.3862151584 | AB99: =IF((X101+AB101)>100,AB101*100/(X101+AB101),AB101) -> 0.0199636766
C100: 2020 | D100: =IF((D102+H102)>100,D102*100/(D102+H102),D102) -> 87.59053953 | E100: =D100*AVERAGEIF(E105:E116,">0")/100 -> 86.64439029 | F100: =D100*(100-AVERAGEIF(E105:E116,">0"))/100 -> 0.9461492317 | G100: =100-(E100+F100+H100) -> 7.806297889 | H100: =IF((D102+H102)>100,H102*100/(D102+H102),H102) -> 4.603162585 | I100: =IF((I102+M102)>100,I102*100/(I102+M102),I102) -> 98.90073838 | J100: =I100*AVERAGEIF(J105:J116,">0")/100 -> 98.43056646 | K100: =I100*(100-AVERAGEIF(J105:J116,">0"))/100 -> 0.4701719169 | L100: =100-(J100+K100+M100) -> 0.7807418606 | M100: =IF((I102+M102)>100,M102*100/(I102+M102),M102) -> 0.3185197579 | N100: =IF((N102+R102)>100,N102*100/(N102+R102),N102) -> 99.84906526 | O100: =N100*AVERAGEIF(O105:O116,">0")/100 -> 98.79296689 | P100: =N100*(100-AVERAGEIF(O105:O116,">0"))/100 -> 1.056098371 | Q100: =100-(O100+P100+R100) -> 0.1348546435 | R100: =IF((N102+R102)>100,R102*100/(N102+R102),R102) -> 0.01608009401 | S100: =IF((S102+W102)>100,S102*100/(S102+W102),S102) -> 99.39720922 | T100: =S100*AVERAGEIF(T105:T116,">0")/100 -> 98.53292455 | U100: =S100*(100-AVERAGEIF(T105:T116,">0"))/100 -> 0.8642846704 | V100: =100-(T100+U100+W100) -> 0.5285648435 | W100: =IF((S102+W102)>100,W102*100/(S102+W102),W102) -> 0.07422593938 | X100: =IF((X102+AB102)>100,X102*100/(X102+AB102),X102) -> 99.68086713 | Y100: =X100*AVERAGEIF(Y105:Y116,">0")/100 -> 99.02698469 | Z100: =X100*(100-AVERAGEIF(Y105:Y116,">0"))/100 -> 0.653882439 | AA100: =100-(Y100+Z100+AB100) -> 0.2918897363 | AB100: =IF((X102+AB102)>100,AB102*100/(X102+AB102),AB102) -> 0.02724313244
A101: Regression period: | C101: =MinRegYear(C99,C105:C116) -> 2003 | D101: =IF(MAX(C105:C116)-MIN(C105:C116)<5,AVERAGEIF(C105:C116,">0",D105:D116), IF(FORECAST($C101,D$105:D$116,$C$105:$C$116)<0,0, IF(FORECAST($C101,D$105:D$116,$C$105:$C$116)>100,100, FORECAST($C101,D$105:D$116,$C$105:$C$116)))) -> 68.19904107 | H101: =IF(MAX(C105:C116)-MIN(C105:C116)<5,AVERAGEIF(C105:C116,">0",H105:H116), IF(FORECAST($C101,H$105:H$116,$C$105:$C$116)<0,0, IF(FORECAST($C101,H$105:H$116,$C$105:$C$116)>100,100, FORECAST($C101,H$105:H$116,$C$105:$C$116)))) -> 22.01573043 | I101: =IF(MAX(C105:C116)-MIN(C105:C116)<5,AVERAGEIF(C105:C116,">0",I105:I116), IF(FORECAST($C101,I$105:I$116,$C$105:$C$116)<0,0, IF(FORECAST($C101,I$105:I$116,$C$105:$C$116)>100,100, FORECAST($C101,I$105:I$116,$C$105:$C$116)))) -> 96.59710175 | M101: =IF(MAX(C105:C116)-MIN(C105:C116)<5,AVERAGEIF(C105:C116,">0",M105:M116), IF(FORECAST($C101,M$105:M$116,$C$105:$C$116)<0,0, IF(FORECAST($C101,M$105:M$116,$C$105:$C$116)>100,100, FORECAST($C101,M$105:M$116,$C$105:$C$116)))) -> 1.670875093 | N101: =IF(MAX(C105:C116)-MIN(C105:C116)<5,AVERAGEIF(C105:C116,">0",N105:N116), IF(FORECAST($C101,N$105:N$116,$C$105:$C$116)<0,0, IF(FORECAST($C101,N$105:N$116,$C$105:$C$116)>100,100, FORECAST($C101,N$105:N$116,$C$105:$C$116)))) -> 98.23790257 | R101: =IF(MAX(C105:C116)-MIN(C105:C116)<5,AVERAGEIF(C105:C116,">0",R105:R116), IF(FORECAST($C101,R$105:R$116,$C$105:$C$116)<0,0, IF(FORECAST($C101,R$105:R$116,$C$105:$C$116)>100,100, FORECAST($C101,R$105:R$116,$C$105:$C$116)))) -> 0.8886459661 | S101: =IF(MAX(C105:C116)-MIN(C105:C116)<5,AVERAGEIF(C105:C116,">0",S105:S116), IF(FORECAST($C101,S$105:S$116,$C$105:$C$116)<0,0, IF(FORECAST($C101,S$105:S$116,$C$105:$C$116)>100,100, FORECAST($C101,S$105:S$116,$C$105:$C$116)))) -> 98.92030095 | W101: =IF(MAX(C105:C116)-MIN(C105:C116)<5,AVERAGEIF(C105:C116,">0",W105:W116), IF(FORECAST($C101,W$105:W$116,$C$105:$C$116)<0,0, IF(FORECAST($C101,W$105:W$116,$C$105:$C$116)>100,100, FORECAST($C101,W$105:W$116,$C$105:$C$116)))) -> 0.3787375851 | X101: =IF(MAX(C105:C116)-MIN(C105:C116)<5,AVERAGEIF(C105:C116,">0",X105:X116), IF(FORECAST($C101,X$105:X$116,$C$105:$C$116)<0,0, IF(FORECAST($C101,X$105:X$116,$C$105:$C$116)>100,100, FORECAST($C101,X$105:X$116,$C$105:$C$116)))) -> 99.59382116 | AB101: =IF(MAX(C105:C116)-MIN(C105:C116)<5,AVERAGEIF(C105:C116,">0",AB105:AB116), IF(FORECAST($C101,AB$105:AB$116,$C$105:$C$116)<0,0, IF(FORECAST($C101,AB$105:AB$116,$C$105:$C$116)>100,100, FORECAST($C101,AB$105:AB$116,$C$105:$C$116)))) -> 0.0199636766
C102: =MaxRegYear(C100,C105:C116) -> 2020 | D102: =IF(MAX(C105:C116)-MIN(C105:C116)<5,AVERAGEIF(C105:C116,">0",D105:D116), IF(FORECAST($C102,D$105:D$116,$C$105:$C$116)<0,0, IF(FORECAST($C102,D$105:D$116,$C$105:$C$116)>100,100, FORECAST($C102,D$105:D$116,$C$105:$C$116)))) -> 87.59053953 | H102: =IF(MAX(C105:C116)-MIN(C105:C116)<5,AVERAGEIF(C105:C116,">0",H105:H116), IF(FORECAST($C102,H$105:H$116,$C$105:$C$116)<0,0, IF(FORECAST($C102,H$105:H$116,$C$105:$C$116)>100,100, FORECAST($C102,H$105:H$116,$C$105:$C$116)))) -> 4.603162585 | I102: =IF(MAX(C105:C116)-MIN(C105:C116)<5,AVERAGEIF(C105:C116,">0",I105:I116), IF(FORECAST($C102,I$105:I$116,$C$105:$C$116)<0,0, IF(FORECAST($C102,I$105:I$116,$C$105:$C$116)>100,100, FORECAST($C102,I$105:I$116,$C$105:$C$116)))) -> 98.90073838 | M102: =IF(MAX(C105:C116)-MIN(C105:C116)<5,AVERAGEIF(C105:C116,">0",M105:M116), IF(FORECAST($C102,M$105:M$116,$C$105:$C$116)<0,0, IF(FORECAST($C102,M$105:M$116,$C$105:$C$116)>100,100, FORECAST($C102,M$105:M$116,$C$105:$C$116)))) -> 0.3185197579 | N102: =IF(MAX(C105:C116)-MIN(C105:C116)<5,AVERAGEIF(C105:C116,">0",N105:N116), IF(FORECAST($C102,N$105:N$116,$C$105:$C$116)<0,0, IF(FORECAST($C102,N$105:N$116,$C$105:$C$116)>100,100, FORECAST($C102,N$105:N$116,$C$105:$C$116)))) -> 99.84906526 | R102: =IF(MAX(C105:C116)-MIN(C105:C116)<5,AVERAGEIF(C105:C116,">0",R105:R116), IF(FORECAST($C102,R$105:R$116,$C$105:$C$116)<0,0, IF(FORECAST($C102,R$105:R$116,$C$105:$C$116)>100,100, FORECAST($C102,R$105:R$116,$C$105:$C$116)))) -> 0.01608009401 | S102: =IF(MAX(C105:C116)-MIN(C105:C116)<5,AVERAGEIF(C105:C116,">0",S105:S116), IF(FORECAST($C102,S$105:S$116,$C$105:$C$116)<0,0, IF(FORECAST($C102,S$105:S$116,$C$105:$C$116)>100,100, FORECAST($C102,S$105:S$116,$C$105:$C$116)))) -> 99.39720922 | W102: =IF(MAX(C105:C116)-MIN(C105:C116)<5,AVERAGEIF(C105:C116,">0",W105:W116), IF(FORECAST($C102,W$105:W$116,$C$105:$C$116)<0,0, IF(FORECAST($C102,W$105:W$116,$C$105:$C$116)>100,100, FORECAST($C102,W$105:W$116,$C$105:$C$116)))) -> 0.07422593938 | X102: =IF(MAX(C105:C116)-MIN(C105:C116)<5,AVERAGEIF(C105:C116,">0",X105:X116), IF(FORECAST($C102,X$105:X$116,$C$105:$C$116)<0,0, IF(FORECAST($C102,X$105:X$116,$C$105:$C$116)>100,100, FORECAST($C102,X$105:X$116,$C$105:$C$116)))) -> 99.68086713 | AB102: =IF(MAX(C105:C116)-MIN(C105:C116)<5,AVERAGEIF(C105:C116,">0",AB105:AB116), IF(FORECAST($C102,AB$105:AB$116,$C$105:$C$116)<0,0, IF(FORECAST($C102,AB$105:AB$116,$C$105:$C$116)>100,100, FORECAST($C102,AB$105:AB$116,$C$105:$C$116)))) -> 0.02724313244
B104: Survey | C104: Year | D104: Improved | E104: % Improved < = 30min | H104: Surface water | I104: Improved | J104: % Improved < = 30min | M104: Surface water | N104: Improved | O104: % Improved < = 30min | R104: Surface water | S104: Improved | T104: % Improved < = 30min | W104: Surface water | X104: Improved | Y104: % Improved < = 30min | AB104: Surface water
B105: DHS05 | C105: 2005 | D105: =IF(ISERROR(INDIRECT(CONCATENATE($B105,"!C16"))),"",INDIRECT(CONCATENATE($B105,"!C16"))) -> 72.06171111 | E105: =IF(ISERROR(INDIRECT(CONCATENATE($B105,"!C23"))),"",INDIRECT(CONCATENATE($B105,"!C23"))) -> 99.88160625 | H105: =IF(ISERROR(INDIRECT(CONCATENATE($B105,"!C21"))),"",INDIRECT(CONCATENATE($B105,"!C21"))) -> 17.13633965 | I105: =IF(ISERROR(INDIRECT(CONCATENATE($B105,"!D16"))),"",INDIRECT(CONCATENATE($B105,"!D16"))) -> 98.14879465 | J105: =IF(ISERROR(INDIRECT(CONCATENATE($B105,"!D23"))),"",INDIRECT(CONCATENATE($B105,"!D23"))) -> 100 | M105: =IF(ISERROR(INDIRECT(CONCATENATE($B105,"!D21"))),"",INDIRECT(CONCATENATE($B105,"!D21"))) -> 1.013822153 | N105: =IF(ISERROR(INDIRECT(CONCATENATE($B105,"!E16"))),"",INDIRECT(CONCATENATE($B105,"!E16"))) -> 98.82780664 | O105: =IF(ISERROR(INDIRECT(CONCATENATE($B105,"!E23"))),"",INDIRECT(CONCATENATE($B105,"!E23"))) -> 100 | R105: =IF(ISERROR(INDIRECT(CONCATENATE($B105,"!E21"))),"",INDIRECT(CONCATENATE($B105,"!E21"))) -> 0.593706994 | S105: =IF(ISERROR(INDIRECT(CONCATENATE($B105,"!F16"))),"",INDIRECT(CONCATENATE($B105,"!F16"))) -> 98.82287975 | T105: =IF(ISERROR(INDIRECT(CONCATENATE($B105,"!F23"))),"",INDIRECT(CONCATENATE($B105,"!F23"))) -> 100 | W105: =IF(ISERROR(INDIRECT(CONCATENATE($B105,"!F21"))),"",INDIRECT(CONCATENATE($B105,"!F21"))) -> 0 | X105: =IF(ISERROR(INDIRECT(CONCATENATE($B105,"!G16"))),"",INDIRECT(CONCATENATE($B105,"!G16"))) -> 99.68136105 | Y105: =IF(ISERROR(INDIRECT(CONCATENATE($B105,"!G23"))),"",INDIRECT(CONCATENATE($B105,"!G23"))) -> 100 | AB105: =IF(ISERROR(INDIRECT(CONCATENATE($B105,"!G221"))),"",INDIRECT(CONCATENATE($B105,"!G21"))) -> 0
B106: MICS07 | C106: 2007 | D106: 70.20250782 | E106: 97.12693987 | H106: 20.34748195 | I106: 96.08568912 | J106: 98.99798489 | M106: 1.696270219 | N106: 98.67205139 | O106: 99.11094352 | R106: 0.4340069777 | S106: 99.57864978 | T106: 98.9735702 | W106: 0.1304188961 | X106: 99.46181186 | Y106: 99.90487983 | AB106: 0.07615391922
B107: DHS09 | C107: 2009 | D107: 75.71848408 | E107: 99.88480442 | H107: 17.59563709 | I107: 96.68385639 | J107: 100 | M107: 1.573342443 | N107: 98.02123118 | O107: 99.508494 | R107: 1.259755304 | S107: 98.45012117 | T107: 99.54532569 | W107: 1.04677104 | X107: 99.56306706 | Y107: 100 | AB107: 0
B108: MICS14 | C108: 2014 | D108: 81.1 | E108: 99 | H108: 9.4 | I108: 98.5 | J108: 99.9 | M108: 0.6 | N108: 99.6 | O108: 100 | R108: 0.1 | S108: 99.6 | T108: 99.8 | W108: 0 | X108: 99.9 | Y108: 99.9 | AB108: 0
B109: MICS20 | C109: 2020 | D109: 87.53955751 | E109: 98.70567102 | H109: 4.628445577 | I109: 98.98749007 | J109: 98.7250262 | M109: 0.2889280959 | N109: 99.85939468 | O109: 96.09208848 | R109: 0.0026643849 | S109: 99.27199115 | T109: 97.33347364 | W109: 0 | X109: 99.5676799 | Y109: 96.91524081 | AB109: 0.04079259516
D111: =IF(ISERROR(INDIRECT(CONCATENATE($B111,"!C16"))),"",INDIRECT(CONCATENATE($B111,"!C16"))) ->  | E111: =IF(ISERROR(INDIRECT(CONCATENATE($B111,"!C23"))),"",INDIRECT(CONCATENATE($B111,"!C23"))) ->  | H111: =IF(ISERROR(INDIRECT(CONCATENATE($B111,"!C21"))),"",INDIRECT(CONCATENATE($B111,"!C21"))) ->  | I111: =IF(ISERROR(INDIRECT(CONCATENATE($B111,"!D16"))),"",INDIRECT(CONCATENATE($B111,"!D16"))) ->  | J111: =IF(ISERROR(INDIRECT(CONCATENATE($B111,"!D23"))),"",INDIRECT(CONCATENATE($B111,"!D23"))) ->  | M111: =IF(ISERROR(INDIRECT(CONCATENATE($B111,"!D21"))),"",INDIRECT(CONCATENATE($B111,"!D21"))) ->  | N111: =IF(ISERROR(INDIRECT(CONCATENATE($B111,"!E16"))),"",INDIRECT(CONCATENATE($B111,"!E16"))) ->  | O111: =IF(ISERROR(INDIRECT(CONCATENATE($B111,"!E23"))),"",INDIRECT(CONCATENATE($B111,"!E23"))) ->  | R111: =IF(ISERROR(INDIRECT(CONCATENATE($B111,"!E21"))),"",INDIRECT(CONCATENATE($B111,"!E21"))) ->  | S111: =IF(ISERROR(INDIRECT(CONCATENATE($B111,"!F16"))),"",INDIRECT(CONCATENATE($B111,"!F16"))) ->  | T111: =IF(ISERROR(INDIRECT(CONCATENATE($B111,"!F23"))),"",INDIRECT(CONCATENATE($B111,"!F23"))) ->  | W111: =IF(ISERROR(INDIRECT(CONCATENATE($B111,"!F21"))),"",INDIRECT(CONCATENATE($B111,"!F21"))) ->  | X111: =IF(ISERROR(INDIRECT(CONCATENATE($B111,"!G16"))),"",INDIRECT(CONCATENATE($B111,"!G16"))) ->  | Y111: =IF(ISERROR(INDIRECT(CONCATENATE($B111,"!G23"))),"",INDIRECT(CONCATENATE($B111,"!G23"))) ->  | AB111: =IF(ISERROR(INDIRECT(CONCATENATE($B111,"!G221"))),"",INDIRECT(CONCATENATE($B111,"!G21"))) -> 
D112: =IF(ISERROR(INDIRECT(CONCATENATE($B112,"!C16"))),"",INDIRECT(CONCATENATE($B112,"!C16"))) ->  | E112: =IF(ISERROR(INDIRECT(CONCATENATE($B112,"!C23"))),"",INDIRECT(CONCATENATE($B112,"!C23"))) ->  | H112: =IF(ISERROR(INDIRECT(CONCATENATE($B112,"!C21"))),"",INDIRECT(CONCATENATE($B112,"!C21"))) ->  | I112: =IF(ISERROR(INDIRECT(CONCATENATE($B112,"!D16"))),"",INDIRECT(CONCATENATE($B112,"!D16"))) ->  | J112: =IF(ISERROR(INDIRECT(CONCATENATE($B112,"!D23"))),"",INDIRECT(CONCATENATE($B112,"!D23"))) ->  | M112: =IF(ISERROR(INDIRECT(CONCATENATE($B112,"!D21"))),"",INDIRECT(CONCATENATE($B112,"!D21"))) ->  | N112: =IF(ISERROR(INDIRECT(CONCATENATE($B112,"!E16"))),"",INDIRECT(CONCATENATE($B112,"!E16"))) ->  | O112: =IF(ISERROR(INDIRECT(CONCATENATE($B112,"!E23"))),"",INDIRECT(CONCATENATE($B112,"!E23"))) ->  | R112: =IF(ISERROR(INDIRECT(CONCATENATE($B112,"!E21"))),"",INDIRECT(CONCATENATE($B112,"!E21"))) ->  | S112: =IF(ISERROR(INDIRECT(CONCATENATE($B112,"!F16"))),"",INDIRECT(CONCATENATE($B112,"!F16"))) ->  | T112: =IF(ISERROR(INDIRECT(CONCATENATE($B112,"!F23"))),"",INDIRECT(CONCATENATE($B112,"!F23"))) ->  | W112: =IF(ISERROR(INDIRECT(CONCATENATE($B112,"!F21"))),"",INDIRECT(CONCATENATE($B112,"!F21"))) ->  | X112: =IF(ISERROR(INDIRECT(CONCATENATE($B112,"!G16"))),"",INDIRECT(CONCATENATE($B112,"!G16"))) ->  | Y112: =IF(ISERROR(INDIRECT(CONCATENATE($B112,"!G23"))),"",INDIRECT(CONCATENATE($B112,"!G23"))) ->  | AB112: =IF(ISERROR(INDIRECT(CONCATENATE($B112,"!G221"))),"",INDIRECT(CONCATENATE($B112,"!G21"))) -> 
B118: =CONCATENATE("National use of drinking water sources, ",C99,"–",C100) -> National use of drinking water sources, 2000–2020 | S118: Data points used for regression
E153: =IF(ISERROR(INDIRECT(CONCATENATE($B153,"!M18"))),"",INDIRECT(CONCATENATE($B153,"!M18"))) ->  | F153: =IF(ISERROR(INDIRECT(CONCATENATE($B153,"!M19"))),"",INDIRECT(CONCATENATE($B153,"!M19"))) ->  | G153: =IF(ISERROR(INDIRECT(CONCATENATE($B153,"!M20"))),"",INDIRECT(CONCATENATE($B153,"!M20"))) ->  | H153: =IF(ISERROR(INDIRECT(CONCATENATE($B153,"!M21"))),"",INDIRECT(CONCATENATE($B153,"!M21"))) ->  | J153: =IF(ISERROR(INDIRECT(CONCATENATE($B153,"!N18"))),"",INDIRECT(CONCATENATE($B153,"!N18"))) ->  | K153: =IF(ISERROR(INDIRECT(CONCATENATE($B153,"!N19"))),"",INDIRECT(CONCATENATE($B153,"!N19"))) ->  | L153: =IF(ISERROR(INDIRECT(CONCATENATE($B153,"!N20"))),"",INDIRECT(CONCATENATE($B153,"!N20"))) ->  | M153: =IF(ISERROR(INDIRECT(CONCATENATE($B153,"!N21"))),"",INDIRECT(CONCATENATE($B153,"!N21"))) ->  | O153: =IF(ISERROR(INDIRECT(CONCATENATE($B153,"!O18"))),"",INDIRECT(CONCATENATE($B153,"!O18"))) ->  | P153: =IF(ISERROR(INDIRECT(CONCATENATE($B153,"!O19"))),"",INDIRECT(CONCATENATE($B153,"!O19"))) ->  | Q153: =IF(ISERROR(INDIRECT(CONCATENATE($B153,"!O20"))),"",INDIRECT(CONCATENATE($B153,"!O20"))) ->  | R153: =IF(ISERROR(INDIRECT(CONCATENATE($B153,"!O21"))),"",INDIRECT(CONCATENATE($B153,"!O21"))) ->  | T153: =IF(ISERROR(INDIRECT(CONCATENATE($B153,"!P18"))),"",INDIRECT(CONCATENATE($B153,"!P18"))) ->  | U153: =IF(ISERROR(INDIRECT(CONCATENATE($B153,"!P19"))),"",INDIRECT(CONCATENATE($B153,"!P19"))) ->  | V153: =IF(ISERROR(INDIRECT(CONCATENATE($B153,"!P20"))),"",INDIRECT(CONCATENATE($B153,"!P20"))) ->  | W153: =IF(ISERROR(INDIRECT(CONCATENATE($B153,"!P21"))),"",INDIRECT(CONCATENATE($B153,"!P21"))) ->  | Y153: =IF(ISERROR(INDIRECT(CONCATENATE($B153,"!Q18"))),"",INDIRECT(CONCATENATE($B153,"!Q18"))) ->  | Z153: =IF(ISERROR(INDIRECT(CONCATENATE($B153,"!Q19"))),"",INDIRECT(CONCATENATE($B153,"!Q19"))) ->  | AA153: =IF(ISERROR(INDIRECT(CONCATENATE($B153,"!Q20"))),"",INDIRECT(CONCATENATE($B153,"!Q20"))) ->  | AB153: =IF(ISERROR(INDIRECT(CONCATENATE($B153,"!Q21"))),"",INDIRECT(CONCATENATE($B153,"!Q1"))) -> 
A197: URBAN | D197: Poorest | I197: Poor | N197: Middle | S197: Rich | X197: Richest
D198: Improved | E198: Basic | F198: Limited | G198: Unimproved | H198: Surface water | I198: Improved | J198: Basic | K198: Limited | L198: Unimproved | M198: Surface water | N198: Improved | O198: Basic | P198: Limited | Q198: Unimproved | R198: Surface water | S198: Improved | T198: Basic | U198: Limited | V198: Unimproved | W198: Surface water | X198: Improved | Y198: Basic | Z198: Limited | AA198: Unimproved | AB198: Surface water
A199: Forecast period: | C199: 2000 | D199: =IF((D201+H201)>100,D201*100/(D201+H201),D201) -> 98.66311236 | E199: =D199*AVERAGEIF(E205:E216,">0")/100 -> 97.47889991 | F199: =D199*(100-AVERAGEIF(E205:E216,">0"))/100 -> 1.184212452 | G199: =100-(E199+F199+H199) -> 0.9884290396 | H199: =IF((D201+H201)>100,H201*100/(D201+H201),H201) -> 0.3484586016 | I199: =IF((I201+M201)>100,I201*100/(I201+M201),I201) -> 98.78677276 | J199: =I199*AVERAGEIF(J205:J216,">0")/100 -> 97.73386566 | K199: =I199*(100-AVERAGEIF(J205:J216,">0"))/100 -> 1.052907101 | L199: =100-(J199+K199+M199) -> 0.789622946 | M199: =IF((I201+M201)>100,M201*100/(I201+M201),M201) -> 0.4236042959 | N199: =IF((N201+R201)>100,N201*100/(N201+R201),N201) -> 100 | O199: =N199*AVERAGEIF(O205:O216,">0")/100 -> 98.70060249 | P199: =N199*(100-AVERAGEIF(O205:O216,">0"))/100 -> 1.299397506 | Q199: =100-(O199+P199+R199) -> 0 | R199: =IF((N201+R201)>100,R201*100/(N201+R201),R201) -> 0 | S199: =IF((S201+W201)>100,S201*100/(S201+W201),S201) -> 99.00550197 | T199: =S199*AVERAGEIF(T205:T216,">0")/100 -> 97.88344639 | U199: =S199*(100-AVERAGEIF(T205:T216,">0"))/100 -> 1.122055588 | V199: =100-(T199+U199+W199) -> 0.9944980265 | W199: =IF((S201+W201)>100,W201*100/(S201+W201),W201) -> 0 | X199: =IF((X201+AB201)>100,X201*100/(X201+AB201),X201) -> 100 | Y199: =X199*AVERAGEIF(Y205:Y216,">0")/100 -> 98.75974724 | Z199: =X199*(100-AVERAGEIF(Y205:Y216,">0"))/100 -> 1.240252765 | AA199: =100-(Y199+Z199+AB199) -> 0 | AB199: =IF((X201+AB201)>100,AB201*100/(X201+AB201),AB201) -> 0
C200: 2020 | D200: =IF((D202+H202)>100,D202*100/(D202+H202),D202) -> 96.5182721 | E200: =D200*AVERAGEIF(E205:E216,">0")/100 -> 95.35980328 | F200: =D200*(100-AVERAGEIF(E205:E216,">0"))/100 -> 1.158468823 | G200: =100-(E200+F200+H200) -> 3.481727899 | H200: =IF((D202+H202)>100,H202*100/(D202+H202),H202) -> 0 | I200: =IF((I202+M202)>100,I202*100/(I202+M202),I202) -> 99.32762423 | J200: =I200*AVERAGEIF(J205:J216,">0")/100 -> 98.26895253 | K200: =I200*(100-AVERAGEIF(J205:J216,">0"))/100 -> 1.058671702 | L200: =100-(J200+K200+M200) -> 0.6723757665 | M200: =IF((I202+M202)>100,M202*100/(I202+M202),M202) -> 0 | N200: =IF((N202+R202)>100,N202*100/(N202+R202),N202) -> 99.1083663 | O200: =N200*AVERAGEIF(O205:O216,">0")/100 -> 97.82055466 | P200: =N200*(100-AVERAGEIF(O205:O216,">0"))/100 -> 1.28781164 | Q200: =100-(O200+P200+R200) -> 0.8916337035 | R200: =IF((N202+R202)>100,R202*100/(N202+R202),R202) -> 0 | S200: =IF((S202+W202)>100,S202*100/(S202+W202),S202) -> 99.80016809 | T200: =S200*AVERAGEIF(T205:T216,">0")/100 -> 98.66910634 | U200: =S200*(100-AVERAGEIF(T205:T216,">0"))/100 -> 1.131061749 | V200: =100-(T200+U200+W200) -> 0.07641724987 | W200: =IF((S202+W202)>100,W202*100/(S202+W202),W202) -> 0.123414659 | X200: =IF((X202+AB202)>100,X202*100/(X202+AB202),X202) -> 99.62187252 | Y200: =X200*AVERAGEIF(Y205:Y216,">0")/100 -> 98.3863095 | Z200: =X200*(100-AVERAGEIF(Y205:Y216,">0"))/100 -> 1.235563028 | AA200: =100-(Y200+Z200+AB200) -> 0.3781274764 | AB200: =IF((X202+AB202)>100,AB202*100/(X202+AB202),AB202) -> 0
A201: Regression period: | C201: =MinRegYear(C199,C205:C216) -> 2003 | D201: =IF(MAX(C205:C216)-MIN(C205:C216)<5,AVERAGEIF(C205:C216,">0",D205:D216), IF(FORECAST($C201,D$205:D$216,$C$205:$C$216)<0,0, IF(FORECAST($C201,D$205:D$216,$C$205:$C$216)>100,100, FORECAST($C201,D$205:D$216,$C$205:$C$216)))) -> 98.66311236 | H201: =IF(MAX(C205:C216)-MIN(C205:C216)<5,AVERAGEIF(C205:C216,">0",H205:H216), IF(FORECAST($C201,H$205:H$216,$C$205:$C$216)<0,0, IF(FORECAST($C201,H$205:H$216,$C$205:$C$216)>100,100, FORECAST($C201,H$205:H$216,$C$205:$C$216)))) -> 0.3484586016 | I201: =IF(MAX(C205:C216)-MIN(C205:C216)<5,AVERAGEIF(C205:C216,">0",I205:I216), IF(FORECAST($C201,I$205:I$216,$C$205:$C$216)<0,0, IF(FORECAST($C201,I$205:I$216,$C$205:$C$216)>100,100, FORECAST($C201,I$205:I$216,$C$205:$C$216)))) -> 98.78677276 | M201: =IF(MAX(C205:C216)-MIN(C205:C216)<5,AVERAGEIF(C205:C216,">0",M205:M216), IF(FORECAST($C201,M$205:M$216,$C$205:$C$216)<0,0, IF(FORECAST($C201,M$205:M$216,$C$205:$C$216)>100,100, FORECAST($C201,M$205:M$216,$C$205:$C$216)))) -> 0.4236042959 | N201: =IF(MAX(C205:C216)-MIN(C205:C216)<5,AVERAGEIF(C205:C216,">0",N205:N216), IF(FORECAST($C201,N$205:N$216,$C$205:$C$216)<0,0, IF(FORECAST($C201,N$205:N$216,$C$205:$C$216)>100,100, FORECAST($C201,N$205:N$216,$C$205:$C$216)))) -> 100 | R201: =IF(MAX(C205:C216)-MIN(C205:C216)<5,AVERAGEIF(C205:C216,">0",R205:R216), IF(FORECAST($C201,R$205:R$216,$C$205:$C$216)<0,0, IF(FORECAST($C201,R$205:R$216,$C$205:$C$216)>100,100, FORECAST($C201,R$205:R$216,$C$205:$C$216)))) -> 0 | S201: =IF(MAX(C205:C216)-MIN(C205:C216)<5,AVERAGEIF(C205:C216,">0",S205:S216), IF(FORECAST($C201,S$205:S$216,$C$205:$C$216)<0,0, IF(FORECAST($C201,S$205:S$216,$C$205:$C$216)>100,100, FORECAST($C201,S$205:S$216,$C$205:$C$216)))) -> 99.00550197 | W201: =IF(MAX(C205:C216)-MIN(C205:C216)<5,AVERAGEIF(C205:C216,">0",W205:W216), IF(FORECAST($C201,W$205:W$216,$C$205:$C$216)<0,0, IF(FORECAST($C201,W$205:W$216,$C$205:$C$216)>100,100, FORECAST($C201,W$205:W$216,$C$205:$C$216)))) -> 0 | X201: =IF(MAX(C205:C216)-MIN(C205:C216)<5,AVERAGEIF(C205:C216,">0",X205:X216), IF(FORECAST($C201,X$205:X$216,$C$205:$C$216)<0,0, IF(FORECAST($C201,X$205:X$216,$C$205:$C$216)>100,100, FORECAST($C201,X$205:X$216,$C$205:$C$216)))) -> 100 | AB201: =IF(MAX(C205:C216)-MIN(C205:C216)<5,AVERAGEIF(C205:C216,">0",AB205:AB216), IF(FORECAST($C201,AB$205:AB$216,$C$205:$C$216)<0,0, IF(FORECAST($C201,AB$205:AB$216,$C$205:$C$216)>100,100, FORECAST($C201,AB$205:AB$216,$C$205:$C$216)))) -> 0
C202: =MaxRegYear(C200,C205:C216) -> 2020 | D202: =IF(MAX(C205:C216)-MIN(C205:C216)<5,AVERAGEIF(C205:C216,">0",D205:D216), IF(FORECAST($C202,D$205:D$216,$C$205:$C$216)<0,0, IF(FORECAST($C202,D$205:D$216,$C$205:$C$216)>100,100, FORECAST($C202,D$205:D$216,$C$205:$C$216)))) -> 96.5182721 | H202: =IF(MAX(C205:C216)-MIN(C205:C216)<5,AVERAGEIF(C205:C216,">0",H205:H216), IF(FORECAST($C202,H$205:H$216,$C$205:$C$216)<0,0, IF(FORECAST($C202,H$205:H$216,$C$205:$C$216)>100,100, FORECAST($C202,H$205:H$216,$C$205:$C$216)))) -> 0 | I202: =IF(MAX(C205:C216)-MIN(C205:C216)<5,AVERAGEIF(C205:C216,">0",I205:I216), IF(FORECAST($C202,I$205:I$216,$C$205:$C$216)<0,0, IF(FORECAST($C202,I$205:I$216,$C$205:$C$216)>100,100, FORECAST($C202,I$205:I$216,$C$205:$C$216)))) -> 99.32762423 | M202: =IF(MAX(C205:C216)-MIN(C205:C216)<5,AVERAGEIF(C205:C216,">0",M205:M216), IF(FORECAST($C202,M$205:M$216,$C$205:$C$216)<0,0, IF(FORECAST($C202,M$205:M$216,$C$205:$C$216)>100,100, FORECAST($C202,M$205:M$216,$C$205:$C$216)))) -> 0 | N202: =IF(MAX(C205:C216)-MIN(C205:C216)<5,AVERAGEIF(C205:C216,">0",N205:N216), IF(FORECAST($C202,N$205:N$216,$C$205:$C$216)<0,0, IF(FORECAST($C202,N$205:N$216,$C$205:$C$216)>100,100, FORECAST($C202,N$205:N$216,$C$205:$C$216)))) -> 99.1083663 | R202: =IF(MAX(C205:C216)-MIN(C205:C216)<5,AVERAGEIF(C205:C216,">0",R205:R216), IF(FORECAST($C202,R$205:R$216,$C$205:$C$216)<0,0, IF(FORECAST($C202,R$205:R$216,$C$205:$C$216)>100,100, FORECAST($C202,R$205:R$216,$C$205:$C$216)))) -> 0 | S202: =IF(MAX(C205:C216)-MIN(C205:C216)<5,AVERAGEIF(C205:C216,">0",S205:S216), IF(FORECAST($C202,S$205:S$216,$C$205:$C$216)<0,0, IF(FORECAST($C202,S$205:S$216,$C$205:$C$216)>100,100, FORECAST($C202,S$205:S$216,$C$205:$C$216)))) -> 99.80016809 | W202: =IF(MAX(C205:C216)-MIN(C205:C216)<5,AVERAGEIF(C205:C216,">0",W205:W216), IF(FORECAST($C202,W$205:W$216,$C$205:$C$216)<0,0, IF(FORECAST($C202,W$205:W$216,$C$205:$C$216)>100,100, FORECAST($C202,W$205:W$216,$C$205:$C$216)))) -> 0.123414659 | X202: =IF(MAX(C205:C216)-MIN(C205:C216)<5,AVERAGEIF(C205:C216,">0",X205:X216), IF(FORECAST($C202,X$205:X$216,$C$205:$C$216)<0,0, IF(FORECAST($C202,X$205:X$216,$C$205:$C$216)>100,100, FORECAST($C202,X$205:X$216,$C$205:$C$216)))) -> 99.62187252 | AB202: =IF(MAX(C205:C216)-MIN(C205:C216)<5,AVERAGEIF(C205:C216,">0",AB205:AB216), IF(FORECAST($C202,AB$205:AB$216,$C$205:$C$216)<0,0, IF(FORECAST($C202,AB$205:AB$216,$C$205:$C$216)>100,100, FORECAST($C202,AB$205:AB$216,$C$205:$C$216)))) -> 0
B204: Survey | C204: Year | D204: Improved | E204: % Improved < = 30min | H204: Surface water | I204: Improved | J204: % Improved < = 30min | M204: Surface water | N204: Improved | O204: % Improved < = 30min | R204: Surface water | S204: Improved | T204: % Improved < = 30min | W204: Surface water | X204: Improved | Y204: % Improved < = 30min | AB204: Surface water
B205: DHS05 | C205: 2005 | D205: =IF(ISERROR(INDIRECT(CONCATENATE($B205,"!H16"))),"",INDIRECT(CONCATENATE($B205,"!H16"))) -> 98.0253424 | E205: =IF(ISERROR(INDIRECT(CONCATENATE($B205,"!H23"))),"",INDIRECT(CONCATENATE($B205,"!H23"))) -> 99.71826963 | H205: =IF(ISERROR(INDIRECT(CONCATENATE($B205,"!H21"))),"",INDIRECT(CONCATENATE($B205,"!H21"))) -> 0.5957211117 | I205: =IF(ISERROR(INDIRECT(CONCATENATE($B205,"!I16"))),"",INDIRECT(CONCATENATE($B205,"!I16"))) -> 99.59619472 | J205: =IF(ISERROR(INDIRECT(CONCATENATE($B205,"!I23"))),"",INDIRECT(CONCATENATE($B205,"!I23"))) -> 100 | M205: =IF(ISERROR(INDIRECT(CONCATENATE($B205,"!I21"))),"",INDIRECT(CONCATENATE($B205,"!I21"))) -> 0 | N205: =IF(ISERROR(INDIRECT(CONCATENATE($B205,"!J16"))),"",INDIRECT(CONCATENATE($B205,"!J16"))) -> 100 | O205: =IF(ISERROR(INDIRECT(CONCATENATE($B205,"!J23"))),"",INDIRECT(CONCATENATE($B205,"!J23"))) -> 100 | R205: =IF(ISERROR(INDIRECT(CONCATENATE($B205,"!J21"))),"",INDIRECT(CONCATENATE($B205,"!J21"))) -> 0 | S205: =IF(ISERROR(INDIRECT(CONCATENATE($B205,"!K16"))),"",INDIRECT(CONCATENATE($B205,"!K16"))) -> 99.24792525 | T205: =IF(ISERROR(INDIRECT(CONCATENATE($B205,"!K23"))),"",INDIRECT(CONCATENATE($B205,"!K23"))) -> 100 | W205: =IF(ISERROR(INDIRECT(CONCATENATE($B205,"!K21"))),"",INDIRECT(CONCATENATE($B205,"!K21"))) -> 0 | X205: =IF(ISERROR(INDIRECT(CONCATENATE($B205,"!L16"))),"",INDIRECT(CONCATENATE($B205,"!L16"))) -> 100 | Y205: =IF(ISERROR(INDIRECT(CONCATENATE($B205,"!L23"))),"",INDIRECT(CONCATENATE($B205,"!L23"))) -> 100 | AB205: =IF(ISERROR(INDIRECT(CONCATENATE($B205,"!L221"))),"",INDIRECT(CONCATENATE($B205,"!L21"))) -> 0
B206: MICS07 | C206: 2007 | D206: 98.82680403 | E206: 98.35752923 | H206: 0 | I206: 98.52519527 | J206: 98.75412634 | M206: 0.7860420081 | N206: 99.87632607 | O206: 99.637412 | R206: 0 | S206: 99.79625405 | T206: 99.65826472 | W206: 0 | X206: 100 | Y206: 100 | AB206: 0
B207: DHS09 | C207: 2009 | D207: 97.3010649 | E207: 100 | H207: 0.1694146649 | I207: 98.1675164 | J207: 99.73276857 | M207: 0.303992396 | N207: 99.77130271 | O207: 100 | R207: 0 | S207: 98.10735013 | T207: 100 | W207: 0 | X207: 99.80041976 | Y207: 100 | AB207: 0
B208: MICS14 | C208: 2014 | D208: 97.9 | E208: 99 | H208: 0 | I208: 99.6 | J208: 100 | M208: 0 | N208: 99.6 | O208: 100 | R208: 0 | S208: 100 | T208: 100 | W208: 0 | X208: 99.8 | Y208: 100 | AB208: 0
B209: MICS20 | C209: 2020 | D209: 96.2156675 | E209: 96.92290834 | H209: 0.06477235634 | I209: 99.31754911 | J209: 96.18391439 | M209: 0 | N209: 99.03831131 | O209: 93.86560047 | R209: 0 | S209: 99.74578306 | T209: 94.6751028 | W209: 0.1635076245 | X209: 99.62131295 | Y209: 93.79873618 | AB209: 0
B218: =CONCATENATE("Urban use of drinking water sources, ",C199,"–",C200) -> Urban use of drinking water sources, 2000–2020 | S218: Data points used for regression
E253: =IF(ISERROR(INDIRECT(CONCATENATE($B253,"!M18"))),"",INDIRECT(CONCATENATE($B253,"!M18"))) ->  | F253: =IF(ISERROR(INDIRECT(CONCATENATE($B253,"!M19"))),"",INDIRECT(CONCATENATE($B253,"!M19"))) ->  | G253: =IF(ISERROR(INDIRECT(CONCATENATE($B253,"!M20"))),"",INDIRECT(CONCATENATE($B253,"!M20"))) ->  | H253: =IF(ISERROR(INDIRECT(CONCATENATE($B253,"!M21"))),"",INDIRECT(CONCATENATE($B253,"!M21"))) ->  | J253: =IF(ISERROR(INDIRECT(CONCATENATE($B253,"!N18"))),"",INDIRECT(CONCATENATE($B253,"!N18"))) ->  | K253: =IF(ISERROR(INDIRECT(CONCATENATE($B253,"!N19"))),"",INDIRECT(CONCATENATE($B253,"!N19"))) ->  | L253: =IF(ISERROR(INDIRECT(CONCATENATE($B253,"!N20"))),"",INDIRECT(CONCATENATE($B253,"!N20"))) ->  | M253: =IF(ISERROR(INDIRECT(CONCATENATE($B253,"!N21"))),"",INDIRECT(CONCATENATE($B253,"!N21"))) ->  | O253: =IF(ISERROR(INDIRECT(CONCATENATE($B253,"!O18"))),"",INDIRECT(CONCATENATE($B253,"!O18"))) ->  | P253: =IF(ISERROR(INDIRECT(CONCATENATE($B253,"!O19"))),"",INDIRECT(CONCATENATE($B253,"!O19"))) ->  | Q253: =IF(ISERROR(INDIRECT(CONCATENATE($B253,"!O20"))),"",INDIRECT(CONCATENATE($B253,"!O20"))) ->  | R253: =IF(ISERROR(INDIRECT(CONCATENATE($B253,"!O21"))),"",INDIRECT(CONCATENATE($B253,"!O21"))) ->  | T253: =IF(ISERROR(INDIRECT(CONCATENATE($B253,"!P18"))),"",INDIRECT(CONCATENATE($B253,"!P18"))) ->  | U253: =IF(ISERROR(INDIRECT(CONCATENATE($B253,"!P19"))),"",INDIRECT(CONCATENATE($B253,"!P19"))) ->  | V253: =IF(ISERROR(INDIRECT(CONCATENATE($B253,"!P20"))),"",INDIRECT(CONCATENATE($B253,"!P20"))) ->  | W253: =IF(ISERROR(INDIRECT(CONCATENATE($B253,"!P21"))),"",INDIRECT(CONCATENATE($B253,"!P21"))) ->  | Y253: =IF(ISERROR(INDIRECT(CONCATENATE($B253,"!Q18"))),"",INDIRECT(CONCATENATE($B253,"!Q18"))) ->  | Z253: =IF(ISERROR(INDIRECT(CONCATENATE($B253,"!Q19"))),"",INDIRECT(CONCATENATE($B253,"!Q19"))) ->  | AA253: =IF(ISERROR(INDIRECT(CONCATENATE($B253,"!Q20"))),"",INDIRECT(CONCATENATE($B253,"!Q20"))) ->  | AB253: =IF(ISERROR(INDIRECT(CONCATENATE($B253,"!Q21"))),"",INDIRECT(CONCATENATE($B253,"!Q1"))) -> 
E254: =IF(ISERROR(INDIRECT(CONCATENATE($B254,"!M18"))),"",INDIRECT(CONCATENATE($B254,"!M18"))) ->  | F254: =IF(ISERROR(INDIRECT(CONCATENATE($B254,"!M19"))),"",INDIRECT(CONCATENATE($B254,"!M19"))) ->  | G254: =IF(ISERROR(INDIRECT(CONCATENATE($B254,"!M20"))),"",INDIRECT(CONCATENATE($B254,"!M20"))) ->  | H254: =IF(ISERROR(INDIRECT(CONCATENATE($B254,"!M21"))),"",INDIRECT(CONCATENATE($B254,"!M21"))) ->  | J254: =IF(ISERROR(INDIRECT(CONCATENATE($B254,"!N18"))),"",INDIRECT(CONCATENATE($B254,"!N18"))) ->  | K254: =IF(ISERROR(INDIRECT(CONCATENATE($B254,"!N19"))),"",INDIRECT(CONCATENATE($B254,"!N19"))) ->  | L254: =IF(ISERROR(INDIRECT(CONCATENATE($B254,"!N20"))),"",INDIRECT(CONCATENATE($B254,"!N20"))) ->  | M254: =IF(ISERROR(INDIRECT(CONCATENATE($B254,"!N21"))),"",INDIRECT(CONCATENATE($B254,"!N21"))) ->  | O254: =IF(ISERROR(INDIRECT(CONCATENATE($B254,"!O18"))),"",INDIRECT(CONCATENATE($B254,"!O18"))) ->  | P254: =IF(ISERROR(INDIRECT(CONCATENATE($B254,"!O19"))),"",INDIRECT(CONCATENATE($B254,"!O19"))) ->  | Q254: =IF(ISERROR(INDIRECT(CONCATENATE($B254,"!O20"))),"",INDIRECT(CONCATENATE($B254,"!O20"))) ->  | R254: =IF(ISERROR(INDIRECT(CONCATENATE($B254,"!O21"))),"",INDIRECT(CONCATENATE($B254,"!O21"))) ->  | T254: =IF(ISERROR(INDIRECT(CONCATENATE($B254,"!P18"))),"",INDIRECT(CONCATENATE($B254,"!P18"))) ->  | U254: =IF(ISERROR(INDIRECT(CONCATENATE($B254,"!P19"))),"",INDIRECT(CONCATENATE($B254,"!P19"))) ->  | V254: =IF(ISERROR(INDIRECT(CONCATENATE($B254,"!P20"))),"",INDIRECT(CONCATENATE($B254,"!P20"))) ->  | W254: =IF(ISERROR(INDIRECT(CONCATENATE($B254,"!P21"))),"",INDIRECT(CONCATENATE($B254,"!P21"))) ->  | Y254: =IF(ISERROR(INDIRECT(CONCATENATE($B254,"!Q18"))),"",INDIRECT(CONCATENATE($B254,"!Q18"))) ->  | Z254: =IF(ISERROR(INDIRECT(CONCATENATE($B254,"!Q19"))),"",INDIRECT(CONCATENATE($B254,"!Q19"))) ->  | AA254: =IF(ISERROR(INDIRECT(CONCATENATE($B254,"!Q20"))),"",INDIRECT(CONCATENATE($B254,"!Q20"))) ->  | AB254: =IF(ISERROR(INDIRECT(CONCATENATE($B254,"!Q21"))),"",INDIRECT(CONCATENATE($B254,"!Q1"))) -> 
E255: =IF(ISERROR(INDIRECT(CONCATENATE($B255,"!M18"))),"",INDIRECT(CONCATENATE($B255,"!M18"))) ->  | F255: =IF(ISERROR(INDIRECT(CONCATENATE($B255,"!M19"))),"",INDIRECT(CONCATENATE($B255,"!M19"))) ->  | G255: =IF(ISERROR(INDIRECT(CONCATENATE($B255,"!M20"))),"",INDIRECT(CONCATENATE($B255,"!M20"))) ->  | H255: =IF(ISERROR(INDIRECT(CONCATENATE($B255,"!M21"))),"",INDIRECT(CONCATENATE($B255,"!M21"))) ->  | J255: =IF(ISERROR(INDIRECT(CONCATENATE($B255,"!N18"))),"",INDIRECT(CONCATENATE($B255,"!N18"))) ->  | K255: =IF(ISERROR(INDIRECT(CONCATENATE($B255,"!N19"))),"",INDIRECT(CONCATENATE($B255,"!N19"))) ->  | L255: =IF(ISERROR(INDIRECT(CONCATENATE($B255,"!N20"))),"",INDIRECT(CONCATENATE($B255,"!N20"))) ->  | M255: =IF(ISERROR(INDIRECT(CONCATENATE($B255,"!N21"))),"",INDIRECT(CONCATENATE($B255,"!N21"))) ->  | O255: =IF(ISERROR(INDIRECT(CONCATENATE($B255,"!O18"))),"",INDIRECT(CONCATENATE($B255,"!O18"))) ->  | P255: =IF(ISERROR(INDIRECT(CONCATENATE($B255,"!O19"))),"",INDIRECT(CONCATENATE($B255,"!O19"))) ->  | Q255: =IF(ISERROR(INDIRECT(CONCATENATE($B255,"!O20"))),"",INDIRECT(CONCATENATE($B255,"!O20"))) ->  | R255: =IF(ISERROR(INDIRECT(CONCATENATE($B255,"!O21"))),"",INDIRECT(CONCATENATE($B255,"!O21"))) ->  | T255: =IF(ISERROR(INDIRECT(CONCATENATE($B255,"!P18"))),"",INDIRECT(CONCATENATE($B255,"!P18"))) ->  | U255: =IF(ISERROR(INDIRECT(CONCATENATE($B255,"!P19"))),"",INDIRECT(CONCATENATE($B255,"!P19"))) ->  | V255: =IF(ISERROR(INDIRECT(CONCATENATE($B255,"!P20"))),"",INDIRECT(CONCATENATE($B255,"!P20"))) ->  | W255: =IF(ISERROR(INDIRECT(CONCATENATE($B255,"!P21"))),"",INDIRECT(CONCATENATE($B255,"!P21"))) ->  | Y255: =IF(ISERROR(INDIRECT(CONCATENATE($B255,"!Q18"))),"",INDIRECT(CONCATENATE($B255,"!Q18"))) ->  | Z255: =IF(ISERROR(INDIRECT(CONCATENATE($B255,"!Q19"))),"",INDIRECT(CONCATENATE($B255,"!Q19"))) ->  | AA255: =IF(ISERROR(INDIRECT(CONCATENATE($B255,"!Q20"))),"",INDIRECT(CONCATENATE($B255,"!Q20"))) ->  | AB255: =IF(ISERROR(INDIRECT(CONCATENATE($B255,"!Q21"))),"",INDIRECT(CONCATENATE($B255,"!Q1"))) -> 
E256: =IF(ISERROR(INDIRECT(CONCATENATE($B256,"!M18"))),"",INDIRECT(CONCATENATE($B256,"!M18"))) ->  | F256: =IF(ISERROR(INDIRECT(CONCATENATE($B256,"!M19"))),"",INDIRECT(CONCATENATE($B256,"!M19"))) ->  | G256: =IF(ISERROR(INDIRECT(CONCATENATE($B256,"!M20"))),"",INDIRECT(CONCATENATE($B256,"!M20"))) ->  | H256: =IF(ISERROR(INDIRECT(CONCATENATE($B256,"!M21"))),"",INDIRECT(CONCATENATE($B256,"!M21"))) ->  | J256: =IF(ISERROR(INDIRECT(CONCATENATE($B256,"!N18"))),"",INDIRECT(CONCATENATE($B256,"!N18"))) ->  | K256: =IF(ISERROR(INDIRECT(CONCATENATE($B256,"!N19"))),"",INDIRECT(CONCATENATE($B256,"!N19"))) ->  | L256: =IF(ISERROR(INDIRECT(CONCATENATE($B256,"!N20"))),"",INDIRECT(CONCATENATE($B256,"!N20"))) ->  | M256: =IF(ISERROR(INDIRECT(CONCATENATE($B256,"!N21"))),"",INDIRECT(CONCATENATE($B256,"!N21"))) ->  | O256: =IF(ISERROR(INDIRECT(CONCATENATE($B256,"!O18"))),"",INDIRECT(CONCATENATE($B256,"!O18"))) ->  | P256: =IF(ISERROR(INDIRECT(CONCATENATE($B256,"!O19"))),"",INDIRECT(CONCATENATE($B256,"!O19"))) ->  | Q256: =IF(ISERROR(INDIRECT(CONCATENATE($B256,"!O20"))),"",INDIRECT(CONCATENATE($B256,"!O20"))) ->  | R256: =IF(ISERROR(INDIRECT(CONCATENATE($B256,"!O21"))),"",INDIRECT(CONCATENATE($B256,"!O21"))) ->  | T256: =IF(ISERROR(INDIRECT(CONCATENATE($B256,"!P18"))),"",INDIRECT(CONCATENATE($B256,"!P18"))) ->  | U256: =IF(ISERROR(INDIRECT(CONCATENATE($B256,"!P19"))),"",INDIRECT(CONCATENATE($B256,"!P19"))) ->  | V256: =IF(ISERROR(INDIRECT(CONCATENATE($B256,"!P20"))),"",INDIRECT(CONCATENATE($B256,"!P20"))) ->  | W256: =IF(ISERROR(INDIRECT(CONCATENATE($B256,"!P21"))),"",INDIRECT(CONCATENATE($B256,"!P21"))) ->  | Y256: =IF(ISERROR(INDIRECT(CONCATENATE($B256,"!Q18"))),"",INDIRECT(CONCATENATE($B256,"!Q18"))) ->  | Z256: =IF(ISERROR(INDIRECT(CONCATENATE($B256,"!Q19"))),"",INDIRECT(CONCATENATE($B256,"!Q19"))) ->  | AA256: =IF(ISERROR(INDIRECT(CONCATENATE($B256,"!Q20"))),"",INDIRECT(CONCATENATE($B256,"!Q20"))) ->  | AB256: =IF(ISERROR(INDIRECT(CONCATENATE($B256,"!Q21"))),"",INDIRECT(CONCATENATE($B256,"!Q1"))) -> 
E257: =IF(ISERROR(INDIRECT(CONCATENATE($B257,"!M18"))),"",INDIRECT(CONCATENATE($B257,"!M18"))) ->  | F257: =IF(ISERROR(INDIRECT(CONCATENATE($B257,"!M19"))),"",INDIRECT(CONCATENATE($B257,"!M19"))) ->  | G257: =IF(ISERROR(INDIRECT(CONCATENATE($B257,"!M20"))),"",INDIRECT(CONCATENATE($B257,"!M20"))) ->  | H257: =IF(ISERROR(INDIRECT(CONCATENATE($B257,"!M21"))),"",INDIRECT(CONCATENATE($B257,"!M21"))) ->  | J257: =IF(ISERROR(INDIRECT(CONCATENATE($B257,"!N18"))),"",INDIRECT(CONCATENATE($B257,"!N18"))) ->  | K257: =IF(ISERROR(INDIRECT(CONCATENATE($B257,"!N19"))),"",INDIRECT(CONCATENATE($B257,"!N19"))) ->  | L257: =IF(ISERROR(INDIRECT(CONCATENATE($B257,"!N20"))),"",INDIRECT(CONCATENATE($B257,"!N20"))) ->  | M257: =IF(ISERROR(INDIRECT(CONCATENATE($B257,"!N21"))),"",INDIRECT(CONCATENATE($B257,"!N21"))) ->  | O257: =IF(ISERROR(INDIRECT(CONCATENATE($B257,"!O18"))),"",INDIRECT(CONCATENATE($B257,"!O18"))) ->  | P257: =IF(ISERROR(INDIRECT(CONCATENATE($B257,"!O19"))),"",INDIRECT(CONCATENATE($B257,"!O19"))) ->  | Q257: =IF(ISERROR(INDIRECT(CONCATENATE($B257,"!O20"))),"",INDIRECT(CONCATENATE($B257,"!O20"))) ->  | R257: =IF(ISERROR(INDIRECT(CONCATENATE($B257,"!O21"))),"",INDIRECT(CONCATENATE($B257,"!O21"))) ->  | T257: =IF(ISERROR(INDIRECT(CONCATENATE($B257,"!P18"))),"",INDIRECT(CONCATENATE($B257,"!P18"))) ->  | U257: =IF(ISERROR(INDIRECT(CONCATENATE($B257,"!P19"))),"",INDIRECT(CONCATENATE($B257,"!P19"))) ->  | V257: =IF(ISERROR(INDIRECT(CONCATENATE($B257,"!P20"))),"",INDIRECT(CONCATENATE($B257,"!P20"))) ->  | W257: =IF(ISERROR(INDIRECT(CONCATENATE($B257,"!P21"))),"",INDIRECT(CONCATENATE($B257,"!P21"))) ->  | Y257: =IF(ISERROR(INDIRECT(CONCATENATE($B257,"!Q18"))),"",INDIRECT(CONCATENATE($B257,"!Q18"))) ->  | Z257: =IF(ISERROR(INDIRECT(CONCATENATE($B257,"!Q19"))),"",INDIRECT(CONCATENATE($B257,"!Q19"))) ->  | AA257: =IF(ISERROR(INDIRECT(CONCATENATE($B257,"!Q20"))),"",INDIRECT(CONCATENATE($B257,"!Q20"))) ->  | AB257: =IF(ISERROR(INDIRECT(CONCATENATE($B257,"!Q21"))),"",INDIRECT(CONCATENATE($B257,"!Q1"))) -> 
A297: RURAL | D297: Poorest | I297: Poor | N297: Middle | S297: Rich | X297: Richest
D298: Improved | E298: Basic | F298: Limited | G298: Unimproved | H298: Surface water | I298: Improved | J298: Basic | K298: Limited | L298: Unimproved | M298: Surface water | N298: Improved | O298: Basic | P298: Limited | Q298: Unimproved | R298: Surface water | S298: Improved | T298: Basic | U298: Limited | V298: Unimproved | W298: Surface water | X298: Improved | Y298: Basic | Z298: Limited | AA298: Unimproved | AB298: Surface water
A299: Forecast period: | C299: 2000 | D299: =IF((D301+H301)>100,D301*100/(D301+H301),D301) -> 57.47270724 | E299: =D299*AVERAGEIF(E305:E316,">0")/100 -> 56.86897149 | F299: =D299*(100-AVERAGEIF(E305:E316,">0"))/100 -> 0.6037357449 | G299: =100-(E299+F299+H299) -> 13.25416102 | H299: =IF((D301+H301)>100,H301*100/(D301+H301),H301) -> 29.27313175 | I299: =IF((I301+M301)>100,I301*100/(I301+M301),I301) -> 94.33269461 | J299: =I299*AVERAGEIF(J305:J316,">0")/100 -> 93.98654822 | K299: =I299*(100-AVERAGEIF(J305:J316,">0"))/100 -> 0.3461463975 | L299: =100-(J299+K299+M299) -> 2.115617526 | M299: =IF((I301+M301)>100,M301*100/(I301+M301),M301) -> 3.55168786 | N299: =IF((N301+R301)>100,N301*100/(N301+R301),N301) -> 97.38223484 | O299: =N299*AVERAGEIF(O305:O316,">0")/100 -> 96.3725747 | P299: =N299*(100-AVERAGEIF(O305:O316,">0"))/100 -> 1.009660138 | Q299: =100-(O299+P299+R299) -> 1.303079954 | R299: =IF((N301+R301)>100,R301*100/(N301+R301),R301) -> 1.314685208 | S299: =IF((S301+W301)>100,S301*100/(S301+W301),S301) -> 98.87870833 | T299: =S299*AVERAGEIF(T305:T316,">0")/100 -> 98.34678314 | U299: =S299*(100-AVERAGEIF(T305:T316,">0"))/100 -> 0.5319251909 | V299: =100-(T299+U299+W299) -> 0.6615592286 | W299: =IF((S301+W301)>100,W301*100/(S301+W301),W301) -> 0.4597324386 | X299: =IF((X301+AB301)>100,X301*100/(X301+AB301),X301) -> 99.30958281 | Y299: =X299*AVERAGEIF(Y305:Y316,">0")/100 -> 98.69120139 | Z299: =X299*(100-AVERAGEIF(Y305:Y316,">0"))/100 -> 0.6183814162 | AA299: =100-(Y299+Z299+AB299) -> 0.6042870101 | AB299: =IF((X301+AB301)>100,AB301*100/(X301+AB301),AB301) -> 0.08613018342
C300: 2020 | D300: =IF((D302+H302)>100,D302*100/(D302+H302),D302) -> 84.81017544 | E300: =D300*AVERAGEIF(E305:E316,">0")/100 -> 83.91926675 | F300: =D300*(100-AVERAGEIF(E305:E316,">0"))/100 -> 0.8909086922 | G300: =100-(E300+F300+H300) -> 9.373976876 | H300: =IF((D302+H302)>100,H302*100/(D302+H302),H302) -> 5.815847682 | I300: =IF((I302+M302)>100,I302*100/(I302+M302),I302) -> 98.82863561 | J300: =I300*AVERAGEIF(J305:J316,">0")/100 -> 98.46599171 | K300: =I300*(100-AVERAGEIF(J305:J316,">0"))/100 -> 0.3626438991 | L300: =100-(J300+K300+M300) -> 0.5255078656 | M300: =IF((I302+M302)>100,M302*100/(I302+M302),M302) -> 0.6458565229 | N300: =IF((N302+R302)>100,N302*100/(N302+R302),N302) -> 99.88625598 | O300: =N300*AVERAGEIF(O305:O316,">0")/100 -> 98.85063412 | P300: =N300*(100-AVERAGEIF(O305:O316,">0"))/100 -> 1.035621858 | Q300: =100-(O300+P300+R300) -> 0.017000419 | R300: =IF((N302+R302)>100,R302*100/(N302+R302),R302) -> 0.09674360264 | S300: =IF((S302+W302)>100,S302*100/(S302+W302),S302) -> 99.2939374 | T300: =S300*AVERAGEIF(T305:T316,">0")/100 -> 98.75977845 | U300: =S300*(100-AVERAGEIF(T305:T316,">0"))/100 -> 0.5341589458 | V300: =100-(T300+U300+W300) -> 0.6072784812 | W300: =IF((S302+W302)>100,W302*100/(S302+W302),W302) -> 0.0987841231 | X300: =IF((X302+AB302)>100,X302*100/(X302+AB302),X302) -> 99.80898704 | Y300: =X300*AVERAGEIF(Y305:Y316,">0")/100 -> 99.18749593 | Z300: =X300*(100-AVERAGEIF(Y305:Y316,">0"))/100 -> 0.6214911091 | AA300: =100-(Y300+Z300+AB300) -> 0.1910129563 | AB300: =IF((X302+AB302)>100,AB302*100/(X302+AB302),AB302) -> 0
A301: Regression period: | C301: =MinRegYear(C299,C305:C316) -> 2003 | D301: =IF(MAX(C305:C316)-MIN(C305:C316)<5,AVERAGEIF(C305:C316,">0",D305:D316), IF(FORECAST($C301,D$305:D$316,$C$305:$C$316)<0,0, IF(FORECAST($C301,D$305:D$316,$C$305:$C$316)>100,100, FORECAST($C301,D$305:D$316,$C$305:$C$316)))) -> 57.47270724 | H301: =IF(MAX(C305:C316)-MIN(C305:C316)<5,AVERAGEIF(C305:C316,">0",H305:H316), IF(FORECAST($C301,H$305:H$316,$C$305:$C$316)<0,0, IF(FORECAST($C301,H$305:H$316,$C$305:$C$316)>100,100, FORECAST($C301,H$305:H$316,$C$305:$C$316)))) -> 29.27313175 | I301: =IF(MAX(C305:C316)-MIN(C305:C316)<5,AVERAGEIF(C305:C316,">0",I305:I316), IF(FORECAST($C301,I$305:I$316,$C$305:$C$316)<0,0, IF(FORECAST($C301,I$305:I$316,$C$305:$C$316)>100,100, FORECAST($C301,I$305:I$316,$C$305:$C$316)))) -> 94.33269461 | M301: =IF(MAX(C305:C316)-MIN(C305:C316)<5,AVERAGEIF(C305:C316,">0",M305:M316), IF(FORECAST($C301,M$305:M$316,$C$305:$C$316)<0,0, IF(FORECAST($C301,M$305:M$316,$C$305:$C$316)>100,100, FORECAST($C301,M$305:M$316,$C$305:$C$316)))) -> 3.55168786 | N301: =IF(MAX(C305:C316)-MIN(C305:C316)<5,AVERAGEIF(C305:C316,">0",N305:N316), IF(FORECAST($C301,N$305:N$316,$C$305:$C$316)<0,0, IF(FORECAST($C301,N$305:N$316,$C$305:$C$316)>100,100, FORECAST($C301,N$305:N$316,$C$305:$C$316)))) -> 97.38223484 | R301: =IF(MAX(C305:C316)-MIN(C305:C316)<5,AVERAGEIF(C305:C316,">0",R305:R316), IF(FORECAST($C301,R$305:R$316,$C$305:$C$316)<0,0, IF(FORECAST($C301,R$305:R$316,$C$305:$C$316)>100,100, FORECAST($C301,R$305:R$316,$C$305:$C$316)))) -> 1.314685208 | S301: =IF(MAX(C305:C316)-MIN(C305:C316)<5,AVERAGEIF(C305:C316,">0",S305:S316), IF(FORECAST($C301,S$305:S$316,$C$305:$C$316)<0,0, IF(FORECAST($C301,S$305:S$316,$C$305:$C$316)>100,100, FORECAST($C301,S$305:S$316,$C$305:$C$316)))) -> 98.87870833 | W301: =IF(MAX(C305:C316)-MIN(C305:C316)<5,AVERAGEIF(C305:C316,">0",W305:W316), IF(FORECAST($C301,W$305:W$316,$C$305:$C$316)<0,0, IF(FORECAST($C301,W$305:W$316,$C$305:$C$316)>100,100, FORECAST($C301,W$305:W$316,$C$305:$C$316)))) -> 0.4597324386 | X301: =IF(MAX(C305:C316)-MIN(C305:C316)<5,AVERAGEIF(C305:C316,">0",X305:X316), IF(FORECAST($C301,X$305:X$316,$C$305:$C$316)<0,0, IF(FORECAST($C301,X$305:X$316,$C$305:$C$316)>100,100, FORECAST($C301,X$305:X$316,$C$305:$C$316)))) -> 99.30958281 | AB301: =IF(MAX(C305:C316)-MIN(C305:C316)<5,AVERAGEIF(C305:C316,">0",AB305:AB316), IF(FORECAST($C301,AB$305:AB$316,$C$305:$C$316)<0,0, IF(FORECAST($C301,AB$305:AB$316,$C$305:$C$316)>100,100, FORECAST($C301,AB$305:AB$316,$C$305:$C$316)))) -> 0.08613018342
C302: =MaxRegYear(C300,C305:C316) -> 2020 | D302: =IF(MAX(C305:C316)-MIN(C305:C316)<5,AVERAGEIF(C305:C316,">0",D305:D316), IF(FORECAST($C302,D$305:D$316,$C$305:$C$316)<0,0, IF(FORECAST($C302,D$305:D$316,$C$305:$C$316)>100,100, FORECAST($C302,D$305:D$316,$C$305:$C$316)))) -> 84.81017544 | H302: =IF(MAX(C305:C316)-MIN(C305:C316)<5,AVERAGEIF(C305:C316,">0",H305:H316), IF(FORECAST($C302,H$305:H$316,$C$305:$C$316)<0,0, IF(FORECAST($C302,H$305:H$316,$C$305:$C$316)>100,100, FORECAST($C302,H$305:H$316,$C$305:$C$316)))) -> 5.815847682 | I302: =IF(MAX(C305:C316)-MIN(C305:C316)<5,AVERAGEIF(C305:C316,">0",I305:I316), IF(FORECAST($C302,I$305:I$316,$C$305:$C$316)<0,0, IF(FORECAST($C302,I$305:I$316,$C$305:$C$316)>100,100, FORECAST($C302,I$305:I$316,$C$305:$C$316)))) -> 98.82863561 | M302: =IF(MAX(C305:C316)-MIN(C305:C316)<5,AVERAGEIF(C305:C316,">0",M305:M316), IF(FORECAST($C302,M$305:M$316,$C$305:$C$316)<0,0, IF(FORECAST($C302,M$305:M$316,$C$305:$C$316)>100,100, FORECAST($C302,M$305:M$316,$C$305:$C$316)))) -> 0.6458565229 | N302: =IF(MAX(C305:C316)-MIN(C305:C316)<5,AVERAGEIF(C305:C316,">0",N305:N316), IF(FORECAST($C302,N$305:N$316,$C$305:$C$316)<0,0, IF(FORECAST($C302,N$305:N$316,$C$305:$C$316)>100,100, FORECAST($C302,N$305:N$316,$C$305:$C$316)))) -> 99.88625598 | R302: =IF(MAX(C305:C316)-MIN(C305:C316)<5,AVERAGEIF(C305:C316,">0",R305:R316), IF(FORECAST($C302,R$305:R$316,$C$305:$C$316)<0,0, IF(FORECAST($C302,R$305:R$316,$C$305:$C$316)>100,100, FORECAST($C302,R$305:R$316,$C$305:$C$316)))) -> 0.09674360264 | S302: =IF(MAX(C305:C316)-MIN(C305:C316)<5,AVERAGEIF(C305:C316,">0",S305:S316), IF(FORECAST($C302,S$305:S$316,$C$305:$C$316)<0,0, IF(FORECAST($C302,S$305:S$316,$C$305:$C$316)>100,100, FORECAST($C302,S$305:S$316,$C$305:$C$316)))) -> 99.2939374 | W302: =IF(MAX(C305:C316)-MIN(C305:C316)<5,AVERAGEIF(C305:C316,">0",W305:W316), IF(FORECAST($C302,W$305:W$316,$C$305:$C$316)<0,0, IF(FORECAST($C302,W$305:W$316,$C$305:$C$316)>100,100, FORECAST($C302,W$305:W$316,$C$305:$C$316)))) -> 0.0987841231 | X302: =IF(MAX(C305:C316)-MIN(C305:C316)<5,AVERAGEIF(C305:C316,">0",X305:X316), IF(FORECAST($C302,X$305:X$316,$C$305:$C$316)<0,0, IF(FORECAST($C302,X$305:X$316,$C$305:$C$316)>100,100, FORECAST($C302,X$305:X$316,$C$305:$C$316)))) -> 99.80898704 | AB302: =IF(MAX(C305:C316)-MIN(C305:C316)<5,AVERAGEIF(C305:C316,">0",AB305:AB316), IF(FORECAST($C302,AB$305:AB$316,$C$305:$C$316)<0,0, IF(FORECAST($C302,AB$305:AB$316,$C$305:$C$316)>100,100, FORECAST($C302,AB$305:AB$316,$C$305:$C$316)))) -> 0
B304: Survey | C304: Year | D304: Improved | E304: % Improved < = 30min | H304: Surface water | I304: Improved | J304: % Improved < = 30min | M304: Surface water | N304: Improved | O304: % Improved < = 30min | R304: Surface water | S304: Improved | T304: % Improved < = 30min | W304: Surface water | X304: Improved | Y304: % Improved < = 30min | AB304: Surface water
B305: DHS05 | C305: 2005 | D305: =IF(ISERROR(INDIRECT(CONCATENATE($B305,"!M16"))),"",INDIRECT(CONCATENATE($B305,"!M16"))) -> 61.1353276 | E305: =IF(ISERROR(INDIRECT(CONCATENATE($B305,"!M23"))),"",INDIRECT(CONCATENATE($B305,"!M23"))) -> 100 | H305: =IF(ISERROR(INDIRECT(CONCATENATE($B305,"!M21"))),"",INDIRECT(CONCATENATE($B305,"!M21"))) -> 23.98518426 | I305: =IF(ISERROR(INDIRECT(CONCATENATE($B305,"!N16"))),"",INDIRECT(CONCATENATE($B305,"!N16"))) -> 97.56497018 | J305: =IF(ISERROR(INDIRECT(CONCATENATE($B305,"!N23"))),"",INDIRECT(CONCATENATE($B305,"!N23"))) -> 100 | M305: =IF(ISERROR(INDIRECT(CONCATENATE($B305,"!N21"))),"",INDIRECT(CONCATENATE($B305,"!N21"))) -> 1.516634978 | N305: =IF(ISERROR(INDIRECT(CONCATENATE($B305,"!O16"))),"",INDIRECT(CONCATENATE($B305,"!O16"))) -> 98.36659532 | O305: =IF(ISERROR(INDIRECT(CONCATENATE($B305,"!O23"))),"",INDIRECT(CONCATENATE($B305,"!O23"))) -> 100 | R305: =IF(ISERROR(INDIRECT(CONCATENATE($B305,"!O21"))),"",INDIRECT(CONCATENATE($B305,"!O21"))) -> 0.8426246577 | S305: =IF(ISERROR(INDIRECT(CONCATENATE($B305,"!P16"))),"",INDIRECT(CONCATENATE($B305,"!P16"))) -> 99.09610684 | T305: =IF(ISERROR(INDIRECT(CONCATENATE($B305,"!P23"))),"",INDIRECT(CONCATENATE($B305,"!P23"))) -> 100 | W305: =IF(ISERROR(INDIRECT(CONCATENATE($B305,"!P21"))),"",INDIRECT(CONCATENATE($B305,"!P21"))) -> 0 | X305: =IF(ISERROR(INDIRECT(CONCATENATE($B305,"!Q16"))),"",INDIRECT(CONCATENATE($B305,"!Q16"))) -> 99.0941412 | Y305: =IF(ISERROR(INDIRECT(CONCATENATE($B305,"!Q23"))),"",INDIRECT(CONCATENATE($B305,"!Q23"))) -> 100 | AB305: =IF(ISERROR(INDIRECT(CONCATENATE($B305,"!Q221"))),"",INDIRECT(CONCATENATE($B305,"!Q21"))) -> 0
B306: MICS07 | C306: 2007 | D306: 61.49258449 | E306: 96.4100732 | H306: 26.48524202 | I306: 93.07723446 | J306: 99.03120541 | M306: 3.923140231 | N306: 98.17732887 | O306: 99.1357599 | R306: 0.3565524957 | S306: 99.29630436 | T306: 99.23790701 | W306: 0.1005824924 | X306: 99.25358854 | Y306: 99.19392446 | AB306: 0.1858659935
B307: DHS09 | C307: 2009 | D307: 69.50625413 | E307: 99.94099561 | H307: 22.02901883 | I307: 94.38987455 | J307: 99.91660495 | M307: 3.845119765 | N307: 96.81068817 | O307: 99.41577881 | R307: 2.304958778 | S307: 98.2250288 | T307: 99.70281723 | W307: 1.348789546 | X307: 99.9735523 | Y307: 99.67403749 | AB307: 0.02654884901
B308: MICS14 | C308: 2014 | D308: 74.9 | E308: 99.2 | H308: 12.6 | I308: 98.3 | J308: 99.8 | M308: 1.2 | N308: 99.5 | O308: 99.9 | R308: 0.2 | S308: 99.5 | T308: 99.7 | W308: 0 | X308: 99.8 | Y308: 99.8 | AB308: 0
B309: MICS20 | C309: 2020 | D309: 84.65282457 | E309: 99.19656207 | H309: 6.072604049 | I309: 98.91007858 | J309: 99.41747899 | M309: 0.4362941199 | N309: 99.94837628 | O309: 96.3644555 | R309: 0.003545155632 | S309: 99.25311122 | T309: 98.66948946 | W309: 0 | X309: 99.60170078 | Y309: 98.2186355 | AB309: 0
B318: =CONCATENATE("Rural use of drinking water sources, ",C299,"–",C300) -> Rural use of drinking water sources, 2000–2020 | S318: Data points used for regression

Sheet Sanitation
B4: Summary of trends in use of sanitation facilities by wealth quintile (%)
B5: =IF(ISERROR(INDIRECT(CONCATENATE($B105,"!A2"))),"",INDIRECT(CONCATENATE($B105,"!A2"))) -> Guyana
B7: =B118 -> National use of sanitation facilities, 2000–2020 | J7: =B218 -> Urban use of sanitation facilities, 2000–2020 | R7: =B318 -> Rural use of sanitation facilities, 2000–2020
B31: =IF(ISERROR(INDIRECT(CONCATENATE($B105,"!A2"))),"",INDIRECT(CONCATENATE($B105,"!A2"))) -> Guyana | F31: Poorest | J31: Poor | N31: Middle | R31: Rich | V31: Richest
F32: Basic | G32: Limited | H32: Unimproved | I32: Open defecation | J32: Basic | K32: Limited | L32: Unimproved | M32: Open defecation | N32: Basic | O32: Limited | P32: Unimproved | Q32: Open defecation | R32: Basic | S32: Limited | T32: Unimproved | U32: Open defecation | V32: Basic | W32: Limited | X32: Unimproved | Y32: Open defecation
B33: NATIONAL | D33: Estimate | E33: =C99 -> 2000 | F33: =E99 -> 54.47873465 | G33: =F99 -> 10.46019449 | H33: 29.24682569 | I33: 5.814245177 | J33: =J99 -> 73.08391619 | K33: =K99 -> 9.787533288 | L33: 16.86256209 | M33: 0.2659884286 | N33: =O99 -> 79.36247873 | O33: =P99 -> 8.329286346 | P33: 12.17735761 | Q33: 0.1308773166 | R33: =T99 -> 86.20562719 | S33: =U99 -> 6.072474433 | T33: 7.711562959 | U33: 0.01033541736 | V33: =Y99 -> 94.00988923 | W33: =Z99 -> 3.659299476 | X33: 2.330811297 | Y33: 0
E34: =C100 -> 2020 | F34: =E100 -> 76.94467379 | G34: 14.77376921 | H34: 6.407375729 | I34: 1.874181271 | J34: =J100 -> 86.90309398 | K34: 11.63822315 | L34: 1.443450592 | M34: 0.01523227769 | N34: =O100 -> 88.83819119 | O34: 9.323785555 | P34: 1.838023259 | Q34: 0 | R34: =T100 -> 93.41937651 | S34: 6.580623491 | T34: 0 | U34: 0 | V34: =Y100 -> 96.11038604 | W34: 3.741060522 | X34: 0.1485534379 | Y34: 0
B36: URBAN | D36: Estimate | E36: =C199 -> 2000 | F36: =E199 -> 68.67019653 | G36: =F199 -> 13.24579224 | H36: 17.41709519 | I36: 0.6669160406 | J36: =J199 -> 78.16653511 | K36: =K199 -> 9.790029755 | L36: 11.82473028 | M36: 0.2187048589 | N36: =O199 -> 86.99139909 | O36: =P199 -> 6.689414886 | P36: 6.284220076 | Q36: 0.03496594396 | R36: =T199 -> 93.01360411 | S36: =U199 -> 4.728582334 | T36: 2.257813558 | U36: 0 | V36: =Y199 -> 96.4061088 | W36: =Z199 -> 2.394311672 | X36: 1.199579526 | Y36: 0
E37: =C200 -> 2020 | F37: =E200 -> 78.69225822 | G37: 15.17894744 | H37: 5.028617576 | I37: 1.10017677 | J37: =J200 -> 87.47259848 | K37: 10.95557505 | L37: 1.571826465 | M37: 0 | N37: =O200 -> 92.6071064 | O37: 7.121248337 | P37: 0.2716452612 | Q37: 0 | R37: =T200 -> 94.76163188 | S37: 4.817447756 | T37: 0.4209203624 | U37: 0 | V37: =Y200 -> 97.49838065 | W37: 2.42143899 | X37: 0.08018036191 | Y37: 0
B39: RURAL | D39: Estimate | E39: =C299 -> 2000 | F39: =E299 -> 49.64341945 | G39: =F299 -> 10.11841342 | H39: 32.22320776 | I39: 8.014959362 | J39: =J299 -> 70.44884416 | K39: =K299 -> 9.03369237 | L39: 20.36596409 | M39: 0.1514993831 | N39: =O299 -> 77.18790567 | O39: =P299 -> 8.712508955 | P39: 13.95432065 | Q39: 0.1452647285 | R39: =T299 -> 83.98728438 | S39: =U299 -> 5.903172356 | T39: 10.10954326 | U39: 0 | V39: =Y299 -> 91.18327008 | W39: =Z299 -> 4.813381756 | X39: 4.003348167 | Y39: 0
E40: =C300 -> 2020 | F40: =E300 -> 75.80173725 | G40: 15.45005006 | H40: 6.643053954 | I40: 2.105158737 | J40: =J300 -> 87.02275412 | K40: 11.15897357 | L40: 1.772278447 | M40: 0.04599386139 | N40: =O300 -> 88.0488271 | O40: 9.938424783 | P40: 2.010956316 | Q40: 0.001791798896 | R40: =T300 -> 93.43292651 | S40: 6.567073492 | T40: 0 | U40: 0 | V40: =Y300 -> 94.92322621 | W40: 5.010806531 | X40: 0.06596726286 | Y40: 0
A97: NATIONAL | D97: Poorest | I97: Poor | N97: Middle | S97: Rich | X97: Richest
D98: Improved | E98: Basic | F98: Limited | G98: Unimproved | H98: Open defecation | I98: Improved | J98: Basic | K98: Limited | L98: Unimproved | M98: Open defecation | N98: Improved | O98: Basic | P98: Limited | Q98: Unimproved | R98: Open defecation | S98: Improved | T98: Basic | U98: Limited | V98: Unimproved | W98: Open defecation | X98: Improved | Y98: Basic | Z98: Limited | AA98: Unimproved | AB98: Open defecation
A99: Forecast period: | C99: 2000 | D99: =IF((D101+H101)>100,D101*100/(D101+H101),D101) -> 64.93892913 | E99: =D99*AVERAGEIF(E105:E116,">0")/100 -> 54.47873465 | F99: =D99*(100-AVERAGEIF(E105:E116,">0"))/100 -> 10.46019449 | G99: =100-(E99+F99+H99) -> 29.24682569 | H99: =IF((D101+H101)>100,H101*100/(D101+H101),H101) -> 5.814245177 | I99: =IF((I101+M101)>100,I101*100/(I101+M101),I101) -> 82.87144948 | J99: =I99*AVERAGEIF(J105:J116,">0")/100 -> 73.08391619 | K99: =I99*(100-AVERAGEIF(J105:J116,">0"))/100 -> 9.787533288 | L99: =100-(J99+K99+M99) -> 16.86256209 | M99: =IF((I101+M101)>100,M101*100/(I101+M101),M101) -> 0.2659884286 | N99: =IF((N101+R101)>100,N101*100/(N101+R101),N101) -> 87.69176507 | O99: =N99*AVERAGEIF(O105:O116,">0")/100 -> 79.36247873 | P99: =N99*(100-AVERAGEIF(O105:O116,">0"))/100 -> 8.329286346 | Q99: =100-(O99+P99+R99) -> 12.17735761 | R99: =IF((N101+R101)>100,R101*100/(N101+R101),R101) -> 0.1308773166 | S99: =IF((S101+W101)>100,S101*100/(S101+W101),S101) -> 92.27810162 | T99: =S99*AVERAGEIF(T105:T116,">0")/100 -> 86.20562719 | U99: =S99*(100-AVERAGEIF(T105:T116,">0"))/100 -> 6.072474433 | V99: =100-(T99+U99+W99) -> 7.711562959 | W99: =IF((S101+W101)>100,W101*100/(S101+W101),W101) -> 0.01033541736 | X99: =IF((X101+AB101)>100,X101*100/(X101+AB101),X101) -> 97.6691887 | Y99: =X99*AVERAGEIF(Y105:Y116,">0")/100 -> 94.00988923 | Z99: =X99*(100-AVERAGEIF(Y105:Y116,">0"))/100 -> 3.659299476 | AA99: =100-(Y99+Z99+AB99) -> 2.330811297 | AB99: =IF((X101+AB101)>100,AB101*100/(X101+AB101),AB101) -> 0
C100: 2020 | D100: =IF((D102+H102)>100,D102*100/(D102+H102),D102) -> 91.718443 | E100: =D100*AVERAGEIF(E105:E116,">0")/100 -> 76.94467379 | F100: =D100*(100-AVERAGEIF(E105:E116,">0"))/100 -> 14.77376921 | G100: =100-(E100+F100+H100) -> 6.407375729 | H100: =IF((D102+H102)>100,H102*100/(D102+H102),H102) -> 1.874181271 | I100: =IF((I102+M102)>100,I102*100/(I102+M102),I102) -> 98.54131713 | J100: =I100*AVERAGEIF(J105:J116,">0")/100 -> 86.90309398 | K100: =I100*(100-AVERAGEIF(J105:J116,">0"))/100 -> 11.63822315 | L100: =100-(J100+K100+M100) -> 1.443450592 | M100: =IF((I102+M102)>100,M102*100/(I102+M102),M102) -> 0.01523227769 | N100: =IF((N102+R102)>100,N102*100/(N102+R102),N102) -> 98.16197674 | O100: =N100*AVERAGEIF(O105:O116,">0")/100 -> 88.83819119 | P100: =N100*(100-AVERAGEIF(O105:O116,">0"))/100 -> 9.323785555 | Q100: =100-(O100+P100+R100) -> 1.838023259 | R100: =IF((N102+R102)>100,R102*100/(N102+R102),R102) -> 0 | S100: =IF((S102+W102)>100,S102*100/(S102+W102),S102) -> 100 | T100: =S100*AVERAGEIF(T105:T116,">0")/100 -> 93.41937651 | U100: =S100*(100-AVERAGEIF(T105:T116,">0"))/100 -> 6.580623491 | V100: =100-(T100+U100+W100) -> 0 | W100: =IF((S102+W102)>100,W102*100/(S102+W102),W102) -> 0 | X100: =IF((X102+AB102)>100,X102*100/(X102+AB102),X102) -> 99.85144656 | Y100: =X100*AVERAGEIF(Y105:Y116,">0")/100 -> 96.11038604 | Z100: =X100*(100-AVERAGEIF(Y105:Y116,">0"))/100 -> 3.741060522 | AA100: =100-(Y100+Z100+AB100) -> 0.1485534379 | AB100: =IF((X102+AB102)>100,AB102*100/(X102+AB102),AB102) -> 0
A101: Regression period: | C101: =MinRegYear(C99,C105:C116) -> 2003 | D101: =IF(MAX(C105:C116)-MIN(C105:C116)<5,AVERAGEIF(C105:C116,">0",D105:D116), IF(FORECAST($C101,D$105:D$116,$C$105:$C$116)<0,0, IF(FORECAST($C101,D$105:D$116,$C$105:$C$116)>100,100, FORECAST($C101,D$105:D$116,$C$105:$C$116)))) -> 64.93892913 | H101: =IF(MAX(C105:C116)-MIN(C105:C116)<5,AVERAGEIF(C105:C116,">0",H105:H116), IF(FORECAST($C101,H$105:H$116,$C$105:$C$116)<0,0, IF(FORECAST($C101,H$105:H$116,$C$105:$C$116)>100,100, FORECAST($C101,H$105:H$116,$C$105:$C$116)))) -> 5.814245177 | I101: =IF(MAX(C105:C116)-MIN(C105:C116)<5,AVERAGEIF(C105:C116,">0",I105:I116), IF(FORECAST($C101,I$105:I$116,$C$105:$C$116)<0,0, IF(FORECAST($C101,I$105:I$116,$C$105:$C$116)>100,100, FORECAST($C101,I$105:I$116,$C$105:$C$116)))) -> 82.87144948 | M101: =IF(MAX(C105:C116)-MIN(C105:C116)<5,AVERAGEIF(C105:C116,">0",M105:M116), IF(FORECAST($C101,M$105:M$116,$C$105:$C$116)<0,0, IF(FORECAST($C101,M$105:M$116,$C$105:$C$116)>100,100, FORECAST($C101,M$105:M$116,$C$105:$C$116)))) -> 0.2659884286 | N101: =IF(MAX(C105:C116)-MIN(C105:C116)<5,AVERAGEIF(C105:C116,">0",N105:N116), IF(FORECAST($C101,N$105:N$116,$C$105:$C$116)<0,0, IF(FORECAST($C101,N$105:N$116,$C$105:$C$116)>100,100, FORECAST($C101,N$105:N$116,$C$105:$C$116)))) -> 87.69176507 | R101: =IF(MAX(C105:C116)-MIN(C105:C116)<5,AVERAGEIF(C105:C116,">0",R105:R116), IF(FORECAST($C101,R$105:R$116,$C$105:$C$116)<0,0, IF(FORECAST($C101,R$105:R$116,$C$105:$C$116)>100,100, FORECAST($C101,R$105:R$116,$C$105:$C$116)))) -> 0.1308773166 | S101: =IF(MAX(C105:C116)-MIN(C105:C116)<5,AVERAGEIF(C105:C116,">0",S105:S116), IF(FORECAST($C101,S$105:S$116,$C$105:$C$116)<0,0, IF(FORECAST($C101,S$105:S$116,$C$105:$C$116)>100,100, FORECAST($C101,S$105:S$116,$C$105:$C$116)))) -> 92.27810162 | W101: =IF(MAX(C105:C116)-MIN(C105:C116)<5,AVERAGEIF(C105:C116,">0",W105:W116), IF(FORECAST($C101,W$105:W$116,$C$105:$C$116)<0,0, IF(FORECAST($C101,W$105:W$116,$C$105:$C$116)>100,100, FORECAST($C101,W$105:W$116,$C$105:$C$116)))) -> 0.01033541736 | X101: =IF(MAX(C105:C116)-MIN(C105:C116)<5,AVERAGEIF(C105:C116,">0",X105:X116), IF(FORECAST($C101,X$105:X$116,$C$105:$C$116)<0,0, IF(FORECAST($C101,X$105:X$116,$C$105:$C$116)>100,100, FORECAST($C101,X$105:X$116,$C$105:$C$116)))) -> 97.6691887 | AB101: =IF(MAX(C105:C116)-MIN(C105:C116)<5,AVERAGEIF(C105:C116,">0",AB105:AB116), IF(FORECAST($C101,AB$105:AB$116,$C$105:$C$116)<0,0, IF(FORECAST($C101,AB$105:AB$116,$C$105:$C$116)>100,100, FORECAST($C101,AB$105:AB$116,$C$105:$C$116)))) -> 0
C102: =MaxRegYear(C100,C105:C116) -> 2020 | D102: =IF(MAX(C105:C116)-MIN(C105:C116)<5,AVERAGEIF(C105:C116,">0",D105:D116), IF(FORECAST($C102,D$105:D$116,$C$105:$C$116)<0,0, IF(FORECAST($C102,D$105:D$116,$C$105:$C$116)>100,100, FORECAST($C102,D$105:D$116,$C$105:$C$116)))) -> 91.718443 | H102: =IF(MAX(C105:C116)-MIN(C105:C116)<5,AVERAGEIF(C105:C116,">0",H105:H116), IF(FORECAST($C102,H$105:H$116,$C$105:$C$116)<0,0, IF(FORECAST($C102,H$105:H$116,$C$105:$C$116)>100,100, FORECAST($C102,H$105:H$116,$C$105:$C$116)))) -> 1.874181271 | I102: =IF(MAX(C105:C116)-MIN(C105:C116)<5,AVERAGEIF(C105:C116,">0",I105:I116), IF(FORECAST($C102,I$105:I$116,$C$105:$C$116)<0,0, IF(FORECAST($C102,I$105:I$116,$C$105:$C$116)>100,100, FORECAST($C102,I$105:I$116,$C$105:$C$116)))) -> 98.54131713 | M102: =IF(MAX(C105:C116)-MIN(C105:C116)<5,AVERAGEIF(C105:C116,">0",M105:M116), IF(FORECAST($C102,M$105:M$116,$C$105:$C$116)<0,0, IF(FORECAST($C102,M$105:M$116,$C$105:$C$116)>100,100, FORECAST($C102,M$105:M$116,$C$105:$C$116)))) -> 0.01523227769 | N102: =IF(MAX(C105:C116)-MIN(C105:C116)<5,AVERAGEIF(C105:C116,">0",N105:N116), IF(FORECAST($C102,N$105:N$116,$C$105:$C$116)<0,0, IF(FORECAST($C102,N$105:N$116,$C$105:$C$116)>100,100, FORECAST($C102,N$105:N$116,$C$105:$C$116)))) -> 98.16197674 | R102: =IF(MAX(C105:C116)-MIN(C105:C116)<5,AVERAGEIF(C105:C116,">0",R105:R116), IF(FORECAST($C102,R$105:R$116,$C$105:$C$116)<0,0, IF(FORECAST($C102,R$105:R$116,$C$105:$C$116)>100,100, FORECAST($C102,R$105:R$116,$C$105:$C$116)))) -> 0 | S102: =IF(MAX(C105:C116)-MIN(C105:C116)<5,AVERAGEIF(C105:C116,">0",S105:S116), IF(FORECAST($C102,S$105:S$116,$C$105:$C$116)<0,0, IF(FORECAST($C102,S$105:S$116,$C$105:$C$116)>100,100, FORECAST($C102,S$105:S$116,$C$105:$C$116)))) -> 100 | W102: =IF(MAX(C105:C116)-MIN(C105:C116)<5,AVERAGEIF(C105:C116,">0",W105:W116), IF(FORECAST($C102,W$105:W$116,$C$105:$C$116)<0,0, IF(FORECAST($C102,W$105:W$116,$C$105:$C$116)>100,100, FORECAST($C102,W$105:W$116,$C$105:$C$116)))) -> 0 | X102: =IF(MAX(C105:C116)-MIN(C105:C116)<5,AVERAGEIF(C105:C116,">0",X105:X116), IF(FORECAST($C102,X$105:X$116,$C$105:$C$116)<0,0, IF(FORECAST($C102,X$105:X$116,$C$105:$C$116)>100,100, FORECAST($C102,X$105:X$116,$C$105:$C$116)))) -> 99.85144656 | AB102: =IF(MAX(C105:C116)-MIN(C105:C116)<5,AVERAGEIF(C105:C116,">0",AB105:AB116), IF(FORECAST($C102,AB$105:AB$116,$C$105:$C$116)<0,0, IF(FORECAST($C102,AB$105:AB$116,$C$105:$C$116)>100,100, FORECAST($C102,AB$105:AB$116,$C$105:$C$116)))) -> 0
B104: Survey | C104: Year | D104: Improved | E104: Not shared | H104: Open defecation | I104: Improved | J104: Not shared | M104: Open defecation | N104: Improved | O104: Not shared | R104: Open defecation | S104: Improved | T104: Not shared | W104: Open defecation | X104: Improved | Y104: Not shared | AB104: Open defecation
B105: DHS05 | C105: 2005 | D105: =IF(ISERROR(INDIRECT(CONCATENATE($B105,"!C122"))),"",INDIRECT(CONCATENATE($B105,"!C122"))) -> 76.1864683 | E105: =IF(ISERROR(INDIRECT(CONCATENATE($B105,"!C129"))),"",INDIRECT(CONCATENATE($B105,"!C129"))) -> 81.6136745 | H105: =IF(ISERROR(INDIRECT(CONCATENATE($B105,"!C127"))),"",INDIRECT(CONCATENATE($B105,"!C127"))) -> 3.564371647 | I105: =IF(ISERROR(INDIRECT(CONCATENATE($B105,"!D122"))),"",INDIRECT(CONCATENATE($B105,"!D122"))) -> 88.95949359 | J105: =IF(ISERROR(INDIRECT(CONCATENATE($B105,"!D129"))),"",INDIRECT(CONCATENATE($B105,"!D129"))) -> 85.90890954 | M105: =IF(ISERROR(INDIRECT(CONCATENATE($B105,"!D127"))),"",INDIRECT(CONCATENATE($B105,"!D127"))) -> 0.3092370189 | N105: =IF(ISERROR(INDIRECT(CONCATENATE($B105,"!E122"))),"",INDIRECT(CONCATENATE($B105,"!E122"))) -> 90.32597619 | O105: =IF(ISERROR(INDIRECT(CONCATENATE($B105,"!E129"))),"",INDIRECT(CONCATENATE($B105,"!E129"))) -> 89.12647942 | R105: =IF(ISERROR(INDIRECT(CONCATENATE($B105,"!E127"))),"",INDIRECT(CONCATENATE($B105,"!E127"))) -> 0.048776253 | S105: =IF(ISERROR(INDIRECT(CONCATENATE($B105,"!F122"))),"",INDIRECT(CONCATENATE($B105,"!F122"))) -> 94.45617672 | T105: =IF(ISERROR(INDIRECT(CONCATENATE($B105,"!F129"))),"",INDIRECT(CONCATENATE($B105,"!F129"))) -> 92.50367984 | W105: =IF(ISERROR(INDIRECT(CONCATENATE($B105,"!F127"))),"",INDIRECT(CONCATENATE($B105,"!F127"))) -> 0.01954625563 | X105: =IF(ISERROR(INDIRECT(CONCATENATE($B105,"!G122"))),"",INDIRECT(CONCATENATE($B105,"!G122"))) -> 97.8275289 | Y105: =IF(ISERROR(INDIRECT(CONCATENATE($B105,"!G129"))),"",INDIRECT(CONCATENATE($B105,"!G129"))) -> 95.51260716 | AB105: =IF(ISERROR(INDIRECT(CONCATENATE($B105,"!G2127"))),"",INDIRECT(CONCATENATE($B105,"!G127"))) -> 0
B106: MICS07 | C106: 2007 | D106: 71.22661455 | E106: 86.34637638 | H106: 6.986682135 | I106: 89.08138207 | J106: 86.08334641 | M106: 0.1763169374 | N106: 93.5157766 | O106: 88.3451225 | R106: 0.164332158 | S106: 94.79979693 | T106: 90.61183468 | W106: 0 | X106: 98.69449729 | Y106: 94.3973338 | AB106: 0
B107: DHS09 | C107: 2009 | D107: 61.85862848 | E107: 84.55626541 | H107: 4.683100577 | I107: 77.83528675 | J107: 87.7860109 | M107: 0.1234898907 | N107: 84.19619979 | O107: 90.43224814 | R107: 0.1169343677 | S107: 91.58291283 | T107: 95.34527763 | W107: 0 | X107: 97.65377174 | Y107: 97.7832322 | AB107: 0
B108: MICS14 | C108: 2014 | D108: 85.02845096 | E108: 81.8236408 | H108: 2.706005438 | I108: 96.30544711 | J108: 89.35228599 | M108: 0.08730626515 | N108: 96.86299665 | O108: 91.04909138 | R108: 0 | S108: 99.00262206 | T108: 94.88758407 | W108: 0 | X108: 99.65856325 | Y108: 96.81169374 | AB108: 0
B109: MICS20 | C109: 2020 | D109: 93.40510424 | E109: 85.1213381 | H109: 1.860327485 | I109: 99.04591471 | J109: 91.81694266 | M109: 0.04357755815 | N109: 98.19366828 | O109: 93.55521973 | R109: 0 | S109: 99.89539422 | T109: 93.74850633 | W109: 0 | X109: 99.6463067 | Y109: 96.76200178 | AB109: 0
B118: =CONCATENATE("National use of sanitation facilities, ",C99,"–",C100) -> National use of sanitation facilities, 2000–2020 | S118: Data points used for regression
A197: URBAN | D197: Poorest | I197: Poor | N197: Middle | S197: Rich | X197: Richest
D198: Improved | E198: Basic | F198: Limited | G198: Unimproved | H198: Open defecation | I198: Improved | J198: Basic | K198: Limited | L198: Unimproved | M198: Open defecation | N198: Improved | O198: Basic | P198: Limited | Q198: Unimproved | R198: Open defecation | S198: Improved | T198: Basic | U198: Limited | V198: Unimproved | W198: Open defecation | X198: Improved | Y198: Basic | Z198: Limited | AA198: Unimproved | AB198: Open defecation
A199: Forecast period: | C199: 2000 | D199: =IF((D201+H201)>100,D201*100/(D201+H201),D201) -> 81.91598877 | E199: =D199*AVERAGEIF(E205:E216,">0")/100 -> 68.67019653 | F199: =D199*(100-AVERAGEIF(E205:E216,">0"))/100 -> 13.24579224 | G199: =100-(E199+F199+H199) -> 17.41709519 | H199: =IF((D201+H201)>100,H201*100/(D201+H201),H201) -> 0.6669160406 | I199: =IF((I201+M201)>100,I201*100/(I201+M201),I201) -> 87.95656486 | J199: =I199*AVERAGEIF(J205:J216,">0")/100 -> 78.16653511 | K199: =I199*(100-AVERAGEIF(J205:J216,">0"))/100 -> 9.790029755 | L199: =100-(J199+K199+M199) -> 11.82473028 | M199: =IF((I201+M201)>100,M201*100/(I201+M201),M201) -> 0.2187048589 | N199: =IF((N201+R201)>100,N201*100/(N201+R201),N201) -> 93.68081398 | O199: =N199*AVERAGEIF(O205:O216,">0")/100 -> 86.99139909 | P199: =N199*(100-AVERAGEIF(O205:O216,">0"))/100 -> 6.689414886 | Q199: =100-(O199+P199+R199) -> 6.284220076 | R199: =IF((N201+R201)>100,R201*100/(N201+R201),R201) -> 0.03496594396 | S199: =IF((S201+W201)>100,S201*100/(S201+W201),S201) -> 97.74218644 | T199: =S199*AVERAGEIF(T205:T216,">0")/100 -> 93.01360411 | U199: =S199*(100-AVERAGEIF(T205:T216,">0"))/100 -> 4.728582334 | V199: =100-(T199+U199+W199) -> 2.257813558 | W199: =IF((S201+W201)>100,W201*100/(S201+W201),W201) -> 0 | X199: =IF((X201+AB201)>100,X201*100/(X201+AB201),X201) -> 98.80042047 | Y199: =X199*AVERAGEIF(Y205:Y216,">0")/100 -> 96.4061088 | Z199: =X199*(100-AVERAGEIF(Y205:Y216,">0"))/100 -> 2.394311672 | AA199: =100-(Y199+Z199+AB199) -> 1.199579526 | AB199: =IF((X201+AB201)>100,AB201*100/(X201+AB201),AB201) -> 0
C200: 2020 | D200: =IF((D202+H202)>100,D202*100/(D202+H202),D202) -> 93.87120565 | E200: =D200*AVERAGEIF(E205:E216,">0")/100 -> 78.69225822 | F200: =D200*(100-AVERAGEIF(E205:E216,">0"))/100 -> 15.17894744 | G200: =100-(E200+F200+H200) -> 5.028617576 | H200: =IF((D202+H202)>100,H202*100/(D202+H202),H202) -> 1.10017677 | I200: =IF((I202+M202)>100,I202*100/(I202+M202),I202) -> 98.42817353 | J200: =I200*AVERAGEIF(J205:J216,">0")/100 -> 87.47259848 | K200: =I200*(100-AVERAGEIF(J205:J216,">0"))/100 -> 10.95557505 | L200: =100-(J200+K200+M200) -> 1.571826465 | M200: =IF((I202+M202)>100,M202*100/(I202+M202),M202) -> 0 | N200: =IF((N202+R202)>100,N202*100/(N202+R202),N202) -> 99.72835474 | O200: =N200*AVERAGEIF(O205:O216,">0")/100 -> 92.6071064 | P200: =N200*(100-AVERAGEIF(O205:O216,">0"))/100 -> 7.121248337 | Q200: =100-(O200+P200+R200) -> 0.2716452612 | R200: =IF((N202+R202)>100,R202*100/(N202+R202),R202) -> 0 | S200: =IF((S202+W202)>100,S202*100/(S202+W202),S202) -> 99.57907964 | T200: =S200*AVERAGEIF(T205:T216,">0")/100 -> 94.76163188 | U200: =S200*(100-AVERAGEIF(T205:T216,">0"))/100 -> 4.817447756 | V200: =100-(T200+U200+W200) -> 0.4209203624 | W200: =IF((S202+W202)>100,W202*100/(S202+W202),W202) -> 0 | X200: =IF((X202+AB202)>100,X202*100/(X202+AB202),X202) -> 99.91981964 | Y200: =X200*AVERAGEIF(Y205:Y216,">0")/100 -> 97.49838065 | Z200: =X200*(100-AVERAGEIF(Y205:Y216,">0"))/100 -> 2.42143899 | AA200: =100-(Y200+Z200+AB200) -> 0.08018036191 | AB200: =IF((X202+AB202)>100,AB202*100/(X202+AB202),AB202) -> 0
A201: Regression period: | C201: =MinRegYear(C199,C205:C216) -> 2003 | D201: =IF(MAX(C205:C216)-MIN(C205:C216)<5,AVERAGEIF(C205:C216,">0",D205:D216), IF(FORECAST($C201,D$205:D$216,$C$205:$C$216)<0,0, IF(FORECAST($C201,D$205:D$216,$C$205:$C$216)>100,100, FORECAST($C201,D$205:D$216,$C$205:$C$216)))) -> 81.91598877 | H201: =IF(MAX(C205:C216)-MIN(C205:C216)<5,AVERAGEIF(C205:C216,">0",H205:H216), IF(FORECAST($C201,H$205:H$216,$C$205:$C$216)<0,0, IF(FORECAST($C201,H$205:H$216,$C$205:$C$216)>100,100, FORECAST($C201,H$205:H$216,$C$205:$C$216)))) -> 0.6669160406 | I201: =IF(MAX(C205:C216)-MIN(C205:C216)<5,AVERAGEIF(C205:C216,">0",I205:I216), IF(FORECAST($C201,I$205:I$216,$C$205:$C$216)<0,0, IF(FORECAST($C201,I$205:I$216,$C$205:$C$216)>100,100, FORECAST($C201,I$205:I$216,$C$205:$C$216)))) -> 87.95656486 | M201: =IF(MAX(C205:C216)-MIN(C205:C216)<5,AVERAGEIF(C205:C216,">0",M205:M216), IF(FORECAST($C201,M$205:M$216,$C$205:$C$216)<0,0, IF(FORECAST($C201,M$205:M$216,$C$205:$C$216)>100,100, FORECAST($C201,M$205:M$216,$C$205:$C$216)))) -> 0.2187048589 | N201: =IF(MAX(C205:C216)-MIN(C205:C216)<5,AVERAGEIF(C205:C216,">0",N205:N216), IF(FORECAST($C201,N$205:N$216,$C$205:$C$216)<0,0, IF(FORECAST($C201,N$205:N$216,$C$205:$C$216)>100,100, FORECAST($C201,N$205:N$216,$C$205:$C$216)))) -> 93.68081398 | R201: =IF(MAX(C205:C216)-MIN(C205:C216)<5,AVERAGEIF(C205:C216,">0",R205:R216), IF(FORECAST($C201,R$205:R$216,$C$205:$C$216)<0,0, IF(FORECAST($C201,R$205:R$216,$C$205:$C$216)>100,100, FORECAST($C201,R$205:R$216,$C$205:$C$216)))) -> 0.03496594396 | S201: =IF(MAX(C205:C216)-MIN(C205:C216)<5,AVERAGEIF(C205:C216,">0",S205:S216), IF(FORECAST($C201,S$205:S$216,$C$205:$C$216)<0,0, IF(FORECAST($C201,S$205:S$216,$C$205:$C$216)>100,100, FORECAST($C201,S$205:S$216,$C$205:$C$216)))) -> 97.74218644 | W201: =IF(MAX(C205:C216)-MIN(C205:C216)<5,AVERAGEIF(C205:C216,">0",W205:W216), IF(FORECAST($C201,W$205:W$216,$C$205:$C$216)<0,0, IF(FORECAST($C201,W$205:W$216,$C$205:$C$216)>100,100, FORECAST($C201,W$205:W$216,$C$205:$C$216)))) -> 0 | X201: =IF(MAX(C205:C216)-MIN(C205:C216)<5,AVERAGEIF(C205:C216,">0",X205:X216), IF(FORECAST($C201,X$205:X$216,$C$205:$C$216)<0,0, IF(FORECAST($C201,X$205:X$216,$C$205:$C$216)>100,100, FORECAST($C201,X$205:X$216,$C$205:$C$216)))) -> 98.80042047 | AB201: =IF(MAX(C205:C216)-MIN(C205:C216)<5,AVERAGEIF(C205:C216,">0",AB205:AB216), IF(FORECAST($C201,AB$205:AB$216,$C$205:$C$216)<0,0, IF(FORECAST($C201,AB$205:AB$216,$C$205:$C$216)>100,100, FORECAST($C201,AB$205:AB$216,$C$205:$C$216)))) -> 0
C202: =MaxRegYear(C200,C205:C216) -> 2020 | D202: =IF(MAX(C205:C216)-MIN(C205:C216)<5,AVERAGEIF(C205:C216,">0",D205:D216), IF(FORECAST($C202,D$205:D$216,$C$205:$C$216)<0,0, IF(FORECAST($C202,D$205:D$216,$C$205:$C$216)>100,100, FORECAST($C202,D$205:D$216,$C$205:$C$216)))) -> 93.87120565 | H202: =IF(MAX(C205:C216)-MIN(C205:C216)<5,AVERAGEIF(C205:C216,">0",H205:H216), IF(FORECAST($C202,H$205:H$216,$C$205:$C$216)<0,0, IF(FORECAST($C202,H$205:H$216,$C$205:$C$216)>100,100, FORECAST($C202,H$205:H$216,$C$205:$C$216)))) -> 1.10017677 | I202: =IF(MAX(C205:C216)-MIN(C205:C216)<5,AVERAGEIF(C205:C216,">0",I205:I216), IF(FORECAST($C202,I$205:I$216,$C$205:$C$216)<0,0, IF(FORECAST($C202,I$205:I$216,$C$205:$C$216)>100,100, FORECAST($C202,I$205:I$216,$C$205:$C$216)))) -> 98.42817353 | M202: =IF(MAX(C205:C216)-MIN(C205:C216)<5,AVERAGEIF(C205:C216,">0",M205:M216), IF(FORECAST($C202,M$205:M$216,$C$205:$C$216)<0,0, IF(FORECAST($C202,M$205:M$216,$C$205:$C$216)>100,100, FORECAST($C202,M$205:M$216,$C$205:$C$216)))) -> 0 | N202: =IF(MAX(C205:C216)-MIN(C205:C216)<5,AVERAGEIF(C205:C216,">0",N205:N216), IF(FORECAST($C202,N$205:N$216,$C$205:$C$216)<0,0, IF(FORECAST($C202,N$205:N$216,$C$205:$C$216)>100,100, FORECAST($C202,N$205:N$216,$C$205:$C$216)))) -> 99.72835474 | R202: =IF(MAX(C205:C216)-MIN(C205:C216)<5,AVERAGEIF(C205:C216,">0",R205:R216), IF(FORECAST($C202,R$205:R$216,$C$205:$C$216)<0,0, IF(FORECAST($C202,R$205:R$216,$C$205:$C$216)>100,100, FORECAST($C202,R$205:R$216,$C$205:$C$216)))) -> 0 | S202: =IF(MAX(C205:C216)-MIN(C205:C216)<5,AVERAGEIF(C205:C216,">0",S205:S216), IF(FORECAST($C202,S$205:S$216,$C$205:$C$216)<0,0, IF(FORECAST($C202,S$205:S$216,$C$205:$C$216)>100,100, FORECAST($C202,S$205:S$216,$C$205:$C$216)))) -> 99.57907964 | W202: =IF(MAX(C205:C216)-MIN(C205:C216)<5,AVERAGEIF(C205:C216,">0",W205:W216), IF(FORECAST($C202,W$205:W$216,$C$205:$C$216)<0,0, IF(FORECAST($C202,W$205:W$216,$C$205:$C$216)>100,100, FORECAST($C202,W$205:W$216,$C$205:$C$216)))) -> 0 | X202: =IF(MAX(C205:C216)-MIN(C205:C216)<5,AVERAGEIF(C205:C216,">0",X205:X216), IF(FORECAST($C202,X$205:X$216,$C$205:$C$216)<0,0, IF(FORECAST($C202,X$205:X$216,$C$205:$C$216)>100,100, FORECAST($C202,X$205:X$216,$C$205:$C$216)))) -> 99.91981964 | AB202: =IF(MAX(C205:C216)-MIN(C205:C216)<5,AVERAGEIF(C205:C216,">0",AB205:AB216), IF(FORECAST($C202,AB$205:AB$216,$C$205:$C$216)<0,0, IF(FORECAST($C202,AB$205:AB$216,$C$205:$C$216)>100,100, FORECAST($C202,AB$205:AB$216,$C$205:$C$216)))) -> 0
B204: Survey | C204: Year | D204: Improved | E204: Not shared | H204: Open defecation | I204: Improved | J204: Not shared | M204: Open defecation | N204: Improved | O204: Not shared | R204: Open defecation | S204: Improved | T204: Not shared | W204: Open defecation | X204: Improved | Y204: Not shared | AB204: Open defecation
B205: DHS05 | C205: 2005 | D205: =IF(ISERROR(INDIRECT(CONCATENATE($B205,"!H122"))),"",INDIRECT(CONCATENATE($B205,"!H122"))) -> 85.19688844 | E205: =IF(ISERROR(INDIRECT(CONCATENATE($B205,"!H129"))),"",INDIRECT(CONCATENATE($B205,"!H129"))) -> 72.11119917 | H205: =IF(ISERROR(INDIRECT(CONCATENATE($B205,"!H127"))),"",INDIRECT(CONCATENATE($B205,"!H127"))) -> 1.326143356 | I205: =IF(ISERROR(INDIRECT(CONCATENATE($B205,"!I122"))),"",INDIRECT(CONCATENATE($B205,"!I122"))) -> 94.66418889 | J205: =IF(ISERROR(INDIRECT(CONCATENATE($B205,"!I129"))),"",INDIRECT(CONCATENATE($B205,"!I129"))) -> 85.23129152 | M205: =IF(ISERROR(INDIRECT(CONCATENATE($B205,"!I127"))),"",INDIRECT(CONCATENATE($B205,"!I127"))) -> 0.46928349 | N205: =IF(ISERROR(INDIRECT(CONCATENATE($B205,"!J122"))),"",INDIRECT(CONCATENATE($B205,"!J122"))) -> 96.18029754 | O205: =IF(ISERROR(INDIRECT(CONCATENATE($B205,"!J129"))),"",INDIRECT(CONCATENATE($B205,"!J129"))) -> 90.50051514 | R205: =IF(ISERROR(INDIRECT(CONCATENATE($B205,"!J127"))),"",INDIRECT(CONCATENATE($B205,"!J127"))) -> 0.06612730335 | S205: =IF(ISERROR(INDIRECT(CONCATENATE($B205,"!K122"))),"",INDIRECT(CONCATENATE($B205,"!K122"))) -> 98.5419974 | T205: =IF(ISERROR(INDIRECT(CONCATENATE($B205,"!K129"))),"",INDIRECT(CONCATENATE($B205,"!K129"))) -> 94.21500679 | W205: =IF(ISERROR(INDIRECT(CONCATENATE($B205,"!K127"))),"",INDIRECT(CONCATENATE($B205,"!K127"))) -> 0 | X205: =IF(ISERROR(INDIRECT(CONCATENATE($B205,"!L122"))),"",INDIRECT(CONCATENATE($B205,"!L122"))) -> 99.51666594 | Y205: =IF(ISERROR(INDIRECT(CONCATENATE($B205,"!L129"))),"",INDIRECT(CONCATENATE($B205,"!L129"))) -> 97.13477221 | AB205: =IF(ISERROR(INDIRECT(CONCATENATE($B205,"!L2127"))),"",INDIRECT(CONCATENATE($B205,"!L127"))) -> 0
B206: MICS07 | C206: 2007 | D206: 85.19256335 | E206: 82.97251955 | H206: 0.7274673005 | I206: 85.6504064 | J206: 85.16705484 | M206: 0 | N206: 93.45850758 | O206: 90.1210143 | R206: 0 | S206: 97.73303895 | T206: 92.86133656 | W206: 0 | X206: 99.00510394 | Y206: 97.09349782 | AB206: 0
B207: DHS09 | C207: 2009 | D207: 80.57386944 | E207: 86.6073084 | H207: 0.4007475701 | I207: 88.65781688 | J207: 92.60287819 | M207: 0 | N207: 94.79398607 | O207: 94.87658114 | R207: 0 | S207: 97.73827418 | T207: 98.28395552 | W207: 0 | X207: 98.20853101 | Y207: 99.32046971 | AB207: 0
B208: MICS14 | C208: 2014 | D208: 94.15756064 | E208: 89.28331605 | H208: 0.2846268872 | I208: 96.86839841 | J208: 89.00523488 | M208: 0 | N208: 98.5609311 | O208: 93.93043666 | R208: 0 | S208: 99.62352503 | T208: 93.2578104 | W208: 0 | X208: 100 | Y208: 98.74517061 | AB208: 0
B209: MICS20 | C209: 2020 | D209: 92.58898406 | E209: 88.17579808 | H209: 1.615032101 | I209: 98.58109296 | J209: 92.34090242 | M209: 0.1004153279 | N209: 99.63985527 | O209: 94.86822496 | R209: 0 | S209: 99.39619827 | T209: 97.19283529 | W209: 0 | X209: 99.90568187 | Y209: 95.58917931 | AB209: 0
B218: =CONCATENATE("Urban use of sanitation facilities, ",C199,"–",C200) -> Urban use of sanitation facilities, 2000–2020 | S218: Data points used for regression
A297: RURAL | D297: Poorest | I297: Poor | N297: Middle | S297: Rich | X297: Richest
D298: Improved | E298: Basic | F298: Limited | G298: Unimproved | H298: Open defecation | I298: Improved | J298: Basic | K298: Limited | L298: Unimproved | M298: Open defecation | N298: Improved | O298: Basic | P298: Limited | Q298: Unimproved | R298: Open defecation | S298: Improved | T298: Basic | U298: Limited | V298: Unimproved | W298: Open defecation | X298: Improved | Y298: Basic | Z298: Limited | AA298: Unimproved | AB298: Open defecation
A299: Forecast period: | C299: 2000 | D299: =IF((D301+H301)>100,D301*100/(D301+H301),D301) -> 59.76183287 | E299: =D299*AVERAGEIF(E305:E316,">0")/100 -> 49.64341945 | F299: =D299*(100-AVERAGEIF(E305:E316,">0"))/100 -> 10.11841342 | G299: =100-(E299+F299+H299) -> 32.22320776 | H299: =IF((D301+H301)>100,H301*100/(D301+H301),H301) -> 8.014959362 | I299: =IF((I301+M301)>100,I301*100/(I301+M301),I301) -> 79.48253653 | J299: =I299*AVERAGEIF(J305:J316,">0")/100 -> 70.44884416 | K299: =I299*(100-AVERAGEIF(J305:J316,">0"))/100 -> 9.03369237 | L299: =100-(J299+K299+M299) -> 20.36596409 | M299: =IF((I301+M301)>100,M301*100/(I301+M301),M301) -> 0.1514993831 | N299: =IF((N301+R301)>100,N301*100/(N301+R301),N301) -> 85.90041462 | O299: =N299*AVERAGEIF(O305:O316,">0")/100 -> 77.18790567 | P299: =N299*(100-AVERAGEIF(O305:O316,">0"))/100 -> 8.712508955 | Q299: =100-(O299+P299+R299) -> 13.95432065 | R299: =IF((N301+R301)>100,R301*100/(N301+R301),R301) -> 0.1452647285 | S299: =IF((S301+W301)>100,S301*100/(S301+W301),S301) -> 89.89045674 | T299: =S299*AVERAGEIF(T305:T316,">0")/100 -> 83.98728438 | U299: =S299*(100-AVERAGEIF(T305:T316,">0"))/100 -> 5.903172356 | V299: =100-(T299+U299+W299) -> 10.10954326 | W299: =IF((S301+W301)>100,W301*100/(S301+W301),W301) -> 0 | X299: =IF((X301+AB301)>100,X301*100/(X301+AB301),X301) -> 95.99665183 | Y299: =X299*AVERAGEIF(Y305:Y316,">0")/100 -> 91.18327008 | Z299: =X299*(100-AVERAGEIF(Y305:Y316,">0"))/100 -> 4.813381756 | AA299: =100-(Y299+Z299+AB299) -> 4.003348167 | AB299: =IF((X301+AB301)>100,AB301*100/(X301+AB301),AB301) -> 0
C300: 2020 | D300: =IF((D302+H302)>100,D302*100/(D302+H302),D302) -> 91.25178731 | E300: =D300*AVERAGEIF(E305:E316,">0")/100 -> 75.80173725 | F300: =D300*(100-AVERAGEIF(E305:E316,">0"))/100 -> 15.45005006 | G300: =100-(E300+F300+H300) -> 6.643053954 | H300: =IF((D302+H302)>100,H302*100/(D302+H302),H302) -> 2.105158737 | I300: =IF((I302+M302)>100,I302*100/(I302+M302),I302) -> 98.18172769 | J300: =I300*AVERAGEIF(J305:J316,">0")/100 -> 87.02275412 | K300: =I300*(100-AVERAGEIF(J305:J316,">0"))/100 -> 11.15897357 | L300: =100-(J300+K300+M300) -> 1.772278447 | M300: =IF((I302+M302)>100,M302*100/(I302+M302),M302) -> 0.04599386139 | N300: =IF((N302+R302)>100,N302*100/(N302+R302),N302) -> 97.98725189 | O300: =N300*AVERAGEIF(O305:O316,">0")/100 -> 88.0488271 | P300: =N300*(100-AVERAGEIF(O305:O316,">0"))/100 -> 9.938424783 | Q300: =100-(O300+P300+R300) -> 2.010956316 | R300: =IF((N302+R302)>100,R302*100/(N302+R302),R302) -> 0.001791798896 | S300: =IF((S302+W302)>100,S302*100/(S302+W302),S302) -> 100 | T300: =S300*AVERAGEIF(T305:T316,">0")/100 -> 93.43292651 | U300: =S300*(100-AVERAGEIF(T305:T316,">0"))/100 -> 6.567073492 | V300: =100-(T300+U300+W300) -> 0 | W300: =IF((S302+W302)>100,W302*100/(S302+W302),W302) -> 0 | X300: =IF((X302+AB302)>100,X302*100/(X302+AB302),X302) -> 99.93403274 | Y300: =X300*AVERAGEIF(Y305:Y316,">0")/100 -> 94.92322621 | Z300: =X300*(100-AVERAGEIF(Y305:Y316,">0"))/100 -> 5.010806531 | AA300: =100-(Y300+Z300+AB300) -> 0.06596726286 | AB300: =IF((X302+AB302)>100,AB302*100/(X302+AB302),AB302) -> 0
A301: Regression period: | C301: =MinRegYear(C299,C305:C316) -> 2003 | D301: =IF(MAX(C305:C316)-MIN(C305:C316)<5,AVERAGEIF(C305:C316,">0",D305:D316), IF(FORECAST($C301,D$305:D$316,$C$305:$C$316)<0,0, IF(FORECAST($C301,D$305:D$316,$C$305:$C$316)>100,100, FORECAST($C301,D$305:D$316,$C$305:$C$316)))) -> 59.76183287 | H301: =IF(MAX(C305:C316)-MIN(C305:C316)<5,AVERAGEIF(C305:C316,">0",H305:H316), IF(FORECAST($C301,H$305:H$316,$C$305:$C$316)<0,0, IF(FORECAST($C301,H$305:H$316,$C$305:$C$316)>100,100, FORECAST($C301,H$305:H$316,$C$305:$C$316)))) -> 8.014959362 | I301: =IF(MAX(C305:C316)-MIN(C305:C316)<5,AVERAGEIF(C305:C316,">0",I305:I316), IF(FORECAST($C301,I$305:I$316,$C$305:$C$316)<0,0, IF(FORECAST($C301,I$305:I$316,$C$305:$C$316)>100,100, FORECAST($C301,I$305:I$316,$C$305:$C$316)))) -> 79.48253653 | M301: =IF(MAX(C305:C316)-MIN(C305:C316)<5,AVERAGEIF(C305:C316,">0",M305:M316), IF(FORECAST($C301,M$305:M$316,$C$305:$C$316)<0,0, IF(FORECAST($C301,M$305:M$316,$C$305:$C$316)>100,100, FORECAST($C301,M$305:M$316,$C$305:$C$316)))) -> 0.1514993831 | N301: =IF(MAX(C305:C316)-MIN(C305:C316)<5,AVERAGEIF(C305:C316,">0",N305:N316), IF(FORECAST($C301,N$305:N$316,$C$305:$C$316)<0,0, IF(FORECAST($C301,N$305:N$316,$C$305:$C$316)>100,100, FORECAST($C301,N$305:N$316,$C$305:$C$316)))) -> 85.90041462 | R301: =IF(MAX(C305:C316)-MIN(C305:C316)<5,AVERAGEIF(C305:C316,">0",R305:R316), IF(FORECAST($C301,R$305:R$316,$C$305:$C$316)<0,0, IF(FORECAST($C301,R$305:R$316,$C$305:$C$316)>100,100, FORECAST($C301,R$305:R$316,$C$305:$C$316)))) -> 0.1452647285 | S301: =IF(MAX(C305:C316)-MIN(C305:C316)<5,AVERAGEIF(C305:C316,">0",S305:S316), IF(FORECAST($C301,S$305:S$316,$C$305:$C$316)<0,0, IF(FORECAST($C301,S$305:S$316,$C$305:$C$316)>100,100, FORECAST($C301,S$305:S$316,$C$305:$C$316)))) -> 89.89045674 | W301: =IF(MAX(C305:C316)-MIN(C305:C316)<5,AVERAGEIF(C305:C316,">0",W305:W316), IF(FORECAST($C301,W$305:W$316,$C$305:$C$316)<0,0, IF(FORECAST($C301,W$305:W$316,$C$305:$C$316)>100,100, FORECAST($C301,W$305:W$316,$C$305:$C$316)))) -> 0 | X301: =IF(MAX(C305:C316)-MIN(C305:C316)<5,AVERAGEIF(C305:C316,">0",X305:X316), IF(FORECAST($C301,X$305:X$316,$C$305:$C$316)<0,0, IF(FORECAST($C301,X$305:X$316,$C$305:$C$316)>100,100, FORECAST($C301,X$305:X$316,$C$305:$C$316)))) -> 95.99665183 | AB301: =IF(MAX(C305:C316)-MIN(C305:C316)<5,AVERAGEIF(C305:C316,">0",AB305:AB316), IF(FORECAST($C301,AB$305:AB$316,$C$305:$C$316)<0,0, IF(FORECAST($C301,AB$305:AB$316,$C$305:$C$316)>100,100, FORECAST($C301,AB$305:AB$316,$C$305:$C$316)))) -> 0
C302: =MaxRegYear(C300,C305:C316) -> 2020 | D302: =IF(MAX(C305:C316)-MIN(C305:C316)<5,AVERAGEIF(C305:C316,">0",D305:D316), IF(FORECAST($C302,D$305:D$316,$C$305:$C$316)<0,0, IF(FORECAST($C302,D$305:D$316,$C$305:$C$316)>100,100, FORECAST($C302,D$305:D$316,$C$305:$C$316)))) -> 91.25178731 | H302: =IF(MAX(C305:C316)-MIN(C305:C316)<5,AVERAGEIF(C305:C316,">0",H305:H316), IF(FORECAST($C302,H$305:H$316,$C$305:$C$316)<0,0, IF(FORECAST($C302,H$305:H$316,$C$305:$C$316)>100,100, FORECAST($C302,H$305:H$316,$C$305:$C$316)))) -> 2.105158737 | I302: =IF(MAX(C305:C316)-MIN(C305:C316)<5,AVERAGEIF(C305:C316,">0",I305:I316), IF(FORECAST($C302,I$305:I$316,$C$305:$C$316)<0,0, IF(FORECAST($C302,I$305:I$316,$C$305:$C$316)>100,100, FORECAST($C302,I$305:I$316,$C$305:$C$316)))) -> 98.18172769 | M302: =IF(MAX(C305:C316)-MIN(C305:C316)<5,AVERAGEIF(C305:C316,">0",M305:M316), IF(FORECAST($C302,M$305:M$316,$C$305:$C$316)<0,0, IF(FORECAST($C302,M$305:M$316,$C$305:$C$316)>100,100, FORECAST($C302,M$305:M$316,$C$305:$C$316)))) -> 0.04599386139 | N302: =IF(MAX(C305:C316)-MIN(C305:C316)<5,AVERAGEIF(C305:C316,">0",N305:N316), IF(FORECAST($C302,N$305:N$316,$C$305:$C$316)<0,0, IF(FORECAST($C302,N$305:N$316,$C$305:$C$316)>100,100, FORECAST($C302,N$305:N$316,$C$305:$C$316)))) -> 97.98725189 | R302: =IF(MAX(C305:C316)-MIN(C305:C316)<5,AVERAGEIF(C305:C316,">0",R305:R316), IF(FORECAST($C302,R$305:R$316,$C$305:$C$316)<0,0, IF(FORECAST($C302,R$305:R$316,$C$305:$C$316)>100,100, FORECAST($C302,R$305:R$316,$C$305:$C$316)))) -> 0.001791798896 | S302: =IF(MAX(C305:C316)-MIN(C305:C316)<5,AVERAGEIF(C305:C316,">0",S305:S316), IF(FORECAST($C302,S$305:S$316,$C$305:$C$316)<0,0, IF(FORECAST($C302,S$305:S$316,$C$305:$C$316)>100,100, FORECAST($C302,S$305:S$316,$C$305:$C$316)))) -> 100 | W302: =IF(MAX(C305:C316)-MIN(C305:C316)<5,AVERAGEIF(C305:C316,">0",W305:W316), IF(FORECAST($C302,W$305:W$316,$C$305:$C$316)<0,0, IF(FORECAST($C302,W$305:W$316,$C$305:$C$316)>100,100, FORECAST($C302,W$305:W$316,$C$305:$C$316)))) -> 0 | X302: =IF(MAX(C305:C316)-MIN(C305:C316)<5,AVERAGEIF(C305:C316,">0",X305:X316), IF(FORECAST($C302,X$305:X$316,$C$305:$C$316)<0,0, IF(FORECAST($C302,X$305:X$316,$C$305:$C$316)>100,100, FORECAST($C302,X$305:X$316,$C$305:$C$316)))) -> 99.93403274 | AB302: =IF(MAX(C305:C316)-MIN(C305:C316)<5,AVERAGEIF(C305:C316,">0",AB305:AB316), IF(FORECAST($C302,AB$305:AB$316,$C$305:$C$316)<0,0, IF(FORECAST($C302,AB$305:AB$316,$C$305:$C$316)>100,100, FORECAST($C302,AB$305:AB$316,$C$305:$C$316)))) -> 0
B304: Survey | C304: Year | D304: Improved | E304: Not shared | H304: Open defecation | I304: Improved | J304: Not shared | M304: Open defecation | N304: Improved | O304: Not shared | R304: Open defecation | S304: Improved | T304: Not shared | W304: Open defecation | X304: Improved | Y304: Not shared | AB304: Open defecation
B305: DHS05 | C305: 2005 | D305: =IF(ISERROR(INDIRECT(CONCATENATE($B305,"!M122"))),"",INDIRECT(CONCATENATE($B305,"!M122"))) -> 73.42520425 | E305: =IF(ISERROR(INDIRECT(CONCATENATE($B305,"!M129"))),"",INDIRECT(CONCATENATE($B305,"!M129"))) -> 81.89335851 | H305: =IF(ISERROR(INDIRECT(CONCATENATE($B305,"!M127"))),"",INDIRECT(CONCATENATE($B305,"!M127"))) -> 4.823542116 | I305: =IF(ISERROR(INDIRECT(CONCATENATE($B305,"!N122"))),"",INDIRECT(CONCATENATE($B305,"!N122"))) -> 85.87101387 | J305: =IF(ISERROR(INDIRECT(CONCATENATE($B305,"!N129"))),"",INDIRECT(CONCATENATE($B305,"!N129"))) -> 87.13213314 | M305: =IF(ISERROR(INDIRECT(CONCATENATE($B305,"!N127"))),"",INDIRECT(CONCATENATE($B305,"!N127"))) -> 0 | N305: =IF(ISERROR(INDIRECT(CONCATENATE($B305,"!O122"))),"",INDIRECT(CONCATENATE($B305,"!O122"))) -> 89.26261515 | O305: =IF(ISERROR(INDIRECT(CONCATENATE($B305,"!O129"))),"",INDIRECT(CONCATENATE($B305,"!O129"))) -> 90.75470208 | R305: =IF(ISERROR(INDIRECT(CONCATENATE($B305,"!O127"))),"",INDIRECT(CONCATENATE($B305,"!O127"))) -> 0 | S305: =IF(ISERROR(INDIRECT(CONCATENATE($B305,"!P122"))),"",INDIRECT(CONCATENATE($B305,"!P122"))) -> 92.30741392 | T305: =IF(ISERROR(INDIRECT(CONCATENATE($B305,"!P129"))),"",INDIRECT(CONCATENATE($B305,"!P129"))) -> 92.55855892 | W305: =IF(ISERROR(INDIRECT(CONCATENATE($B305,"!P127"))),"",INDIRECT(CONCATENATE($B305,"!P127"))) -> 0 | X305: =IF(ISERROR(INDIRECT(CONCATENATE($B305,"!Q122"))),"",INDIRECT(CONCATENATE($B305,"!Q122"))) -> 95.89283481 | Y305: =IF(ISERROR(INDIRECT(CONCATENATE($B305,"!Q129"))),"",INDIRECT(CONCATENATE($B305,"!Q129"))) -> 94.48258735 | AB305: =IF(ISERROR(INDIRECT(CONCATENATE($B305,"!Q2127"))),"",INDIRECT(CONCATENATE($B305,"!Q127"))) -> 0
B306: MICS07 | C306: 2007 | D306: 66.20089556 | E306: 84.81563304 | H306: 9.395876588 | I306: 87.86847214 | J306: 88.67403521 | M306: 0.2439941518 | N306: 92.5318451 | O306: 88.79179909 | R306: 0.2273493602 | S306: 94.95123384 | T306: 91.07675695 | W306: 0 | X306: 98.86252002 | Y306: 91.29966063 | AB306: 0
B307: DHS09 | C307: 2009 | D307: 57.35797718 | E307: 85.04918204 | H307: 6.373236468 | I307: 73.74705551 | J307: 86.93358362 | M307: 0.145178614 | N307: 81.31454587 | O307: 87.018557 | R307: 0.1613909186 | S307: 87.34397986 | T307: 94.91593057 | W307: 0 | X307: 95.48189255 | Y307: 96.07945781 | AB307: 0
B308: MICS14 | C308: 2014 | D308: 82.12633003 | E308: 78.9364737 | H308: 3.612346993 | I308: 95.08850095 | J308: 88.84808044 | M308: 0.1200758633 | N308: 96.89289856 | O308: 90.33381733 | R308: 0 | S308: 98.86191239 | T308: 95.70331444 | W308: 0 | X308: 99.2513182 | Y308: 95.89153866 | AB308: 0
B309: MICS20 | C309: 2020 | D309: 93.79276779 | E309: 84.64920233 | H309: 1.96438141 | I309: 98.83573705 | J309: 91.58400906 | M309: 0 | N309: 97.93978552 | O309: 92.38827874 | R309: 0 | S309: 99.88717327 | T309: 92.91007167 | W309: 0 | X309: 99.75911923 | Y309: 97.17618452 | AB309: 0
B318: =CONCATENATE("Rural use of sanitation facilities, ",C299,"–",C300) -> Rural use of sanitation facilities, 2000–2020 | S318: Data points used for regression

Sheet Hygiene
B4: Access to hygiene facilities by wealth quintile (%)
B5: =IF(ISERROR(INDIRECT(CONCATENATE($E$32,"!A2"))),"",INDIRECT(CONCATENATE($E$32,"!A2"))) -> Guyana
B7: =CONCATENATE("National ",IF(ISERROR(INDIRECT(CONCATENATE($E$32,"!A2"))),"",INDIRECT(CONCATENATE($E$32,"!A210")))) -> National Access to hygiene facilities | K7: =CONCATENATE("Urban ",IF(ISERROR(INDIRECT(CONCATENATE($E$32,"!A2"))),"",INDIRECT(CONCATENATE($E$32,"!A210")))) -> Urban Access to hygiene facilities | S7: =CONCATENATE("Rural ",IF(ISERROR(INDIRECT(CONCATENATE($E$32,"!A2"))),"",INDIRECT(CONCATENATE($E$32,"!A210")))) -> Rural Access to hygiene facilities
E32: =INDEX(B88:B100,A88) -> MICS20 | G32: =IF(ISERROR(INDIRECT(CONCATENATE($E$32,"!A2"))),"",INDIRECT(CONCATENATE($E$32,"!A2"))) -> Guyana | K32: Poorest | N32: Poor | Q32: Middle | T32: Rich | W32: Richest
K33: Basic | L33: Limited | M33: No facility | N33: Basic | O33: Limited | P33: No facility | Q33: Basic | R33: Limited | S33: No facility | T33: Basic | U33: Limited | V33: No facility | W33: Basic | X33: Limited | Y33: No facility
B34: >>> Select Survey : | G34: NATIONAL | J34: =IF(ISERROR(INDIRECT(CONCATENATE(#REF!,"!A2"))),"",INDIRECT(CONCATENATE(#REF!,"!A210"))) ->  | K34: =IF(ISERROR(INDIRECT(CONCATENATE($E$32,"!C222"))),"",INDIRECT(CONCATENATE($E$32,"!C222"))) -> 68.01307082 | L34: =IF(ISERROR(INDIRECT(CONCATENATE($E$32,"!C223"))),"",INDIRECT(CONCATENATE($E$32,"!C223"))) -> 14.3017 | M34: =IF(ISERROR(INDIRECT(CONCATENATE($E$32,"!C224"))),"",INDIRECT(CONCATENATE($E$32,"!C224"))) -> 17.68522918 | N34: =IF(ISERROR(INDIRECT(CONCATENATE($E$32,"!D222"))),"",INDIRECT(CONCATENATE($E$32,"!D222"))) -> 80.33782101 | O34: =IF(ISERROR(INDIRECT(CONCATENATE($E$32,"!D223"))),"",INDIRECT(CONCATENATE($E$32,"!D223"))) -> 11.20936433 | P34: =IF(ISERROR(INDIRECT(CONCATENATE($E$32,"!D224"))),"",INDIRECT(CONCATENATE($E$32,"!D224"))) -> 8.452814662 | Q34: =IF(ISERROR(INDIRECT(CONCATENATE($E$32,"!E222"))),"",INDIRECT(CONCATENATE($E$32,"!E222"))) -> 83.77174966 | R34: =IF(ISERROR(INDIRECT(CONCATENATE($E$32,"!E223"))),"",INDIRECT(CONCATENATE($E$32,"!E223"))) -> 8.207036567 | S34: =IF(ISERROR(INDIRECT(CONCATENATE($E$32,"!E224"))),"",INDIRECT(CONCATENATE($E$32,"!E224"))) -> 8.02121377 | T34: =IF(ISERROR(INDIRECT(CONCATENATE($E$32,"!F222"))),"",INDIRECT(CONCATENATE($E$32,"!F222"))) -> 90.64450329 | U34: =IF(ISERROR(INDIRECT(CONCATENATE($E$32,"!F223"))),"",INDIRECT(CONCATENATE($E$32,"!F223"))) -> 5.149901451 | V34: =IF(ISERROR(INDIRECT(CONCATENATE($E$32,"!F224"))),"",INDIRECT(CONCATENATE($E$32,"!F224"))) -> 4.20559526 | W34: =IF(ISERROR(INDIRECT(CONCATENATE($E$32,"!G222"))),"",INDIRECT(CONCATENATE($E$32,"!G222"))) -> 90.95761194 | X34: =IF(ISERROR(INDIRECT(CONCATENATE($E$32,"!G223"))),"",INDIRECT(CONCATENATE($E$32,"!G223"))) -> 4.008344209 | Y34: =IF(ISERROR(INDIRECT(CONCATENATE($E$32,"!G224"))),"",INDIRECT(CONCATENATE($E$32,"!G224"))) -> 5.034043851
G37: URBAN | J37: =IF(ISERROR(INDIRECT(CONCATENATE(#REF!,"!A2"))),"",INDIRECT(CONCATENATE(#REF!,"!A210"))) ->  | K37: =IF(ISERROR(INDIRECT(CONCATENATE($E$32,"!H222"))),"",INDIRECT(CONCATENATE($E$32,"!H222"))) -> 58.55666426 | L37: =IF(ISERROR(INDIRECT(CONCATENATE($E$32,"!H223"))),"",INDIRECT(CONCATENATE($E$32,"!H223"))) -> 21.33151701 | M37: =IF(ISERROR(INDIRECT(CONCATENATE($E$32,"!H224"))),"",INDIRECT(CONCATENATE($E$32,"!H224"))) -> 20.11181873 | N37: =IF(ISERROR(INDIRECT(CONCATENATE($E$32,"!I222"))),"",INDIRECT(CONCATENATE($E$32,"!I222"))) -> 80.56296672 | O37: =IF(ISERROR(INDIRECT(CONCATENATE($E$32,"!I223"))),"",INDIRECT(CONCATENATE($E$32,"!I223"))) -> 14.3772636 | P37: =IF(ISERROR(INDIRECT(CONCATENATE($E$32,"!I224"))),"",INDIRECT(CONCATENATE($E$32,"!I224"))) -> 5.059769681 | Q37: =IF(ISERROR(INDIRECT(CONCATENATE($E$32,"!J222"))),"",INDIRECT(CONCATENATE($E$32,"!J222"))) -> 80.2389189 | R37: =IF(ISERROR(INDIRECT(CONCATENATE($E$32,"!J223"))),"",INDIRECT(CONCATENATE($E$32,"!J223"))) -> 11.34256307 | S37: =IF(ISERROR(INDIRECT(CONCATENATE($E$32,"!J224"))),"",INDIRECT(CONCATENATE($E$32,"!J224"))) -> 8.418518027 | T37: =IF(ISERROR(INDIRECT(CONCATENATE($E$32,"!K222"))),"",INDIRECT(CONCATENATE($E$32,"!K222"))) -> 90.38694549 | U37: =IF(ISERROR(INDIRECT(CONCATENATE($E$32,"!K223"))),"",INDIRECT(CONCATENATE($E$32,"!K223"))) -> 5.759541535 | V37: =IF(ISERROR(INDIRECT(CONCATENATE($E$32,"!K224"))),"",INDIRECT(CONCATENATE($E$32,"!K224"))) -> 3.853512973 | W37: =IF(ISERROR(INDIRECT(CONCATENATE($E$32,"!L222"))),"",INDIRECT(CONCATENATE($E$32,"!L222"))) -> 81.76866499 | X37: =IF(ISERROR(INDIRECT(CONCATENATE($E$32,"!L223"))),"",INDIRECT(CONCATENATE($E$32,"!L223"))) -> 7.125993048 | Y37: =IF(ISERROR(INDIRECT(CONCATENATE($E$32,"!L224"))),"",INDIRECT(CONCATENATE($E$32,"!L224"))) -> 11.10534196
G40: RURAL | J40: =IF(ISERROR(INDIRECT(CONCATENATE(#REF!,"!A2"))),"",INDIRECT(CONCATENATE(#REF!,"!A210"))) ->  | K40: =IF(ISERROR(INDIRECT(CONCATENATE($E$32,"!M222"))),"",INDIRECT(CONCATENATE($E$32,"!M222"))) -> 68.85889282 | L40: =IF(ISERROR(INDIRECT(CONCATENATE($E$32,"!M223"))),"",INDIRECT(CONCATENATE($E$32,"!M223"))) -> 12.9031001 | M40: =IF(ISERROR(INDIRECT(CONCATENATE($E$32,"!M224"))),"",INDIRECT(CONCATENATE($E$32,"!M224"))) -> 18.23800708 | N40: =IF(ISERROR(INDIRECT(CONCATENATE($E$32,"!N222"))),"",INDIRECT(CONCATENATE($E$32,"!N222"))) -> 82.57464231 | O40: =IF(ISERROR(INDIRECT(CONCATENATE($E$32,"!N223"))),"",INDIRECT(CONCATENATE($E$32,"!N223"))) -> 10.90580615 | P40: =IF(ISERROR(INDIRECT(CONCATENATE($E$32,"!N224"))),"",INDIRECT(CONCATENATE($E$32,"!N224"))) -> 6.519551544 | Q40: =IF(ISERROR(INDIRECT(CONCATENATE($E$32,"!O222"))),"",INDIRECT(CONCATENATE($E$32,"!O222"))) -> 81.82180868 | R40: =IF(ISERROR(INDIRECT(CONCATENATE($E$32,"!O223"))),"",INDIRECT(CONCATENATE($E$32,"!O223"))) -> 7.713423084 | S40: =IF(ISERROR(INDIRECT(CONCATENATE($E$32,"!O224"))),"",INDIRECT(CONCATENATE($E$32,"!O224"))) -> 10.46476823 | T40: =IF(ISERROR(INDIRECT(CONCATENATE($E$32,"!P222"))),"",INDIRECT(CONCATENATE($E$32,"!P222"))) -> 93.74171651 | U40: =IF(ISERROR(INDIRECT(CONCATENATE($E$32,"!P223"))),"",INDIRECT(CONCATENATE($E$32,"!P223"))) -> 3.287536712 | V40: =IF(ISERROR(INDIRECT(CONCATENATE($E$32,"!P224"))),"",INDIRECT(CONCATENATE($E$32,"!P224"))) -> 2.97074678 | W40: =IF(ISERROR(INDIRECT(CONCATENATE($E$32,"!Q222"))),"",INDIRECT(CONCATENATE($E$32,"!Q222"))) -> 93.33327054 | X40: =IF(ISERROR(INDIRECT(CONCATENATE($E$32,"!Q223"))),"",INDIRECT(CONCATENATE($E$32,"!Q223"))) -> 2.979124556 | Y40: =IF(ISERROR(INDIRECT(CONCATENATE($E$32,"!Q224"))),"",INDIRECT(CONCATENATE($E$32,"!Q224"))) -> 3.687604905
A88: 5 | B88: DHS05
B89: MICS07
B90: DHS09
B91: MICS14
B92: MICS20
B93: Input
B94: Template

Sheet DHS05
A2: =A1026 -> Guyana
A3: =A1034 -> 2005
A4: Use of drinking water sources
A5: by wealth quintile and sub-national region
A6: Notes:
A7: WHO/UNICEF JMP customised wealth index excludes water,
A8: sanitation and hygiene assets.
A9: Survey used for analysis: | B9: =A1025 -> DHS05
A10: Time to improved source based on: | B10: MICS07
A11: =B1027 -> 
A14: Use of drinking water sources | C14: NATIONAL wealth index quintile | H14: URBAN wealth index quintile | M14: RURAL wealth index quintile | R14: SUB-REGIONS: | BA14: Raw numbers of respondents: | BB14: Use of drinking water sources | BC14: NATIONAL wealth index quintile | BH14: URBAN wealth index quintile | BM14: RURAL wealth index quintile | BR14: SUB-REGIONS:
A15: Weighted percentage (used in graphs) | C15: Poorest | D15: Poor | E15: Middle | F15: Rich | G15: Richest | H15: Poorest | I15: Poor | J15: Middle | K15: Rich | L15: Richest | M15: Poorest | N15: Poor | O15: Middle | P15: Rich | Q15: Richest | R15: Region 1 | S15: Region 10 | T15: Region 2 | U15: Region 3 | V15: Region 4 | W15: Region 5 | X15: Region 6 | Y15: Region 7 | Z15: Region 8 | AA15: Region 9 | BA15: Water data, raw numbers (weighted) | BC15: Poorest | BD15: Poor | BE15: Middle | BF15: Rich | BG15: Richest | BH15: Poorest | BI15: Poor | BJ15: Middle | BK15: Rich | BL15: Richest | BM15: Poorest | BN15: Poor | BO15: Middle | BP15: Rich | BQ15: Richest | BR15: Region 1 | BS15: Region 10 | BT15: Region 2 | BU15: Region 3 | BV15: Region 4 | BW15: Region 5 | BX15: Region 6 | BY15: Region 7 | BZ15: Region 8 | CA15: Region 9
A16: Water | B16: Improved | C16: =C58+C59+C60+C61+C63+C64+C66+C67+C69+C70 -> 72.06171111 | D16: 98.14879465 | E16: 98.82780664 | F16: 98.82287975 | G16: 99.68136105 | H16: 98.0253424 | I16: 99.59619472 | J16: 100 | K16: 99.24792525 | L16: 100 | M16: 61.1353276 | N16: 97.56497018 | O16: 98.36659532 | P16: 99.09610684 | Q16: 99.0941412 | R16: 63.10336825 | S16: 98.10129264 | T16: 88.65107227 | U16: 97.61280666 | V16: 99.07984617 | W16: 99.5424879 | X16: 97.66368656 | Y16: 32.70226813 | Z16: 59.06040268 | AA16: 49.89965208 | BA16: Water | BB16: Improved | BC16: N/A | BD16: N/A | BE16: N/A | BF16: N/A | BG16: N/A | BH16: N/A | BI16: N/A | BJ16: N/A | BK16: N/A | BL16: N/A | BM16: N/A | BN16: N/A | BO16: N/A | BP16: N/A | BQ16: N/A | BR16: N/A | BS16: N/A | BT16: N/A | BU16: N/A | BV16: N/A | BW16: N/A | BX16: N/A | BY16: N/A | BZ16: N/A | CA16: N/A
B17: Not Improved | C17: =100-C16 -> 27.93828889 | D17: =100-D16 -> 1.851205354 | E17: 1.172193357 | F17: 1.177120255 | G17: 0.3186389528 | H17: 1.974657597 | I17: 0.4038052762 | J17: -1.136868377e-13 | K17: 0.7520747465 | L17: -1.98951966e-13 | M17: 38.8646724 | N17: 2.435029816 | O17: 1.633404675 | P17: 0.9038931583 | Q17: 0.9058588035 | R17: 36.89663175 | S17: 1.89870736 | T17: 11.34892773 | U17: 2.387193336 | V17: 0.9201538263 | W17: 0.4575120969 | X17: 2.336313443 | Y17: 67.29773187 | Z17: 40.93959732 | AA17: 50.10034792 | BB17: Not Improved | BC17: N/A | BD17: N/A | BE17: N/A | BF17: N/A | BG17: N/A | BH17: N/A | BI17: N/A | BJ17: N/A | BK17: N/A | BL17: N/A | BM17: N/A | BN17: N/A | BO17: N/A | BP17: N/A | BQ17: N/A | BR17: N/A | BS17: N/A | BT17: N/A | BU17: N/A | BV17: N/A | BW17: N/A | BX17: N/A | BY17: N/A | BZ17: N/A | CA17: N/A
A18: Water ladder | B18: Basic | C18: =C16*MICS07!C23/100 -> 69.99133482 | D18: =D16*MICS07!D23/100 -> 97.16532889 | E18: =E16*MICS07!E23/100 -> 97.94917162 | F18: =F16*MICS07!F23/100 -> 97.80853226 | G18: =G16*MICS07!G23/100 -> 99.58654396 | H18: =H16*MICS07!H23/100 -> 96.41530481 | I18: =I16*MICS07!I23/100 -> 98.35535197 | J18: =J16*MICS07!J23/100 -> 99.637412 | K18: =K16*MICS07!K23/100 -> 98.90876008 | L18: =L16*MICS07!L23/100 -> 100 | M18: =M16*MICS07!M23/100 -> 58.94061409 | N18: =N16*MICS07!N23/100 -> 96.61976604 | O18: =O16*MICS07!O23/100 -> 97.51647177 | P18: =P16*MICS07!P23/100 -> 98.34090236 | Q18: =Q16*MICS07!Q23/100 -> 98.29536757 | R18: =R16*MICS07!R23/100 -> 61.70456041 | S18: =S16*MICS07!S23/100 -> 98.10129264 | T18: =T16*MICS07!T23/100 -> 88.1676746 | U18: =U16*MICS07!U23/100 -> 96.82200241 | V18: =V16*MICS07!V23/100 -> 97.78065194 | W18: =W16*MICS07!W23/100 -> 97.47611561 | X18: =X16*MICS07!X23/100 -> 97.66368656 | Y18: =Y16*MICS07!Y23/100 -> 30.00036186 | Z18: =Z16*MICS07!Z23/100 -> 56.11351535 | AA18: =AA16*MICS07!AA23/100 -> 49.73218895 | BA18: Water ladder | BB18: Basic | BC18: N/A | BD18: N/A | BE18: N/A | BF18: N/A | BG18: N/A | BH18: N/A | BI18: N/A | BJ18: N/A | BK18: N/A | BL18: N/A | BM18: N/A | BN18: N/A | BO18: N/A | BP18: N/A | BQ18: N/A | BR18: N/A | BS18: N/A | BT18: N/A | BU18: N/A | BV18: N/A | BW18: N/A | BX18: N/A | BY18: N/A | BZ18: N/A | CA18: N/A
B19: Limited | C19: =C16*MICS07!C22/100 -> 2.070376294 | D19: =D16*MICS07!D22/100 -> 0.9834657561 | E19: =E16*MICS07!E22/100 -> 0.8786350194 | F19: =F16*MICS07!F22/100 -> 1.014347489 | G19: =G16*MICS07!G22/100 -> 0.09481708436 | H19: =H16*MICS07!H22/100 -> 1.610037592 | I19: =I16*MICS07!I22/100 -> 1.240842753 | J19: =J16*MICS07!J22/100 -> 0.3625880018 | K19: =K16*MICS07!K22/100 -> 0.3391651781 | L19: =L16*MICS07!L22/100 -> 0 | M19: =M16*MICS07!M22/100 -> 2.194713507 | N19: =N16*MICS07!N22/100 -> 0.9452041488 | O19: =O16*MICS07!O22/100 -> 0.8501235573 | P19: =P16*MICS07!P22/100 -> 0.7552044851 | Q19: =Q16*MICS07!Q22/100 -> 0.7987736301 | R19: =R16*MICS07!R22/100 -> 1.398807841 | S19: =S16*MICS07!S22/100 -> 0 | T19: =T16*MICS07!T22/100 -> 0.4833976765 | U19: =U16*MICS07!U22/100 -> 0.7908042552 | V19: =V16*MICS07!V22/100 -> 1.299194232 | W19: =W16*MICS07!W22/100 -> 2.066372293 | X19: =X16*MICS07!X22/100 -> 0 | Y19: =Y16*MICS07!Y22/100 -> 2.701906267 | Z19: =Z16*MICS07!Z22/100 -> 2.946887333 | AA19: =AA16*MICS07!AA22/100 -> 0.1674631259 | BB19: Limited | BC19: N/A | BD19: N/A | BE19: N/A | BF19: N/A | BG19: N/A | BH19: N/A | BI19: N/A | BJ19: N/A | BK19: N/A | BL19: N/A | BM19: N/A | BN19: N/A | BO19: N/A | BP19: N/A | BQ19: N/A | BR19: N/A | BS19: N/A | BT19: N/A | BU19: N/A | BV19: N/A | BW19: N/A | BX19: N/A | BY19: N/A | BZ19: N/A | CA19: N/A
B20: Unimproved | C20: =100-(C18+C19+C21) -> 10.80194923 | D20: =100-(D18+D19+D21) -> 0.8373832015 | E20: 0.5784863627 | F20: 1.177120255 | G20: 0.3186389528 | H20: 1.378936485 | I20: 0.4038052762 | J20: -1.136868377e-13 | K20: 0.7520747465 | L20: -1.98951966e-13 | M20: 14.87948814 | N20: 0.9183948375 | O20: 0.7907800178 | P20: 0.9038931583 | Q20: 0.9058588035 | R20: 16.96040158 | S20: 1.89870736 | T20: 3.454021482 | U20: 0 | V20: 0.3137016965 | W20: 0.4575120969 | X20: 2.336313443 | Y20: 0 | Z20: 26.17449664 | AA20: 40.63014778 | BB20: Unimproved | BC20: N/A | BD20: N/A | BE20: N/A | BF20: N/A | BG20: N/A | BH20: N/A | BI20: N/A | BJ20: N/A | BK20: N/A | BL20: N/A | BM20: N/A | BN20: N/A | BO20: N/A | BP20: N/A | BQ20: N/A | BR20: N/A | BS20: N/A | BT20: N/A | BU20: N/A | BV20: N/A | BW20: N/A | BX20: N/A | BY20: N/A | BZ20: N/A | CA20: N/A
B21: Surface water | C21: =C68 -> 17.13633965 | D21: 1.013822153 | E21: 0.593706994 | F21: 0 | G21: 0 | H21: 0.5957211117 | I21: 0 | J21: 0 | K21: 0 | L21: 0 | M21: 23.98518426 | N21: 1.516634978 | O21: 0.8426246577 | P21: 0 | Q21: 0 | R21: 19.93623017 | S21: 0 | T21: 7.894906244 | U21: 2.387193336 | V21: 0.6064521299 | W21: 0 | X21: 0 | Y21: 67.29773187 | Z21: 14.76510067 | AA21: 9.470200144 | BB21: Surface water | BC21: N/A | BD21: N/A | BE21: N/A | BF21: N/A | BG21: N/A | BH21: N/A | BI21: N/A | BJ21: N/A | BK21: N/A | BL21: N/A | BM21: N/A | BN21: N/A | BO21: N/A | BP21: N/A | BQ21: N/A | BR21: N/A | BS21: N/A | BT21: N/A | BU21: N/A | BV21: N/A | BW21: N/A | BX21: N/A | BY21: N/A | BZ21: N/A | CA21: N/A
A22: Improved water point at more than 30 minutes | B22: Yes | C22: 0.1183937503 | D22: 0 | E22: 0 | F22: 0 | G22: 0 | H22: 0.2817303743 | I22: 0 | J22: 0 | K22: 0 | L22: 0 | M22: 0 | N22: 0 | O22: 0 | P22: 0 | Q22: 0 | R22: 0 | S22: 0 | T22: 0 | U22: 0 | V22: 0 | W22: 0 | X22: 0.07404584203 | Y22: 0 | Z22: 0 | AA22: 0 | BA22: Improved water point at more than 30 minutes | BB22: Yes | BC22: N/A | BD22: N/A | BE22: N/A | BF22: N/A | BG22: N/A | BH22: N/A | BI22: N/A | BJ22: N/A | BK22: N/A | BL22: N/A | BM22: N/A | BN22: N/A | BO22: N/A | BP22: N/A | BQ22: N/A | BR22: N/A | BS22: N/A | BT22: N/A | BU22: N/A | BV22: N/A | BW22: N/A | BX22: N/A | BY22: N/A | BZ22: N/A | CA22: N/A
B23: No | C23: 99.88160625 | D23: 100 | E23: 100 | F23: 100 | G23: 100 | H23: 99.71826963 | I23: 100 | J23: 100 | K23: 100 | L23: 100 | M23: 100 | N23: 100 | O23: 100 | P23: 100 | Q23: 100 | R23: 100 | S23: 100 | T23: 100 | U23: 100 | V23: 100 | W23: 100 | X23: 99.92595416 | Y23: 100 | Z23: 100 | AA23: 100 | BB23: No | BC23: N/A | BD23: N/A | BE23: N/A | BF23: N/A | BG23: N/A | BH23: N/A | BI23: N/A | BJ23: N/A | BK23: N/A | BL23: N/A | BM23: N/A | BN23: N/A | BO23: N/A | BP23: N/A | BQ23: N/A | BR23: N/A | BS23: N/A | BT23: N/A | BU23: N/A | BV23: N/A | BW23: N/A | BX23: N/A | BY23: N/A | BZ23: N/A | CA23: N/A
A24: Manually calculated ratios | B24: Improved wells
B25: Improved springs
B26: Other
C27: NATIONAL wealth index quintile | H27: URBAN wealth index quintile | M27: RURAL wealth index quintile | R27: SUB-REGIONS: | BA27: Raw numbers of respondents: | BB27: Use of drinking water sources | BC27: NATIONAL wealth index quintile | BH27: URBAN wealth index quintile | BM27: RURAL wealth index quintile | BR27: SUB-REGIONS:
A28: Percentage based on weighted population | C28: Poorest | D28: Poor | E28: Middle | F28: Rich | G28: Richest | H28: Poorest | I28: Poor | J28: Middle | K28: Rich | L28: Richest | M28: Poorest | N28: Poor | O28: Middle | P28: Rich | Q28: Richest | R28: Region 1 | S28: Region 10 | T28: Region 2 | U28: Region 3 | V28: Region 4 | W28: Region 5 | X28: Region 6 | Y28: Region 7 | Z28: Region 8 | AA28: Region 9 | BA28: Water data, raw numbers (weighted) | BC28: Poorest | BD28: Poor | BE28: Middle | BF28: Rich | BG28: Richest | BH28: Poorest | BI28: Poor | BJ28: Middle | BK28: Rich | BL28: Richest | BM28: Poorest | BN28: Poor | BO28: Middle | BP28: Rich | BQ28: Richest | BR28: Region 1 | BS28: Region 10 | BT28: Region 2 | BU28: Region 3 | BV28: Region 4 | BW28: Region 5 | BX28: Region 6 | BY28: Region 7 | BZ28: Region 8 | CA28: Region 9
A29: Piped water | B29: Yes | C29: 33.20947362 | D29: 57.38053706 | E29: 51.24372596 | F29: 47.88218007 | G29: 38.21255912 | H29: 61.11179514 | I29: 49.92969572 | J29: 52.86200284 | K29: 32.39897815 | L29: 32.85588511 | M29: 21.50908777 | N29: 57.7793239 | O29: 53.05834331 | P29: 50.6347595 | Q29: 44.36166262 | R29: 15.21328657 | S29: 73.37321465 | T29: 5.088573164 | U29: 40.75608849 | V29: 40.93226655 | W29: 72.22125576 | X29: 78.07945552 | Y29: 0 | Z29: 0 | AA29: 0 | BA29: Piped water | BB29: Yes | BC29: N/A | BD29: N/A | BE29: N/A | BF29: N/A | BG29: N/A | BH29: N/A | BI29: N/A | BJ29: N/A | BK29: N/A | BL29: N/A | BM29: N/A | BN29: N/A | BO29: N/A | BP29: N/A | BQ29: N/A | BR29: N/A | BS29: N/A | BT29: N/A | BU29: N/A | BV29: N/A | BW29: N/A | BX29: N/A | BY29: N/A | BZ29: N/A | CA29: N/A
B30: No | C30: 66.79052638 | D30: 42.61946294 | E30: 48.75627404 | F30: 52.11781993 | G30: 61.78744088 | H30: 38.88820486 | I30: 50.07030428 | J30: 47.13799716 | K30: 67.60102185 | L30: 67.14411489 | M30: 78.49091223 | N30: 42.2206761 | O30: 46.94165669 | P30: 49.3652405 | Q30: 55.63833738 | R30: 84.78671343 | S30: 26.62678535 | T30: 94.91142684 | U30: 59.24391151 | V30: 59.06773345 | W30: 27.77874424 | X30: 21.92054448 | Y30: 100 | Z30: 100 | AA30: 100 | BB30: No | BC30: N/A | BD30: N/A | BE30: N/A | BF30: N/A | BG30: N/A | BH30: N/A | BI30: N/A | BJ30: N/A | BK30: N/A | BL30: N/A | BM30: N/A | BN30: N/A | BO30: N/A | BP30: N/A | BQ30: N/A | BR30: N/A | BS30: N/A | BT30: N/A | BU30: N/A | BV30: N/A | BW30: N/A | BX30: N/A | BY30: N/A | BZ30: N/A | CA30: N/A
A31: Piped water on premises | B31: Yes | C31: 30.67888416 | D31: 54.51895584 | E31: 49.75052393 | F31: 47.50775759 | G31: 38.21255912 | H31: 54.55090905 | I31: 47.80788689 | J31: 52.86200284 | K31: 31.95126922 | L31: 32.85588511 | M31: 20.4706233 | N31: 55.57838954 | O31: 50.17087136 | P31: 50.29041925 | Q31: 44.36166262 | R31: 15.21328657 | S31: 68.2339808 | T31: 5.088573164 | U31: 40.02133237 | V31: 39.56068848 | W31: 70.15290382 | X31: 75.91527104 | Y31: 0 | Z31: 0 | AA31: 0 | BA31: Piped water on premises | BB31: Yes | BC31: N/A | BD31: N/A | BE31: N/A | BF31: N/A | BG31: N/A | BH31: N/A | BI31: N/A | BJ31: N/A | BK31: N/A | BL31: N/A | BM31: N/A | BN31: N/A | BO31: N/A | BP31: N/A | BQ31: N/A | BR31: N/A | BS31: N/A | BT31: N/A | BU31: N/A | BV31: N/A | BW31: N/A | BX31: N/A | BY31: N/A | BZ31: N/A | CA31: N/A
B32: No | C32: 69.32111584 | D32: 45.48104416 | E32: 50.24947607 | F32: 52.49224241 | G32: 61.78744088 | H32: 45.44909095 | I32: 52.19211311 | J32: 47.13799716 | K32: 68.04873078 | L32: 67.14411489 | M32: 79.5293767 | N32: 44.42161046 | O32: 49.82912864 | P32: 49.70958075 | Q32: 55.63833738 | R32: 84.78671343 | S32: 31.7660192 | T32: 94.91142684 | U32: 59.97866763 | V32: 60.43931152 | W32: 29.84709618 | X32: 24.08472896 | Y32: 100 | Z32: 100 | AA32: 100 | BB32: No | BC32: N/A | BD32: N/A | BE32: N/A | BF32: N/A | BG32: N/A | BH32: N/A | BI32: N/A | BJ32: N/A | BK32: N/A | BL32: N/A | BM32: N/A | BN32: N/A | BO32: N/A | BP32: N/A | BQ32: N/A | BR32: N/A | BS32: N/A | BT32: N/A | BU32: N/A | BV32: N/A | BW32: N/A | BX32: N/A | BY32: N/A | BZ32: N/A | CA32: N/A
A33: Piped water into dwelling | B33: Yes | C33: N/A | D33: N/A | E33: N/A | F33: N/A | G33: N/A | H33: N/A | I33: N/A | J33: N/A | K33: N/A | L33: N/A | M33: N/A | N33: N/A | O33: N/A | P33: N/A | Q33: N/A | R33: N/A | S33: N/A | T33: N/A | U33: N/A | V33: N/A | W33: N/A | X33: N/A | Y33: N/A | Z33: N/A | AA33: N/A | BA33: Piped water into dwelling | BB33: Yes | BC33: N/A | BD33: N/A | BE33: N/A | BF33: N/A | BG33: N/A | BH33: N/A | BI33: N/A | BJ33: N/A | BK33: N/A | BL33: N/A | BM33: N/A | BN33: N/A | BO33: N/A | BP33: N/A | BQ33: N/A | BR33: N/A | BS33: N/A | BT33: N/A | BU33: N/A | BV33: N/A | BW33: N/A | BX33: N/A | BY33: N/A | BZ33: N/A | CA33: N/A
B34: No | C34: N/A | D34: N/A | E34: N/A | F34: N/A | G34: N/A | H34: N/A | I34: N/A | J34: N/A | K34: N/A | L34: N/A | M34: N/A | N34: N/A | O34: N/A | P34: N/A | Q34: N/A | R34: N/A | S34: N/A | T34: N/A | U34: N/A | V34: N/A | W34: N/A | X34: N/A | Y34: N/A | Z34: N/A | AA34: N/A | BB34: No | BC34: N/A | BD34: N/A | BE34: N/A | BF34: N/A | BG34: N/A | BH34: N/A | BI34: N/A | BJ34: N/A | BK34: N/A | BL34: N/A | BM34: N/A | BN34: N/A | BO34: N/A | BP34: N/A | BQ34: N/A | BR34: N/A | BS34: N/A | BT34: N/A | BU34: N/A | BV34: N/A | BW34: N/A | BX34: N/A | BY34: N/A | BZ34: N/A | CA34: N/A
A35: Water source on premises | B35: Yes | C35: 31.2728693 | D35: 55.01615417 | E35: 49.89262434 | F35: 48.2182359 | G35: 38.21255912 | H35: 54.72965118 | I35: 47.80788689 | J35: 52.86200284 | K35: 31.95126922 | L35: 32.85588511 | M35: 21.23870302 | N35: 56.28104165 | O35: 50.37254881 | P35: 51.29803822 | Q35: 44.36166262 | R35: 18.66410607 | S35: 73.61594319 | T35: 5.088573164 | U35: 40.02133237 | V35: 39.58543409 | W35: 70.15290382 | X35: 75.91527104 | Y35: 0 | Z35: 0 | AA35: 0 | BA35: Water source on premises | BB35: Yes | BC35: N/A | BD35: N/A | BE35: N/A | BF35: N/A | BG35: N/A | BH35: N/A | BI35: N/A | BJ35: N/A | BK35: N/A | BL35: N/A | BM35: N/A | BN35: N/A | BO35: N/A | BP35: N/A | BQ35: N/A | BR35: N/A | BS35: N/A | BT35: N/A | BU35: N/A | BV35: N/A | BW35: N/A | BX35: N/A | BY35: N/A | BZ35: N/A | CA35: N/A
B36: No | C36: 68.7271307 | D36: 44.98384583 | E36: 50.10737566 | F36: 51.7817641 | G36: 61.78744088 | H36: 45.27034882 | I36: 52.19211311 | J36: 47.13799716 | K36: 68.04873078 | L36: 67.14411489 | M36: 78.76129698 | N36: 43.71895835 | O36: 49.62745119 | P36: 48.70196178 | Q36: 55.63833738 | R36: 81.33589393 | S36: 26.38405681 | T36: 94.91142684 | U36: 59.97866763 | V36: 60.41456591 | W36: 29.84709618 | X36: 24.08472896 | Y36: 100 | Z36: 100 | AA36: 100 | BB36: No | BC36: N/A | BD36: N/A | BE36: N/A | BF36: N/A | BG36: N/A | BH36: N/A | BI36: N/A | BJ36: N/A | BK36: N/A | BL36: N/A | BM36: N/A | BN36: N/A | BO36: N/A | BP36: N/A | BQ36: N/A | BR36: N/A | BS36: N/A | BT36: N/A | BU36: N/A | BV36: N/A | BW36: N/A | BX36: N/A | BY36: N/A | BZ36: N/A | CA36: N/A
A37: Improved Water source on premises | B37: Yes | C37: 42.6462865 | D37: 56.05382559 | E37: 50.48439911 | F37: 48.79258328 | G37: 38.33470844 | H37: 55.83214487 | I37: 48.00172037 | J37: 52.86200284 | K37: 32.19338756 | L37: 32.85588511 | M37: 33.48411483 | N37: 57.68570578 | O37: 51.20899899 | P37: 51.76594707 | Q37: 44.76719016 | R37: 24.10851748 | S37: 75.04074738 | T37: 5.740001822 | U37: 41.00008363 | V37: 39.95306374 | W37: 70.47533701 | X37: 77.73131827 | Y37: 0 | Z37: 0 | AA37: 0 | BA37: Improved water source on premises | BB37: Yes | BC37: N/A | BD37: N/A | BE37: N/A | BF37: N/A | BG37: N/A | BH37: N/A | BI37: N/A | BJ37: N/A | BK37: N/A | BL37: N/A | BM37: N/A | BN37: N/A | BO37: N/A | BP37: N/A | BQ37: N/A | BR37: N/A | BS37: N/A | BT37: N/A | BU37: N/A | BV37: N/A | BW37: N/A | BX37: N/A | BY37: N/A | BZ37: N/A | CA37: N/A
B38: No | C38: 57.3537135 | D38: 43.94617441 | E38: 49.51560089 | F38: 51.20741672 | G38: 61.66529156 | H38: 44.16785513 | I38: 51.99827963 | J38: 47.13799716 | K38: 67.80661244 | L38: 67.14411489 | M38: 66.51588517 | N38: 42.31429422 | O38: 48.79100101 | P38: 48.23405293 | Q38: 55.23280984 | R38: 75.89148252 | S38: 24.95925262 | T38: 94.25999818 | U38: 58.99991637 | V38: 60.04693626 | W38: 29.52466299 | X38: 22.26868173 | Y38: 100 | Z38: 100 | AA38: 100 | BB38: No | BC38: N/A | BD38: N/A | BE38: N/A | BF38: N/A | BG38: N/A | BH38: N/A | BI38: N/A | BJ38: N/A | BK38: N/A | BL38: N/A | BM38: N/A | BN38: N/A | BO38: N/A | BP38: N/A | BQ38: N/A | BR38: N/A | BS38: N/A | BT38: N/A | BU38: N/A | BV38: N/A | BW38: N/A | BX38: N/A | BY38: N/A | BZ38: N/A | CA38: N/A
A39: Piped water on premises available when needed | B39: Yes | C39: N/A | D39: N/A | E39: N/A | F39: N/A | G39: N/A | H39: N/A | I39: N/A | J39: N/A | K39: N/A | L39: N/A | M39: N/A | N39: N/A | O39: N/A | P39: N/A | Q39: N/A | R39: N/A | S39: N/A | T39: N/A | U39: N/A | V39: N/A | W39: N/A | X39: N/A | Y39: N/A | Z39: N/A | AA39: N/A | BA39: Piped water on premises available when needed | BB39: Yes | BC39: N/A | BD39: N/A | BE39: N/A | BF39: N/A | BG39: N/A | BH39: N/A | BI39: N/A | BJ39: N/A | BK39: N/A | BL39: N/A | BM39: N/A | BN39: N/A | BO39: N/A | BP39: N/A | BQ39: N/A | BR39: N/A | BS39: N/A | BT39: N/A | BU39: N/A | BV39: N/A | BW39: N/A | BX39: N/A | BY39: N/A | BZ39: N/A | CA39: N/A
B40: No | C40: N/A | D40: N/A | E40: N/A | F40: N/A | G40: N/A | H40: N/A | I40: N/A | J40: N/A | K40: N/A | L40: N/A | M40: N/A | N40: N/A | O40: N/A | P40: N/A | Q40: N/A | R40: N/A | S40: N/A | T40: N/A | U40: N/A | V40: N/A | W40: N/A | X40: N/A | Y40: N/A | Z40: N/A | AA40: N/A | BB40: No | BC40: N/A | BD40: N/A | BE40: N/A | BF40: N/A | BG40: N/A | BH40: N/A | BI40: N/A | BJ40: N/A | BK40: N/A | BL40: N/A | BM40: N/A | BN40: N/A | BO40: N/A | BP40: N/A | BQ40: N/A | BR40: N/A | BS40: N/A | BT40: N/A | BU40: N/A | BV40: N/A | BW40: N/A | BX40: N/A | BY40: N/A | BZ40: N/A | CA40: N/A
A41: Water point at more than 30 minutes | B41: Yes | C41: 0.9982218755 | D41: 0 | E41: 0 | F41: 0 | G41: 0 | H41: 0.2729133164 | I41: 0 | J41: 0 | K41: 0 | L41: 0 | M41: 1.281075172 | N41: 0 | O41: 0 | P41: 0 | Q41: 0 | R41: 0 | S41: 0 | T41: 0 | U41: 0 | V41: 0 | W41: 0 | X41: 0.07355781436 | Y41: 0 | Z41: 0 | AA41: 6.760829118 | BA41: Water point at more than 30 minutes | BB41: Yes | BC41: N/A | BD41: N/A | BE41: N/A | BF41: N/A | BG41: N/A | BH41: N/A | BI41: N/A | BJ41: N/A | BK41: N/A | BL41: N/A | BM41: N/A | BN41: N/A | BO41: N/A | BP41: N/A | BQ41: N/A | BR41: N/A | BS41: N/A | BT41: N/A | BU41: N/A | BV41: N/A | BW41: N/A | BX41: N/A | BY41: N/A | BZ41: N/A | CA41: N/A
B42: No | C42: 99.00177812 | D42: 100 | E42: 100 | F42: 100 | G42: 100 | H42: 99.72708668 | I42: 100 | J42: 100 | K42: 100 | L42: 100 | M42: 98.71892483 | N42: 100 | O42: 100 | P42: 100 | Q42: 100 | R42: 100 | S42: 100 | T42: 100 | U42: 100 | V42: 100 | W42: 100 | X42: 99.92644219 | Y42: 100 | Z42: 100 | AA42: 93.23917088 | BB42: No | BC42: N/A | BD42: N/A | BE42: N/A | BF42: N/A | BG42: N/A | BH42: N/A | BI42: N/A | BJ42: N/A | BK42: N/A | BL42: N/A | BM42: N/A | BN42: N/A | BO42: N/A | BP42: N/A | BQ42: N/A | BR42: N/A | BS42: N/A | BT42: N/A | BU42: N/A | BV42: N/A | BW42: N/A | BX42: N/A | BY42: N/A | BZ42: N/A | CA42: N/A
A43: Water source available when needed | B43: Yes | C43: N/A | D43: N/A | E43: N/A | F43: N/A | G43: N/A | H43: N/A | I43: N/A | J43: N/A | K43: N/A | L43: N/A | M43: N/A | N43: N/A | O43: N/A | P43: N/A | Q43: N/A | R43: N/A | S43: N/A | T43: N/A | U43: N/A | V43: N/A | W43: N/A | X43: N/A | Y43: N/A | Z43: N/A | AA43: N/A | BA43: Water source available when needed | BB43: Yes | BC43: N/A | BD43: N/A | BE43: N/A | BF43: N/A | BG43: N/A | BH43: N/A | BI43: N/A | BJ43: N/A | BK43: N/A | BL43: N/A | BM43: N/A | BN43: N/A | BO43: N/A | BP43: N/A | BQ43: N/A | BR43: N/A | BS43: N/A | BT43: N/A | BU43: N/A | BV43: N/A | BW43: N/A | BX43: N/A | BY43: N/A | BZ43: N/A | CA43: N/A
B44: No | C44: N/A | D44: N/A | E44: N/A | F44: N/A | G44: N/A | H44: N/A | I44: N/A | J44: N/A | K44: N/A | L44: N/A | M44: N/A | N44: N/A | O44: N/A | P44: N/A | Q44: N/A | R44: N/A | S44: N/A | T44: N/A | U44: N/A | V44: N/A | W44: N/A | X44: N/A | Y44: N/A | Z44: N/A | AA44: N/A | BB44: No | BC44: N/A | BD44: N/A | BE44: N/A | BF44: N/A | BG44: N/A | BH44: N/A | BI44: N/A | BJ44: N/A | BK44: N/A | BL44: N/A | BM44: N/A | BN44: N/A | BO44: N/A | BP44: N/A | BQ44: N/A | BR44: N/A | BS44: N/A | BT44: N/A | BU44: N/A | BV44: N/A | BW44: N/A | BX44: N/A | BY44: N/A | BZ44: N/A | CA44: N/A
A45: Improved water source available when needed | B45: Yes | C45: N/A | D45: N/A | E45: N/A | F45: N/A | G45: N/A | H45: N/A | I45: N/A | J45: N/A | K45: N/A | L45: N/A | M45: N/A | N45: N/A | O45: N/A | P45: N/A | Q45: N/A | R45: N/A | S45: N/A | T45: N/A | U45: N/A | V45: N/A | W45: N/A | X45: N/A | Y45: N/A | Z45: N/A | AA45: N/A | BA45: Improved water source available when needed | BB45: Yes | BC45: N/A | BD45: N/A | BE45: N/A | BF45: N/A | BG45: N/A | BH45: N/A | BI45: N/A | BJ45: N/A | BK45: N/A | BL45: N/A | BM45: N/A | BN45: N/A | BO45: N/A | BP45: N/A | BQ45: N/A | BR45: N/A | BS45: N/A | BT45: N/A | BU45: N/A | BV45: N/A | BW45: N/A | BX45: N/A | BY45: N/A | BZ45: N/A | CA45: N/A
B46: No | C46: N/A | D46: N/A | E46: N/A | F46: N/A | G46: N/A | H46: N/A | I46: N/A | J46: N/A | K46: N/A | L46: N/A | M46: N/A | N46: N/A | O46: N/A | P46: N/A | Q46: N/A | R46: N/A | S46: N/A | T46: N/A | U46: N/A | V46: N/A | W46: N/A | X46: N/A | Y46: N/A | Z46: N/A | AA46: N/A | BB46: No | BC46: N/A | BD46: N/A | BE46: N/A | BF46: N/A | BG46: N/A | BH46: N/A | BI46: N/A | BJ46: N/A | BK46: N/A | BL46: N/A | BM46: N/A | BN46: N/A | BO46: N/A | BP46: N/A | BQ46: N/A | BR46: N/A | BS46: N/A | BT46: N/A | BU46: N/A | BV46: N/A | BW46: N/A | BX46: N/A | BY46: N/A | BZ46: N/A | CA46: N/A
A47: Microbiological quality at point of collection | B47: Not contaminated (No E. coli in 100 mL) | C47: N/A | D47: N/A | E47: N/A | F47: N/A | G47: N/A | H47: N/A | I47: N/A | J47: N/A | K47: N/A | L47: N/A | M47: N/A | N47: N/A | O47: N/A | P47: N/A | Q47: N/A | R47: N/A | S47: N/A | T47: N/A | U47: N/A | V47: N/A | W47: N/A | X47: N/A | Y47: N/A | Z47: N/A | AA47: N/A | BA47: Microbiological quality at point of collection | BB47: Not contaminated (No E. coli in 100 mL) | BC47: N/A | BD47: N/A | BE47: N/A | BF47: N/A | BG47: N/A | BH47: N/A | BI47: N/A | BJ47: N/A | BK47: N/A | BL47: N/A | BM47: N/A | BN47: N/A | BO47: N/A | BP47: N/A | BQ47: N/A | BR47: N/A | BS47: N/A | BT47: N/A | BU47: N/A | BV47: N/A | BW47: N/A | BX47: N/A | BY47: N/A | BZ47: N/A | CA47: N/A
B48: Contaminated (E. coli detected in 100 mL) | C48: N/A | D48: N/A | E48: N/A | F48: N/A | G48: N/A | H48: N/A | I48: N/A | J48: N/A | K48: N/A | L48: N/A | M48: N/A | N48: N/A | O48: N/A | P48: N/A | Q48: N/A | R48: N/A | S48: N/A | T48: N/A | U48: N/A | V48: N/A | W48: N/A | X48: N/A | Y48: N/A | Z48: N/A | AA48: N/A | BB48: Contaminated (E. coli detected in 100 mL) | BC48: N/A | BD48: N/A | BE48: N/A | BF48: N/A | BG48: N/A | BH48: N/A | BI48: N/A | BJ48: N/A | BK48: N/A | BL48: N/A | BM48: N/A | BN48: N/A | BO48: N/A | BP48: N/A | BQ48: N/A | BR48: N/A | BS48: N/A | BT48: N/A | BU48: N/A | BV48: N/A | BW48: N/A | BX48: N/A | BY48: N/A | BZ48: N/A | CA48: N/A
B49: Highly contaminated (>100 CFU/100 mL) | C49: N/A | D49: N/A | E49: N/A | F49: N/A | G49: N/A | H49: N/A | I49: N/A | J49: N/A | K49: N/A | L49: N/A | M49: N/A | N49: N/A | O49: N/A | P49: N/A | Q49: N/A | R49: N/A | S49: N/A | T49: N/A | U49: N/A | V49: N/A | W49: N/A | X49: N/A | Y49: N/A | Z49: N/A | AA49: N/A | BB49: Highly contaminated (>100 CFU/100 mL) | BC49: N/A | BD49: N/A | BE49: N/A | BF49: N/A | BG49: N/A | BH49: N/A | BI49: N/A | BJ49: N/A | BK49: N/A | BL49: N/A | BM49: N/A | BN49: N/A | BO49: N/A | BP49: N/A | BQ49: N/A | BR49: N/A | BS49: N/A | BT49: N/A | BU49: N/A | BV49: N/A | BW49: N/A | BX49: N/A | BY49: N/A | BZ49: N/A | CA49: N/A
A50: Microbiological quality of improved water sources at point of collection | B50: Not contaminated (No E. coli in 100 mL) | C50: N/A | D50: N/A | E50: N/A | F50: N/A | G50: N/A | H50: N/A | I50: N/A | J50: N/A | K50: N/A | L50: N/A | M50: N/A | N50: N/A | O50: N/A | P50: N/A | Q50: N/A | R50: N/A | S50: N/A | T50: N/A | U50: N/A | V50: N/A | W50: N/A | X50: N/A | Y50: N/A | Z50: N/A | AA50: N/A | BA50: Microbiological quality of improved water sources at point of collection | BB50: Not contaminated (No E. coli in 100 mL) | BC50: N/A | BD50: N/A | BE50: N/A | BF50: N/A | BG50: N/A | BH50: N/A | BI50: N/A | BJ50: N/A | BK50: N/A | BL50: N/A | BM50: N/A | BN50: N/A | BO50: N/A | BP50: N/A | BQ50: N/A | BR50: N/A | BS50: N/A | BT50: N/A | BU50: N/A | BV50: N/A | BW50: N/A | BX50: N/A | BY50: N/A | BZ50: N/A | CA50: N/A
B51: Contaminated (E. coli detected in 100 mL) | C51: N/A | D51: N/A | E51: N/A | F51: N/A | G51: N/A | H51: N/A | I51: N/A | J51: N/A | K51: N/A | L51: N/A | M51: N/A | N51: N/A | O51: N/A | P51: N/A | Q51: N/A | R51: N/A | S51: N/A | T51: N/A | U51: N/A | V51: N/A | W51: N/A | X51: N/A | Y51: N/A | Z51: N/A | AA51: N/A | BB51: Contaminated (E. coli detected in 100 mL) | BC51: N/A | BD51: N/A | BE51: N/A | BF51: N/A | BG51: N/A | BH51: N/A | BI51: N/A | BJ51: N/A | BK51: N/A | BL51: N/A | BM51: N/A | BN51: N/A | BO51: N/A | BP51: N/A | BQ51: N/A | BR51: N/A | BS51: N/A | BT51: N/A | BU51: N/A | BV51: N/A | BW51: N/A | BX51: N/A | BY51: N/A | BZ51: N/A | CA51: N/A
B52: Highly contaminated (>100 CFU/100 mL) | C52: N/A | D52: N/A | E52: N/A | F52: N/A | G52: N/A | H52: N/A | I52: N/A | J52: N/A | K52: N/A | L52: N/A | M52: N/A | N52: N/A | O52: N/A | P52: N/A | Q52: N/A | R52: N/A | S52: N/A | T52: N/A | U52: N/A | V52: N/A | W52: N/A | X52: N/A | Y52: N/A | Z52: N/A | AA52: N/A | BB52: Highly contaminated (>100 CFU/100 mL) | BC52: N/A | BD52: N/A | BE52: N/A | BF52: N/A | BG52: N/A | BH52: N/A | BI52: N/A | BJ52: N/A | BK52: N/A | BL52: N/A | BM52: N/A | BN52: N/A | BO52: N/A | BP52: N/A | BQ52: N/A | BR52: N/A | BS52: N/A | BT52: N/A | BU52: N/A | BV52: N/A | BW52: N/A | BX52: N/A | BY52: N/A | BZ52: N/A | CA52: N/A
A53: Microbiological quality of piped on premises at point of collection | B53: Not contaminated (No E. coli in 100 mL) | C53: N/A | D53: N/A | E53: N/A | F53: N/A | G53: N/A | H53: N/A | I53: N/A | J53: N/A | K53: N/A | L53: N/A | M53: N/A | N53: N/A | O53: N/A | P53: N/A | Q53: N/A | R53: N/A | S53: N/A | T53: N/A | U53: N/A | V53: N/A | W53: N/A | X53: N/A | Y53: N/A | Z53: N/A | AA53: N/A | BA53: Microbiological quality of piped on premises at point of collection | BB53: Not contaminated (No E. coli in 100 mL) | BC53: N/A | BD53: N/A | BE53: N/A | BF53: N/A | BG53: N/A | BH53: N/A | BI53: N/A | BJ53: N/A | BK53: N/A | BL53: N/A | BM53: N/A | BN53: N/A | BO53: N/A | BP53: N/A | BQ53: N/A | BR53: N/A | BS53: N/A | BT53: N/A | BU53: N/A | BV53: N/A | BW53: N/A | BX53: N/A | BY53: N/A | BZ53: N/A | CA53: N/A
B54: Contaminated (E. coli detected in 100 mL) | C54: N/A | D54: N/A | E54: N/A | F54: N/A | G54: N/A | H54: N/A | I54: N/A | J54: N/A | K54: N/A | L54: N/A | M54: N/A | N54: N/A | O54: N/A | P54: N/A | Q54: N/A | R54: N/A | S54: N/A | T54: N/A | U54: N/A | V54: N/A | W54: N/A | X54: N/A | Y54: N/A | Z54: N/A | AA54: N/A | BB54: Contaminated (E. coli detected in 100 mL) | BC54: N/A | BD54: N/A | BE54: N/A | BF54: N/A | BG54: N/A | BH54: N/A | BI54: N/A | BJ54: N/A | BK54: N/A | BL54: N/A | BM54: N/A | BN54: N/A | BO54: N/A | BP54: N/A | BQ54: N/A | BR54: N/A | BS54: N/A | BT54: N/A | BU54: N/A | BV54: N/A | BW54: N/A | BX54: N/A | BY54: N/A | BZ54: N/A | CA54: N/A
B55: Highly contaminated (>100 CFU/100 mL) | C55: N/A | D55: N/A | E55: N/A | F55: N/A | G55: N/A | H55: N/A | I55: N/A | J55: N/A | K55: N/A | L55: N/A | M55: N/A | N55: N/A | O55: N/A | P55: N/A | Q55: N/A | R55: N/A | S55: N/A | T55: N/A | U55: N/A | V55: N/A | W55: N/A | X55: N/A | Y55: N/A | Z55: N/A | AA55: N/A | BB55: Highly contaminated (>100 CFU/100 mL) | BC55: N/A | BD55: N/A | BE55: N/A | BF55: N/A | BG55: N/A | BH55: N/A | BI55: N/A | BJ55: N/A | BK55: N/A | BL55: N/A | BM55: N/A | BN55: N/A | BO55: N/A | BP55: N/A | BQ55: N/A | BR55: N/A | BS55: N/A | BT55: N/A | BU55: N/A | BV55: N/A | BW55: N/A | BX55: N/A | BY55: N/A | BZ55: N/A | CA55: N/A
C56: NATIONAL wealth index quintile | H56: URBAN wealth index quintile | M56: RURAL wealth index quintile | R56: SUB-REGIONS: | BA56: Raw numbers of respondents: | BB56: Use of drinking water sources | BC56: NATIONAL wealth index quintile | BH56: URBAN wealth index quintile | BM56: RURAL wealth index quintile | BR56: SUB-REGIONS:
A57: Percentage based on weighted population | C57: Poorest | D57: Poor | E57: Middle | F57: Rich | G57: Richest | H57: Poorest | I57: Poor | J57: Middle | K57: Rich | L57: Richest | M57: Poorest | N57: Poor | O57: Middle | P57: Rich | Q57: Richest | R57: Region 1 | S57: Region 10 | T57: Region 2 | U57: Region 3 | V57: Region 4 | W57: Region 5 | X57: Region 6 | Y57: Region 7 | Z57: Region 8 | AA57: Region 9 | BA57: Water data, raw numbers (weighted) | BC57: Poorest | BD57: Poor | BE57: Middle | BF57: Rich | BG57: Richest | BH57: Poorest | BI57: Poor | BJ57: Middle | BK57: Rich | BL57: Richest | BM57: Poorest | BN57: Poor | BO57: Middle | BP57: Rich | BQ57: Richest | BR57: Region 1 | BS57: Region 10 | BT57: Region 2 | BU57: Region 3 | BV57: Region 4 | BW57: Region 5 | BX57: Region 6 | BY57: Region 7 | BZ57: Region 8 | CA57: Region 9
A58: Source of drinking water | B58: Piped into dwelling | C58: 9.862522036 | D58: 25.53153541 | E58: 31.05817075 | F58: 30.36707167 | G58: 30.17540826 | H58: 18.94528955 | I58: 25.4698147 | J58: 33.12396148 | K58: 22.4401798 | L58: 27.65062814 | M58: 5.325281562 | N58: 25.44295024 | O58: 29.3415204 | P58: 32.88109455 | Q58: 33.74017384 | R58: 6.389580358 | S58: 46.81024951 | T58: 1.090343264 | U58: 26.2348312 | V58: 22.58429201 | W58: 39.29657113 | X58: 41.07583139 | Y58: 0 | Z58: 0 | AA58: 0
B59: Piped into yard/plot | C59: 20.81636212 | D59: 28.98742044 | E59: 18.69235318 | F59: 17.14068593 | G59: 8.037150868 | H59: 35.6056195 | I59: 22.33807219 | J59: 19.73804137 | K59: 9.511089419 | L59: 5.205256969 | M59: 15.14534174 | N59: 30.1354393 | O59: 20.82935096 | P59: 17.4093247 | Q59: 10.62148878 | R59: 8.823706209 | S59: 21.42373129 | T59: 3.9982299 | U59: 13.78650117 | V59: 16.97639647 | W59: 30.85633269 | X59: 34.83943964 | Y59: 0 | Z59: 0 | AA59: 0
B60: Public tap/standpipe | C60: 2.530589461 | D60: 2.861581216 | E60: 1.493202034 | F60: 0.3744224754 | G60: 0 | H60: 6.560886087 | I60: 2.121808822 | J60: 0 | K60: 0.4477089313 | L60: 0 | M60: 1.038464476 | N60: 2.200934358 | O60: 2.887471946 | P60: 0.3443402508 | Q60: 0 | R60: 0 | S60: 5.139233856 | T60: 0 | U60: 0.7347561208 | V60: 1.371578073 | W60: 2.06835194 | X60: 2.164184482 | Y60: 0 | Z60: 0 | AA60: 0
B61: Tube well or borehole | C61: 0.5744687445 | D61: 0 | E61: 0 | F61: 0.1309400667 | G61: 0 | H61: 0 | I61: 0 | J61: 0 | K61: 0 | L61: 0 | M61: 0.8152568186 | N61: 0 | O61: 0 | P61: 0.1857026377 | Q61: 0 | R61: 0 | S61: 0 | T61: 0 | U61: 0.2025019233 | V61: 0 | W61: 0 | X61: 0 | Y61: 0 | Z61: 0 | AA61: 4.591067238
B62: Unprotected well | C62: 5.622374293 | D62: 0.3142903201 | E62: 0.25494476 | F62: 1.058061371 | G62: 0.3186389528 | H62: 1.263636229 | I62: 0 | J62: 0 | K62: 0.3471114215 | L62: 0 | M62: 7.664345154 | N62: 0.1404901781 | O62: 0.4522911624 | P62: 0.9038931583 | Q62: 0.9058588035 | R62: 2.300546337 | S62: 0.8137317259 | T62: 1.480294921 | U62: 0 | V62: 0.1737160323 | W62: 0 | X62: 1.817168566 | Y62: 0 | Z62: 0 | AA62: 36.69494729
B63: Protected well | C63: 7.537559827 | D63: 1.15183477 | E63: 0.5300047923 | F63: 1.166736591 | G63: 1.110260162 | H63: 0 | I63: 0 | J63: 0 | K63: 0.3815342177 | L63: 0 | M63: 10.40550611 | N63: 1.917777127 | O63: 0.2016774445 | P63: 1.815991945 | Q63: 1.808417913 | R63: 8.903018738 | S63: 5.381962393 | T63: 0 | U63: 0.5371456879 | V63: 0.3850006815 | W63: 0.8488719355 | X63: 0.9968292594 | Y63: 0 | Z63: 20.13422819 | AA63: 41.68384376
B64: Protected spring | C64: 3.204128588 | D64: 0.03400748856 | E64: 0.2741402647 | F64: 0.06803364776 | G64: 0.2242670214 | H64: 0.4612010266 | I64: 0.929754945 | J64: 0.2304917469 | K64: 0.7628901818 | L64: 0 | M64: 4.40224101 | N64: 0 | O64: 0 | P64: 0 | Q64: 0 | R64: 3.220764871 | S64: 2.800887261 | T64: 1.480294921 | U64: 0 | V64: 0 | W64: 0 | X64: 0 | Y64: 0 | Z64: 35.5704698 | AA64: 0
B65: Unprotected spring | C65: 5.030271362 | D65: 0.06801497712 | E65: 0.3235416026 | F65: 0.1190588836 | G65: 0 | H65: 0.1153002567 | I65: 0.4038052762 | J65: 0 | K65: 0.404963325 | L65: 0 | M65: 7.00325894 | N65: 0.1347781046 | O65: 0.3384888554 | P65: 0 | Q65: 0 | R65: 14.65985525 | S65: 1.084975634 | T65: 1.973726561 | U65: 0 | V65: 0.1399856641 | W65: 0 | X65: 0 | Y65: 0 | Z65: 26.17449664 | AA65: 3.935200489
B66: Rainwater | C66: 24.61465864 | D66: 30.60650661 | E66: 29.15949484 | F66: 20.15060919 | G66: 14.27409901 | H66: 25.28761789 | I66: 22.08023221 | J66: 13.24361349 | K66: 14.92528191 | L66: 8.611577107 | M66: 22.14083107 | N66: 32.30139194 | O66: 32.8486585 | P66: 28.86873854 | Q66: 17.10347024 | R66: 35.76629807 | S66: 10.74416286 | T66: 79.61758735 | U66: 40.29208384 | V66: 20.66358208 | W66: 12.76338372 | X66: 8.969127535 | Y66: 29.39064604 | Z66: 3.355704698 | AA66: 3.62474108
B67: Bottled water | C67: 0.8451811384 | D67: 6.519977244 | E67: 14.87692919 | F67: 20.72879472 | G67: 35.09500339 | H67: 6.265015836 | I67: 21.24936714 | J67: 22.83043116 | K67: 35.32713199 | L67: 44.07458875 | M67: 0.3744829415 | N67: 4.208767755 | O67: 10.339828 | P67: 13.43329195 | Q67: 28.15552713 | R67: 0 | S67: 5.171328265 | T67: 2.464616843 | U67: 10.40414776 | V67: 27.41491595 | W67: 11.84889383 | X67: 7.997481515 | Y67: 0 | Z67: 0 | AA67: 0
B68: Surface water (river, dam,lake,stream...) | C68: 17.13633965 | D68: 1.013822153 | E68: 0.593706994 | F68: 0 | G68: 0 | H68: 0.5957211117 | I68: 0 | J68: 0 | K68: 0 | L68: 0 | M68: 23.98518426 | N68: 1.516634978 | O68: 0.8426246577 | P68: 0 | Q68: 0 | R68: 19.93623017 | S68: 0 | T68: 7.894906244 | U68: 2.387193336 | V68: 0.6064521299 | W68: 0 | X68: 0 | Y68: 67.29773187 | Z68: 14.76510067 | AA68: 9.470200144
B69: Cart with small tank | C69: 0.4932594817 | D69: 0.1532848002 | E69: 0 | F69: 0 | G69: 0 | H69: 0 | I69: 0 | J69: 0 | K69: 0 | L69: 0 | M69: 0.700008764 | N69: 0.2166256031 | O69: 0 | P69: 0 | Q69: 0 | R69: 0 | S69: 0 | T69: 0 | U69: 0.3672605132 | V69: 0 | W69: 0 | X69: 0 | Y69: 3.311622089 | Z69: 0 | AA69: 0
B70: Purified water | C70: 1.582981077 | D70: 2.302646673 | E70: 2.7435116 | F70: 8.695585463 | G70: 10.76517234 | H70: 4.899712519 | I70: 5.407144711 | J70: 10.83346076 | K70: 15.4521088 | L70: 14.45794903 | M70: 0.7879131073 | N70: 1.14108386 | O70: 1.918088077 | P70: 4.157622271 | Q70: 7.665063285 | R70: 0 | S70: 0.6297372062 | T70: 0 | U70: 5.05357845 | V70: 9.684080912 | W70: 1.860082657 | X70: 1.62079273 | Y70: 0 | Z70: 0 | AA70: 0
B71: Other | C71: 0.1493035791 | D71: 0.4550779042 | E71: 0 | F71: 0 | G71: 0 | H71: 0 | I71: 0 | J71: 0 | K71: 0 | L71: 0 | M71: 0.2118840443 | N71: 0.6431265548 | O71: 0 | P71: 0 | Q71: 0 | R71: 0 | S71: 0 | T71: 0 | U71: 0 | V71: 0 | W71: 0.4575120969 | X71: 0.5191448768 | Y71: 0 | Z71: 0 | AA71: 0
A108: =A1026 -> Guyana
A109: =A1034 -> 2005
A110: Use of sanitation facilities
A111: by wealth quintile and sub-national region
A112: Notes:
A113: WHO/UNICEF JMP customised wealth index excludes water,
A114: sanitation and hygiene assets.
A115: Survey used for analysis: | B115: =A1025 -> DHS05
A116: =B1030 -> 
A117: =B1029 -> 
A120: Use of sanitation facilities | C120: NATIONAL wealth index quintile | H120: URBAN wealth index quintile | M120: RURAL wealth index quintile | R120: SUB-REGIONS: | BA120: Raw numbers of respondents: | BB120: Use of sanitation facilities | BC120: NATIONAL wealth index quintile | BH120: URBAN wealth index quintile | BM120: RURAL wealth index quintile | BR120: SUB-REGIONS:
A121: Weighted percentage (used in graphs) | C121: Poorest | D121: Poor | E121: Middle | F121: Rich | G121: Richest | H121: Poorest | I121: Poor | J121: Middle | K121: Rich | L121: Richest | M121: Poorest | N121: Poor | O121: Middle | P121: Rich | Q121: Richest | R121: Region 1 | S121: Region 10 | T121: Region 2 | U121: Region 3 | V121: Region 4 | W121: Region 5 | X121: Region 6 | Y121: Region 7 | Z121: Region 8 | AA121: Region 9 | BA121: Sanitation data, raw numbers (weighted) | BC121: Poorest | BD121: Poor | BE121: Middle | BF121: Rich | BG121: Richest | BH121: Poorest | BI121: Poor | BJ121: Middle | BK121: Rich | BL121: Richest | BM121: Poorest | BN121: Poor | BO121: Middle | BP121: Rich | BQ121: Richest | BR121: Region 1 | BS121: Region 10 | BT121: Region 2 | BU121: Region 3 | BV121: Region 4 | BW121: Region 5 | BX121: Region 6 | BY121: Region 7 | BZ121: Region 8 | CA121: Region 9
A122: Sanitation | B122: Improved | C122: 76.1864683 | D122: 88.95949359 | E122: 90.32597619 | F122: 94.45617672 | G122: 97.8275289 | H122: 85.19688844 | I122: 94.66418889 | J122: 96.18029754 | K122: 98.5419974 | L122: 99.51666594 | M122: 73.42520425 | N122: 85.87101387 | O122: 89.26261515 | P122: 92.30741392 | Q122: 95.89283481 | R122: 63.82657469 | S122: 97.38252789 | T122: 88.77275232 | U122: 85.61348067 | V122: 92.19265685 | W122: 91.81765128 | X122: 91.64298827 | Y122: 100 | Z122: 18.12080537 | AA122: 86.96867754 | BA122: Sanitation | BB122: Improved | BC122: 1682.638598 | BD122: 1966.236321 | BE122: 1995.824553 | BF122: 2087.154383 | BG122: 2161.862249 | BH122: 555.407107 | BI122: 616.736634 | BJ122: 627.304937 | BK122: 640.164644 | BL122: 649.716289 | BM122: 1142.69449 | BN122: 1343.010197 | BO122: 1389.687992 | BP122: 1438.186742 | BQ122: 1490.807072 | BR122: 221.090746 | BS122: 539.72063 | BT122: 593.760957 | BU122: 1223.234639 | BV122: 4341.229106 | BW122: 661.769613 | BX122: 1775.57831 | BY122: 272.816395 | BZ122: 24.174288 | CA122: 240.34142
B123: Not Improved | C123: 23.8135317 | D123: 11.04050641 | E123: 9.674023808 | F123: 5.54382328 | G123: 2.172471095 | H123: 14.80311156 | I123: 5.335811109 | J123: 3.819702456 | K123: 1.458002599 | L123: 0.4833340637 | M123: 26.57479575 | N123: 14.12898613 | O123: 10.73738485 | P123: 7.692586079 | Q123: 4.107165187 | R123: 36.17342531 | S123: 2.617472107 | T123: 11.22724768 | U123: 14.38651933 | V123: 7.807343154 | W123: 8.182348716 | X123: 8.357011734 | Y123: 0 | Z123: 81.87919463 | AA123: 13.03132246 | BB123: Not Improved | BC123: 525.940741 | BD123: 244.023924 | BE123: 213.755279 | BF123: 122.499295 | BG123: 48.00881 | BH123: 96.502977 | BI123: 34.762778 | BJ123: 24.912776 | BK123: 9.471715 | BL123: 3.155552 | BM123: 413.575597 | BN123: 220.975293 | BO123: 167.165333 | BP123: 119.853594 | BQ123: 63.852434 | BR123: 125.30219 | BS123: 14.506747 | BT123: 75.094003 | BU123: 205.552778 | BV123: 367.637364 | BW123: 58.973734 | BX123: 161.916684 | BY123: 0 | BZ123: 109.231968 | CA123: 36.012581
A124: Sanitation ladder | B124: Basic | C124: =C122*C129/100 -> 62.17857625 | D124: =D122*D129/100 -> 76.42413088 | E124: =E122*E129/100 -> 80.50436258 | F124: 87.37543931 | G124: 93.43762338 | H124: 61.43649791 | I124: 80.6835108 | J124: 87.04366474 | K124: 92.84134954 | L124: 96.66528677 | M124: 60.13036575 | N124: 74.82124614 | O124: 81.01002045 | P124: 85.4384121 | Q124: 90.60203141 | R124: 46.54283539 | S124: 92.31074523 | T124: 77.26356717 | U124: 77.6731515 | V124: 80.21695307 | W124: 84.8336818 | X124: 86.10080285 | Y124: 84.7829193 | Z124: 14.09395973 | AA124: 84.27039491 | BA124: Sanitation ladder | BB124: Basic | BC124: 1352.380194 | BD124: 1677.80648 | BE124: 1775.920647 | BF124: 1923.89603 | BG124: 2054.688792 | BH124: 389.591232 | BI124: 517.642577 | BJ124: 566.583772 | BK124: 592.193688 | BL124: 626.116425 | BM124: 921.445802 | BN124: 1170.193433 | BO124: 1261.207197 | BP124: 1331.164923 | BQ124: 1408.553094 | BR124: 161.221094 | BS124: 503.660709 | BT124: 512.9796 | BU124: 1109.784215 | BV124: 3758.551235 | BW124: 608.386448 | BX124: 1647.120306 | BY124: 231.301704 | BZ124: 18.802224 | CA124: 232.884608
B125: Limited | C125: =C122*C128/100 -> 14.00789205 | D125: =D122*D128/100 -> 12.53536272 | E125: =E122*E128/100 -> 9.821613608 | F125: 7.080737414 | G125: 4.389905529 | H125: 23.76039053 | I125: 13.98067809 | J125: 9.136632808 | K125: 5.700647863 | L125: 2.851379164 | M125: 13.2948385 | N125: 11.04976773 | O125: 8.252594701 | P125: 6.869001818 | Q125: 5.2908034 | R125: 17.2837393 | S125: 5.071782661 | T125: 11.50918515 | U125: 7.940329167 | V125: 11.97570377 | W125: 6.983969481 | X125: 5.542185414 | Y125: 15.2170807 | Z125: 4.026845638 | AA125: 2.698282628 | BB125: Limited | BC125: 304.670787 | BD125: 275.199895 | BE125: 216.664114 | BF125: 155.908831 | BG125: 96.533809 | BH125: 150.673299 | BI125: 89.696075 | BJ125: 59.472081 | BK125: 36.361898 | BL125: 18.468836 | BM125: 203.731891 | BN125: 172.816764 | BO125: 128.480795 | BP125: 107.021819 | BQ125: 82.253978 | BR125: 59.869652 | BS125: 27.672376 | BT125: 76.413469 | BU125: 113.450424 | BV125: 561.119495 | BW125: 50.085677 | BX125: 106.022776 | BY125: 41.514691 | BZ125: 5.372064 | CA125: 7.456812
B126: Unimproved | C126: =100-C124-C125-C127 -> 20.24916005 | D126: =100-D124-D125-D127 -> 10.73126939 | E126: =100-E124-E125-E127 -> 9.625247555 | F126: 5.524277024 | G126: 2.172471095 | H126: 13.4769682 | I126: 4.866527619 | J126: 3.753575152 | K126: 1.458002599 | L126: 0.4833340637 | M126: 21.75125364 | N126: 14.12898613 | O126: 10.73738485 | P126: 7.692586079 | Q126: 4.107165187 | R126: 32.95266044 | S126: 2.617472107 | T126: 11.22724768 | U126: 14.29470421 | V126: 7.566760569 | W126: 8.182348716 | X126: 8.325088605 | Y126: 1.776356839e-15 | Z126: 38.9261745 | AA126: 11.42032642 | BB126: Unimproved | BC126: 448.130803 | BD126: 237.229893 | BE126: 212.679109 | BF126: 122.068827 | BG126: 48.00881 | BH126: 88.058527 | BI126: 31.749502 | BJ126: 24.482308 | BK126: 9.471715 | BL126: 3.155552 | BM126: 339.353184 | BN126: 220.975293 | BO126: 167.165333 | BP126: 119.853594 | BQ126: 63.852434 | BR126: 114.145688 | BS126: 14.506747 | BT126: 75.094003 | BU126: 204.240935 | BV126: 356.360517 | BW126: 58.973734 | BX126: 161.305337 | BY126: 0 | BZ126: 51.929952 | CA126: 31.560529
B127: Open defecation | C127: 3.564371647 | D127: 0.3092370189 | E127: 0.048776253 | F127: 0.01954625563 | G127: 0 | H127: 1.326143356 | I127: 0.46928349 | J127: 0.06612730335 | K127: 0 | L127: 0 | M127: 4.823542116 | N127: 0 | O127: 0 | P127: 0 | Q127: 0 | R127: 3.220764871 | S127: 0 | T127: 0 | U127: 0.0918151283 | V127: 0.2405825854 | W127: 0 | X127: 0.03192312902 | Y127: 0 | Z127: 42.95302013 | AA127: 1.610996035 | BB127: Open defecation | BC127: 77.809938 | BD127: 6.794031 | BE127: 1.07617 | BF127: 0.430468 | BG127: 0 | BH127: 8.44445 | BI127: 3.013276 | BJ127: 0.430468 | BK127: 0 | BL127: 0 | BM127: 74.222413 | BN127: 0 | BO127: 0 | BP127: 0 | BQ127: 0 | BR127: 11.156502 | BS127: 0 | BT127: 0 | BU127: 1.311843 | BV127: 11.276847 | BW127: 0 | BX127: 0.611347 | BY127: 0 | BZ127: 57.302016 | CA127: 4.452052
A128: Shared among Improved Sanitation | B128: Yes | C128: 18.3863255 | D128: 14.09109046 | E128: 10.87352058 | F128: 7.496320156 | G128: 4.487392841 | H128: 27.88880083 | I128: 14.76870848 | J128: 9.499484865 | K128: 5.784993215 | L128: 2.865227786 | M128: 18.10664149 | N128: 12.86786686 | O128: 9.245297919 | P128: 7.441441078 | Q128: 5.517412652 | R128: 27.07922113 | S128: 5.208103312 | T128: 12.96477224 | U128: 9.274624866 | V128: 12.98986729 | W128: 7.606347345 | X128: 6.047582601 | Y128: 15.2170807 | Z128: 22.22222222 | AA128: 3.102591305 | BA128: Shared among improved sanitation facilities | BB128: Yes | BC128: N/A | BD128: N/A | BE128: N/A | BF128: N/A | BG128: N/A | BH128: N/A | BI128: N/A | BJ128: N/A | BK128: N/A | BL128: N/A | BM128: N/A | BN128: N/A | BO128: N/A | BP128: N/A | BQ128: N/A | BR128: N/A | BS128: N/A | BT128: N/A | BU128: N/A | BV128: N/A | BW128: N/A | BX128: N/A | BY128: N/A | BZ128: N/A | CA128: N/A
B129: No | C129: 81.6136745 | D129: 85.90890954 | E129: 89.12647942 | F129: 92.50367984 | G129: 95.51260716 | H129: 72.11119917 | I129: 85.23129152 | J129: 90.50051514 | K129: 94.21500679 | L129: 97.13477221 | M129: 81.89335851 | N129: 87.13213314 | O129: 90.75470208 | P129: 92.55855892 | Q129: 94.48258735 | R129: 72.92077887 | S129: 94.79189669 | T129: 87.03522776 | U129: 90.72537513 | V129: 87.01013271 | W129: 92.39365265 | X129: 93.9524174 | Y129: 84.7829193 | Z129: 77.77777778 | AA129: 96.89740869 | BB129: No | BC129: N/A | BD129: N/A | BE129: N/A | BF129: N/A | BG129: N/A | BH129: N/A | BI129: N/A | BJ129: N/A | BK129: N/A | BL129: N/A | BM129: N/A | BN129: N/A | BO129: N/A | BP129: N/A | BQ129: N/A | BR129: N/A | BS129: N/A | BT129: N/A | BU129: N/A | BV129: N/A | BW129: N/A | BX129: N/A | BY129: N/A | BZ129: N/A | CA129: N/A
A130: Manually calculated ratios | B130: Improved latrines
B131: Other
B132: Other
C133: NATIONAL wealth index quintile | H133: URBAN wealth index quintile | M133: RURAL wealth index quintile | R133: SUB-REGIONS: | BA133: Raw numbers of respondents: | BB133: Use of sanitation facilities | BC133: NATIONAL wealth index quintile | BH133: URBAN wealth index quintile | BM133: RURAL wealth index quintile | BR133: SUB-REGIONS:
A134: Percentage based on weighted population | C134: Poorest | D134: Poor | E134: Middle | F134: Rich | G134: Richest | H134: Poorest | I134: Poor | J134: Middle | K134: Rich | L134: Richest | M134: Poorest | N134: Poor | O134: Middle | P134: Rich | Q134: Richest | R134: Region 1 | S134: Region 10 | T134: Region 2 | U134: Region 3 | V134: Region 4 | W134: Region 5 | X134: Region 6 | Y134: Region 7 | Z134: Region 8 | AA134: Region 9 | BA134: Sanitation data, raw numbers (weighted) | BC134: Poorest | BD134: Poor | BE134: Middle | BF134: Rich | BG134: Richest | BH134: Poorest | BI134: Poor | BJ134: Middle | BK134: Rich | BL134: Richest | BM134: Poorest | BN134: Poor | BO134: Middle | BP134: Rich | BQ134: Richest | BR134: Region 1 | BS134: Region 10 | BT134: Region 2 | BU134: Region 3 | BV134: Region 4 | BW134: Region 5 | BX134: Region 6 | BY134: Region 7 | BZ134: Region 8 | CA134: Region 9
A135: Sanitation type | B135: Sewer connection | C135: 0.6602936894 | D135: 1.268565458 | E135: 1.758929342 | F135: 5.786237919 | G135: 7.203545218 | H135: 5.129148301 | I135: 5.364510598 | J135: 11.22185775 | K135: 12.21820191 | L135: 9.60698043 | M135: 0 | N135: 0 | O135: 0 | P135: 2.564010512 | Q135: 2.888731058 | R135: 0 | S135: 2.482216789 | T135: 0 | U135: 2.165681167 | V135: 6.877056996 | W135: 0 | X135: 0 | Y135: 0 | Z135: 0 | AA135: 0 | BA135: Sanitation type | BB135: Sewer connection | BC135: N/A | BD135: N/A | BE135: N/A | BF135: N/A | BG135: N/A | BH135: N/A | BI135: N/A | BJ135: N/A | BK135: N/A | BL135: N/A | BM135: N/A | BN135: N/A | BO135: N/A | BP135: N/A | BQ135: N/A | BR135: N/A | BS135: N/A | BT135: N/A | BU135: N/A | BV135: N/A | BW135: N/A | BX135: N/A | BY135: N/A | BZ135: N/A | CA135: N/A
B136: Septic tank connection | C136: 4.25847337 | D136: 18.81008849 | E136: 45.24554128 | F136: 59.23426178 | G136: 81.12199894 | H136: 20.85716333 | I136: 54.26746663 | J136: 61.69693186 | K136: 75.90190376 | L136: 85.42604551 | M136: 2.399007943 | N136: 9.219624282 | O136: 35.00399628 | P136: 49.02382765 | Q136: 75.77695756 | R136: 10.54420405 | S136: 57.39621376 | T136: 32.31023434 | U136: 42.23034601 | V136: 51.78601078 | W136: 27.23765676 | X136: 41.40065236 | Y136: 0 | Z136: 0 | AA136: 0 | BB136: Septic tank connection | BC136: N/A | BD136: N/A | BE136: N/A | BF136: N/A | BG136: N/A | BH136: N/A | BI136: N/A | BJ136: N/A | BK136: N/A | BL136: N/A | BM136: N/A | BN136: N/A | BO136: N/A | BP136: N/A | BQ136: N/A | BR136: N/A | BS136: N/A | BT136: N/A | BU136: N/A | BV136: N/A | BW136: N/A | BX136: N/A | BY136: N/A | BZ136: N/A | CA136: N/A
B137: Improved latrines | C137: N/A | D137: N/A | E137: N/A | F137: N/A | G137: N/A | H137: N/A | I137: N/A | J137: N/A | K137: N/A | L137: N/A | M137: N/A | N137: N/A | O137: N/A | P137: N/A | Q137: N/A | R137: N/A | S137: N/A | T137: N/A | U137: N/A | V137: N/A | W137: N/A | X137: N/A | Y137: N/A | Z137: N/A | AA137: N/A | BB137: Improved latrines | BC137: N/A | BD137: N/A | BE137: N/A | BF137: N/A | BG137: N/A | BH137: N/A | BI137: N/A | BJ137: N/A | BK137: N/A | BL137: N/A | BM137: N/A | BN137: N/A | BO137: N/A | BP137: N/A | BQ137: N/A | BR137: N/A | BS137: N/A | BT137: N/A | BU137: N/A | BV137: N/A | BW137: N/A | BX137: N/A | BY137: N/A | BZ137: N/A | CA137: N/A
B138: Unimproved facilities | C138: N/A | D138: N/A | E138: N/A | F138: N/A | G138: N/A | H138: N/A | I138: N/A | J138: N/A | K138: N/A | L138: N/A | M138: N/A | N138: N/A | O138: N/A | P138: N/A | Q138: N/A | R138: N/A | S138: N/A | T138: N/A | U138: N/A | V138: N/A | W138: N/A | X138: N/A | Y138: N/A | Z138: N/A | AA138: N/A | BB138: Unimproved facilities | BC138: N/A | BD138: N/A | BE138: N/A | BF138: N/A | BG138: N/A | BH138: N/A | BI138: N/A | BJ138: N/A | BK138: N/A | BL138: N/A | BM138: N/A | BN138: N/A | BO138: N/A | BP138: N/A | BQ138: N/A | BR138: N/A | BS138: N/A | BT138: N/A | BU138: N/A | BV138: N/A | BW138: N/A | BX138: N/A | BY138: N/A | BZ138: N/A | CA138: N/A
B139: Open defecation | C139: 3.523076424 | D139: 0.3073860201 | E139: 0.04870473492 | F139: 0.01948124289 | G139: 0 | H139: 1.295339681 | I139: 0.4625140015 | J139: 0.06600066073 | K139: 0 | L139: 0 | M139: 4.769250121 | N139: 0 | O139: 0 | P139: 0 | Q139: 0 | R139: 3.220764871 | S139: 0 | T139: 0 | U139: 0.0918151283 | V139: 0.2394811378 | W139: 0 | X139: 0.03155347507 | Y139: 0 | Z139: 42.95302013 | AA139: 1.610996035 | BB139: Open defecation | BC139: N/A | BD139: N/A | BE139: N/A | BF139: N/A | BG139: N/A | BH139: N/A | BI139: N/A | BJ139: N/A | BK139: N/A | BL139: N/A | BM139: N/A | BN139: N/A | BO139: N/A | BP139: N/A | BQ139: N/A | BR139: N/A | BS139: N/A | BT139: N/A | BU139: N/A | BV139: N/A | BW139: N/A | BX139: N/A | BY139: N/A | BZ139: N/A | CA139: N/A
A140: Septic tank emptying practices | B140: Not emptied/treated and disposed in situ | C140: N/A | D140: N/A | E140: N/A | F140: N/A | G140: N/A | H140: N/A | I140: N/A | J140: N/A | K140: N/A | L140: N/A | M140: N/A | N140: N/A | O140: N/A | P140: N/A | Q140: N/A | R140: N/A | S140: N/A | T140: N/A | U140: N/A | V140: N/A | W140: N/A | X140: N/A | Y140: N/A | Z140: N/A | AA140: N/A | BA140: Septic tank emptying practices | BB140: Not emptied/treated and disposed in situ | BC140: N/A | BD140: N/A | BE140: N/A | BF140: N/A | BG140: N/A | BH140: N/A | BI140: N/A | BJ140: N/A | BK140: N/A | BL140: N/A | BM140: N/A | BN140: N/A | BO140: N/A | BP140: N/A | BQ140: N/A | BR140: N/A | BS140: N/A | BT140: N/A | BU140: N/A | BV140: N/A | BW140: N/A | BX140: N/A | BY140: N/A | BZ140: N/A | CA140: N/A
B141: Emptied and buried on site | C141: N/A | D141: N/A | E141: N/A | F141: N/A | G141: N/A | H141: N/A | I141: N/A | J141: N/A | K141: N/A | L141: N/A | M141: N/A | N141: N/A | O141: N/A | P141: N/A | Q141: N/A | R141: N/A | S141: N/A | T141: N/A | U141: N/A | V141: N/A | W141: N/A | X141: N/A | Y141: N/A | Z141: N/A | AA141: N/A | BB141: Emptied and buried on site | BC141: N/A | BD141: N/A | BE141: N/A | BF141: N/A | BG141: N/A | BH141: N/A | BI141: N/A | BJ141: N/A | BK141: N/A | BL141: N/A | BM141: N/A | BN141: N/A | BO141: N/A | BP141: N/A | BQ141: N/A | BR141: N/A | BS141: N/A | BT141: N/A | BU141: N/A | BV141: N/A | BW141: N/A | BX141: N/A | BY141: N/A | BZ141: N/A | CA141: N/A
B142: Emptied and discharged locally | C142: N/A | D142: N/A | E142: N/A | F142: N/A | G142: N/A | H142: N/A | I142: N/A | J142: N/A | K142: N/A | L142: N/A | M142: N/A | N142: N/A | O142: N/A | P142: N/A | Q142: N/A | R142: N/A | S142: N/A | T142: N/A | U142: N/A | V142: N/A | W142: N/A | X142: N/A | Y142: N/A | Z142: N/A | AA142: N/A | BB142: Emptied and discharged locally | BC142: N/A | BD142: N/A | BE142: N/A | BF142: N/A | BG142: N/A | BH142: N/A | BI142: N/A | BJ142: N/A | BK142: N/A | BL142: N/A | BM142: N/A | BN142: N/A | BO142: N/A | BP142: N/A | BQ142: N/A | BR142: N/A | BS142: N/A | BT142: N/A | BU142: N/A | BV142: N/A | BW142: N/A | BX142: N/A | BY142: N/A | BZ142: N/A | CA142: N/A
B143: Emptied and removed offsite | C143: N/A | D143: N/A | E143: N/A | F143: N/A | G143: N/A | H143: N/A | I143: N/A | J143: N/A | K143: N/A | L143: N/A | M143: N/A | N143: N/A | O143: N/A | P143: N/A | Q143: N/A | R143: N/A | S143: N/A | T143: N/A | U143: N/A | V143: N/A | W143: N/A | X143: N/A | Y143: N/A | Z143: N/A | AA143: N/A | BB143: Emptied and removed offsite | BC143: N/A | BD143: N/A | BE143: N/A | BF143: N/A | BG143: N/A | BH143: N/A | BI143: N/A | BJ143: N/A | BK143: N/A | BL143: N/A | BM143: N/A | BN143: N/A | BO143: N/A | BP143: N/A | BQ143: N/A | BR143: N/A | BS143: N/A | BT143: N/A | BU143: N/A | BV143: N/A | BW143: N/A | BX143: N/A | BY143: N/A | BZ143: N/A | CA143: N/A
A144: Latrine emptying practices | B144: Not emptied/treated and disposed in situ | C144: N/A | D144: N/A | E144: N/A | F144: N/A | G144: N/A | H144: N/A | I144: N/A | J144: N/A | K144: N/A | L144: N/A | M144: N/A | N144: N/A | O144: N/A | P144: N/A | Q144: N/A | R144: N/A | S144: N/A | T144: N/A | U144: N/A | V144: N/A | W144: N/A | X144: N/A | Y144: N/A | Z144: N/A | AA144: N/A | BA144: Latrine emptying practices | BB144: Not emptied/treated and disposed in situ | BC144: N/A | BD144: N/A | BE144: N/A | BF144: N/A | BG144: N/A | BH144: N/A | BI144: N/A | BJ144: N/A | BK144: N/A | BL144: N/A | BM144: N/A | BN144: N/A | BO144: N/A | BP144: N/A | BQ144: N/A | BR144: N/A | BS144: N/A | BT144: N/A | BU144: N/A | BV144: N/A | BW144: N/A | BX144: N/A | BY144: N/A | BZ144: N/A | CA144: N/A
B145: Emptied and buried on site | C145: N/A | D145: N/A | E145: N/A | F145: N/A | G145: N/A | H145: N/A | I145: N/A | J145: N/A | K145: N/A | L145: N/A | M145: N/A | N145: N/A | O145: N/A | P145: N/A | Q145: N/A | R145: N/A | S145: N/A | T145: N/A | U145: N/A | V145: N/A | W145: N/A | X145: N/A | Y145: N/A | Z145: N/A | AA145: N/A | BB145: Emptied and buried on site | BC145: N/A | BD145: N/A | BE145: N/A | BF145: N/A | BG145: N/A | BH145: N/A | BI145: N/A | BJ145: N/A | BK145: N/A | BL145: N/A | BM145: N/A | BN145: N/A | BO145: N/A | BP145: N/A | BQ145: N/A | BR145: N/A | BS145: N/A | BT145: N/A | BU145: N/A | BV145: N/A | BW145: N/A | BX145: N/A | BY145: N/A | BZ145: N/A | CA145: N/A
B146: Emptied and discharged locally | C146: N/A | D146: N/A | E146: N/A | F146: N/A | G146: N/A | H146: N/A | I146: N/A | J146: N/A | K146: N/A | L146: N/A | M146: N/A | N146: N/A | O146: N/A | P146: N/A | Q146: N/A | R146: N/A | S146: N/A | T146: N/A | U146: N/A | V146: N/A | W146: N/A | X146: N/A | Y146: N/A | Z146: N/A | AA146: N/A | BB146: Emptied and discharged locally | BC146: N/A | BD146: N/A | BE146: N/A | BF146: N/A | BG146: N/A | BH146: N/A | BI146: N/A | BJ146: N/A | BK146: N/A | BL146: N/A | BM146: N/A | BN146: N/A | BO146: N/A | BP146: N/A | BQ146: N/A | BR146: N/A | BS146: N/A | BT146: N/A | BU146: N/A | BV146: N/A | BW146: N/A | BX146: N/A | BY146: N/A | BZ146: N/A | CA146: N/A
B147: Emptied and removed offsite | C147: N/A | D147: N/A | E147: N/A | F147: N/A | G147: N/A | H147: N/A | I147: N/A | J147: N/A | K147: N/A | L147: N/A | M147: N/A | N147: N/A | O147: N/A | P147: N/A | Q147: N/A | R147: N/A | S147: N/A | T147: N/A | U147: N/A | V147: N/A | W147: N/A | X147: N/A | Y147: N/A | Z147: N/A | AA147: N/A | BB147: Emptied and removed offsite | BC147: N/A | BD147: N/A | BE147: N/A | BF147: N/A | BG147: N/A | BH147: N/A | BI147: N/A | BJ147: N/A | BK147: N/A | BL147: N/A | BM147: N/A | BN147: N/A | BO147: N/A | BP147: N/A | BQ147: N/A | BR147: N/A | BS147: N/A | BT147: N/A | BU147: N/A | BV147: N/A | BW147: N/A | BX147: N/A | BY147: N/A | BZ147: N/A | CA147: N/A
A148: Shared among improved sanitation facilities | B148: Yes | C148: 13.79487626 | D148: 12.45101773 | E148: 9.80567033 | F148: 7.055803928 | G148: 4.368300522 | H148: 23.1125891 | I148: 13.76763714 | J148: 9.118440026 | K148: 5.597269533 | L148: 2.828860864 | M148: 13.09103688 | N148: 11.04976773 | O148: 8.252594701 | P148: 6.869001818 | Q148: 5.2908034 | R148: 17.2837393 | S148: 4.992964467 | T148: 11.42452005 | U148: 7.940329167 | V148: 11.91623289 | W148: 6.949169522 | X148: 5.472157416 | Y148: 15.2170807 | Z148: 4.026845638 | AA148: 2.698282628 | BA148: Shared among improved sanitation facilities | BB148: Yes | BC148: N/A | BD148: N/A | BE148: N/A | BF148: N/A | BG148: N/A | BH148: N/A | BI148: N/A | BJ148: N/A | BK148: N/A | BL148: N/A | BM148: N/A | BN148: N/A | BO148: N/A | BP148: N/A | BQ148: N/A | BR148: N/A | BS148: N/A | BT148: N/A | BU148: N/A | BV148: N/A | BW148: N/A | BX148: N/A | BY148: N/A | BZ148: N/A | CA148: N/A
B149: No | C149: 61.23303656 | D149: 75.90990626 | E149: 80.37368106 | F149: 87.06776311 | G149: 92.97776826 | H149: 59.76149803 | I149: 79.45403595 | J149: 86.87034417 | K149: 91.15771921 | L149: 95.9018885 | M149: 59.20860458 | N149: 74.82124614 | O149: 81.01002045 | P149: 85.4384121 | Q149: 90.60203141 | R149: 46.54283539 | S149: 90.87618727 | T149: 76.69519263 | U149: 77.6731515 | V149: 79.81859878 | W149: 84.41096967 | X149: 85.01288061 | Y149: 84.7829193 | Z149: 14.09395973 | AA149: 84.27039491 | BB149: No | BC149: N/A | BD149: N/A | BE149: N/A | BF149: N/A | BG149: N/A | BH149: N/A | BI149: N/A | BJ149: N/A | BK149: N/A | BL149: N/A | BM149: N/A | BN149: N/A | BO149: N/A | BP149: N/A | BQ149: N/A | BR149: N/A | BS149: N/A | BT149: N/A | BU149: N/A | BV149: N/A | BW149: N/A | BX149: N/A | BY149: N/A | BZ149: N/A | CA149: N/A
B150: DK/missing | C150: 24.97208718 | D150: 11.63907601 | E150: 9.820648607 | F150: 5.876432958 | G150: 2.653931222 | H150: 17.12591287 | I150: 6.778326916 | J150: 4.011215807 | K150: 3.24501126 | L150: 1.269250637 | M150: 27.70035854 | N150: 14.12898613 | O150: 10.73738485 | P150: 7.692586079 | Q150: 4.107165187 | R150: 36.17342531 | S150: 4.130848267 | T150: 11.88028732 | U150: 14.38651933 | V150: 8.265168326 | W150: 8.639860813 | X150: 9.514961978 | Y150: 0 | Z150: 81.87919463 | AA150: 13.03132246 | BB150: DK/missing | BC150: N/A | BD150: N/A | BE150: N/A | BF150: N/A | BG150: N/A | BH150: N/A | BI150: N/A | BJ150: N/A | BK150: N/A | BL150: N/A | BM150: N/A | BN150: N/A | BO150: N/A | BP150: N/A | BQ150: N/A | BR150: N/A | BS150: N/A | BT150: N/A | BU150: N/A | BV150: N/A | BW150: N/A | BX150: N/A | BY150: N/A | BZ150: N/A | CA150: N/A
A151: Shared among all sanitation facilities | B151: Yes | C151: 17.99785837 | D151: 15.32069536 | E151: 12.49263543 | F151: 9.285395386 | G151: 4.979039865 | H151: 24.63945588 | I151: 15.47916932 | J151: 10.46280048 | K151: 6.512163984 | L151: 2.828860864 | M151: 18.87059478 | N151: 14.4057222 | O151: 10.3541447 | P151: 9.963867906 | Q151: 6.614588314 | R151: 26.92252716 | S151: 5.735667944 | T151: 12.02332162 | U151: 10.59908658 | V151: 14.46082754 | W151: 7.864193716 | X151: 7.05642325 | Y151: 15.2170807 | Z151: 27.05882353 | AA151: 8.683634702 | BA151: Shared among all sanitation facilities | BB151: Yes | BC151: N/A | BD151: N/A | BE151: N/A | BF151: N/A | BG151: N/A | BH151: N/A | BI151: N/A | BJ151: N/A | BK151: N/A | BL151: N/A | BM151: N/A | BN151: N/A | BO151: N/A | BP151: N/A | BQ151: N/A | BR151: N/A | BS151: N/A | BT151: N/A | BU151: N/A | BV151: N/A | BW151: N/A | BX151: N/A | BY151: N/A | BZ151: N/A | CA151: N/A
B152: No | C152: 80.35248714 | D152: 83.78506946 | E152: 87.36066832 | F152: 90.38193013 | G152: 94.53950001 | H152: 73.00725978 | I152: 83.07161204 | J152: 89.34555968 | K152: 91.70082735 | L152: 96.38522256 | M152: 79.3022364 | N152: 85.18032101 | O152: 89.6458553 | P152: 90.03613209 | Q152: 93.38541169 | R152: 70.22494399 | S152: 92.7509559 | T152: 87.32363875 | U152: 89.40091342 | V152: 85.08024825 | W152: 91.67829419 | X152: 91.45100119 | Y152: 84.7829193 | Z152: 72.94117647 | AA152: 91.3163653 | BB152: No | BC152: N/A | BD152: N/A | BE152: N/A | BF152: N/A | BG152: N/A | BH152: N/A | BI152: N/A | BJ152: N/A | BK152: N/A | BL152: N/A | BM152: N/A | BN152: N/A | BO152: N/A | BP152: N/A | BQ152: N/A | BR152: N/A | BS152: N/A | BT152: N/A | BU152: N/A | BV152: N/A | BW152: N/A | BX152: N/A | BY152: N/A | BZ152: N/A | CA152: N/A
A153: Type of toilet facility | B153: Flush to piper sewer | C153: 0.6611566652 | D153: 1.268565458 | E153: 1.758929342 | F153: 5.786237919 | G153: 7.203545218 | H153: 5.151930181 | I153: 5.364510598 | J153: 11.22185775 | K153: 12.21820191 | L153: 9.60698043 | M153: 0 | N153: 0 | O153: 0 | P153: 2.564010512 | Q153: 2.888731058 | R153: 0 | S153: 2.482216789 | T153: 0 | U153: 2.165681167 | V153: 6.881269686 | W153: 0 | X153: 0 | Y153: 0 | Z153: 0 | AA153: 0 | BA153: Type of toilet facility | BB153: Flush to piper sewer | BC153: 14.58311 | BD153: 28.038598 | BE153: 38.864948 | BF153: 127.855819 | BG153: 159.189061 | BH153: 33.437435 | BI153: 34.949755 | BJ153: 73.190944 | BK153: 79.373882 | BL153: 62.72127 | BM153: 0 | BN153: 0 | BO153: 0 | BP153: 39.948318 | BQ153: 44.909932 | BR153: 0 | BS153: 13.757125 | BT153: 0 | BU153: 30.94298 | BV153: 323.831431 | BW153: 0 | BX153: 0 | BY153: 0 | BZ153: 0 | CA153: 0
B154: Flush to septic tank | C154: 4.264039014 | D154: 18.81008849 | E154: 45.24554128 | F154: 59.23426178 | G154: 81.12199894 | H154: 20.94980354 | I154: 54.26746663 | J154: 61.69693186 | K154: 75.90190376 | L154: 85.42604551 | M154: 2.399007943 | N154: 9.219624282 | O154: 35.00399628 | P154: 49.02382765 | Q154: 75.77695756 | R154: 10.54420405 | S154: 57.39621376 | T154: 32.31023434 | U154: 42.23034601 | V154: 51.81773342 | W154: 27.23765676 | X154: 41.40065236 | Y154: 0 | Z154: 0 | AA154: 0 | BB154: Flush to septic tank | BC154: 94.051763 | BD154: 415.751908 | BE154: 999.736355 | BF154: 1308.872044 | BG154: 1792.691577 | BH154: 135.969951 | BI154: 353.552226 | BJ154: 402.398318 | BK154: 493.086364 | BL154: 557.722596 | BM154: 37.335043 | BN154: 144.193586 | BO154: 544.96088 | BP154: 763.811009 | BQ154: 1178.073674 | BR154: 36.524378 | BS154: 318.10553 | BT154: 216.108605 | BU154: 603.38187 | BV154: 2438.534098 | BW154: 196.313599 | BX154: 802.135567 | BY154: 0 | BZ154: 0 | CA154: 0
B155: Flush to pit latrine | C155: 0.694295312 | D155: 0.8197421114 | E155: 0.9908049794 | F155: 0.1139393483 | G155: 0.1064384273 | H155: 0.4833301843 | I155: 0 | J155: 1.81605632 | K155: 0 | L155: 0.3602777532 | M155: 0.8718897904 | N155: 0.4900163748 | O155: 1.191718494 | P155: 0.1973719119 | Q155: 0 | R155: 0 | S155: 2.422149565 | T155: 0 | U155: 0 | V155: 0.822001144 | W155: 0.1572895546 | X155: 0.3589075596 | Y155: 0 | Z155: 0 | AA155: 0 | BB155: Flush to pit latrine | BC155: 15.314048 | BD155: 18.118434 | BE155: 21.892627 | BF155: 2.517665 | BG155: 2.352152 | BH155: 3.136945 | BI155: 0 | BJ155: 11.844641 | BK155: 0 | BL155: 2.352152 | BM155: 13.56896 | BN155: 7.663785 | BO155: 18.553309 | BP155: 3.075134 | BQ155: 0 | BR155: 0 | BS155: 13.424216 | BT155: 0 | BU155: 0 | BV155: 38.68324 | BW155: 1.133654 | BX155: 6.953816 | BY155: 0 | BZ155: 0 | CA155: 0
B156: Flush to elsewhere | C156: 0 | D156: 0 | E156: 0 | F156: 0.2475232682 | G156: 0.1427934896 | H156: 0 | I156: 0 | J156: 0.8385860873 | K156: 0 | L156: 0.4833340637 | M156: 0 | N156: 0 | O156: 0 | P156: 0 | Q156: 0 | R156: 0 | S156: 0 | T156: 0 | U156: 0 | V156: 0.183276431 | W156: 0 | X156: 0 | Y156: 0 | Z156: 0 | AA156: 0 | BB156: Flush to elsewhere | BC156: 0 | BD156: 0 | BE156: 0 | BF156: 5.469407 | BG156: 3.155552 | BH156: 0 | BI156: 0 | BJ156: 5.469407 | BK156: 0 | BL156: 3.155552 | BM156: 0 | BN156: 0 | BO156: 0 | BP156: 0 | BQ156: 0 | BR156: 0 | BS156: 0 | BT156: 0 | BU156: 0 | BV156: 8.624959 | BW156: 0 | BX156: 0 | BY156: 0 | BZ156: 0 | CA156: 0
B157: Flush don't know where | C157: 0 | D157: 0 | E157: 0 | F157: 0 | G157: 0.1024389179 | H157: 0 | I157: 0 | J157: 0 | K157: 0.2613502118 | L157: 0.08668500684 | M157: 0 | N157: 0 | O157: 0 | P157: 0 | Q157: 0 | R157: 0 | S157: 0 | T157: 0 | U157: 0 | V157: 0.04810403384 | W157: 0 | X157: 0 | Y157: 0 | Z157: 0 | AA157: 0 | BB157: Flush don't know where | BC157: 0 | BD157: 0 | BE157: 0 | BF157: 0 | BG157: 2.263768 | BH157: 0 | BI157: 0 | BJ157: 0 | BK157: 1.697826 | BL157: 0.565942 | BM157: 0 | BN157: 0 | BO157: 0 | BP157: 0 | BQ157: 0 | BR157: 0 | BS157: 0 | BT157: 0 | BU157: 0 | BV157: 2.263768 | BW157: 0 | BX157: 0 | BY157: 0 | BZ157: 0 | CA157: 0
B158: Ventilated improved pit latrine | C158: 19.74191485 | D158: 18.22828985 | E158: 10.21893315 | F158: 9.613590135 | G158: 3.077339455 | H158: 17.18885392 | I158: 9.409839959 | J158: 6.681257521 | K158: 3.165075617 | L158: 1.029630408 | M158: 20.29499132 | N158: 18.73816732 | O158: 14.55830895 | P158: 11.16615539 | Q158: 5.873307219 | R158: 15.3531699 | S158: 7.38476277 | T158: 20.00356968 | U158: 19.10369407 | V158: 10.60536704 | W158: 7.961581087 | X158: 12.10337605 | Y158: 0 | Z158: 0 | AA158: 19.08375446 | BB158: Ventilated improved pit latrine | BC158: 435.446742 | BD158: 402.892644 | BE158: 225.795486 | BF158: 212.427048 | BG158: 68.005234 | BH158: 111.56036 | BI158: 61.305052 | BJ158: 43.576345 | BK158: 20.561482 | BL158: 6.722167 | BM158: 315.844879 | BN158: 293.062218 | BO158: 226.651517 | BP158: 173.973205 | BQ158: 91.309929 | BR158: 53.182296 | BS158: 40.928377 | BT158: 133.794868 | BU158: 272.951177 | BV158: 499.086846 | BW158: 57.382566 | BX158: 234.502305 | BY158: 0 | BZ158: 0 | CA158: 52.738719
B159: Pit latrine with slab | C159: 50.40470804 | D159: 49.04420172 | E159: 30.48290472 | F159: 18.41009716 | G159: 6.215767949 | H159: 41.37887278 | I159: 24.94730678 | J159: 14.76419408 | K159: 6.995465905 | L159: 3.00704683 | M159: 49.2231129 | N159: 56.38387361 | O159: 38.17711318 | P159: 26.93593281 | Q159: 10.23408331 | R159: 37.92920073 | S159: 27.69718501 | T159: 34.97865337 | U159: 21.20250076 | V159: 21.25760083 | W159: 52.18887799 | X159: 37.70736556 | Y159: 100 | Z159: 18.12080537 | AA159: 67.88492308 | BB159: Pit latrine with slab | BC159: 1111.774925 | BD159: 1084.004493 | BE159: 673.544115 | BF159: 406.799389 | BG159: 137.360457 | BH159: 268.560194 | BI159: 162.531557 | BJ159: 96.294689 | BK159: 45.44509 | BL159: 19.632162 | BM159: 766.044582 | BN159: 881.835602 | BO159: 594.361656 | BP159: 419.672698 | BQ159: 159.105149 | BR159: 131.384072 | BS159: 153.505382 | BT159: 233.956458 | BU159: 302.938663 | BV159: 1000.379234 | BW159: 376.147866 | BX159: 730.57832 | BY159: 272.816395 | BZ159: 24.174288 | CA159: 187.602701
B160: Pit latrine without slab | C160: 15.37475422 | D160: 6.629422093 | E160: 8.767206651 | F160: 3.312313134 | G160: 1.240716099 | H160: 9.820046685 | I160: 3.73686569 | J160: 1.769587788 | K160: 0.9051802472 | L160: 0 | M160: 17.02578159 | N160: 8.090324419 | O160: 9.573752428 | P160: 6.53379169 | Q160: 2.066419423 | R160: 14.60766047 | S160: 2.617472107 | T160: 11.22724768 | U160: 10.03317696 | V160: 4.697329257 | W160: 7.953592668 | X160: 6.944573814 | Y160: 0 | Z160: 38.9261745 | AA160: 11.42032642 | BB160: Pit latrine without slab | BC160: 339.120429 | BD160: 146.527481 | BE160: 193.71843 | BF160: 73.190649 | BG160: 27.418226 | BH160: 63.734787 | BI160: 24.345658 | BJ160: 11.541565 | BK160: 5.88038 | BL160: 0 | BM160: 264.967146 | BN160: 126.5315 | BO160: 149.049283 | BP160: 101.79911 | BQ160: 32.125786 | BR160: 50.599904 | BS160: 14.506747 | BT160: 75.094003 | BU160: 143.35277 | BV160: 221.05555 | BW160: 57.32499 | BX160: 134.55077 | BY160: 0 | BZ160: 51.929952 | CA160: 31.560529
B161: No facility/bush/field | C161: 3.527680936 | D161: 0.3073860201 | E161: 0.04870473492 | F161: 0.01948124289 | G161: 0 | H161: 1.301093126 | I161: 0.4625140015 | J161: 0.06600066073 | K161: 0 | L161: 0 | M161: 4.769250121 | N161: 0 | O161: 0 | P161: 0 | Q161: 0 | R161: 3.220764871 | S161: 0 | T161: 0 | U161: 0.0918151283 | V161: 0.2396278371 | W161: 0 | X161: 0.03155347507 | Y161: 0 | Z161: 42.95302013 | AA161: 1.610996035 | BB161: No facility/bush/field | BC161: 77.809938 | BD161: 6.794031 | BE161: 1.07617 | BF161: 0.430468 | BG161: 0 | BH161: 8.44445 | BI161: 3.013276 | BJ161: 0.430468 | BK161: 0 | BL161: 0 | BM161: 74.222413 | BN161: 0 | BO161: 0 | BP161: 0 | BQ161: 0 | BR161: 11.156502 | BS161: 0 | BT161: 0 | BU161: 1.311843 | BV161: 11.276847 | BW161: 0 | BX161: 0.611347 | BY161: 0 | BZ161: 57.302016 | CA161: 4.452052
B162: Composting toilet | C162: 0.5199269051 | D162: 0.7886059589 | E162: 1.628862713 | F162: 1.298050382 | G162: 0 | H162: 0.4225125607 | I162: 0.6750649224 | J162: 0 | K162: 0 | L162: 0 | M162: 0.6362022944 | N162: 1.039332277 | O162: 0.3314782399 | P162: 2.42011565 | Q162: 1.119755672 | R162: 0 | S162: 0 | T162: 1.480294921 | U162: 0.9112586551 | V162: 0.8170552918 | W162: 4.272245887 | X162: 0.07268674264 | Y162: 0 | Z162: 0 | AA162: 0 | BB162: Composting toilet | BC162: 11.46801 | BD162: 17.430244 | BE162: 35.991022 | BF162: 28.682418 | BG162: 0 | BH162: 2.742222 | BI162: 4.398044 | BJ162: 0 | BK162: 0 | BL162: 0 | BM162: 9.901026 | BN162: 16.255006 | BO162: 5.16063 | BP162: 37.706378 | BQ162: 17.408388 | BR162: 0 | BS162: 0 | BT162: 9.901026 | BU162: 13.019949 | BV162: 38.450489 | BW162: 30.791928 | BX162: 1.408302 | BY162: 0 | BZ162: 0 | CA162: 0
B163: Hanging toilet/ hanging letrine | C163: 4.745168017 | D163: 3.810781477 | E163: 0.8581124214 | F163: 1.300327933 | G163: 0.7889615066 | H163: 3.303557022 | I163: 1.136431417 | J163: 1.14552792 | K163: 0 | L163: 0 | M163: 4.779764041 | N163: 5.53112267 | O163: 1.163632419 | P163: 1.052972739 | Q163: 1.433799486 | R163: 18.34499997 | S163: 0 | T163: 0 | U163: 4.261527242 | V163: 2.322710119 | W163: 0 | X163: 1.046730085 | Y163: 0 | Z163: 0 | AA163: 0 | BB163: Hanging toilet/ hanging letrine | BC163: 104.664009 | BD163: 84.228188 | BE163: 18.960679 | BF163: 28.732744 | BG163: 17.435032 | BH163: 21.440988 | BI163: 7.403844 | BJ163: 7.471336 | BK163: 0 | BL163: 0 | BM163: 74.386038 | BN163: 86.505956 | BO163: 18.11605 | BP163: 16.40574 | BQ163: 22.2907 | BR163: 63.545784 | BS163: 0 | BT163: 0 | BU163: 60.888165 | BV163: 109.30636 | BW163: 0 | BX163: 20.280343 | BY163: 0 | BZ163: 0 | CA163: 0
B164: OTHER | C164: 0.0663560441 | D164: 0.2929168189 | E164: 0 | F164: 0.6641777011 | G164: 0 | H164: 0 | I164: 0 | J164: 0 | K164: 0.5528223521 | L164: 0 | M164: 0 | N164: 0.5075390437 | O164: 0 | P164: 0.1058216506 | Q164: 0.6069462775 | R164: 0 | S164: 0 | T164: 0 | U164: 0 | V164: 0.3079249073 | W164: 0.2287560484 | X164: 0.3341543601 | Y164: 0 | Z164: 0 | AA164: 0 | BB164: OTHER | BC164: 1.463613 | BD164: 6.474224 | BE164: 0 | BF164: 14.676027 | BG164: 0 | BH164: 0 | BI164: 0 | BJ164: 0 | BK164: 3.591335 | BL164: 0 | BM164: 0 | BN164: 7.937837 | BO164: 0 | BP164: 1.648744 | BQ164: 9.435948 | BR164: 0 | BS164: 0 | BT164: 0 | BU164: 0 | BV164: 14.490896 | BW164: 1.648744 | BX164: 6.474224 | BY164: 0 | BZ164: 0 | CA164: 0
BB165: Total | BC165: 2205.696587 | BD165: 2210.260245 | BE165: 2209.579832 | BF165: 2209.653678 | BG165: 2209.871059 | BH165: 649.027332 | BI165: 651.499412 | BJ165: 652.217713 | BK165: 649.636359 | BL165: 652.871841 | BM165: 1556.270087 | BN165: 1563.98549 | BO165: 1556.853325 | BP165: 1558.040336 | BQ165: 1554.659506 | BR165: 346.392936 | BS165: 554.227377 | BT165: 668.85496 | BU165: 1428.787417 | BV165: 4705.983718 | BW165: 720.743347 | BX165: 1937.494994 | BY165: 272.816395 | BZ165: 133.406256 | CA165: 276.354001
A208: =A1026 -> Guyana
A209: =A1034 -> 2005
A210: Access to hygiene facilities
A211: by wealth quintile and sub-national region
A212: Notes:
A213: WHO/UNICEF JMP customised wealth index excludes water,
A214: sanitation and hygiene assets.
A215: Survey used for analysis: | B215: =A1025 -> DHS05
A220: Access to handwashing | C220: NATIONAL wealth index quintile | H220: URBAN wealth index quintile | M220: RURAL wealth index quintile | R220: SUB-REGIONS: | BA220: Raw numbers of respondents: | BB220: Access to handwashing | BC220: NATIONAL wealth index quintile | BH220: URBAN wealth index quintile | BM220: RURAL wealth index quintile | BR220: SUB-REGIONS:
A221: Weighted percentage (used in graphs) | C221: Poorest | D221: Poor | E221: Middle | F221: Rich | G221: Richest | H221: Poorest | I221: Poor | J221: Middle | K221: Rich | L221: Richest | M221: Poorest | N221: Poor | O221: Middle | P221: Rich | Q221: Richest | R221: Region 1 | S221: Region 10 | T221: Region 2 | U221: Region 3 | V221: Region 4 | W221: Region 5 | X221: Region 6 | Y221: Region 7 | Z221: Region 8 | AA221: Region 9 | BA221: Hygiene data, raw numbers (weighted) | BC221: Poorest | BD221: Poor | BE221: Middle | BF221: Rich | BG221: Richest | BH221: Poorest | BI221: Poor | BJ221: Middle | BK221: Rich | BL221: Richest | BM221: Poorest | BN221: Poor | BO221: Middle | BP221: Rich | BQ221: Richest | BR221: Region 1 | BS221: Region 10 | BT221: Region 2 | BU221: Region 3 | BV221: Region 4 | BW221: Region 5 | BX221: Region 6 | BY221: Region 7 | BZ221: Region 8 | CA221: Region 9
A222: Hygiene ladder | B222: Basic | C222: N/A | D222: N/A | E222: N/A | F222: N/A | G222: N/A | H222: N/A | I222: N/A | J222: N/A | K222: N/A | L222: N/A | M222: N/A | N222: N/A | O222: N/A | P222: N/A | Q222: N/A | R222: N/A | S222: N/A | T222: N/A | U222: N/A | V222: N/A | W222: N/A | X222: N/A | Y222: N/A | Z222: N/A | AA222: N/A | BA222: Hygiene ladder | BB222: Basic | BC222: N/A | BD222: N/A | BE222: N/A | BF222: N/A | BG222: N/A | BH222: N/A | BI222: N/A | BJ222: N/A | BK222: N/A | BL222: N/A | BM222: N/A | BN222: N/A | BO222: N/A | BP222: N/A | BQ222: N/A | BR222: N/A | BS222: N/A | BT222: N/A | BU222: N/A | BV222: N/A | BW222: N/A | BX222: N/A | BY222: N/A | BZ222: N/A | CA222: N/A
B223: Limited | C223: N/A | D223: N/A | E223: N/A | F223: N/A | G223: N/A | H223: N/A | I223: N/A | J223: N/A | K223: N/A | L223: N/A | M223: N/A | N223: N/A | O223: N/A | P223: N/A | Q223: N/A | R223: N/A | S223: N/A | T223: N/A | U223: N/A | V223: N/A | W223: N/A | X223: N/A | Y223: N/A | Z223: N/A | AA223: N/A | BB223: Limited | BC223: N/A | BD223: N/A | BE223: N/A | BF223: N/A | BG223: N/A | BH223: N/A | BI223: N/A | BJ223: N/A | BK223: N/A | BL223: N/A | BM223: N/A | BN223: N/A | BO223: N/A | BP223: N/A | BQ223: N/A | BR223: N/A | BS223: N/A | BT223: N/A | BU223: N/A | BV223: N/A | BW223: N/A | BX223: N/A | BY223: N/A | BZ223: N/A | CA223: N/A
B224: No facility | C224: N/A | D224: N/A | E224: N/A | F224: N/A | G224: N/A | H224: N/A | I224: N/A | J224: N/A | K224: N/A | L224: N/A | M224: N/A | N224: N/A | O224: N/A | P224: N/A | Q224: N/A | R224: N/A | S224: N/A | T224: N/A | U224: N/A | V224: N/A | W224: N/A | X224: N/A | Y224: N/A | Z224: N/A | AA224: N/A | BB224: No facility | BC224: N/A | BD224: N/A | BE224: N/A | BF224: N/A | BG224: N/A | BH224: N/A | BI224: N/A | BJ224: N/A | BK224: N/A | BL224: N/A | BM224: N/A | BN224: N/A | BO224: N/A | BP224: N/A | BQ224: N/A | BR224: N/A | BS224: N/A | BT224: N/A | BU224: N/A | BV224: N/A | BW224: N/A | BX224: N/A | BY224: N/A | BZ224: N/A | CA224: N/A
BA225: Observed handwashing place | BB225: Fixed | BC225: N/A | BD225: N/A | BE225: N/A | BF225: N/A | BG225: N/A | BH225: N/A | BI225: N/A | BJ225: N/A | BK225: N/A | BL225: N/A | BM225: N/A | BN225: N/A | BO225: N/A | BP225: N/A | BQ225: N/A | BR225: N/A | BS225: N/A | BT225: N/A | BU225: N/A | BV225: N/A | BW225: N/A | BX225: N/A | BY225: N/A | BZ225: N/A | CA225: N/A
BB226: Mobile | BC226: N/A | BD226: N/A | BE226: N/A | BF226: N/A | BG226: N/A | BH226: N/A | BI226: N/A | BJ226: N/A | BK226: N/A | BL226: N/A | BM226: N/A | BN226: N/A | BO226: N/A | BP226: N/A | BQ226: N/A | BR226: N/A | BS226: N/A | BT226: N/A | BU226: N/A | BV226: N/A | BW226: N/A | BX226: N/A | BY226: N/A | BZ226: N/A | CA226: N/A
BA227: Water / Soap | BB227: Water and soap | BC227: N/A | BD227: N/A | BE227: N/A | BF227: N/A | BG227: N/A | BH227: N/A | BI227: N/A | BJ227: N/A | BK227: N/A | BL227: N/A | BM227: N/A | BN227: N/A | BO227: N/A | BP227: N/A | BQ227: N/A | BR227: N/A | BS227: N/A | BT227: N/A | BU227: N/A | BV227: N/A | BW227: N/A | BX227: N/A | BY227: N/A | BZ227: N/A | CA227: N/A
BB228: Water only | BC228: N/A | BD228: N/A | BE228: N/A | BF228: N/A | BG228: N/A | BH228: N/A | BI228: N/A | BJ228: N/A | BK228: N/A | BL228: N/A | BM228: N/A | BN228: N/A | BO228: N/A | BP228: N/A | BQ228: N/A | BR228: N/A | BS228: N/A | BT228: N/A | BU228: N/A | BV228: N/A | BW228: N/A | BX228: N/A | BY228: N/A | BZ228: N/A | CA228: N/A
BB229: Soap only | BC229: N/A | BD229: N/A | BE229: N/A | BF229: N/A | BG229: N/A | BH229: N/A | BI229: N/A | BJ229: N/A | BK229: N/A | BL229: N/A | BM229: N/A | BN229: N/A | BO229: N/A | BP229: N/A | BQ229: N/A | BR229: N/A | BS229: N/A | BT229: N/A | BU229: N/A | BV229: N/A | BW229: N/A | BX229: N/A | BY229: N/A | BZ229: N/A | CA229: N/A
BB230: Neither | BC230: N/A | BD230: N/A | BE230: N/A | BF230: N/A | BG230: N/A | BH230: N/A | BI230: N/A | BJ230: N/A | BK230: N/A | BL230: N/A | BM230: N/A | BN230: N/A | BO230: N/A | BP230: N/A | BQ230: N/A | BR230: N/A | BS230: N/A | BT230: N/A | BU230: N/A | BV230: N/A | BW230: N/A | BX230: N/A | BY230: N/A | BZ230: N/A | CA230: N/A
BA259: Raw numbers of respondents: | BB259: Menstrual health and hygiene | BC259: NATIONAL wealth index quintile | BH259: URBAN wealth index quintile | BM259: RURAL wealth index quintile | BR259: SUB-REGIONS:
BA260: MHH data, raw numbers (weighted) | BC260: Poorest | BD260: Poor | BE260: Middle | BF260: Rich | BG260: Richest | BH260: Poorest | BI260: Poor | BJ260: Middle | BK260: Rich | BL260: Richest | BM260: Poorest | BN260: Poor | BO260: Middle | BP260: Rich | BQ260: Richest | BR260: Region 1 | BS260: Region 10 | BT260: Region 2 | BU260: Region 3 | BV260: Region 4 | BW260: Region 5 | BX260: Region 6 | BY260: Region 7 | BZ260: Region 8 | CA260: Region 9
BA261: Private place to wash and change | BB261: Yes | BC261: N/A | BD261: N/A | BE261: N/A | BF261: N/A | BG261: N/A | BH261: N/A | BI261: N/A | BJ261: N/A | BK261: N/A | BL261: N/A | BM261: N/A | BN261: N/A | BO261: N/A | BP261: N/A | BQ261: N/A | BR261: N/A | BS261: N/A | BT261: N/A | BU261: N/A | BV261: N/A | BW261: N/A | BX261: N/A | BY261: N/A | BZ261: N/A | CA261: N/A
BB262: No | BC262: N/A | BD262: N/A | BE262: N/A | BF262: N/A | BG262: N/A | BH262: N/A | BI262: N/A | BJ262: N/A | BK262: N/A | BL262: N/A | BM262: N/A | BN262: N/A | BO262: N/A | BP262: N/A | BQ262: N/A | BR262: N/A | BS262: N/A | BT262: N/A | BU262: N/A | BV262: N/A | BW262: N/A | BX262: N/A | BY262: N/A | BZ262: N/A | CA262: N/A
BB263: DK/not sure/missing | BC263: N/A | BD263: N/A | BE263: N/A | BF263: N/A | BG263: N/A | BH263: N/A | BI263: N/A | BJ263: N/A | BK263: N/A | BL263: N/A | BM263: N/A | BN263: N/A | BO263: N/A | BP263: N/A | BQ263: N/A | BR263: N/A | BS263: N/A | BT263: N/A | BU263: N/A | BV263: N/A | BW263: N/A | BX263: N/A | BY263: N/A | BZ263: N/A | CA263: N/A
BA264: Use of menstrual materials | BB264: Materials reusable | BC264: N/A | BD264: N/A | BE264: N/A | BF264: N/A | BG264: N/A | BH264: N/A | BI264: N/A | BJ264: N/A | BK264: N/A | BL264: N/A | BM264: N/A | BN264: N/A | BO264: N/A | BP264: N/A | BQ264: N/A | BR264: N/A | BS264: N/A | BT264: N/A | BU264: N/A | BV264: N/A | BW264: N/A | BX264: N/A | BY264: N/A | BZ264: N/A | CA264: N/A
BB265: Materials not reusable | BC265: N/A | BD265: N/A | BE265: N/A | BF265: N/A | BG265: N/A | BH265: N/A | BI265: N/A | BJ265: N/A | BK265: N/A | BL265: N/A | BM265: N/A | BN265: N/A | BO265: N/A | BP265: N/A | BQ265: N/A | BR265: N/A | BS265: N/A | BT265: N/A | BU265: N/A | BV265: N/A | BW265: N/A | BX265: N/A | BY265: N/A | BZ265: N/A | CA265: N/A
BB266: No materials used | BC266: N/A | BD266: N/A | BE266: N/A | BF266: N/A | BG266: N/A | BH266: N/A | BI266: N/A | BJ266: N/A | BK266: N/A | BL266: N/A | BM266: N/A | BN266: N/A | BO266: N/A | BP266: N/A | BQ266: N/A | BR266: N/A | BS266: N/A | BT266: N/A | BU266: N/A | BV266: N/A | BW266: N/A | BX266: N/A | BY266: N/A | BZ266: N/A | CA266: N/A
BB267: DK/not sure/missing | BC267: N/A | BD267: N/A | BE267: N/A | BF267: N/A | BG267: N/A | BH267: N/A | BI267: N/A | BJ267: N/A | BK267: N/A | BL267: N/A | BM267: N/A | BN267: N/A | BO267: N/A | BP267: N/A | BQ267: N/A | BR267: N/A | BS267: N/A | BT267: N/A | BU267: N/A | BV267: N/A | BW267: N/A | BX267: N/A | BY267: N/A | BZ267: N/A | CA267: N/A
BA268: Use of menstrual materials with private place to wash and change | BB268: Materials reusable | BC268: N/A | BD268: N/A | BE268: N/A | BF268: N/A | BG268: N/A | BH268: N/A | BI268: N/A | BJ268: N/A | BK268: N/A | BL268: N/A | BM268: N/A | BN268: N/A | BO268: N/A | BP268: N/A | BQ268: N/A | BR268: N/A | BS268: N/A | BT268: N/A | BU268: N/A | BV268: N/A | BW268: N/A | BX268: N/A | BY268: N/A | BZ268: N/A | CA268: N/A
BB269: Materials not reusable | BC269: N/A | BD269: N/A | BE269: N/A | BF269: N/A | BG269: N/A | BH269: N/A | BI269: N/A | BJ269: N/A | BK269: N/A | BL269: N/A | BM269: N/A | BN269: N/A | BO269: N/A | BP269: N/A | BQ269: N/A | BR269: N/A | BS269: N/A | BT269: N/A | BU269: N/A | BV269: N/A | BW269: N/A | BX269: N/A | BY269: N/A | BZ269: N/A | CA269: N/A
BB270: No materials used | BC270: N/A | BD270: N/A | BE270: N/A | BF270: N/A | BG270: N/A | BH270: N/A | BI270: N/A | BJ270: N/A | BK270: N/A | BL270: N/A | BM270: N/A | BN270: N/A | BO270: N/A | BP270: N/A | BQ270: N/A | BR270: N/A | BS270: N/A | BT270: N/A | BU270: N/A | BV270: N/A | BW270: N/A | BX270: N/A | BY270: N/A | BZ270: N/A | CA270: N/A
BA271: Awareness of menstruation before menarche | BB271: Yes | BC271: N/A | BD271: N/A | BE271: N/A | BF271: N/A | BG271: N/A | BH271: N/A | BI271: N/A | BJ271: N/A | BK271: N/A | BL271: N/A | BM271: N/A | BN271: N/A | BO271: N/A | BP271: N/A | BQ271: N/A | BR271: N/A | BS271: N/A | BT271: N/A | BU271: N/A | BV271: N/A | BW271: N/A | BX271: N/A | BY271: N/A | BZ271: N/A | CA271: N/A
BB272: No | BC272: N/A | BD272: N/A | BE272: N/A | BF272: N/A | BG272: N/A | BH272: N/A | BI272: N/A | BJ272: N/A | BK272: N/A | BL272: N/A | BM272: N/A | BN272: N/A | BO272: N/A | BP272: N/A | BQ272: N/A | BR272: N/A | BS272: N/A | BT272: N/A | BU272: N/A | BV272: N/A | BW272: N/A | BX272: N/A | BY272: N/A | BZ272: N/A | CA272: N/A
BB273: DK/not sure/missing | BC273: N/A | BD273: N/A | BE273: N/A | BF273: N/A | BG273: N/A | BH273: N/A | BI273: N/A | BJ273: N/A | BK273: N/A | BL273: N/A | BM273: N/A | BN273: N/A | BO273: N/A | BP273: N/A | BQ273: N/A | BR273: N/A | BS273: N/A | BT273: N/A | BU273: N/A | BV273: N/A | BW273: N/A | BX273: N/A | BY273: N/A | BZ273: N/A | CA273: N/A
BA274: Participation in (all) activities during menstruation | BB274: Yes | BC274: N/A | BD274: N/A | BE274: N/A | BF274: N/A | BG274: N/A | BH274: N/A | BI274: N/A | BJ274: N/A | BK274: N/A | BL274: N/A | BM274: N/A | BN274: N/A | BO274: N/A | BP274: N/A | BQ274: N/A | BR274: N/A | BS274: N/A | BT274: N/A | BU274: N/A | BV274: N/A | BW274: N/A | BX274: N/A | BY274: N/A | BZ274: N/A | CA274: N/A
BB275: No | BC275: N/A | BD275: N/A | BE275: N/A | BF275: N/A | BG275: N/A | BH275: N/A | BI275: N/A | BJ275: N/A | BK275: N/A | BL275: N/A | BM275: N/A | BN275: N/A | BO275: N/A | BP275: N/A | BQ275: N/A | BR275: N/A | BS275: N/A | BT275: N/A | BU275: N/A | BV275: N/A | BW275: N/A | BX275: N/A | BY275: N/A | BZ275: N/A | CA275: N/A
BB276: DK/not sure/missing/no such activity | BC276: N/A | BD276: N/A | BE276: N/A | BF276: N/A | BG276: N/A | BH276: N/A | BI276: N/A | BJ276: N/A | BK276: N/A | BL276: N/A | BM276: N/A | BN276: N/A | BO276: N/A | BP276: N/A | BQ276: N/A | BR276: N/A | BS276: N/A | BT276: N/A | BU276: N/A | BV276: N/A | BW276: N/A | BX276: N/A | BY276: N/A | BZ276: N/A | CA276: N/A
BA277: Participation in specific activities during menstruation | BB277: Did not go to school (amongst those usually attending school) | BC277: N/A | BD277: N/A | BE277: N/A | BF277: N/A | BG277: N/A | BH277: N/A | BI277: N/A | BJ277: N/A | BK277: N/A | BL277: N/A | BM277: N/A | BN277: N/A | BO277: N/A | BP277: N/A | BQ277: N/A | BR277: N/A | BS277: N/A | BT277: N/A | BU277: N/A | BV277: N/A | BW277: N/A | BX277: N/A | BY277: N/A | BZ277: N/A | CA277: N/A
BB278: Did not go to work (amongst those who usually work) | BC278: N/A | BD278: N/A | BE278: N/A | BF278: N/A | BG278: N/A | BH278: N/A | BI278: N/A | BJ278: N/A | BK278: N/A | BL278: N/A | BM278: N/A | BN278: N/A | BO278: N/A | BP278: N/A | BQ278: N/A | BR278: N/A | BS278: N/A | BT278: N/A | BU278: N/A | BV278: N/A | BW278: N/A | BX278: N/A | BY278: N/A | BZ278: N/A | CA278: N/A
BB279: Did not participate in social activities | BC279: N/A | BD279: N/A | BE279: N/A | BF279: N/A | BG279: N/A | BH279: N/A | BI279: N/A | BJ279: N/A | BK279: N/A | BL279: N/A | BM279: N/A | BN279: N/A | BO279: N/A | BP279: N/A | BQ279: N/A | BR279: N/A | BS279: N/A | BT279: N/A | BU279: N/A | BV279: N/A | BW279: N/A | BX279: N/A | BY279: N/A | BZ279: N/A | CA279: N/A
BB280: Did not cook food | BC280: N/A | BD280: N/A | BE280: N/A | BF280: N/A | BG280: N/A | BH280: N/A | BI280: N/A | BJ280: N/A | BK280: N/A | BL280: N/A | BM280: N/A | BN280: N/A | BO280: N/A | BP280: N/A | BQ280: N/A | BR280: N/A | BS280: N/A | BT280: N/A | BU280: N/A | BV280: N/A | BW280: N/A | BX280: N/A | BY280: N/A | BZ280: N/A | CA280: N/A
BB281: Did not eat with others | BC281: N/A | BD281: N/A | BE281: N/A | BF281: N/A | BG281: N/A | BH281: N/A | BI281: N/A | BJ281: N/A | BK281: N/A | BL281: N/A | BM281: N/A | BN281: N/A | BO281: N/A | BP281: N/A | BQ281: N/A | BR281: N/A | BS281: N/A | BT281: N/A | BU281: N/A | BV281: N/A | BW281: N/A | BX281: N/A | BY281: N/A | BZ281: N/A | CA281: N/A
BB282: Did not bathe in regular place | BC282: N/A | BD282: N/A | BE282: N/A | BF282: N/A | BG282: N/A | BH282: N/A | BI282: N/A | BJ282: N/A | BK282: N/A | BL282: N/A | BM282: N/A | BN282: N/A | BO282: N/A | BP282: N/A | BQ282: N/A | BR282: N/A | BS282: N/A | BT282: N/A | BU282: N/A | BV282: N/A | BW282: N/A | BX282: N/A | BY282: N/A | BZ282: N/A | CA282: N/A
BB283: Did not participate in other activities | BC283: N/A | BD283: N/A | BE283: N/A | BF283: N/A | BG283: N/A | BH283: N/A | BI283: N/A | BJ283: N/A | BK283: N/A | BL283: N/A | BM283: N/A | BN283: N/A | BO283: N/A | BP283: N/A | BQ283: N/A | BR283: N/A | BS283: N/A | BT283: N/A | BU283: N/A | BV283: N/A | BW283: N/A | BX283: N/A | BY283: N/A | BZ283: N/A | CA283: N/A
BB284: DK/not sure/missing/no such activity | BC284: N/A | BD284: N/A | BE284: N/A | BF284: N/A | BG284: N/A | BH284: N/A | BI284: N/A | BJ284: N/A | BK284: N/A | BL284: N/A | BM284: N/A | BN284: N/A | BO284: N/A | BP284: N/A | BQ284: N/A | BR284: N/A | BS284: N/A | BT284: N/A | BU284: N/A | BV284: N/A | BW284: N/A | BX284: N/A | BY284: N/A | BZ284: N/A | CA284: N/A
BA339: Raw numbers of respondents: | BB339: Basic water, sanitation and hygiene | BC339: NATIONAL wealth index quintile | BH339: URBAN wealth index quintile | BM339: RURAL wealth index quintile | BR339: SUB-REGIONS:
BA340: WatSan data, raw numbers (weighted) | BC340: Poorest | BD340: Poor | BE340: Middle | BF340: Rich | BG340: Richest | BH340: Poorest | BI340: Poor | BJ340: Middle | BK340: Rich | BL340: Richest | BM340: Poorest | BN340: Poor | BO340: Middle | BP340: Rich | BQ340: Richest | BR340: Region 1 | BS340: Region 10 | BT340: Region 2 | BU340: Region 3 | BV340: Region 4 | BW340: Region 5 | BX340: Region 6 | BY340: Region 7 | BZ340: Region 8 | CA340: Region 9
BA341: Use of Basic Water Sanitation and Hygiene | BB341: Yes | BC341: N/A | BD341: N/A | BE341: N/A | BF341: N/A | BG341: N/A | BH341: N/A | BI341: N/A | BJ341: N/A | BK341: N/A | BL341: N/A | BM341: N/A | BN341: N/A | BO341: N/A | BP341: N/A | BQ341: N/A | BR341: N/A | BS341: N/A | BT341: N/A | BU341: N/A | BV341: N/A | BW341: N/A | BX341: N/A | BY341: N/A | BZ341: N/A | CA341: N/A
BB342: No | BC342: N/A | BD342: N/A | BE342: N/A | BF342: N/A | BG342: N/A | BH342: N/A | BI342: N/A | BJ342: N/A | BK342: N/A | BL342: N/A | BM342: N/A | BN342: N/A | BO342: N/A | BP342: N/A | BQ342: N/A | BR342: N/A | BS342: N/A | BT342: N/A | BU342: N/A | BV342: N/A | BW342: N/A | BX342: N/A | BY342: N/A | BZ342: N/A | CA342: N/A
BA343: Use of Basic Water and Sanitation | BB343: Yes | BC343: N/A | BD343: N/A | BE343: N/A | BF343: N/A | BG343: N/A | BH343: N/A | BI343: N/A | BJ343: N/A | BK343: N/A | BL343: N/A | BM343: N/A | BN343: N/A | BO343: N/A | BP343: N/A | BQ343: N/A | BR343: N/A | BS343: N/A | BT343: N/A | BU343: N/A | BV343: N/A | BW343: N/A | BX343: N/A | BY343: N/A | BZ343: N/A | CA343: N/A
BB344: No | BC344: N/A | BD344: N/A | BE344: N/A | BF344: N/A | BG344: N/A | BH344: N/A | BI344: N/A | BJ344: N/A | BK344: N/A | BL344: N/A | BM344: N/A | BN344: N/A | BO344: N/A | BP344: N/A | BQ344: N/A | BR344: N/A | BS344: N/A | BT344: N/A | BU344: N/A | BV344: N/A | BW344: N/A | BX344: N/A | BY344: N/A | BZ344: N/A | CA344: N/A
BA345: Use of Basic Water and Hygiene | BB345: Yes | BC345: N/A | BD345: N/A | BE345: N/A | BF345: N/A | BG345: N/A | BH345: N/A | BI345: N/A | BJ345: N/A | BK345: N/A | BL345: N/A | BM345: N/A | BN345: N/A | BO345: N/A | BP345: N/A | BQ345: N/A | BR345: N/A | BS345: N/A | BT345: N/A | BU345: N/A | BV345: N/A | BW345: N/A | BX345: N/A | BY345: N/A | BZ345: N/A | CA345: N/A
BB346: No | BC346: N/A | BD346: N/A | BE346: N/A | BF346: N/A | BG346: N/A | BH346: N/A | BI346: N/A | BJ346: N/A | BK346: N/A | BL346: N/A | BM346: N/A | BN346: N/A | BO346: N/A | BP346: N/A | BQ346: N/A | BR346: N/A | BS346: N/A | BT346: N/A | BU346: N/A | BV346: N/A | BW346: N/A | BX346: N/A | BY346: N/A | BZ346: N/A | CA346: N/A
BA347: Use of Basic Sanitation and Hygiene | BB347: Yes | BC347: N/A | BD347: N/A | BE347: N/A | BF347: N/A | BG347: N/A | BH347: N/A | BI347: N/A | BJ347: N/A | BK347: N/A | BL347: N/A | BM347: N/A | BN347: N/A | BO347: N/A | BP347: N/A | BQ347: N/A | BR347: N/A | BS347: N/A | BT347: N/A | BU347: N/A | BV347: N/A | BW347: N/A | BX347: N/A | BY347: N/A | BZ347: N/A | CA347: N/A
BB348: No | BC348: N/A | BD348: N/A | BE348: N/A | BF348: N/A | BG348: N/A | BH348: N/A | BI348: N/A | BJ348: N/A | BK348: N/A | BL348: N/A | BM348: N/A | BN348: N/A | BO348: N/A | BP348: N/A | BQ348: N/A | BR348: N/A | BS348: N/A | BT348: N/A | BU348: N/A | BV348: N/A | BW348: N/A | BX348: N/A | BY348: N/A | BZ348: N/A | CA348: N/A
BA349: Use of Basic Water | BB349: Yes | BC349: N/A | BD349: N/A | BE349: N/A | BF349: N/A | BG349: N/A | BH349: N/A | BI349: N/A | BJ349: N/A | BK349: N/A | BL349: N/A | BM349: N/A | BN349: N/A | BO349: N/A | BP349: N/A | BQ349: N/A | BR349: N/A | BS349: N/A | BT349: N/A | BU349: N/A | BV349: N/A | BW349: N/A | BX349: N/A | BY349: N/A | BZ349: N/A | CA349: N/A
BB350: No | BC350: N/A | BD350: N/A | BE350: N/A | BF350: N/A | BG350: N/A | BH350: N/A | BI350: N/A | BJ350: N/A | BK350: N/A | BL350: N/A | BM350: N/A | BN350: N/A | BO350: N/A | BP350: N/A | BQ350: N/A | BR350: N/A | BS350: N/A | BT350: N/A | BU350: N/A | BV350: N/A | BW350: N/A | BX350: N/A | BY350: N/A | BZ350: N/A | CA350: N/A
BA351: Use of Basic Sanitation | BB351: Yes | BC351: N/A | BD351: N/A | BE351: N/A | BF351: N/A | BG351: N/A | BH351: N/A | BI351: N/A | BJ351: N/A | BK351: N/A | BL351: N/A | BM351: N/A | BN351: N/A | BO351: N/A | BP351: N/A | BQ351: N/A | BR351: N/A | BS351: N/A | BT351: N/A | BU351: N/A | BV351: N/A | BW351: N/A | BX351: N/A | BY351: N/A | BZ351: N/A | CA351: N/A
BB352: No | BC352: N/A | BD352: N/A | BE352: N/A | BF352: N/A | BG352: N/A | BH352: N/A | BI352: N/A | BJ352: N/A | BK352: N/A | BL352: N/A | BM352: N/A | BN352: N/A | BO352: N/A | BP352: N/A | BQ352: N/A | BR352: N/A | BS352: N/A | BT352: N/A | BU352: N/A | BV352: N/A | BW352: N/A | BX352: N/A | BY352: N/A | BZ352: N/A | CA352: N/A
BA353: Access to Basic Hygiene | BB353: Yes | BC353: N/A | BD353: N/A | BE353: N/A | BF353: N/A | BG353: N/A | BH353: N/A | BI353: N/A | BJ353: N/A | BK353: N/A | BL353: N/A | BM353: N/A | BN353: N/A | BO353: N/A | BP353: N/A | BQ353: N/A | BR353: N/A | BS353: N/A | BT353: N/A | BU353: N/A | BV353: N/A | BW353: N/A | BX353: N/A | BY353: N/A | BZ353: N/A | CA353: N/A
BB354: No | BC354: N/A | BD354: N/A | BE354: N/A | BF354: N/A | BG354: N/A | BH354: N/A | BI354: N/A | BJ354: N/A | BK354: N/A | BL354: N/A | BM354: N/A | BN354: N/A | BO354: N/A | BP354: N/A | BQ354: N/A | BR354: N/A | BS354: N/A | BT354: N/A | BU354: N/A | BV354: N/A | BW354: N/A | BX354: N/A | BY354: N/A | BZ354: N/A | CA354: N/A
C399: INITIAL (national) Wealth Index | H399: URBAN Wealth Index | M399: RURAL Wealth Index
C400: Component Matrix | H400: Component Matrix | M400: Component Matrix
E401: Component | J401: Component | O401: Component
B402: Note: The INITIAL (national) Wealth Index is based on the first component of the Principal Component Analysis (PCA) which has been obtained at national level. The final national-level (NATIONAL) Wealth Index is based on the URBAN and RURAL specific wealth indexes. Regression procedures are used to establish the relationships between the two sets of scores (urban and rural) and the initial (national) wealth factors. This allows best use of the available information for each area and a better precision of the FINAL (NATIONAL) Wealth Index. For dependency reasons, all WASH variables (contained in the generic MICS and DHS scripts) have been excluded from the sets of asset variables used in the PCAs. The PCA can extracts as many components as there are asset variables in the input. Only the first of the components is used to represent the Wealth Index. The scores represent the weights of the asset variables on the Wealth Index (correlations between the variables and the component). The communalities are the proportion of each variable's variance that can be explained by the component. Proportion of explained variance is the part of the model's total variance that is explained by the component. For more information on the procedure used: The DHS Wealth Index, DHS Comparative Reports No. 6, Shea Oscar Rutstein, Kiersten Johnson, ORC Macro International Inc., 2004. The DHS Wealth Index: Approaches for Rural and Urban Areas, Shea O. Rutstein, ORC Macro International Inc., 2008. MICS Methodological Paper No. 4, Review of options for reporting water, sanitation and hygiene coverage by wealth quintile, UNICEF, 2016. | E402: 1 | J402: 1 | O402: 1
C403: Has refrigerator | E403: 0.6983147607 | H403: Has refrigerator | J403: 0.6909332078 | M403: Has television | O403: 0.7259101321
C404: Has television | E404: 0.674073381 | H404: Fan | J404: 0.627311375 | M404: Has electricity | O404: 0.7076949778
C405: Has electricity | E405: 0.6592876502 | H405: Microwave oven | J405: 0.6201549125 | M405: Has refrigerator | O405: 0.6972698035
C406: Fan | E406: 0.6381228724 | H406: Biogas for cooking | J406: -0.6200663445 | M406: Windows with glass | O406: 0.6446011821
C407: LPG for cooking | E407: 0.613500944 | H407: LPG for cooking | J407: 0.6047555858 | M407: Fan | O407: 0.625199489
C408: Windows with glass | E408: 0.6123756792 | H408: VHS player | J408: 0.5913138112 | M408: Charcoal for cooking | O408: -0.6000702414
C409: Has bank account | E409: 0.5875618224 | H409: Washing Machine | J409: 0.5792715332 | M409: LPG for cooking | O409: 0.5919809237
C410: Vanity | E410: 0.5659338777 | H410: Has electricity | J410: 0.5785410987 | M410: Has bank account | O410: 0.5766736006
C411: VHS player | E411: 0.5653708527 | H411: Has television | J411: 0.5403632683 | M411: Thatch, palm leaf roof | O411: -0.5712202744
C412: Microwave oven | E412: 0.5602700793 | H412: Vanity | J412: 0.536233402 | M412: Vanity | O412: 0.5589320583
C413: Mobile phone | E413: 0.5328060132 | H413: Has bank account | J413: 0.5263959944 | M413: Number of members per sleeping room | O413: -0.5543306157
... 321 more rows

Sheet MICS07
A2: =A1026 -> Guyana
A3: =A1034 -> 2007
A4: Use of drinking water sources
A5: by wealth quintile and sub-national region
A6: Notes:
A7: WHO/UNICEF JMP customised wealth index excludes water,
A8: sanitation and hygiene assets.
A9: Survey used for analysis: | B9: =A1025 -> MICS07
A10: =B1028 -> 
A11: =B1027 -> 
A14: Use of drinking water sources | C14: NATIONAL wealth index quintile | H14: URBAN wealth index quintile | M14: RURAL wealth index quintile | R14: SUB-REGIONS: | BA14: Raw numbers of respondents: | BB14: Use of drinking water sources | BC14: NATIONAL wealth index quintile | BH14: URBAN wealth index quintile | BM14: RURAL wealth index quintile | BR14: SUB-REGIONS:
A15: Weighted percentage (used in graphs) | C15: Poorest | D15: Poor | E15: Middle | F15: Rich | G15: Richest | H15: Poorest | I15: Poor | J15: Middle | K15: Rich | L15: Richest | M15: Poorest | N15: Poor | O15: Middle | P15: Rich | Q15: Richest | R15: Region 01 | S15: Region 02 | T15: Region 03 | U15: Region 04 | V15: Region 05 | W15: Region 06 | X15: Region 07 | Y15: Region 08 | Z15: Region 09 | AA15: Region 10 | BA15: Water data, raw numbers (weighted) | BC15: Poorest | BD15: Poor | BE15: Middle | BF15: Rich | BG15: Richest | BH15: Poorest | BI15: Poor | BJ15: Middle | BK15: Rich | BL15: Richest | BM15: Poorest | BN15: Poor | BO15: Middle | BP15: Rich | BQ15: Richest | BR15: Region 01 | BS15: Region 02 | BT15: Region 03 | BU15: Region 04 | BV15: Region 05 | BW15: Region 06 | BX15: Region 07 | BY15: Region 08 | BZ15: Region 09 | CA15: Region 10
A16: Water | B16: Improved | C16: 70.20250782 | D16: 96.08568912 | E16: 98.67205139 | F16: 99.57864978 | G16: 99.46181186 | H16: 98.82680403 | I16: 98.52519527 | J16: 99.87632607 | K16: 99.79625405 | L16: 100 | M16: 61.49258449 | N16: 93.07723446 | O16: 98.17732887 | P16: 99.29630436 | Q16: 99.25358854 | R16: 77.20281861 | S16: 89.31887925 | T16: 99.04869779 | U16: 99.18353272 | V16: 95.2100217 | W16: 96.54763595 | X16: 57.61746357 | Y16: 40.21614174 | Z16: 43.59707222 | AA16: 81.73104406 | BA16: Water | BB16: Improved | BC16: N/A | BD16: N/A | BE16: N/A | BF16: N/A | BG16: N/A | BH16: N/A | BI16: N/A | BJ16: N/A | BK16: N/A | BL16: N/A | BM16: N/A | BN16: N/A | BO16: N/A | BP16: N/A | BQ16: N/A | BR16: N/A | BS16: N/A | BT16: N/A | BU16: N/A | BV16: N/A | BW16: N/A | BX16: N/A | BY16: N/A | BZ16: N/A | CA16: N/A
B17: Not Improved | C17: 29.79749218 | D17: 3.914310875 | E17: 1.327948612 | F17: 0.4213502191 | G17: 0.5381881433 | H17: 1.173195974 | I17: 1.474804728 | J17: 0.1236739252 | K17: 0.2037459475 | L17: 0 | M17: 38.50741551 | N17: 6.922765543 | O17: 1.822671131 | P17: 0.7036956382 | Q17: 0.7464114581 | R17: 22.79718139 | S17: 10.68112075 | T17: 0.9513022094 | U17: 0.8164672752 | V17: 4.789978301 | W17: 3.452364046 | X17: 42.38253643 | Y17: 59.78385826 | Z17: 56.40292778 | AA17: 18.26895594 | BB17: Not Improved | BC17: N/A | BD17: N/A | BE17: N/A | BF17: N/A | BG17: N/A | BH17: N/A | BI17: N/A | BJ17: N/A | BK17: N/A | BL17: N/A | BM17: N/A | BN17: N/A | BO17: N/A | BP17: N/A | BQ17: N/A | BR17: N/A | BS17: N/A | BT17: N/A | BU17: N/A | BV17: N/A | BW17: N/A | BX17: N/A | BY17: N/A | BZ17: N/A | CA17: N/A
A18: Water ladder | B18: Basic | C18: =C16*C23/100 -> 68.18554755 | D18: =D16*D23/100 -> 95.122896 | E18: =E16*E23/100 -> 97.79480112 | F18: 98.55654484 | G18: 99.36720361 | H18: 97.20360266 | I18: 97.29769582 | J18: 99.5141865 | K18: 99.45521504 | L18: 100 | M18: 59.28504572 | N18: 92.17550725 | O18: 97.32884103 | P18: 98.53957419 | Q18: 98.45352965 | R18: 75.49146927 | S18: 89.31887925 | T18: 98.50860381 | U18: 98.38000333 | V18: 93.96157092 | W18: 94.54343288 | X18: 57.61746357 | Y18: 36.89342892 | Z18: 41.42174571 | AA18: 81.45675485 | BA18: Water ladder | BB18: Basic | BC18: N/A | BD18: N/A | BE18: N/A | BF18: N/A | BG18: N/A | BH18: N/A | BI18: N/A | BJ18: N/A | BK18: N/A | BL18: N/A | BM18: N/A | BN18: N/A | BO18: N/A | BP18: N/A | BQ18: N/A | BR18: N/A | BS18: N/A | BT18: N/A | BU18: N/A | BV18: N/A | BW18: N/A | BX18: N/A | BY18: N/A | BZ18: N/A | CA18: N/A
B19: Limited | C19: =C16*C22/100 -> 2.016960265 | D19: =D16*D22/100 -> 0.962793127 | E19: =E16*E22/100 -> 0.8772502673 | F19: 1.022104938 | G19: 0.09460824879 | H19: 1.623201365 | I19: 1.227499453 | J19: 0.3621395749 | K19: 0.341039011 | L19: 0 | M19: 2.207538768 | N19: 0.901727208 | O19: 0.8484878407 | P19: 0.7567301764 | Q19: 0.8000588962 | R19: 1.711349346 | S19: 0 | T19: 0.540093979 | U19: 0.8035293974 | V19: 1.248450778 | W19: 2.00420307 | X19: 0 | Y19: 3.322712815 | Z19: 2.175326514 | AA19: 0.2742892095 | BB19: Limited | BC19: N/A | BD19: N/A | BE19: N/A | BF19: N/A | BG19: N/A | BH19: N/A | BI19: N/A | BJ19: N/A | BK19: N/A | BL19: N/A | BM19: N/A | BN19: N/A | BO19: N/A | BP19: N/A | BQ19: N/A | BR19: N/A | BS19: N/A | BT19: N/A | BU19: N/A | BV19: N/A | BW19: N/A | BX19: N/A | BY19: N/A | BZ19: N/A | CA19: N/A
B20: Unimproved | C20: =100-C18-C19-C21 -> 9.450010228 | D20: =100-D18-D19-D21 -> 2.218040657 | E20: =100-E18-E19-E21 -> 0.8939416346 | F20: 0.290931323 | G20: 0.462034224 | H20: 1.173195974 | I20: 0.6887627203 | J20: 0.1236739252 | K20: 0.2037459475 | L20: 0 | M20: 12.02217349 | N20: 2.999625312 | O20: 1.466118636 | P20: 0.6031131458 | Q20: 0.5605454645 | R20: 1.363334707 | S20: -0.04431459684 | T20: 0.4640011833 | U20: 0.5648916893 | V20: 4.789978301 | W20: 2.704275378 | X20: 0.1379615186 | Y20: 9.214838021 | Z20: 49.21968201 | AA20: 0.3847351719 | BB20: Unimproved | BC20: N/A | BD20: N/A | BE20: N/A | BF20: N/A | BG20: N/A | BH20: N/A | BI20: N/A | BJ20: N/A | BK20: N/A | BL20: N/A | BM20: N/A | BN20: N/A | BO20: N/A | BP20: N/A | BQ20: N/A | BR20: N/A | BS20: N/A | BT20: N/A | BU20: N/A | BV20: N/A | BW20: N/A | BX20: N/A | BY20: N/A | BZ20: N/A | CA20: N/A
B21: Surface water | C21: 20.34748195 | D21: 1.696270219 | E21: 0.4340069777 | F21: 0.1304188961 | G21: 0.07615391922 | H21: 0 | I21: 0.7860420081 | J21: 0 | K21: 0 | L21: 0 | M21: 26.48524202 | N21: 3.923140231 | O21: 0.3565524957 | P21: 0.1005824924 | Q21: 0.1858659935 | R21: 21.43384668 | S21: 10.72543534 | T21: 0.4873010261 | U21: 0.2515755859 | V21: 0 | W21: 0.7480886675 | X21: 42.24457491 | Y21: 50.56902024 | Z21: 7.183245768 | AA21: 17.88422077 | BB21: Surface water | BC21: N/A | BD21: N/A | BE21: N/A | BF21: N/A | BG21: N/A | BH21: N/A | BI21: N/A | BJ21: N/A | BK21: N/A | BL21: N/A | BM21: N/A | BN21: N/A | BO21: N/A | BP21: N/A | BQ21: N/A | BR21: N/A | BS21: N/A | BT21: N/A | BU21: N/A | BV21: N/A | BW21: N/A | BX21: N/A | BY21: N/A | BZ21: N/A | CA21: N/A
A22: Improved water point at more than 30 minutes | B22: Yes | C22: 2.873060134 | D22: 1.002015114 | E22: 0.8890564804 | F22: 1.026429802 | G22: 0.09512017429 | H22: 1.642470766 | I22: 1.245873656 | J22: 0.3625880018 | K22: 0.3417352828 | L22: 0 | M22: 3.589926795 | N22: 0.9687945858 | O22: 0.8642400954 | P22: 0.7620929915 | Q22: 0.8060755363 | R22: 2.216692832 | S22: 0 | T22: 0.5452812516 | U22: 0.8101439577 | V22: 1.31125984 | W22: 2.075869648 | X22: 0 | Y22: 8.26213722 | Z22: 4.989616053 | AA22: 0.3355997867 | BA22: Improved water point at more than 30 minutes | BB22: Yes | BC22: N/A | BD22: N/A | BE22: N/A | BF22: N/A | BG22: N/A | BH22: N/A | BI22: N/A | BJ22: N/A | BK22: N/A | BL22: N/A | BM22: N/A | BN22: N/A | BO22: N/A | BP22: N/A | BQ22: N/A | BR22: N/A | BS22: N/A | BT22: N/A | BU22: N/A | BV22: N/A | BW22: N/A | BX22: N/A | BY22: N/A | BZ22: N/A | CA22: N/A
B23: No | C23: 97.12693987 | D23: 98.99798489 | E23: 99.11094352 | F23: 98.9735702 | G23: 99.90487983 | H23: 98.35752923 | I23: 98.75412634 | J23: 99.637412 | K23: 99.65826472 | L23: 100 | M23: 96.4100732 | N23: 99.03120541 | O23: 99.1357599 | P23: 99.23790701 | Q23: 99.19392446 | R23: 97.78330717 | S23: 100 | T23: 99.45471875 | U23: 99.18985604 | V23: 98.68874016 | W23: 97.92413035 | X23: 100 | Y23: 91.73786278 | Z23: 95.01038395 | AA23: 99.66440021 | BB23: No | BC23: N/A | BD23: N/A | BE23: N/A | BF23: N/A | BG23: N/A | BH23: N/A | BI23: N/A | BJ23: N/A | BK23: N/A | BL23: N/A | BM23: N/A | BN23: N/A | BO23: N/A | BP23: N/A | BQ23: N/A | BR23: N/A | BS23: N/A | BT23: N/A | BU23: N/A | BV23: N/A | BW23: N/A | BX23: N/A | BY23: N/A | BZ23: N/A | CA23: N/A
A24: Manually calculated ratios | B24: Improved wells
B25: Improved springs
B26: Other
C27: NATIONAL wealth index quintile | H27: URBAN wealth index quintile | M27: RURAL wealth index quintile | R27: SUB-REGIONS: | BA27: Raw numbers of respondents: | BB27: Use of drinking water sources | BC27: NATIONAL wealth index quintile | BH27: URBAN wealth index quintile | BM27: RURAL wealth index quintile | BR27: SUB-REGIONS:
A28: Percentage based on weighted population | C28: Poorest | D28: Poor | E28: Middle | F28: Rich | G28: Richest | H28: Poorest | I28: Poor | J28: Middle | K28: Rich | L28: Richest | M28: Poorest | N28: Poor | O28: Middle | P28: Rich | Q28: Richest | R28: Region 01 | S28: Region 02 | T28: Region 03 | U28: Region 04 | V28: Region 05 | W28: Region 06 | X28: Region 07 | Y28: Region 08 | Z28: Region 09 | AA28: Region 10 | BA28: Water data, raw numbers (weighted) | BC28: Poorest | BD28: Poor | BE28: Middle | BF28: Rich | BG28: Richest | BH28: Poorest | BI28: Poor | BJ28: Middle | BK28: Rich | BL28: Richest | BM28: Poorest | BN28: Poor | BO28: Middle | BP28: Rich | BQ28: Richest | BR28: Region 01 | BS28: Region 02 | BT28: Region 03 | BU28: Region 04 | BV28: Region 05 | BW28: Region 06 | BX28: Region 07 | BY28: Region 08 | BZ28: Region 09 | CA28: Region 10
A29: Piped water | B29: Yes | C29: 31.03826154 | D29: 65.44357486 | E29: 71.836897 | F29: 77.77552665 | G29: 80.4951632 | H29: 75.91759742 | I29: 72.51544531 | J29: 83.41606561 | K29: 92.02478681 | L29: 85.16951116 | M29: 18.86745403 | N29: 59.1269906 | O29: 71.51068123 | P29: 70.52836941 | Q29: 74.86408266 | R29: 11.18966477 | S29: 6.021248537 | T29: 59.01521666 | U29: 79.67026228 | V29: 87.0121167 | W29: 85.2920455 | X29: 13.6223491 | Y29: 5.909588082 | Z29: 5.585450939 | AA29: 67.12413334 | BA29: Piped water | BB29: Yes | BC29: N/A | BD29: N/A | BE29: N/A | BF29: N/A | BG29: N/A | BH29: N/A | BI29: N/A | BJ29: N/A | BK29: N/A | BL29: N/A | BM29: N/A | BN29: N/A | BO29: N/A | BP29: N/A | BQ29: N/A | BR29: N/A | BS29: N/A | BT29: N/A | BU29: N/A | BV29: N/A | BW29: N/A | BX29: N/A | BY29: N/A | BZ29: N/A | CA29: N/A
B30: No | C30: 68.96173846 | D30: 34.55642514 | E30: 28.163103 | F30: 22.22447335 | G30: 19.5048368 | H30: 24.08240258 | I30: 27.48455469 | J30: 16.58393439 | K30: 7.975213191 | L30: 14.83048884 | M30: 81.13254597 | N30: 40.8730094 | O30: 28.48931877 | P30: 29.47163059 | Q30: 25.13591734 | R30: 88.81033523 | S30: 93.97875146 | T30: 40.98478334 | U30: 20.32973772 | V30: 12.9878833 | W30: 14.7079545 | X30: 86.3776509 | Y30: 94.09041192 | Z30: 94.41454906 | AA30: 32.87586666 | BB30: No | BC30: N/A | BD30: N/A | BE30: N/A | BF30: N/A | BG30: N/A | BH30: N/A | BI30: N/A | BJ30: N/A | BK30: N/A | BL30: N/A | BM30: N/A | BN30: N/A | BO30: N/A | BP30: N/A | BQ30: N/A | BR30: N/A | BS30: N/A | BT30: N/A | BU30: N/A | BV30: N/A | BW30: N/A | BX30: N/A | BY30: N/A | BZ30: N/A | CA30: N/A
A31: Piped water on premises | B31: Yes | C31: 26.43961906 | D31: 63.63304154 | E31: 71.65778013 | F31: 76.89206987 | G31: 79.67425596 | H31: 70.16577397 | I31: 71.45147706 | J31: 82.50333386 | K31: 91.41966324 | L31: 83.17463483 | M31: 15.67776656 | N31: 56.2029065 | O31: 71.29186436 | P31: 70.30987102 | Q31: 73.90243757 | R31: 10.50534605 | S31: 6.021248537 | T31: 57.6773507 | U31: 77.81292805 | V31: 85.89181028 | W31: 82.27365382 | X31: 13.6223491 | Y31: 1.660900112 | Z31: 4.125492502 | AA31: 66.76452906 | BA31: Piped water on premises | BB31: Yes | BC31: N/A | BD31: N/A | BE31: N/A | BF31: N/A | BG31: N/A | BH31: N/A | BI31: N/A | BJ31: N/A | BK31: N/A | BL31: N/A | BM31: N/A | BN31: N/A | BO31: N/A | BP31: N/A | BQ31: N/A | BR31: N/A | BS31: N/A | BT31: N/A | BU31: N/A | BV31: N/A | BW31: N/A | BX31: N/A | BY31: N/A | BZ31: N/A | CA31: N/A
B32: No | C32: 73.56038094 | D32: 36.36695846 | E32: 28.34221987 | F32: 23.10793013 | G32: 20.32574404 | H32: 29.83422603 | I32: 28.54852294 | J32: 17.49666614 | K32: 8.580336765 | L32: 16.82536517 | M32: 84.32223344 | N32: 43.7970935 | O32: 28.70813564 | P32: 29.69012898 | Q32: 26.09756243 | R32: 89.49465395 | S32: 93.97875146 | T32: 42.3226493 | U32: 22.18707195 | V32: 14.10818972 | W32: 17.72634618 | X32: 86.3776509 | Y32: 98.33909989 | Z32: 95.8745075 | AA32: 33.23547094 | BB32: No | BC32: N/A | BD32: N/A | BE32: N/A | BF32: N/A | BG32: N/A | BH32: N/A | BI32: N/A | BJ32: N/A | BK32: N/A | BL32: N/A | BM32: N/A | BN32: N/A | BO32: N/A | BP32: N/A | BQ32: N/A | BR32: N/A | BS32: N/A | BT32: N/A | BU32: N/A | BV32: N/A | BW32: N/A | BX32: N/A | BY32: N/A | BZ32: N/A | CA32: N/A
A33: Piped water into dwelling | B33: Yes | C33: N/A | D33: N/A | E33: N/A | F33: N/A | G33: N/A | H33: N/A | I33: N/A | J33: N/A | K33: N/A | L33: N/A | M33: N/A | N33: N/A | O33: N/A | P33: N/A | Q33: N/A | R33: N/A | S33: N/A | T33: N/A | U33: N/A | V33: N/A | W33: N/A | X33: N/A | Y33: N/A | Z33: N/A | AA33: N/A | BA33: Piped water into dwelling | BB33: Yes | BC33: N/A | BD33: N/A | BE33: N/A | BF33: N/A | BG33: N/A | BH33: N/A | BI33: N/A | BJ33: N/A | BK33: N/A | BL33: N/A | BM33: N/A | BN33: N/A | BO33: N/A | BP33: N/A | BQ33: N/A | BR33: N/A | BS33: N/A | BT33: N/A | BU33: N/A | BV33: N/A | BW33: N/A | BX33: N/A | BY33: N/A | BZ33: N/A | CA33: N/A
B34: No | C34: N/A | D34: N/A | E34: N/A | F34: N/A | G34: N/A | H34: N/A | I34: N/A | J34: N/A | K34: N/A | L34: N/A | M34: N/A | N34: N/A | O34: N/A | P34: N/A | Q34: N/A | R34: N/A | S34: N/A | T34: N/A | U34: N/A | V34: N/A | W34: N/A | X34: N/A | Y34: N/A | Z34: N/A | AA34: N/A | BB34: No | BC34: N/A | BD34: N/A | BE34: N/A | BF34: N/A | BG34: N/A | BH34: N/A | BI34: N/A | BJ34: N/A | BK34: N/A | BL34: N/A | BM34: N/A | BN34: N/A | BO34: N/A | BP34: N/A | BQ34: N/A | BR34: N/A | BS34: N/A | BT34: N/A | BU34: N/A | BV34: N/A | BW34: N/A | BX34: N/A | BY34: N/A | BZ34: N/A | CA34: N/A
A35: Water source on premises | B35: Yes | C35: 57.04256506 | D35: 90.51735858 | E35: 94.14320235 | F35: 94.28327174 | G35: 96.27370719 | H35: 91.40620896 | I35: 94.18097068 | J35: 95.98958359 | K35: 97.93945203 | L35: 94.93947811 | M35: 48.5389342 | N35: 85.129806 | O35: 93.82020915 | P35: 93.41797864 | Q35: 95.1226762 | R35: 68.09255416 | S35: 85.01887432 | T35: 96.14289106 | U35: 94.15351366 | V35: 90.76047537 | W35: 86.30871337 | X35: 50.81549563 | Y35: 12.09878319 | Z35: 30.73894348 | AA35: 74.4671337 | BA35: Water source on premises | BB35: Yes | BC35: N/A | BD35: N/A | BE35: N/A | BF35: N/A | BG35: N/A | BH35: N/A | BI35: N/A | BJ35: N/A | BK35: N/A | BL35: N/A | BM35: N/A | BN35: N/A | BO35: N/A | BP35: N/A | BQ35: N/A | BR35: N/A | BS35: N/A | BT35: N/A | BU35: N/A | BV35: N/A | BW35: N/A | BX35: N/A | BY35: N/A | BZ35: N/A | CA35: N/A
B36: No | C36: 42.95743494 | D36: 9.482641417 | E36: 5.856797648 | F36: 5.71672826 | G36: 3.726292809 | H36: 8.59379104 | I36: 5.819029321 | J36: 4.010416415 | K36: 2.060547975 | L36: 5.060521888 | M36: 51.4610658 | N36: 14.870194 | O36: 6.179790849 | P36: 6.58202136 | Q36: 4.877323796 | R36: 31.90744584 | S36: 14.98112568 | T36: 3.85710894 | U36: 5.846486337 | V36: 9.239524628 | W36: 13.69128663 | X36: 49.18450437 | Y36: 87.90121681 | Z36: 69.26105652 | AA36: 25.5328663 | BB36: No | BC36: N/A | BD36: N/A | BE36: N/A | BF36: N/A | BG36: N/A | BH36: N/A | BI36: N/A | BJ36: N/A | BK36: N/A | BL36: N/A | BM36: N/A | BN36: N/A | BO36: N/A | BP36: N/A | BQ36: N/A | BR36: N/A | BS36: N/A | BT36: N/A | BU36: N/A | BV36: N/A | BW36: N/A | BX36: N/A | BY36: N/A | BZ36: N/A | CA36: N/A
A37: Improved Water source on premises | B37: Yes | C37: 76.42934869 | D37: 93.8411509 | E37: 95.29273747 | F37: 94.61074861 | G37: 96.73795643 | H37: 92.49131332 | I37: 95.59074754 | J37: 96.10844467 | K37: 97.93524517 | L37: 94.93947811 | M37: 71.71851812 | N37: 90.79165135 | O37: 95.40900919 | P37: 93.85630591 | Q37: 95.83802218 | R37: 85.93019818 | S37: 94.84802614 | T37: 97.06628477 | U37: 94.90138311 | V37: 95.32659877 | W37: 88.89129625 | X37: 86.85913055 | Y37: 24.15568135 | Z37: 26.78078522 | AA37: 90.92335972 | BA37: Improved water source on premises | BB37: Yes | BC37: N/A | BD37: N/A | BE37: N/A | BF37: N/A | BG37: N/A | BH37: N/A | BI37: N/A | BJ37: N/A | BK37: N/A | BL37: N/A | BM37: N/A | BN37: N/A | BO37: N/A | BP37: N/A | BQ37: N/A | BR37: N/A | BS37: N/A | BT37: N/A | BU37: N/A | BV37: N/A | BW37: N/A | BX37: N/A | BY37: N/A | BZ37: N/A | CA37: N/A
B38: No | C38: 23.57065131 | D38: 6.158849099 | E38: 4.707262532 | F38: 5.389251386 | G38: 3.262043571 | H38: 7.508686675 | I38: 4.409252457 | J38: 3.891555329 | K38: 2.064754829 | L38: 5.060521888 | M38: 28.28148188 | N38: 9.208348655 | O38: 4.590990812 | P38: 6.143694086 | Q38: 4.161977817 | R38: 14.06980182 | S38: 5.151973855 | T38: 2.933715228 | U38: 5.098616887 | V38: 4.673401232 | W38: 11.10870375 | X38: 13.14086945 | Y38: 75.84431865 | Z38: 73.21921478 | AA38: 9.076640283 | BB38: No | BC38: N/A | BD38: N/A | BE38: N/A | BF38: N/A | BG38: N/A | BH38: N/A | BI38: N/A | BJ38: N/A | BK38: N/A | BL38: N/A | BM38: N/A | BN38: N/A | BO38: N/A | BP38: N/A | BQ38: N/A | BR38: N/A | BS38: N/A | BT38: N/A | BU38: N/A | BV38: N/A | BW38: N/A | BX38: N/A | BY38: N/A | BZ38: N/A | CA38: N/A
A39: Piped water on premises available when needed | B39: Yes | C39: N/A | D39: N/A | E39: N/A | F39: N/A | G39: N/A | H39: N/A | I39: N/A | J39: N/A | K39: N/A | L39: N/A | M39: N/A | N39: N/A | O39: N/A | P39: N/A | Q39: N/A | R39: N/A | S39: N/A | T39: N/A | U39: N/A | V39: N/A | W39: N/A | X39: N/A | Y39: N/A | Z39: N/A | AA39: N/A | BA39: Piped water on premises available when needed | BB39: Yes | BC39: N/A | BD39: N/A | BE39: N/A | BF39: N/A | BG39: N/A | BH39: N/A | BI39: N/A | BJ39: N/A | BK39: N/A | BL39: N/A | BM39: N/A | BN39: N/A | BO39: N/A | BP39: N/A | BQ39: N/A | BR39: N/A | BS39: N/A | BT39: N/A | BU39: N/A | BV39: N/A | BW39: N/A | BX39: N/A | BY39: N/A | BZ39: N/A | CA39: N/A
B40: No | C40: N/A | D40: N/A | E40: N/A | F40: N/A | G40: N/A | H40: N/A | I40: N/A | J40: N/A | K40: N/A | L40: N/A | M40: N/A | N40: N/A | O40: N/A | P40: N/A | Q40: N/A | R40: N/A | S40: N/A | T40: N/A | U40: N/A | V40: N/A | W40: N/A | X40: N/A | Y40: N/A | Z40: N/A | AA40: N/A | BB40: No | BC40: N/A | BD40: N/A | BE40: N/A | BF40: N/A | BG40: N/A | BH40: N/A | BI40: N/A | BJ40: N/A | BK40: N/A | BL40: N/A | BM40: N/A | BN40: N/A | BO40: N/A | BP40: N/A | BQ40: N/A | BR40: N/A | BS40: N/A | BT40: N/A | BU40: N/A | BV40: N/A | BW40: N/A | BX40: N/A | BY40: N/A | BZ40: N/A | CA40: N/A
A41: Water point at more than 30 minutes | B41: Yes | C41: 3.081181975 | D41: 1.116864605 | E41: 0.9552254862 | F41: 1.022409148 | G41: 0.2542244633 | H41: 1.623093728 | I41: 1.227478591 | J41: 0.3625880018 | K41: 0.3410348032 | L41: 0 | M41: 3.681798467 | N41: 1.112255818 | O41: 0.9591318965 | P41: 0.7566832585 | Q41: 1.022257931 | R41: 3.732590828 | S41: 0 | T41: 0.5423845633 | U41: 1.05372206 | V41: 1.78815266 | W41: 2.007777797 | X41: 0.8408147453 | Y41: 4.649541891 | Z41: 3.129762278 | AA41: 0.6801087614 | BA41: Water point at more than 30 minutes | BB41: Yes | BC41: N/A | BD41: N/A | BE41: N/A | BF41: N/A | BG41: N/A | BH41: N/A | BI41: N/A | BJ41: N/A | BK41: N/A | BL41: N/A | BM41: N/A | BN41: N/A | BO41: N/A | BP41: N/A | BQ41: N/A | BR41: N/A | BS41: N/A | BT41: N/A | BU41: N/A | BV41: N/A | BW41: N/A | BX41: N/A | BY41: N/A | BZ41: N/A | CA41: N/A
B42: No | C42: 96.91881803 | D42: 98.8831354 | E42: 99.04477451 | F42: 98.97759085 | G42: 99.74577554 | H42: 98.37690627 | I42: 98.77252141 | J42: 99.637412 | K42: 99.6589652 | L42: 100 | M42: 96.31820153 | N42: 98.88774418 | O42: 99.0408681 | P42: 99.24331674 | Q42: 98.97774207 | R42: 96.26740917 | S42: 100 | T42: 99.45761544 | U42: 98.94627794 | V42: 98.21184734 | W42: 97.9922222 | X42: 99.15918525 | Y42: 95.35045811 | Z42: 96.87023772 | AA42: 99.31989124 | BB42: No | BC42: N/A | BD42: N/A | BE42: N/A | BF42: N/A | BG42: N/A | BH42: N/A | BI42: N/A | BJ42: N/A | BK42: N/A | BL42: N/A | BM42: N/A | BN42: N/A | BO42: N/A | BP42: N/A | BQ42: N/A | BR42: N/A | BS42: N/A | BT42: N/A | BU42: N/A | BV42: N/A | BW42: N/A | BX42: N/A | BY42: N/A | BZ42: N/A | CA42: N/A
A43: Water source available when needed | B43: Yes | C43: N/A | D43: N/A | E43: N/A | F43: N/A | G43: N/A | H43: N/A | I43: N/A | J43: N/A | K43: N/A | L43: N/A | M43: N/A | N43: N/A | O43: N/A | P43: N/A | Q43: N/A | R43: N/A | S43: N/A | T43: N/A | U43: N/A | V43: N/A | W43: N/A | X43: N/A | Y43: N/A | Z43: N/A | AA43: N/A | BA43: Water source available when needed | BB43: Yes | BC43: N/A | BD43: N/A | BE43: N/A | BF43: N/A | BG43: N/A | BH43: N/A | BI43: N/A | BJ43: N/A | BK43: N/A | BL43: N/A | BM43: N/A | BN43: N/A | BO43: N/A | BP43: N/A | BQ43: N/A | BR43: N/A | BS43: N/A | BT43: N/A | BU43: N/A | BV43: N/A | BW43: N/A | BX43: N/A | BY43: N/A | BZ43: N/A | CA43: N/A
B44: No | C44: N/A | D44: N/A | E44: N/A | F44: N/A | G44: N/A | H44: N/A | I44: N/A | J44: N/A | K44: N/A | L44: N/A | M44: N/A | N44: N/A | O44: N/A | P44: N/A | Q44: N/A | R44: N/A | S44: N/A | T44: N/A | U44: N/A | V44: N/A | W44: N/A | X44: N/A | Y44: N/A | Z44: N/A | AA44: N/A | BB44: No | BC44: N/A | BD44: N/A | BE44: N/A | BF44: N/A | BG44: N/A | BH44: N/A | BI44: N/A | BJ44: N/A | BK44: N/A | BL44: N/A | BM44: N/A | BN44: N/A | BO44: N/A | BP44: N/A | BQ44: N/A | BR44: N/A | BS44: N/A | BT44: N/A | BU44: N/A | BV44: N/A | BW44: N/A | BX44: N/A | BY44: N/A | BZ44: N/A | CA44: N/A
A45: Improved water source available when needed | B45: Yes | C45: N/A | D45: N/A | E45: N/A | F45: N/A | G45: N/A | H45: N/A | I45: N/A | J45: N/A | K45: N/A | L45: N/A | M45: N/A | N45: N/A | O45: N/A | P45: N/A | Q45: N/A | R45: N/A | S45: N/A | T45: N/A | U45: N/A | V45: N/A | W45: N/A | X45: N/A | Y45: N/A | Z45: N/A | AA45: N/A | BA45: Improved water source available when needed | BB45: Yes | BC45: N/A | BD45: N/A | BE45: N/A | BF45: N/A | BG45: N/A | BH45: N/A | BI45: N/A | BJ45: N/A | BK45: N/A | BL45: N/A | BM45: N/A | BN45: N/A | BO45: N/A | BP45: N/A | BQ45: N/A | BR45: N/A | BS45: N/A | BT45: N/A | BU45: N/A | BV45: N/A | BW45: N/A | BX45: N/A | BY45: N/A | BZ45: N/A | CA45: N/A
B46: No | C46: N/A | D46: N/A | E46: N/A | F46: N/A | G46: N/A | H46: N/A | I46: N/A | J46: N/A | K46: N/A | L46: N/A | M46: N/A | N46: N/A | O46: N/A | P46: N/A | Q46: N/A | R46: N/A | S46: N/A | T46: N/A | U46: N/A | V46: N/A | W46: N/A | X46: N/A | Y46: N/A | Z46: N/A | AA46: N/A | BB46: No | BC46: N/A | BD46: N/A | BE46: N/A | BF46: N/A | BG46: N/A | BH46: N/A | BI46: N/A | BJ46: N/A | BK46: N/A | BL46: N/A | BM46: N/A | BN46: N/A | BO46: N/A | BP46: N/A | BQ46: N/A | BR46: N/A | BS46: N/A | BT46: N/A | BU46: N/A | BV46: N/A | BW46: N/A | BX46: N/A | BY46: N/A | BZ46: N/A | CA46: N/A
A47: Microbiological quality at point of collection | B47: Not contaminated (No E. coli in 100 mL) | C47: N/A | D47: N/A | E47: N/A | F47: N/A | G47: N/A | H47: N/A | I47: N/A | J47: N/A | K47: N/A | L47: N/A | M47: N/A | N47: N/A | O47: N/A | P47: N/A | Q47: N/A | R47: N/A | S47: N/A | T47: N/A | U47: N/A | V47: N/A | W47: N/A | X47: N/A | Y47: N/A | Z47: N/A | AA47: N/A | BA47: Microbiological quality at point of collection | BB47: Not contaminated (No E. coli in 100 mL) | BC47: N/A | BD47: N/A | BE47: N/A | BF47: N/A | BG47: N/A | BH47: N/A | BI47: N/A | BJ47: N/A | BK47: N/A | BL47: N/A | BM47: N/A | BN47: N/A | BO47: N/A | BP47: N/A | BQ47: N/A | BR47: N/A | BS47: N/A | BT47: N/A | BU47: N/A | BV47: N/A | BW47: N/A | BX47: N/A | BY47: N/A | BZ47: N/A | CA47: N/A
B48: Contaminated (E. coli detected in 100 mL) | C48: N/A | D48: N/A | E48: N/A | F48: N/A | G48: N/A | H48: N/A | I48: N/A | J48: N/A | K48: N/A | L48: N/A | M48: N/A | N48: N/A | O48: N/A | P48: N/A | Q48: N/A | R48: N/A | S48: N/A | T48: N/A | U48: N/A | V48: N/A | W48: N/A | X48: N/A | Y48: N/A | Z48: N/A | AA48: N/A | BB48: Contaminated (E. coli detected in 100 mL) | BC48: N/A | BD48: N/A | BE48: N/A | BF48: N/A | BG48: N/A | BH48: N/A | BI48: N/A | BJ48: N/A | BK48: N/A | BL48: N/A | BM48: N/A | BN48: N/A | BO48: N/A | BP48: N/A | BQ48: N/A | BR48: N/A | BS48: N/A | BT48: N/A | BU48: N/A | BV48: N/A | BW48: N/A | BX48: N/A | BY48: N/A | BZ48: N/A | CA48: N/A
B49: Highly contaminated (>100 CFU/100 mL) | C49: N/A | D49: N/A | E49: N/A | F49: N/A | G49: N/A | H49: N/A | I49: N/A | J49: N/A | K49: N/A | L49: N/A | M49: N/A | N49: N/A | O49: N/A | P49: N/A | Q49: N/A | R49: N/A | S49: N/A | T49: N/A | U49: N/A | V49: N/A | W49: N/A | X49: N/A | Y49: N/A | Z49: N/A | AA49: N/A | BB49: Highly contaminated (>100 CFU/100 mL) | BC49: N/A | BD49: N/A | BE49: N/A | BF49: N/A | BG49: N/A | BH49: N/A | BI49: N/A | BJ49: N/A | BK49: N/A | BL49: N/A | BM49: N/A | BN49: N/A | BO49: N/A | BP49: N/A | BQ49: N/A | BR49: N/A | BS49: N/A | BT49: N/A | BU49: N/A | BV49: N/A | BW49: N/A | BX49: N/A | BY49: N/A | BZ49: N/A | CA49: N/A
A50: Microbiological quality of improved water sources at point of collection | B50: Not contaminated (No E. coli in 100 mL) | C50: N/A | D50: N/A | E50: N/A | F50: N/A | G50: N/A | H50: N/A | I50: N/A | J50: N/A | K50: N/A | L50: N/A | M50: N/A | N50: N/A | O50: N/A | P50: N/A | Q50: N/A | R50: N/A | S50: N/A | T50: N/A | U50: N/A | V50: N/A | W50: N/A | X50: N/A | Y50: N/A | Z50: N/A | AA50: N/A | BA50: Microbiological quality of improved water sources at point of collection | BB50: Not contaminated (No E. coli in 100 mL) | BC50: N/A | BD50: N/A | BE50: N/A | BF50: N/A | BG50: N/A | BH50: N/A | BI50: N/A | BJ50: N/A | BK50: N/A | BL50: N/A | BM50: N/A | BN50: N/A | BO50: N/A | BP50: N/A | BQ50: N/A | BR50: N/A | BS50: N/A | BT50: N/A | BU50: N/A | BV50: N/A | BW50: N/A | BX50: N/A | BY50: N/A | BZ50: N/A | CA50: N/A
B51: Contaminated (E. coli detected in 100 mL) | C51: N/A | D51: N/A | E51: N/A | F51: N/A | G51: N/A | H51: N/A | I51: N/A | J51: N/A | K51: N/A | L51: N/A | M51: N/A | N51: N/A | O51: N/A | P51: N/A | Q51: N/A | R51: N/A | S51: N/A | T51: N/A | U51: N/A | V51: N/A | W51: N/A | X51: N/A | Y51: N/A | Z51: N/A | AA51: N/A | BB51: Contaminated (E. coli detected in 100 mL) | BC51: N/A | BD51: N/A | BE51: N/A | BF51: N/A | BG51: N/A | BH51: N/A | BI51: N/A | BJ51: N/A | BK51: N/A | BL51: N/A | BM51: N/A | BN51: N/A | BO51: N/A | BP51: N/A | BQ51: N/A | BR51: N/A | BS51: N/A | BT51: N/A | BU51: N/A | BV51: N/A | BW51: N/A | BX51: N/A | BY51: N/A | BZ51: N/A | CA51: N/A
B52: Highly contaminated (>100 CFU/100 mL) | C52: N/A | D52: N/A | E52: N/A | F52: N/A | G52: N/A | H52: N/A | I52: N/A | J52: N/A | K52: N/A | L52: N/A | M52: N/A | N52: N/A | O52: N/A | P52: N/A | Q52: N/A | R52: N/A | S52: N/A | T52: N/A | U52: N/A | V52: N/A | W52: N/A | X52: N/A | Y52: N/A | Z52: N/A | AA52: N/A | BB52: Highly contaminated (>100 CFU/100 mL) | BC52: N/A | BD52: N/A | BE52: N/A | BF52: N/A | BG52: N/A | BH52: N/A | BI52: N/A | BJ52: N/A | BK52: N/A | BL52: N/A | BM52: N/A | BN52: N/A | BO52: N/A | BP52: N/A | BQ52: N/A | BR52: N/A | BS52: N/A | BT52: N/A | BU52: N/A | BV52: N/A | BW52: N/A | BX52: N/A | BY52: N/A | BZ52: N/A | CA52: N/A
A53: Microbiological quality of piped on premises at point of collection | B53: Not contaminated (No E. coli in 100 mL) | C53: N/A | D53: N/A | E53: N/A | F53: N/A | G53: N/A | H53: N/A | I53: N/A | J53: N/A | K53: N/A | L53: N/A | M53: N/A | N53: N/A | O53: N/A | P53: N/A | Q53: N/A | R53: N/A | S53: N/A | T53: N/A | U53: N/A | V53: N/A | W53: N/A | X53: N/A | Y53: N/A | Z53: N/A | AA53: N/A | BA53: Microbiological quality of piped on premises at point of collection | BB53: Not contaminated (No E. coli in 100 mL) | BC53: N/A | BD53: N/A | BE53: N/A | BF53: N/A | BG53: N/A | BH53: N/A | BI53: N/A | BJ53: N/A | BK53: N/A | BL53: N/A | BM53: N/A | BN53: N/A | BO53: N/A | BP53: N/A | BQ53: N/A | BR53: N/A | BS53: N/A | BT53: N/A | BU53: N/A | BV53: N/A | BW53: N/A | BX53: N/A | BY53: N/A | BZ53: N/A | CA53: N/A
B54: Contaminated (E. coli detected in 100 mL) | C54: N/A | D54: N/A | E54: N/A | F54: N/A | G54: N/A | H54: N/A | I54: N/A | J54: N/A | K54: N/A | L54: N/A | M54: N/A | N54: N/A | O54: N/A | P54: N/A | Q54: N/A | R54: N/A | S54: N/A | T54: N/A | U54: N/A | V54: N/A | W54: N/A | X54: N/A | Y54: N/A | Z54: N/A | AA54: N/A | BB54: Contaminated (E. coli detected in 100 mL) | BC54: N/A | BD54: N/A | BE54: N/A | BF54: N/A | BG54: N/A | BH54: N/A | BI54: N/A | BJ54: N/A | BK54: N/A | BL54: N/A | BM54: N/A | BN54: N/A | BO54: N/A | BP54: N/A | BQ54: N/A | BR54: N/A | BS54: N/A | BT54: N/A | BU54: N/A | BV54: N/A | BW54: N/A | BX54: N/A | BY54: N/A | BZ54: N/A | CA54: N/A
B55: Highly contaminated (>100 CFU/100 mL) | C55: N/A | D55: N/A | E55: N/A | F55: N/A | G55: N/A | H55: N/A | I55: N/A | J55: N/A | K55: N/A | L55: N/A | M55: N/A | N55: N/A | O55: N/A | P55: N/A | Q55: N/A | R55: N/A | S55: N/A | T55: N/A | U55: N/A | V55: N/A | W55: N/A | X55: N/A | Y55: N/A | Z55: N/A | AA55: N/A | BB55: Highly contaminated (>100 CFU/100 mL) | BC55: N/A | BD55: N/A | BE55: N/A | BF55: N/A | BG55: N/A | BH55: N/A | BI55: N/A | BJ55: N/A | BK55: N/A | BL55: N/A | BM55: N/A | BN55: N/A | BO55: N/A | BP55: N/A | BQ55: N/A | BR55: N/A | BS55: N/A | BT55: N/A | BU55: N/A | BV55: N/A | BW55: N/A | BX55: N/A | BY55: N/A | BZ55: N/A | CA55: N/A
C56: NATIONAL wealth index quintile | H56: URBAN wealth index quintile | M56: RURAL wealth index quintile | R56: SUB-REGIONS: | BA56: Raw numbers of respondents: | BB56: Use of drinking water sources | BC56: NATIONAL wealth index quintile | BH56: URBAN wealth index quintile | BM56: RURAL wealth index quintile | BR56: SUB-REGIONS:
A57: Percentage based on weighted population | C57: Poorest | D57: Poor | E57: Middle | F57: Rich | G57: Richest | H57: Poorest | I57: Poor | J57: Middle | K57: Rich | L57: Richest | M57: Poorest | N57: Poor | O57: Middle | P57: Rich | Q57: Richest | R57: Region 01 | S57: Region 02 | T57: Region 03 | U57: Region 04 | V57: Region 05 | W57: Region 06 | X57: Region 07 | Y57: Region 08 | Z57: Region 09 | AA57: Region 10 | BA57: Water data, raw numbers (weighted) | BC57: Poorest | BD57: Poor | BE57: Middle | BF57: Rich | BG57: Richest | BH57: Poorest | BI57: Poor | BJ57: Middle | BK57: Rich | BL57: Richest | BM57: Poorest | BN57: Poor | BO57: Middle | BP57: Rich | BQ57: Richest | BR57: Region 01 | BS57: Region 02 | BT57: Region 03 | BU57: Region 04 | BV57: Region 05 | BW57: Region 06 | BX57: Region 07 | BY57: Region 08 | BZ57: Region 09 | CA57: Region 10
A58: Main source of drinking water | B58: Piped into dwelling | C58: 3.977525565 | D58: 12.83238076 | E58: 22.30901246 | F58: 28.14356677 | G58: 24.21079998 | H58: 9.004727971 | I58: 25.03571848 | J58: 34.24651467 | K58: 34.76059677 | L58: 20.3040287 | M58: 2.911828561 | N58: 9.959236972 | O58: 20.11996028 | P58: 22.88912118 | Q58: 23.3432456 | R58: 0.9743274286 | S58: 2.868071279 | T58: 19.55686375 | U58: 21.18540484 | V58: 33.86792277 | W58: 15.2747092 | X58: 4.180118333 | Y58: 1.107266741 | Z58: 1.867583817 | AA58: 35.24306762
B59: Piped into yard or plot | C59: 21.63932109 | D59: 44.3772024 | E59: 39.3255966 | F59: 26.31814477 | G59: 13.71448509 | H59: 54.99998364 | I59: 37.88467125 | J59: 24.07620819 | K59: 18.96019837 | L59: 6.881203146 | M59: 12.52942733 | N59: 41.38709291 | O59: 41.70853711 | P59: 32.88222568 | Q59: 17.82751549 | R59: 9.531018623 | S59: 2.918909628 | T59: 26.18001471 | U59: 25.54201062 | V59: 43.95626765 | W59: 61.88357778 | X59: 6.120290889 | Y59: 0.5536333707 | Z59: 2.257908686 | AA59: 25.86849167
B60: Public tap/standpipe | C60: 4.598642481 | D60: 1.710387505 | E60: 0.1791168681 | F60: 0.7314001331 | G60: 0.4487297436 | H60: 5.751823457 | I60: 1.063968251 | J60: 0.9127317501 | K60: 0.6051235737 | L60: 1.011810494 | M60: 3.189687477 | N60: 2.785498475 | O60: 0.2188168752 | P60: 0.218498389 | Q60: 0.6139502777 | R60: 0.6843187236 | S60: 0 | T60: 1.187849321 | U60: 1.606060059 | V60: 1.120306425 | W60: 3.018391674 | X60: 0 | Y60: 4.24868797 | Z60: 1.459958437 | AA60: 0.359604284
B61: Tubewell/borehole with hand pump | C61: 1.919454289 | D61: 0.1995864853 | E61: 0.02550899345 | F61: 0 | G61: 0 | H61: 0 | I61: 0 | J61: 0 | K61: 0 | L61: 0 | M61: 2.658067587 | N61: 0.2761954462 | O61: 0 | P61: 0.03533605297 | Q61: 0 | R61: 2.990084783 | S61: 0 | T61: 0 | U61: 0.06977928801 | V61: 0 | W61: 0 | X61: 0 | Y61: 0 | Z61: 10.02660201 | AA61: 0
B62: Protected well | C62: 4.829412255 | D62: 1.198670569 | E62: 2.067321377 | F62: 0.9524113304 | G62: 0.7480713014 | H62: 0.7084531376 | I62: 0.2529549708 | J62: 0.3374610374 | K62: 0.338986164 | L62: 0 | M62: 5.619430972 | N62: 1.689847477 | O62: 2.332375204 | P62: 2.294701727 | Q62: 0.9965573543 | R62: 1.908400737 | S62: 3.207776128 | T62: 0 | U62: 0.6770334669 | V62: 0.1116746171 | W62: 4.042598806 | X62: 0 | Y62: 1.426209202 | Z62: 22.61680374 | AA62: 0.1963198467
B63: Unprotected well | C63: 7.696012186 | D63: 0.2337269895 | E63: 0.2539747698 | F63: 0.07116572237 | G63: 0 | H63: 0 | I63: 0 | J63: 0 | K63: 0 | L63: 0 | M63: 10.39567266 | N63: 0.3907380302 | O63: 0.4221267062 | P63: 0.2221354564 | Q63: 0 | R63: 1.288631425 | S63: 0 | T63: 0 | U63: 0 | V63: 0 | W63: 0.2480246602 | X63: 0.3270945686 | Y63: 8.236466837 | Z63: 48.69884226 | AA63: 0
B64: Protected spring | C64: 0.6791306179 | D64: 0.3668506797 | E64: 0.3800361253 | F64: 0.2075169916 | G64: 0.3082241426 | H64: 0 | I64: 0.4000099599 | J64: 0.746307934 | K64: 0 | L64: 1.10876126 | M64: 0.9048731504 | N64: 0.5232729961 | O64: 0.3918680776 | P64: 0 | Q64: 0 | R64: 1.118352646 | S64: 0.05623156672 | T64: 0.3761723492 | U64: 0.1530326394 | V64: 0 | W64: 0.6132504338 | X64: 0 | Y64: 1.307358435 | Z64: 0.2099627934 | AA64: 2.01664777
B65: Unprotected spring | C65: 2.603025156 | D65: 0.4657768746 | E65: 0.1641727151 | F65: 0.00839266561 | G65: 0.3357214744 | H65: 0 | I65: 0.7000174298 | J65: 0 | K65: 0.301531082 | L65: 0.9075095358 | M65: 3.31397288 | N65: 0.6344642206 | O65: 0.2582201842 | P65: 0.0116176955 | Q65: 0 | R65: 0.512215395 | S65: 0.3088185041 | T65: 0 | U65: 0.3391763057 | V65: 0 | W65: 0.1702442701 | X65: 0 | Y65: 21.15961516 | Z65: 3.722352361 | AA65: 2.094712986
B66: Rainwater collection | C66: 28.94933198 | D66: 26.73625212 | E66: 22.81660756 | F66: 18.17538221 | G66: 13.77503105 | H66: 22.20075347 | I66: 21.62284974 | J66: 12.57814343 | K66: 4.077739504 | L66: 9.217594544 | M66: 30.02425904 | N66: 29.42185999 | O66: 22.11590483 | P66: 24.70652143 | Q66: 19.8379123 | R66: 57.87875292 | S66: 78.80034466 | T66: 36.97665436 | U66: 15.60439966 | V66: 6.871887668 | W66: 5.59279124 | X66: 40.58166073 | Y66: 9.166155662 | Z66: 1.074040074 | AA66: 10.29923011
B67: Tanker-truck | C67: 0.06098772929 | D67: 0.4708460912 | E67: 0.1197570825 | F67: 0.2404334942 | G67: 0.4201928047 | H67: 0 | I67: 0.4307532533 | J67: 0.8646878645 | K67: 0 | L67: 1.511541243 | M67: 0 | N67: 0.3998332904 | O67: 0.3355926576 | P67: 0 | Q67: 0 | R67: 0 | S67: 0 | T67: 0.09250101882 | U67: 0.5982150122 | V67: 0 | W67: 0 | X67: 0 | Y67: 0 | Z67: 0 | AA67: 0
B68: Cart with small tank/drum | C68: 0.1229042539 | D68: 0.3166209778 | E68: 0.1011140807 | F68: 0.3447622456 | G68: 0 | H68: 0 | I68: 0.7066352488 | J68: 0 | K68: 0 | L68: 0 | M68: 0.1045268264 | N68: 0.2315392052 | O68: 0.1398887584 | P68: 0.3019664636 | Q68: 0.175414365 | R68: 0.1277855327 | S68: 0 | T68: 0 | U68: 0.04838597474 | V68: 0 | W68: 0.5876373105 | X68: 1.79083871 | Y68: 0.712694398 | Z68: 0.3618603052 | AA68: 0
B69: Surface water (river/stream/creek/lake/pond/canal) | C69: 20.15862328 | D69: 1.688630501 | E69: 0.4316579074 | F69: 0.1288819567 | G69: 0.07551342351 | H69: 0 | I69: 0.7851505717 | J69: 0 | K69: 0 | L69: 0 | M69: 26.29352642 | N69: 3.901506755 | O69: 0.3531774469 | P69: 0.09971015456 | Q69: 0.183400098 | R69: 21.28687305 | S69: 10.68112075 | T69: 0.481607957 | U69: 0.2495569857 | V69: 0 | W69: 0.7421989467 | X69: 42.05544186 | Y69: 50.56902024 | Z69: 7.176812938 | AA69: 17.84786535
B70: Bottled water | C70: 0.8227724074 | D70: 7.411114664 | E70: 11.18380752 | F70: 24.45663916 | G70: 45.50055627 | H70: 6.161062353 | I70: 10.42761669 | J70: 26.1142712 | K70: 40.7520786 | L70: 59.05755108 | M70: 0.2365106619 | N70: 5.768393473 | O70: 10.5561649 | P70: 15.95631575 | Q70: 36.45899316 | R70: 1.477561818 | S70: 1.158727491 | T70: 14.67864228 | U70: 33.36003487 | V70: 9.281962574 | W70: 5.364435236 | X70: 4.944554913 | Y70: 0.5345207985 | Z70: 0 | AA70: 5.652969772
B71: Other | C71: 1.942856713 | D71: 1.674877589 | E71: 0.4704123812 | F71: 0.1869139992 | G71: 0.4626747198 | H71: 1.173195974 | I71: 0.6896541568 | J71: 0 | K71: 0.2037459475 | L71: 0 | M71: 1.818216426 | N71: 2.437768956 | O71: 0.5639783186 | P71: 0.3818500272 | Q71: 0.5630113601 | R71: 0.2216769116 | S71: 0 | T71: 0.04113745686 | U71: 0.5367951366 | V71: 4.204399067 | W71: 2.462140439 | X71: 0 | Y71: 0.9783711841 | Z71: 0.5272725798 | AA71: 0.4210905922
B72: Missing | C72: 0 | D72: 0.3170757962 | E72: 0.1719035539 | F72: 0.03438854087 | G72: 0 | H72: 0 | I72: 0 | J72: 0.1236739252 | K72: 0 | L72: 0 | M72: 0 | N72: 0.1927518021 | O72: 0.4833886597 | P72: 0 | Q72: 0 | R72: 0 | S72: 0 | T72: 0.4285567955 | U72: 0.03011515286 | V72: 0.585579234 | W72: 0 | X72: 0 | Y72: 0 | Z72: 0 | AA72: 0
A108: =A1026 -> Guyana
A109: =A1034 -> 2007
A110: Use of sanitation facilities
A111: by wealth quintile and sub-national region
A112: Notes:
A113: WHO/UNICEF JMP customised wealth index excludes water,
A114: sanitation and hygiene assets.
A115: Survey used for analysis: | B115: =A1025 -> MICS07
A116: Improved latrines based on: | B116: DHS09
A117: =B1029 -> 
A120: Use of sanitation facilities | C120: NATIONAL wealth index quintile | H120: URBAN wealth index quintile | M120: RURAL wealth index quintile | R120: SUB-REGIONS: | BA120: Raw numbers of respondents: | BB120: Use of sanitation facilities | BC120: NATIONAL wealth index quintile | BH120: URBAN wealth index quintile | BM120: RURAL wealth index quintile | BR120: SUB-REGIONS:
A121: Weighted percentage (used in graphs) | C121: Poorest | D121: Poor | E121: Middle | F121: Rich | G121: Richest | H121: Poorest | I121: Poor | J121: Middle | K121: Rich | L121: Richest | M121: Poorest | N121: Poor | O121: Middle | P121: Rich | Q121: Richest | R121: Region 01 | S121: Region 02 | T121: Region 03 | U121: Region 04 | V121: Region 05 | W121: Region 06 | X121: Region 07 | Y121: Region 08 | Z121: Region 09 | AA121: Region 10 | BA121: Sanitation data, raw numbers (weighted) | BC121: Poorest | BD121: Poor | BE121: Middle | BF121: Rich | BG121: Richest | BH121: Poorest | BI121: Poor | BJ121: Middle | BK121: Rich | BL121: Richest | BM121: Poorest | BN121: Poor | BO121: Middle | BP121: Rich | BQ121: Richest | BR121: Region 01 | BS121: Region 02 | BT121: Region 03 | BU121: Region 04 | BV121: Region 05 | BW121: Region 06 | BX121: Region 07 | BY121: Region 08 | BZ121: Region 09 | CA121: Region 10
A122: Sanitation | B122: Improved | C122: =C153+C154+C155+C156+C157*'DHS09'!C130/100 -> 71.22661455 | D122: =D153+D154+D155+D156+D157*'DHS09'!D130/100 -> 89.08138207 | E122: =E153+E154+E155+E156+E157*'DHS09'!E130/100 -> 93.5157766 | F122: =F153+F154+F155+F156+F157*'DHS09'!F130/100 -> 94.79979693 | G122: =G153+G154+G155+G156+G157*'DHS09'!G130/100 -> 98.69449729 | H122: =H153+H154+H155+H156+H157*'DHS09'!H130/100 -> 85.19256335 | I122: =I153+I154+I155+I156+I157*'DHS09'!I130/100 -> 85.6504064 | J122: =J153+J154+J155+J156+J157*'DHS09'!J130/100 -> 93.45850758 | K122: =K153+K154+K155+K156+K157*'DHS09'!K130/100 -> 97.73303895 | L122: =L153+L154+L155+L156+L157*'DHS09'!L130/100 -> 99.00510394 | M122: =M153+M154+M155+M156+M157*'DHS09'!M130/100 -> 66.20089556 | N122: =N153+N154+N155+N156+N157*'DHS09'!N130/100 -> 87.86847214 | O122: =O153+O154+O155+O156+O157*'DHS09'!O130/100 -> 92.5318451 | P122: =P153+P154+P155+P156+P157*'DHS09'!P130/100 -> 94.95123384 | Q122: =Q153+Q154+Q155+Q156+Q157*'DHS09'!Q130/100 -> 98.86252002 | R122: =R153+R154+R155+R156+R157*'DHS09'!R130/100 -> 61.72836969 | S122: =S153+S154+S155+S156+S157*'DHS09'!S130/100 -> 60.85787002 | T122: =T153+T154+T155+T156+T157*'DHS09'!T130/100 -> 83.17685869 | U122: =U153+U154+U155+U156+U157*'DHS09'!U130/100 -> 99.14254178 | V122: =V153+V154+V155+V156+V157*'DHS09'!V130/100 -> 87.23376543 | W122: =W153+W154+W155+W156+W157*'DHS09'!W130/100 -> 99.9613664 | X122: =X153+X154+X155+X156+X157*'DHS09'!X130/100 -> 81.19086592 | Y122: =Y153+Y154+Y155+Y156+Y157*'DHS09'!Y130/100 -> 46.15054376 | Z122: =Z153+Z154+Z155+Z156+Z157*'DHS09'!Z130/100 -> 62.55319393 | AA122: =AA153+AA154+AA155+AA156+AA157*'DHS09'!AA130/100 -> 94.71032512 | BA122: Sanitation | BB122: Improved | BC122: 3637.830107 | BD122: 4016.427163 | BE122: 4033.935595 | BF122: 4045.346829 | BG122: 4050.867829 | BH122: 1103.440278 | BI122: 1125.467391 | BJ122: 1122.959141 | BK122: 1120.970358 | BL122: 1128.609959 | BM122: 2551.525047 | BN122: 2878.359573 | BO122: 2913.350754 | BP122: 2916.436412 | BQ122: 2923.28861 | BR122: 545.537627 | BS122: 1504.543929 | BT122: 2582.444546 | BU122: 8439.887736 | BV122: 1228.038249 | BW122: 3324.361913 | BX122: 333.877444 | BY122: 180.691304 | BZ122: 557.217656 | CA122: 1087.807119
B123: Not Improved | C123: =100-C122 -> 28.77338545 | D123: =100-D122 -> 10.91861793 | E123: 6.484223397 | F123: 5.200203068 | G123: 1.305502705 | H123: 14.80743665 | I123: 14.3495936 | J123: 6.541492418 | K123: 2.266961045 | L123: 0.9948960587 | M123: 33.79910444 | N123: 12.13152786 | O123: 7.468154902 | P123: 5.048766164 | Q123: 1.137479982 | R123: 38.27163031 | S123: 39.14212998 | T123: 16.82314131 | U123: 0.8574582181 | V123: 12.76623457 | W123: 0.03863359834 | X123: 18.80913408 | Y123: 53.84945624 | Z123: 37.44680607 | AA123: 5.289674883 | BB123: Not Improved | BC123: 421.514336 | BD123: 38.597899 | BE123: 27.706437 | BF123: 13.447073 | BG123: 9.031534 | BH123: 22.036564 | BI123: 3.741492 | BJ123: 5.621518 | BK123: 2.532724 | BL123: 0 | BM123: 379.824832 | BN123: 51.913939 | BO123: 22.47629 | BP123: 15.65111 | BQ123: 6.49881 | BR123: 140.220754 | BS123: 8.597265 | BT123: 93.96057 | BU123: 47.885884 | BV123: 3.109917 | BW123: 1.284817 | BX123: 73.166918 | BY123: 89.418859 | BZ123: 47.365651 | CA123: 5.286644
A124: Sanitation ladder | B124: Basic | C124: =C122*C129/100 -> 61.50160068 | D124: =D122*D129/100 -> 76.68423471 | E124: 82.6166274 | F124: 85.89983527 | G124: 93.16497406 | H124: 70.68641628 | I124: 72.94592858 | J124: 84.22575498 | K124: 90.75620624 | L124: 96.12751844 | M124: 56.14870865 | N124: 77.91651992 | O124: 82.16068999 | P124: 86.47850446 | Q124: 90.26114526 | R124: 54.39514725 | S124: 59.29897762 | T124: 78.20186922 | U124: 85.45515429 | V124: 76.92605869 | W124: 94.23893432 | X124: 69.72613312 | Y124: 37.59638498 | Z124: 45.10183793 | AA124: 82.66143137 | BA124: Sanitation ladder | BB124: Basic | BC124: 3101.06424 | BD124: 3442.221824 | BE124: 3491.016327 | BF124: 3654.704537 | BG124: 3776.364526 | BH124: 910.520468 | BI124: 934.0746 | BJ124: 1012.022168 | BK124: 1026.583971 | BL124: 1081.629975 | BM124: 2145.65251 | BN124: 2523.435877 | BO124: 2540.522977 | BP124: 2646.153224 | BQ124: 2644.775684 | BR124: 476.308249 | BS124: 1438.697481 | BT124: 2402.418981 | BU124: 7173.246881 | BV124: 1074.247351 | BW124: 3123.923419 | BX124: 279.627766 | BY124: 147.199562 | BZ124: 400.2837 | CA124: 949.418064
B125: Limited | C125: =C122*C128/100 -> 9.725013869 | D125: =D122*D128/100 -> 12.39714736 | E125: 10.8991492 | F125: 8.899961661 | G125: 5.529523239 | H125: 14.50614707 | I125: 12.70447781 | J125: 9.232752603 | K125: 6.976832718 | L125: 2.877585503 | M125: 10.05218691 | N125: 9.951952214 | O125: 10.37115511 | P125: 8.472729379 | Q125: 8.601374755 | R125: 7.333222439 | S125: 1.558892395 | T125: 4.974989463 | U125: 13.68738749 | V125: 10.30770675 | W125: 5.722432081 | X125: 11.4647328 | Y125: 8.554158782 | Z125: 17.451356 | AA125: 12.04889374 | BB125: Limited | BC125: 490.359477 | BD125: 556.486367 | BE125: 460.550243 | BF125: 378.65882 | BG125: 224.134613 | BH125: 186.855474 | BI125: 162.681184 | BJ125: 110.936973 | BK125: 78.91807 | BL125: 32.378686 | BM125: 384.131721 | BN125: 322.307943 | BO125: 320.690562 | BP125: 259.256798 | BQ125: 252.032109 | BR125: 64.212977 | BS125: 37.821471 | BT125: 152.835338 | BU125: 1148.941927 | BV125: 143.943767 | BW125: 189.692718 | BX125: 45.977849 | BY125: 33.491742 | BZ125: 154.882676 | CA125: 138.389055
B126: Unimproved | C126: =100-C124-C125-C127 -> 21.78670332 | D126: =100-D124-D125-D127 -> 10.74230099 | E126: 6.319891239 | F126: 5.200203068 | G126: 1.305502705 | H126: 14.07996935 | I126: 14.3495936 | J126: 6.541492418 | K126: 2.266961045 | L126: 0.9948960587 | M126: 24.40322785 | N126: 11.88753371 | O126: 7.240805542 | P126: 5.048766164 | Q126: 1.137479982 | R126: 27.57852002 | S126: 39.14212998 | T126: 16.77435505 | U126: 0.6474689464 | V126: 12.76623457 | W126: -2.08631723e-13 | X126: 2.811917047 | Y126: 20.74486735 | Z126: 29.73460487 | AA126: 5.057891107 | BB126: Unimproved | BC126: 137.900843 | BD126: 31.448203 | BE126: 21.031853 | BF126: 13.447073 | BG126: 9.031534 | BH126: 13.849088 | BI126: 3.741492 | BJ126: 5.621518 | BK126: 2.532724 | BL126: 0 | BM126: 104.398815 | BN126: 44.764243 | BO126: 15.801706 | BP126: 15.65111 | BQ126: 6.49881 | BR126: 66.891854 | BS126: 8.597265 | BT126: 92.654852 | BU126: 30.06247 | BV126: 3.109917 | BW126: 0 | BX126: 8.051148 | BY126: 0 | BZ126: 0.73897 | CA126: 2.75303
B127: Open defecation | C127: =C159 -> 6.986682135 | D127: =D159 -> 0.1763169374 | E127: 0.164332158 | F127: 0 | G127: 0 | H127: 0.7274673005 | I127: 0 | J127: 0 | K127: 0 | L127: 0 | M127: 9.395876588 | N127: 0.2439941518 | O127: 0.2273493602 | P127: 0 | Q127: 0 | R127: 10.69311029 | S127: 0 | T127: 0.04878626155 | U127: 0.2099892716 | V127: 0 | W127: 0.03863359834 | X127: 15.99721703 | Y127: 33.10458889 | Z127: 7.71220119 | AA127: 0.2317837761 | BB127: Open defecation | BC127: 283.613493 | BD127: 7.149696 | BE127: 6.674584 | BF127: 0 | BG127: 0 | BH127: 8.187476 | BI127: 0 | BJ127: 0 | BK127: 0 | BL127: 0 | BM127: 275.426017 | BN127: 7.149696 | BO127: 6.674584 | BP127: 0 | BQ127: 0 | BR127: 73.3289 | BS127: 0 | BT127: 1.305718 | BU127: 17.823414 | BV127: 0 | BW127: 1.284817 | BX127: 65.11577 | BY127: 89.418859 | BZ127: 46.626681 | CA127: 2.533614
A128: Shared among Improved Sanitation | B128: Yes | C128: 13.65362362 | D128: 13.91665359 | E128: 11.6548775 | F128: 9.388165322 | G128: 5.602666198 | H128: 17.02748045 | I128: 14.83294516 | J128: 9.878985704 | K128: 7.138663437 | L128: 2.906502178 | M128: 15.18436696 | N128: 11.32596479 | O128: 11.20820091 | P128: 8.923243055 | Q128: 8.700339374 | R128: 11.87982523 | S128: 2.561529667 | T128: 5.981218263 | U128: 13.80576617 | V128: 11.81618917 | W128: 5.724643717 | X128: 14.12071748 | Y128: 18.53533693 | Z128: 27.89842517 | AA128: 12.72183759 | BA128: Shared among improved sanitation facilities | BB128: Yes | BC128: N/A | BD128: N/A | BE128: N/A | BF128: N/A | BG128: N/A | BH128: N/A | BI128: N/A | BJ128: N/A | BK128: N/A | BL128: N/A | BM128: N/A | BN128: N/A | BO128: N/A | BP128: N/A | BQ128: N/A | BR128: N/A | BS128: N/A | BT128: N/A | BU128: N/A | BV128: N/A | BW128: N/A | BX128: N/A | BY128: N/A | BZ128: N/A | CA128: N/A
B129: No | C129: 86.34637638 | D129: 86.08334641 | E129: 88.3451225 | F129: 90.61183468 | G129: 94.3973338 | H129: 82.97251955 | I129: 85.16705484 | J129: 90.1210143 | K129: 92.86133656 | L129: 97.09349782 | M129: 84.81563304 | N129: 88.67403521 | O129: 88.79179909 | P129: 91.07675695 | Q129: 91.29966063 | R129: 88.12017477 | S129: 97.43847033 | T129: 94.01878174 | U129: 86.19423383 | V129: 88.18381083 | W129: 94.27535628 | X129: 85.87928252 | Y129: 81.46466307 | Z129: 72.10157483 | AA129: 87.27816241 | BB129: No | BC129: N/A | BD129: N/A | BE129: N/A | BF129: N/A | BG129: N/A | BH129: N/A | BI129: N/A | BJ129: N/A | BK129: N/A | BL129: N/A | BM129: N/A | BN129: N/A | BO129: N/A | BP129: N/A | BQ129: N/A | BR129: N/A | BS129: N/A | BT129: N/A | BU129: N/A | BV129: N/A | BW129: N/A | BX129: N/A | BY129: N/A | BZ129: N/A | CA129: N/A
A130: Manually calculated ratios | B130: Improved latrines
B131: Other
B132: Other
C133: NATIONAL wealth index quintile | H133: URBAN wealth index quintile | M133: RURAL wealth index quintile | R133: SUB-REGIONS: | BA133: Raw numbers of respondents: | BB133: Use of sanitation facilities | BC133: NATIONAL wealth index quintile | BH133: URBAN wealth index quintile | BM133: RURAL wealth index quintile | BR133: SUB-REGIONS:
A134: Percentage based on weighted population | C134: Poorest | D134: Poor | E134: Middle | F134: Rich | G134: Richest | H134: Poorest | I134: Poor | J134: Middle | K134: Rich | L134: Richest | M134: Poorest | N134: Poor | O134: Middle | P134: Rich | Q134: Richest | R134: Region 01 | S134: Region 02 | T134: Region 03 | U134: Region 04 | V134: Region 05 | W134: Region 06 | X134: Region 07 | Y134: Region 08 | Z134: Region 09 | AA134: Region 10 | BA134: Sanitation data, raw numbers (weighted) | BC134: Poorest | BD134: Poor | BE134: Middle | BF134: Rich | BG134: Richest | BH134: Poorest | BI134: Poor | BJ134: Middle | BK134: Rich | BL134: Richest | BM134: Poorest | BN134: Poor | BO134: Middle | BP134: Rich | BQ134: Richest | BR134: Region 01 | BS134: Region 02 | BT134: Region 03 | BU134: Region 04 | BV134: Region 05 | BW134: Region 06 | BX134: Region 07 | BY134: Region 08 | BZ134: Region 09 | CA134: Region 10
A135: Sanitation type | B135: Sewer connection | C135: 0.8495369014 | D135: 0.806667986 | E135: 1.740218745 | F135: 3.469881137 | G135: 5.63752102 | H135: 4.655995223 | I135: 6.689941616 | J135: 9.920066865 | K135: 10.6186087 | L135: 11.56516961 | M135: 0 | N135: 0 | O135: 0 | P135: 0.3141159645 | Q135: 0.2953440219 | R135: 0 | S135: 0 | T135: 0 | U135: 5.980257023 | V135: 0 | W135: 0 | X135: 0 | Y135: 0 | Z135: 0 | AA135: 0 | BA135: Sanitation type | BB135: Sewer connection | BC135: N/A | BD135: N/A | BE135: N/A | BF135: N/A | BG135: N/A | BH135: N/A | BI135: N/A | BJ135: N/A | BK135: N/A | BL135: N/A | BM135: N/A | BN135: N/A | BO135: N/A | BP135: N/A | BQ135: N/A | BR135: N/A | BS135: N/A | BT135: N/A | BU135: N/A | BV135: N/A | BW135: N/A | BX135: N/A | BY135: N/A | BZ135: N/A | CA135: N/A
B136: Septic tank connection | C136: 3.078122361 | D136: 14.09510485 | E136: 36.08191417 | F136: 62.86488084 | G136: 84.39498423 | H136: 16.21324795 | I136: 41.79073032 | J136: 70.08969866 | K136: 82.25542349 | L136: 87.18906467 | M136: 1.308526569 | N136: 7.144649028 | O136: 26.74161241 | P136: 50.31860884 | Q136: 77.75930528 | R136: 5.795991139 | S136: 27.79664817 | T136: 42.83472024 | U136: 51.98271432 | V136: 30.55679815 | W136: 34.42771181 | X136: 14.83416518 | Y136: 2.181362943 | Z136: 3.763270129 | AA136: 46.7309459 | BB136: Septic tank connection | BC136: N/A | BD136: N/A | BE136: N/A | BF136: N/A | BG136: N/A | BH136: N/A | BI136: N/A | BJ136: N/A | BK136: N/A | BL136: N/A | BM136: N/A | BN136: N/A | BO136: N/A | BP136: N/A | BQ136: N/A | BR136: N/A | BS136: N/A | BT136: N/A | BU136: N/A | BV136: N/A | BW136: N/A | BX136: N/A | BY136: N/A | BZ136: N/A | CA136: N/A
B137: Improved latrines | C137: N/A | D137: N/A | E137: N/A | F137: N/A | G137: N/A | H137: N/A | I137: N/A | J137: N/A | K137: N/A | L137: N/A | M137: N/A | N137: N/A | O137: N/A | P137: N/A | Q137: N/A | R137: N/A | S137: N/A | T137: N/A | U137: N/A | V137: N/A | W137: N/A | X137: N/A | Y137: N/A | Z137: N/A | AA137: N/A | BB137: Improved latrines | BC137: N/A | BD137: N/A | BE137: N/A | BF137: N/A | BG137: N/A | BH137: N/A | BI137: N/A | BJ137: N/A | BK137: N/A | BL137: N/A | BM137: N/A | BN137: N/A | BO137: N/A | BP137: N/A | BQ137: N/A | BR137: N/A | BS137: N/A | BT137: N/A | BU137: N/A | BV137: N/A | BW137: N/A | BX137: N/A | BY137: N/A | BZ137: N/A | CA137: N/A
B138: Unimproved facilities | C138: N/A | D138: N/A | E138: N/A | F138: N/A | G138: N/A | H138: N/A | I138: N/A | J138: N/A | K138: N/A | L138: N/A | M138: N/A | N138: N/A | O138: N/A | P138: N/A | Q138: N/A | R138: N/A | S138: N/A | T138: N/A | U138: N/A | V138: N/A | W138: N/A | X138: N/A | Y138: N/A | Z138: N/A | AA138: N/A | BB138: Unimproved facilities | BC138: N/A | BD138: N/A | BE138: N/A | BF138: N/A | BG138: N/A | BH138: N/A | BI138: N/A | BJ138: N/A | BK138: N/A | BL138: N/A | BM138: N/A | BN138: N/A | BO138: N/A | BP138: N/A | BQ138: N/A | BR138: N/A | BS138: N/A | BT138: N/A | BU138: N/A | BV138: N/A | BW138: N/A | BX138: N/A | BY138: N/A | BZ138: N/A | CA138: N/A
B139: Open defecation | C139: 6.986682135 | D139: 0.1763169374 | E139: 0.164332158 | F139: 0 | G139: 0 | H139: 0.7274673005 | I139: 0 | J139: 0 | K139: 0 | L139: 0 | M139: 9.395876588 | N139: 0.2439941518 | O139: 0.2273493602 | P139: 0 | Q139: 0 | R139: 10.69311029 | S139: 0 | T139: 0.04878626155 | U139: 0.2099892716 | V139: 0 | W139: 0.03863359834 | X139: 15.99721703 | Y139: 33.10458889 | Z139: 7.71220119 | AA139: 0.2317837761 | BB139: Open defecation | BC139: N/A | BD139: N/A | BE139: N/A | BF139: N/A | BG139: N/A | BH139: N/A | BI139: N/A | BJ139: N/A | BK139: N/A | BL139: N/A | BM139: N/A | BN139: N/A | BO139: N/A | BP139: N/A | BQ139: N/A | BR139: N/A | BS139: N/A | BT139: N/A | BU139: N/A | BV139: N/A | BW139: N/A | BX139: N/A | BY139: N/A | BZ139: N/A | CA139: N/A
A140: Septic tank emptying practices | B140: Not emptied/treated and disposed in situ | C140: N/A | D140: N/A | E140: N/A | F140: N/A | G140: N/A | H140: N/A | I140: N/A | J140: N/A | K140: N/A | L140: N/A | M140: N/A | N140: N/A | O140: N/A | P140: N/A | Q140: N/A | R140: N/A | S140: N/A | T140: N/A | U140: N/A | V140: N/A | W140: N/A | X140: N/A | Y140: N/A | Z140: N/A | AA140: N/A | BA140: Septic tank emptying practices | BB140: Not emptied/treated and disposed in situ | BC140: N/A | BD140: N/A | BE140: N/A | BF140: N/A | BG140: N/A | BH140: N/A | BI140: N/A | BJ140: N/A | BK140: N/A | BL140: N/A | BM140: N/A | BN140: N/A | BO140: N/A | BP140: N/A | BQ140: N/A | BR140: N/A | BS140: N/A | BT140: N/A | BU140: N/A | BV140: N/A | BW140: N/A | BX140: N/A | BY140: N/A | BZ140: N/A | CA140: N/A
B141: Emptied and buried on site | C141: N/A | D141: N/A | E141: N/A | F141: N/A | G141: N/A | H141: N/A | I141: N/A | J141: N/A | K141: N/A | L141: N/A | M141: N/A | N141: N/A | O141: N/A | P141: N/A | Q141: N/A | R141: N/A | S141: N/A | T141: N/A | U141: N/A | V141: N/A | W141: N/A | X141: N/A | Y141: N/A | Z141: N/A | AA141: N/A | BB141: Emptied and buried on site | BC141: N/A | BD141: N/A | BE141: N/A | BF141: N/A | BG141: N/A | BH141: N/A | BI141: N/A | BJ141: N/A | BK141: N/A | BL141: N/A | BM141: N/A | BN141: N/A | BO141: N/A | BP141: N/A | BQ141: N/A | BR141: N/A | BS141: N/A | BT141: N/A | BU141: N/A | BV141: N/A | BW141: N/A | BX141: N/A | BY141: N/A | BZ141: N/A | CA141: N/A
B142: Emptied and discharged locally | C142: N/A | D142: N/A | E142: N/A | F142: N/A | G142: N/A | H142: N/A | I142: N/A | J142: N/A | K142: N/A | L142: N/A | M142: N/A | N142: N/A | O142: N/A | P142: N/A | Q142: N/A | R142: N/A | S142: N/A | T142: N/A | U142: N/A | V142: N/A | W142: N/A | X142: N/A | Y142: N/A | Z142: N/A | AA142: N/A | BB142: Emptied and discharged locally | BC142: N/A | BD142: N/A | BE142: N/A | BF142: N/A | BG142: N/A | BH142: N/A | BI142: N/A | BJ142: N/A | BK142: N/A | BL142: N/A | BM142: N/A | BN142: N/A | BO142: N/A | BP142: N/A | BQ142: N/A | BR142: N/A | BS142: N/A | BT142: N/A | BU142: N/A | BV142: N/A | BW142: N/A | BX142: N/A | BY142: N/A | BZ142: N/A | CA142: N/A
B143: Emptied and removed offsite | C143: N/A | D143: N/A | E143: N/A | F143: N/A | G143: N/A | H143: N/A | I143: N/A | J143: N/A | K143: N/A | L143: N/A | M143: N/A | N143: N/A | O143: N/A | P143: N/A | Q143: N/A | R143: N/A | S143: N/A | T143: N/A | U143: N/A | V143: N/A | W143: N/A | X143: N/A | Y143: N/A | Z143: N/A | AA143: N/A | BB143: Emptied and removed offsite | BC143: N/A | BD143: N/A | BE143: N/A | BF143: N/A | BG143: N/A | BH143: N/A | BI143: N/A | BJ143: N/A | BK143: N/A | BL143: N/A | BM143: N/A | BN143: N/A | BO143: N/A | BP143: N/A | BQ143: N/A | BR143: N/A | BS143: N/A | BT143: N/A | BU143: N/A | BV143: N/A | BW143: N/A | BX143: N/A | BY143: N/A | BZ143: N/A | CA143: N/A
A144: Latrine emptying practices | B144: Not emptied/treated and disposed in situ | C144: N/A | D144: N/A | E144: N/A | F144: N/A | G144: N/A | H144: N/A | I144: N/A | J144: N/A | K144: N/A | L144: N/A | M144: N/A | N144: N/A | O144: N/A | P144: N/A | Q144: N/A | R144: N/A | S144: N/A | T144: N/A | U144: N/A | V144: N/A | W144: N/A | X144: N/A | Y144: N/A | Z144: N/A | AA144: N/A | BA144: Latrine emptying practices | BB144: Not emptied/treated and disposed in situ | BC144: N/A | BD144: N/A | BE144: N/A | BF144: N/A | BG144: N/A | BH144: N/A | BI144: N/A | BJ144: N/A | BK144: N/A | BL144: N/A | BM144: N/A | BN144: N/A | BO144: N/A | BP144: N/A | BQ144: N/A | BR144: N/A | BS144: N/A | BT144: N/A | BU144: N/A | BV144: N/A | BW144: N/A | BX144: N/A | BY144: N/A | BZ144: N/A | CA144: N/A
B145: Emptied and buried on site | C145: N/A | D145: N/A | E145: N/A | F145: N/A | G145: N/A | H145: N/A | I145: N/A | J145: N/A | K145: N/A | L145: N/A | M145: N/A | N145: N/A | O145: N/A | P145: N/A | Q145: N/A | R145: N/A | S145: N/A | T145: N/A | U145: N/A | V145: N/A | W145: N/A | X145: N/A | Y145: N/A | Z145: N/A | AA145: N/A | BB145: Emptied and buried on site | BC145: N/A | BD145: N/A | BE145: N/A | BF145: N/A | BG145: N/A | BH145: N/A | BI145: N/A | BJ145: N/A | BK145: N/A | BL145: N/A | BM145: N/A | BN145: N/A | BO145: N/A | BP145: N/A | BQ145: N/A | BR145: N/A | BS145: N/A | BT145: N/A | BU145: N/A | BV145: N/A | BW145: N/A | BX145: N/A | BY145: N/A | BZ145: N/A | CA145: N/A
B146: Emptied and discharged locally | C146: N/A | D146: N/A | E146: N/A | F146: N/A | G146: N/A | H146: N/A | I146: N/A | J146: N/A | K146: N/A | L146: N/A | M146: N/A | N146: N/A | O146: N/A | P146: N/A | Q146: N/A | R146: N/A | S146: N/A | T146: N/A | U146: N/A | V146: N/A | W146: N/A | X146: N/A | Y146: N/A | Z146: N/A | AA146: N/A | BB146: Emptied and discharged locally | BC146: N/A | BD146: N/A | BE146: N/A | BF146: N/A | BG146: N/A | BH146: N/A | BI146: N/A | BJ146: N/A | BK146: N/A | BL146: N/A | BM146: N/A | BN146: N/A | BO146: N/A | BP146: N/A | BQ146: N/A | BR146: N/A | BS146: N/A | BT146: N/A | BU146: N/A | BV146: N/A | BW146: N/A | BX146: N/A | BY146: N/A | BZ146: N/A | CA146: N/A
B147: Emptied and removed offsite | C147: N/A | D147: N/A | E147: N/A | F147: N/A | G147: N/A | H147: N/A | I147: N/A | J147: N/A | K147: N/A | L147: N/A | M147: N/A | N147: N/A | O147: N/A | P147: N/A | Q147: N/A | R147: N/A | S147: N/A | T147: N/A | U147: N/A | V147: N/A | W147: N/A | X147: N/A | Y147: N/A | Z147: N/A | AA147: N/A | BB147: Emptied and removed offsite | BC147: N/A | BD147: N/A | BE147: N/A | BF147: N/A | BG147: N/A | BH147: N/A | BI147: N/A | BJ147: N/A | BK147: N/A | BL147: N/A | BM147: N/A | BN147: N/A | BO147: N/A | BP147: N/A | BQ147: N/A | BR147: N/A | BS147: N/A | BT147: N/A | BU147: N/A | BV147: N/A | BW147: N/A | BX147: N/A | BY147: N/A | BZ147: N/A | CA147: N/A
A148: Shared among improved sanitation facilities | B148: Yes | C148: 12.07977012 | D148: 13.72337676 | E148: 11.33901608 | F148: 9.329343375 | G148: 5.520693814 | H148: 16.60233841 | I148: 14.4066511 | J148: 9.829777971 | K148: 7.024286027 | L148: 2.868899547 | M148: 13.10426039 | N148: 10.99924433 | O148: 10.92334655 | P148: 8.842055227 | Q148: 8.602402593 | R148: 9.363790335 | S148: 2.499533497 | T148: 5.710471 | U148: 13.53643462 | V148: 11.69183133 | W148: 5.703934705 | X148: 11.29553761 | Y148: 12.39928984 | Z148: 25.61808674 | AA148: 12.66030964 | BA148: Shared among improved sanitation facilities | BB148: Yes | BC148: N/A | BD148: N/A | BE148: N/A | BF148: N/A | BG148: N/A | BH148: N/A | BI148: N/A | BJ148: N/A | BK148: N/A | BL148: N/A | BM148: N/A | BN148: N/A | BO148: N/A | BP148: N/A | BQ148: N/A | BR148: N/A | BS148: N/A | BT148: N/A | BU148: N/A | BV148: N/A | BW148: N/A | BX148: N/A | BY148: N/A | BZ148: N/A | CA148: N/A
B149: No | C149: 76.39322761 | D149: 84.8878064 | E149: 85.95086173 | F149: 90.04410239 | G149: 93.01621021 | H149: 80.90086211 | I149: 82.71938116 | J149: 89.67211691 | K149: 91.37348953 | L149: 95.83735872 | M149: 73.19673866 | N149: 86.11605253 | O149: 86.53517182 | P149: 90.24809813 | Q149: 90.2719312 | R149: 69.45715316 | S149: 95.08018728 | T149: 89.76290497 | U149: 84.51270265 | V149: 87.25573255 | W149: 93.93431331 | X149: 68.69712299 | Y149: 54.49612127 | Z149: 66.20819585 | AA149: 86.85604988 | BB149: No | BC149: N/A | BD149: N/A | BE149: N/A | BF149: N/A | BG149: N/A | BH149: N/A | BI149: N/A | BJ149: N/A | BK149: N/A | BL149: N/A | BM149: N/A | BN149: N/A | BO149: N/A | BP149: N/A | BQ149: N/A | BR149: N/A | BS149: N/A | BT149: N/A | BU149: N/A | BV149: N/A | BW149: N/A | BX149: N/A | BY149: N/A | BZ149: N/A | CA149: N/A
B150: DK/missing | C150: 11.52700227 | D150: 1.388816842 | E150: 2.71012219 | F150: 0.626554233 | G150: 1.463095971 | H150: 2.496799485 | I150: 2.873967739 | J150: 0.4981051159 | K150: 1.602224443 | L150: 1.293741729 | M150: 13.69900096 | N150: 2.88470314 | O150: 2.54148163 | P150: 0.9098466468 | Q150: 1.12566621 | R150: 21.17905651 | S150: 2.420279227 | T150: 4.526624025 | U150: 1.950862728 | V150: 1.052436121 | W150: 0.3617519832 | X150: 20.0073394 | Y150: 33.10458889 | Z150: 8.173717406 | AA150: 0.4836404871 | BB150: DK/missing | BC150: N/A | BD150: N/A | BE150: N/A | BF150: N/A | BG150: N/A | BH150: N/A | BI150: N/A | BJ150: N/A | BK150: N/A | BL150: N/A | BM150: N/A | BN150: N/A | BO150: N/A | BP150: N/A | BQ150: N/A | BR150: N/A | BS150: N/A | BT150: N/A | BU150: N/A | BV150: N/A | BW150: N/A | BX150: N/A | BY150: N/A | BZ150: N/A | CA150: N/A
A151: Shared among all sanitation facilities | B151: Yes | C151: 14.27995186 | D151: 13.78241429 | E151: 11.3576804 | F151: 9.329343375 | G151: 5.520693814 | H151: 16.85007177 | I151: 14.4066511 | J151: 9.829777971 | K151: 7.024286027 | L151: 2.868899547 | M151: 15.53502225 | N151: 11.72219884 | O151: 10.94823729 | P151: 8.842055227 | Q151: 8.602402593 | R151: 13.87029097 | S151: 2.499533497 | T151: 6.762950533 | U151: 13.58154989 | V151: 11.69183133 | W151: 5.706139192 | X151: 13.44662309 | Y151: 18.53533693 | Z151: 27.7589097 | AA151: 12.68972235 | BA151: Shared among all sanitation facilities | BB151: Yes | BC151: N/A | BD151: N/A | BE151: N/A | BF151: N/A | BG151: N/A | BH151: N/A | BI151: N/A | BJ151: N/A | BK151: N/A | BL151: N/A | BM151: N/A | BN151: N/A | BO151: N/A | BP151: N/A | BQ151: N/A | BR151: N/A | BS151: N/A | BT151: N/A | BU151: N/A | BV151: N/A | BW151: N/A | BX151: N/A | BY151: N/A | BZ151: N/A | CA151: N/A
B152: No | C152: 84.10844443 | D152: 85.50361113 | E152: 86.46743689 | F152: 90.34102097 | G152: 93.07859413 | H152: 82.49831888 | I152: 83.05071862 | J152: 90.0465481 | K152: 91.59892051 | L152: 95.83735872 | M152: 83.10258003 | N152: 86.82108709 | O152: 87.0730683 | P152: 90.7818854 | Q152: 90.2719312 | R152: 84.19845958 | S152: 95.64836062 | T152: 91.6651813 | U152: 84.94703223 | V152: 87.25573255 | W152: 93.97061754 | X152: 82.70722619 | Y152: 81.46466307 | Z152: 71.87344882 | AA152: 87.05783582 | BB152: No | BC152: N/A | BD152: N/A | BE152: N/A | BF152: N/A | BG152: N/A | BH152: N/A | BI152: N/A | BJ152: N/A | BK152: N/A | BL152: N/A | BM152: N/A | BN152: N/A | BO152: N/A | BP152: N/A | BQ152: N/A | BR152: N/A | BS152: N/A | BT152: N/A | BU152: N/A | BV152: N/A | BW152: N/A | BX152: N/A | BY152: N/A | BZ152: N/A | CA152: N/A
A153: Kind of toilet facility | B153: Flush to piped sewer system | C153: 0.8495369014 | D153: 0.806667986 | E153: 1.740218745 | F153: 3.469881137 | G153: 5.63752102 | H153: 4.655995223 | I153: 6.689941616 | J153: 9.920066865 | K153: 10.6186087 | L153: 11.56516961 | M153: 0 | N153: 0 | O153: 0 | P153: 0.3141159645 | Q153: 0.2953440219 | R153: 0 | S153: 0 | T153: 0 | U153: 5.980257023 | V153: 0 | W153: 0 | X153: 0 | Y153: 0 | Z153: 0 | AA153: 0 | BA153: Kind of toilet facility | BB153: Flush to piped sewer system | BC153: 34.485629 | BD153: 32.710589 | BE153: 70.681456 | BF153: 140.835324 | BG153: 228.87768 | BH153: 52.402148 | BI153: 75.543415 | BJ153: 111.955956 | BK153: 119.300396 | BL153: 130.525656 | BM153: 0 | BN153: 0 | BO153: 0 | BP153: 9.210155 | BQ153: 8.652952 | BR153: 0 | BS153: 0 | BT153: 0 | BU153: 507.590678 | BV153: 0 | BW153: 0 | BX153: 0 | BY153: 0 | BZ153: 0 | CA153: 0
B154: Flush to septic tank | C154: 3.078122361 | D154: 14.09510485 | E154: 36.08191417 | F154: 62.86488084 | G154: 84.39498423 | H154: 16.21324795 | I154: 41.79073032 | J154: 70.08969866 | K154: 82.25542349 | L154: 87.18906467 | M154: 1.308526569 | N154: 7.144649028 | O154: 26.74161241 | P154: 50.31860884 | Q154: 77.75930528 | R154: 5.795991139 | S154: 27.79664817 | T154: 42.83472024 | U154: 51.98271432 | V154: 30.55679815 | W154: 34.42771181 | X154: 14.83416518 | Y154: 2.181362943 | Z154: 3.763270129 | AA154: 46.7309459 | BB154: Flush to septic tank | BC154: 124.951589 | BD154: 571.560034 | BE154: 1465.518192 | BF154: 2551.55595 | BG154: 3426.351427 | BH154: 182.476351 | BI154: 471.904639 | BJ154: 791.018783 | BK154: 924.142218 | BL154: 984.024467 | BM154: 38.357492 | BN154: 209.357758 | BO154: 785.087489 | BP154: 1475.385651 | BQ154: 2278.182344 | BR154: 39.746495 | BS154: 420.602534 | BT154: 1146.430644 | BU154: 4412.175113 | BV154: 376.19946 | BW154: 1144.944072 | BX154: 60.381633 | BY154: 5.892083 | BZ154: 22.752103 | CA154: 510.813055
B155: Pour flush latrine | C155: 1.037380163 | D155: 2.235402312 | E155: 2.527496126 | F155: 1.424047843 | G155: 0.8996434575 | H155: 3.769130596 | I155: 3.565461059 | J155: 2.145929208 | K155: 1.458847711 | L155: 0.2508696629 | M155: 0.9489046736 | N155: 1.062469659 | O155: 2.688594008 | P155: 1.368071986 | Q155: 0.8745273403 | R155: 3.064794479 | S155: 0.8934607064 | T155: 1.351689503 | U155: 1.703333789 | V155: 1.808708457 | W155: 1.724304944 | X155: 1.041427519 | Y155: 0.5536333707 | Z155: 1.4509218 | AA155: 1.860012808 | BB155: Pour flush latrine | BC155: 42.110834 | BD155: 90.646124 | BE155: 102.657845 | BF155: 57.799167 | BG155: 36.524619 | BH155: 42.420692 | BI155: 40.261503 | BJ155: 24.218542 | BK155: 16.390199 | BL155: 2.83134 | BM155: 27.815716 | BN155: 31.133267 | BO155: 78.93247 | BP155: 40.113068 | BQ155: 25.621792 | BR155: 21.017085 | BS155: 13.519322 | BT155: 36.176687 | BU155: 144.575116 | BV155: 22.267881 | BW155: 57.344291 | BX155: 4.239072 | BY155: 1.49542 | BZ155: 8.772031 | CA155: 20.331684
B156: Ventilated Improved Pit latrine (VIP) | C156: 0.7111855228 | D156: 0.7878168818 | E156: 1.073752479 | F156: 0.3168214576 | G156: 0.1981626459 | H156: 2.324082293 | I156: 0.9061954926 | J156: 0 | K156: 0.7160820588 | L156: 0 | M156: 0.6236274329 | N156: 0.5589216137 | O156: 0.7563810697 | P156: 0.8196287396 | Q156: 0 | R156: 0.3694566585 | S156: 1.125964587 | T156: 0.5360795686 | U156: 0.7966324861 | V156: 0.4823607072 | W156: 0.2326421484 | X156: 0 | Y156: 1.761068131 | Z156: 0.8873328023 | AA156: 0 | BB156: Ventilated Improved Pit latrine (VIP) | BC156: 28.86947 | BD156: 31.946172 | BE156: 43.611982 | BF156: 12.85913 | BG156: 8.045204 | BH156: 26.157008 | BI156: 10.23284 | BJ156: 0 | BK156: 8.045204 | BL156: 0 | BM156: 18.280702 | BN156: 16.377932 | BO156: 22.20604 | BP156: 24.032232 | BQ156: 0 | BR156: 2.53358 | BS156: 17.037434 | BT156: 14.347661 | BU156: 67.616362 | BV156: 5.938575 | BW156: 7.736856 | BX156: 0 | BY156: 4.756824 | BZ156: 5.364666 | CA156: 0
B157: Traditional Pit latrine | C157: 83.93997191 | D157: 81.12315445 | E157: 57.89446981 | F157: 31.59306161 | G157: 8.647231559 | H157: 71.07956816 | I157: 46.71633406 | J157: 17.34620015 | K157: 4.725607063 | L157: 0.9948960587 | M157: 84.16160605 | N157: 89.46231829 | O157: 69.0478262 | P157: 46.6457872 | Q157: 20.84900487 | R157: 70.32221266 | S157: 69.61575319 | T157: 51.7668101 | U157: 38.97288753 | V157: 66.8995297 | W157: 63.5767075 | X157: 66.14923682 | Y157: 62.39934667 | Z157: 86.06404609 | AA157: 50.92540081 | BB157: Traditional Pit latrine | BC157: 3407.412585 | BD157: 3289.564244 | BE157: 2351.46612 | BF157: 1282.297258 | BG157: 351.068899 | BH157: 799.984079 | BI157: 527.524994 | BJ157: 195.76586 | BK157: 53.092341 | BL157: 11.228496 | BM157: 2467.071137 | BN157: 2621.490616 | BO157: 2027.124755 | BP157: 1367.695306 | BQ157: 610.831522 | BR157: 482.240467 | BS157: 1053.384639 | BT157: 1385.489554 | BU157: 3307.930467 | BV157: 823.632333 | BW157: 2114.336694 | BX157: 269.256739 | BY157: 168.546977 | BZ157: 520.328856 | CA157: 556.66238
B158: Hanging toilet | C158: 2.073898364 | D158: 0.4650473847 | E158: 0 | F158: 0.1041136382 | G158: 0 | H158: 0.9973084813 | I158: 0.3313374573 | J158: 0.3744311907 | K158: 0 | L158: 0 | M158: 1.729054944 | N158: 1.187549212 | O158: 0.08840466285 | P158: 0 | Q158: 0 | R158: 3.497130719 | S158: 0.2870155156 | T158: 2.204999185 | U158: 0.2261102482 | V158: 0 | W158: 0 | X158: 0 | Y158: 0 | Z158: 0.122227986 | AA158: 0 | BB158: Hanging toilet | BC158: 84.186678 | BD158: 18.857788 | BE158: 0 | BF158: 4.225758 | BG158: 0 | BH158: 11.224476 | BI158: 3.741492 | BJ158: 4.225758 | BK158: 0 | BL158: 0 | BM158: 50.68465 | BN158: 34.79844 | BO158: 2.595408 | BP158: 0 | BQ158: 0 | BR158: 23.981867 | BS158: 4.34295 | BT158: 59.014711 | BU158: 19.191726 | BV158: 0 | BW158: 0 | BX158: 0 | BY158: 0 | BZ158: 0.73897 | CA158: 0
B159: No toilet, use bush or field | C159: 6.986682135 | D159: 0.1763169374 | E159: 0.164332158 | F159: 0 | G159: 0 | H159: 0.7274673005 | I159: 0 | J159: 0 | K159: 0 | L159: 0 | M159: 9.395876588 | N159: 0.2439941518 | O159: 0.2273493602 | P159: 0 | Q159: 0 | R159: 10.69311029 | S159: 0 | T159: 0.04878626155 | U159: 0.2099892716 | V159: 0 | W159: 0.03863359834 | X159: 15.99721703 | Y159: 33.10458889 | Z159: 7.71220119 | AA159: 0.2317837761 | BB159: No toilet, use bush or field | BC159: 283.613493 | BD159: 7.149696 | BE159: 6.674584 | BF159: 0 | BG159: 0 | BH159: 8.187476 | BI159: 0 | BJ159: 0 | BK159: 0 | BL159: 0 | BM159: 275.426017 | BN159: 7.149696 | BO159: 6.674584 | BP159: 0 | BQ159: 0 | BR159: 73.3289 | BS159: 0 | BT159: 1.305718 | BU159: 17.823414 | BV159: 0 | BW159: 1.284817 | BX159: 65.11577 | BY159: 89.418859 | BZ159: 46.626681 | CA159: 2.533614
B160: Other | C160: 0.8787025713 | D160: 0.02998812539 | E160: 0.2697376311 | F160: 0.1928049364 | G160: 0 | H160: 0.1080454039 | I160: 0 | J160: 0 | K160: 0 | L160: 0 | M160: 1.216830657 | N160: 0 | O160: 0.1066214717 | P160: 0.5337872721 | Q160: 0 | R160: 4.338071371 | S160: 0 | T160: 0.7017372627 | U160: 0.01432679586 | V160: 0 | W160: 0 | X160: 1.45460214 | Y160: 0 | Z160: 0 | AA160: 0 | BB160: Other | BC160: 35.669564 | BD160: 1.216026 | BE160: 10.955777 | BF160: 7.825555 | BG160: 0 | BH160: 1.216026 | BI160: 0 | BJ160: 0 | BK160: 0 | BL160: 0 | BM160: 35.669564 | BN160: 0 | BO160: 3.130222 | BP160: 15.65111 | BQ160: 0 | BR160: 29.748688 | BS160: 0 | BT160: 18.781332 | BU160: 1.216026 | BV160: 0 | BW160: 0 | BX160: 5.920876 | BY160: 0 | BZ160: 0 | CA160: 0
B161: Missing | C161: 0.4445200759 | D161: 0.2805010777 | E161: 0.2480788785 | F161: 0.03438854087 | G161: 0.2224570905 | H161: 0.1251545965 | I161: 0 | J161: 0.1236739252 | K161: 0.2254309793 | L161: 0 | M161: 0.615573089 | N161: 0.3400980475 | O161: 0.3432108176 | P161: 0 | Q161: 0.2218184827 | R161: 1.919232687 | S161: 0.2811578336 | T161: 0.5551778732 | U161: 0.1137485333 | V161: 0.2526029836 | W161: 0 | X161: 0.5233513098 | Y161: 0 | Z161: 0 | AA161: 0.251856711 | BB161: Missing | BC161: 18.044601 | BD161: 11.374389 | BE161: 10.076076 | BF161: 1.39576 | BG161: 9.031534 | BH161: 1.408586 | BI161: 0 | BJ161: 1.39576 | BK161: 2.532724 | BL161: 0 | BM161: 18.044601 | BN161: 9.965803 | BO161: 10.076076 | BP161: 0 | BQ161: 6.49881 | BR161: 13.161299 | BS161: 4.254315 | BT161: 14.858809 | BU161: 9.654718 | BV161: 3.109917 | BW161: 0 | BX161: 2.130272 | BY161: 0 | BZ161: 0 | CA161: 2.75303
BB162: Total | BC162: 4059.344443 | BD162: 4055.025062 | BE162: 4061.642032 | BF162: 4058.793902 | BG162: 4059.899363 | BH162: 1125.476842 | BI162: 1129.208883 | BJ162: 1128.580659 | BK162: 1123.503082 | BL162: 1128.609959 | BM162: 2931.349879 | BN162: 2930.273512 | BO162: 2935.827044 | BP162: 2932.087522 | BQ162: 2929.78742 | BR162: 685.758381 | BS162: 1513.141194 | BT162: 2676.405116 | BU162: 8487.77362 | BV162: 1231.148166 | BW162: 3325.64673 | BX162: 407.044362 | BY162: 270.110163 | BZ162: 604.583307 | CA162: 1093.093763
A208: =A1026 -> Guyana
A209: =A1034 -> 2007
A210: Access to hygiene facilities
A211: by wealth quintile and sub-national region
A212: Notes:
A213: WHO/UNICEF JMP customised wealth index excludes water,
A214: sanitation and hygiene assets.
A215: Survey used for analysis: | B215: =A1025 -> MICS07
A220: Access to handwashing | C220: NATIONAL wealth index quintile | H220: URBAN wealth index quintile | M220: RURAL wealth index quintile | R220: SUB-REGIONS: | BA220: Raw numbers of respondents: | BB220: Access to handwashing | BC220: NATIONAL wealth index quintile | BH220: URBAN wealth index quintile | BM220: RURAL wealth index quintile | BR220: SUB-REGIONS:
A221: Weighted percentage (used in graphs) | C221: Poorest | D221: Poor | E221: Middle | F221: Rich | G221: Richest | H221: Poorest | I221: Poor | J221: Middle | K221: Rich | L221: Richest | M221: Poorest | N221: Poor | O221: Middle | P221: Rich | Q221: Richest | R221: Region 01 | S221: Region 02 | T221: Region 03 | U221: Region 04 | V221: Region 05 | W221: Region 06 | X221: Region 07 | Y221: Region 08 | Z221: Region 09 | AA221: Region 10 | BA221: Hygiene data, raw numbers (weighted) | BC221: Poorest | BD221: Poor | BE221: Middle | BF221: Rich | BG221: Richest | BH221: Poorest | BI221: Poor | BJ221: Middle | BK221: Rich | BL221: Richest | BM221: Poorest | BN221: Poor | BO221: Middle | BP221: Rich | BQ221: Richest | BR221: Region 01 | BS221: Region 02 | BT221: Region 03 | BU221: Region 04 | BV221: Region 05 | BW221: Region 06 | BX221: Region 07 | BY221: Region 08 | BZ221: Region 09 | CA221: Region 10
A222: Hygiene ladder | B222: Basic | C222: N/A | D222: N/A | E222: N/A | F222: N/A | G222: N/A | H222: N/A | I222: N/A | J222: N/A | K222: N/A | L222: N/A | M222: N/A | N222: N/A | O222: N/A | P222: N/A | Q222: N/A | R222: N/A | S222: N/A | T222: N/A | U222: N/A | V222: N/A | W222: N/A | X222: N/A | Y222: N/A | Z222: N/A | AA222: N/A | BA222: Hygiene ladder | BB222: Basic | BC222: N/A | BD222: N/A | BE222: N/A | BF222: N/A | BG222: N/A | BH222: N/A | BI222: N/A | BJ222: N/A | BK222: N/A | BL222: N/A | BM222: N/A | BN222: N/A | BO222: N/A | BP222: N/A | BQ222: N/A | BR222: N/A | BS222: N/A | BT222: N/A | BU222: N/A | BV222: N/A | BW222: N/A | BX222: N/A | BY222: N/A | BZ222: N/A | CA222: N/A
B223: Limited | C223: N/A | D223: N/A | E223: N/A | F223: N/A | G223: N/A | H223: N/A | I223: N/A | J223: N/A | K223: N/A | L223: N/A | M223: N/A | N223: N/A | O223: N/A | P223: N/A | Q223: N/A | R223: N/A | S223: N/A | T223: N/A | U223: N/A | V223: N/A | W223: N/A | X223: N/A | Y223: N/A | Z223: N/A | AA223: N/A | BB223: Limited | BC223: N/A | BD223: N/A | BE223: N/A | BF223: N/A | BG223: N/A | BH223: N/A | BI223: N/A | BJ223: N/A | BK223: N/A | BL223: N/A | BM223: N/A | BN223: N/A | BO223: N/A | BP223: N/A | BQ223: N/A | BR223: N/A | BS223: N/A | BT223: N/A | BU223: N/A | BV223: N/A | BW223: N/A | BX223: N/A | BY223: N/A | BZ223: N/A | CA223: N/A
B224: No facility | C224: N/A | D224: N/A | E224: N/A | F224: N/A | G224: N/A | H224: N/A | I224: N/A | J224: N/A | K224: N/A | L224: N/A | M224: N/A | N224: N/A | O224: N/A | P224: N/A | Q224: N/A | R224: N/A | S224: N/A | T224: N/A | U224: N/A | V224: N/A | W224: N/A | X224: N/A | Y224: N/A | Z224: N/A | AA224: N/A | BB224: No facility | BC224: N/A | BD224: N/A | BE224: N/A | BF224: N/A | BG224: N/A | BH224: N/A | BI224: N/A | BJ224: N/A | BK224: N/A | BL224: N/A | BM224: N/A | BN224: N/A | BO224: N/A | BP224: N/A | BQ224: N/A | BR224: N/A | BS224: N/A | BT224: N/A | BU224: N/A | BV224: N/A | BW224: N/A | BX224: N/A | BY224: N/A | BZ224: N/A | CA224: N/A
BA225: Observed handwashing place | BB225: Fixed | BC225: N/A | BD225: N/A | BE225: N/A | BF225: N/A | BG225: N/A | BH225: N/A | BI225: N/A | BJ225: N/A | BK225: N/A | BL225: N/A | BM225: N/A | BN225: N/A | BO225: N/A | BP225: N/A | BQ225: N/A | BR225: N/A | BS225: N/A | BT225: N/A | BU225: N/A | BV225: N/A | BW225: N/A | BX225: N/A | BY225: N/A | BZ225: N/A | CA225: N/A
BB226: Mobile | BC226: N/A | BD226: N/A | BE226: N/A | BF226: N/A | BG226: N/A | BH226: N/A | BI226: N/A | BJ226: N/A | BK226: N/A | BL226: N/A | BM226: N/A | BN226: N/A | BO226: N/A | BP226: N/A | BQ226: N/A | BR226: N/A | BS226: N/A | BT226: N/A | BU226: N/A | BV226: N/A | BW226: N/A | BX226: N/A | BY226: N/A | BZ226: N/A | CA226: N/A
BA227: Water / Soap | BB227: Water and soap | BC227: N/A | BD227: N/A | BE227: N/A | BF227: N/A | BG227: N/A | BH227: N/A | BI227: N/A | BJ227: N/A | BK227: N/A | BL227: N/A | BM227: N/A | BN227: N/A | BO227: N/A | BP227: N/A | BQ227: N/A | BR227: N/A | BS227: N/A | BT227: N/A | BU227: N/A | BV227: N/A | BW227: N/A | BX227: N/A | BY227: N/A | BZ227: N/A | CA227: N/A
BB228: Water only | BC228: N/A | BD228: N/A | BE228: N/A | BF228: N/A | BG228: N/A | BH228: N/A | BI228: N/A | BJ228: N/A | BK228: N/A | BL228: N/A | BM228: N/A | BN228: N/A | BO228: N/A | BP228: N/A | BQ228: N/A | BR228: N/A | BS228: N/A | BT228: N/A | BU228: N/A | BV228: N/A | BW228: N/A | BX228: N/A | BY228: N/A | BZ228: N/A | CA228: N/A
BB229: Soap only | BC229: N/A | BD229: N/A | BE229: N/A | BF229: N/A | BG229: N/A | BH229: N/A | BI229: N/A | BJ229: N/A | BK229: N/A | BL229: N/A | BM229: N/A | BN229: N/A | BO229: N/A | BP229: N/A | BQ229: N/A | BR229: N/A | BS229: N/A | BT229: N/A | BU229: N/A | BV229: N/A | BW229: N/A | BX229: N/A | BY229: N/A | BZ229: N/A | CA229: N/A
BB230: Neither | BC230: N/A | BD230: N/A | BE230: N/A | BF230: N/A | BG230: N/A | BH230: N/A | BI230: N/A | BJ230: N/A | BK230: N/A | BL230: N/A | BM230: N/A | BN230: N/A | BO230: N/A | BP230: N/A | BQ230: N/A | BR230: N/A | BS230: N/A | BT230: N/A | BU230: N/A | BV230: N/A | BW230: N/A | BX230: N/A | BY230: N/A | BZ230: N/A | CA230: N/A
BA259: Raw numbers of respondents: | BB259: Menstrual health and hygiene | BC259: NATIONAL wealth index quintile | BH259: URBAN wealth index quintile | BM259: RURAL wealth index quintile | BR259: SUB-REGIONS:
BA260: MHH data, raw numbers (weighted) | BC260: Poorest | BD260: Poor | BE260: Middle | BF260: Rich | BG260: Richest | BH260: Poorest | BI260: Poor | BJ260: Middle | BK260: Rich | BL260: Richest | BM260: Poorest | BN260: Poor | BO260: Middle | BP260: Rich | BQ260: Richest | BR260: Region 01 | BS260: Region 02 | BT260: Region 03 | BU260: Region 04 | BV260: Region 05 | BW260: Region 06 | BX260: Region 07 | BY260: Region 08 | BZ260: Region 09 | CA260: Region 10
BA261: Private place to wash and change | BB261: Yes | BC261: N/A | BD261: N/A | BE261: N/A | BF261: N/A | BG261: N/A | BH261: N/A | BI261: N/A | BJ261: N/A | BK261: N/A | BL261: N/A | BM261: N/A | BN261: N/A | BO261: N/A | BP261: N/A | BQ261: N/A | BR261: N/A | BS261: N/A | BT261: N/A | BU261: N/A | BV261: N/A | BW261: N/A | BX261: N/A | BY261: N/A | BZ261: N/A | CA261: N/A
BB262: No | BC262: N/A | BD262: N/A | BE262: N/A | BF262: N/A | BG262: N/A | BH262: N/A | BI262: N/A | BJ262: N/A | BK262: N/A | BL262: N/A | BM262: N/A | BN262: N/A | BO262: N/A | BP262: N/A | BQ262: N/A | BR262: N/A | BS262: N/A | BT262: N/A | BU262: N/A | BV262: N/A | BW262: N/A | BX262: N/A | BY262: N/A | BZ262: N/A | CA262: N/A
BB263: DK/not sure/missing | BC263: N/A | BD263: N/A | BE263: N/A | BF263: N/A | BG263: N/A | BH263: N/A | BI263: N/A | BJ263: N/A | BK263: N/A | BL263: N/A | BM263: N/A | BN263: N/A | BO263: N/A | BP263: N/A | BQ263: N/A | BR263: N/A | BS263: N/A | BT263: N/A | BU263: N/A | BV263: N/A | BW263: N/A | BX263: N/A | BY263: N/A | BZ263: N/A | CA263: N/A
BA264: Use of menstrual materials | BB264: Materials reusable | BC264: N/A | BD264: N/A | BE264: N/A | BF264: N/A | BG264: N/A | BH264: N/A | BI264: N/A | BJ264: N/A | BK264: N/A | BL264: N/A | BM264: N/A | BN264: N/A | BO264: N/A | BP264: N/A | BQ264: N/A | BR264: N/A | BS264: N/A | BT264: N/A | BU264: N/A | BV264: N/A | BW264: N/A | BX264: N/A | BY264: N/A | BZ264: N/A | CA264: N/A
BB265: Materials not reusable | BC265: N/A | BD265: N/A | BE265: N/A | BF265: N/A | BG265: N/A | BH265: N/A | BI265: N/A | BJ265: N/A | BK265: N/A | BL265: N/A | BM265: N/A | BN265: N/A | BO265: N/A | BP265: N/A | BQ265: N/A | BR265: N/A | BS265: N/A | BT265: N/A | BU265: N/A | BV265: N/A | BW265: N/A | BX265: N/A | BY265: N/A | BZ265: N/A | CA265: N/A
BB266: No materials used | BC266: N/A | BD266: N/A | BE266: N/A | BF266: N/A | BG266: N/A | BH266: N/A | BI266: N/A | BJ266: N/A | BK266: N/A | BL266: N/A | BM266: N/A | BN266: N/A | BO266: N/A | BP266: N/A | BQ266: N/A | BR266: N/A | BS266: N/A | BT266: N/A | BU266: N/A | BV266: N/A | BW266: N/A | BX266: N/A | BY266: N/A | BZ266: N/A | CA266: N/A
BB267: DK/not sure/missing | BC267: N/A | BD267: N/A | BE267: N/A | BF267: N/A | BG267: N/A | BH267: N/A | BI267: N/A | BJ267: N/A | BK267: N/A | BL267: N/A | BM267: N/A | BN267: N/A | BO267: N/A | BP267: N/A | BQ267: N/A | BR267: N/A | BS267: N/A | BT267: N/A | BU267: N/A | BV267: N/A | BW267: N/A | BX267: N/A | BY267: N/A | BZ267: N/A | CA267: N/A
BA268: Use of menstrual materials with private place to wash and change | BB268: Materials reusable | BC268: N/A | BD268: N/A | BE268: N/A | BF268: N/A | BG268: N/A | BH268: N/A | BI268: N/A | BJ268: N/A | BK268: N/A | BL268: N/A | BM268: N/A | BN268: N/A | BO268: N/A | BP268: N/A | BQ268: N/A | BR268: N/A | BS268: N/A | BT268: N/A | BU268: N/A | BV268: N/A | BW268: N/A | BX268: N/A | BY268: N/A | BZ268: N/A | CA268: N/A
BB269: Materials not reusable | BC269: N/A | BD269: N/A | BE269: N/A | BF269: N/A | BG269: N/A | BH269: N/A | BI269: N/A | BJ269: N/A | BK269: N/A | BL269: N/A | BM269: N/A | BN269: N/A | BO269: N/A | BP269: N/A | BQ269: N/A | BR269: N/A | BS269: N/A | BT269: N/A | BU269: N/A | BV269: N/A | BW269: N/A | BX269: N/A | BY269: N/A | BZ269: N/A | CA269: N/A
BB270: No materials used | BC270: N/A | BD270: N/A | BE270: N/A | BF270: N/A | BG270: N/A | BH270: N/A | BI270: N/A | BJ270: N/A | BK270: N/A | BL270: N/A | BM270: N/A | BN270: N/A | BO270: N/A | BP270: N/A | BQ270: N/A | BR270: N/A | BS270: N/A | BT270: N/A | BU270: N/A | BV270: N/A | BW270: N/A | BX270: N/A | BY270: N/A | BZ270: N/A | CA270: N/A
BA271: Awareness of menstruation before menarche | BB271: Yes | BC271: N/A | BD271: N/A | BE271: N/A | BF271: N/A | BG271: N/A | BH271: N/A | BI271: N/A | BJ271: N/A | BK271: N/A | BL271: N/A | BM271: N/A | BN271: N/A | BO271: N/A | BP271: N/A | BQ271: N/A | BR271: N/A | BS271: N/A | BT271: N/A | BU271: N/A | BV271: N/A | BW271: N/A | BX271: N/A | BY271: N/A | BZ271: N/A | CA271: N/A
BB272: No | BC272: N/A | BD272: N/A | BE272: N/A | BF272: N/A | BG272: N/A | BH272: N/A | BI272: N/A | BJ272: N/A | BK272: N/A | BL272: N/A | BM272: N/A | BN272: N/A | BO272: N/A | BP272: N/A | BQ272: N/A | BR272: N/A | BS272: N/A | BT272: N/A | BU272: N/A | BV272: N/A | BW272: N/A | BX272: N/A | BY272: N/A | BZ272: N/A | CA272: N/A
BB273: DK/not sure/missing | BC273: N/A | BD273: N/A | BE273: N/A | BF273: N/A | BG273: N/A | BH273: N/A | BI273: N/A | BJ273: N/A | BK273: N/A | BL273: N/A | BM273: N/A | BN273: N/A | BO273: N/A | BP273: N/A | BQ273: N/A | BR273: N/A | BS273: N/A | BT273: N/A | BU273: N/A | BV273: N/A | BW273: N/A | BX273: N/A | BY273: N/A | BZ273: N/A | CA273: N/A
BA274: Participation in (all) activities during menstruation | BB274: Yes | BC274: N/A | BD274: N/A | BE274: N/A | BF274: N/A | BG274: N/A | BH274: N/A | BI274: N/A | BJ274: N/A | BK274: N/A | BL274: N/A | BM274: N/A | BN274: N/A | BO274: N/A | BP274: N/A | BQ274: N/A | BR274: N/A | BS274: N/A | BT274: N/A | BU274: N/A | BV274: N/A | BW274: N/A | BX274: N/A | BY274: N/A | BZ274: N/A | CA274: N/A
BB275: No | BC275: N/A | BD275: N/A | BE275: N/A | BF275: N/A | BG275: N/A | BH275: N/A | BI275: N/A | BJ275: N/A | BK275: N/A | BL275: N/A | BM275: N/A | BN275: N/A | BO275: N/A | BP275: N/A | BQ275: N/A | BR275: N/A | BS275: N/A | BT275: N/A | BU275: N/A | BV275: N/A | BW275: N/A | BX275: N/A | BY275: N/A | BZ275: N/A | CA275: N/A
BB276: DK/not sure/missing/no such activity | BC276: N/A | BD276: N/A | BE276: N/A | BF276: N/A | BG276: N/A | BH276: N/A | BI276: N/A | BJ276: N/A | BK276: N/A | BL276: N/A | BM276: N/A | BN276: N/A | BO276: N/A | BP276: N/A | BQ276: N/A | BR276: N/A | BS276: N/A | BT276: N/A | BU276: N/A | BV276: N/A | BW276: N/A | BX276: N/A | BY276: N/A | BZ276: N/A | CA276: N/A
BA277: Participation in specific activities during menstruation | BB277: Did not go to school (amongst those usually attending school) | BC277: N/A | BD277: N/A | BE277: N/A | BF277: N/A | BG277: N/A | BH277: N/A | BI277: N/A | BJ277: N/A | BK277: N/A | BL277: N/A | BM277: N/A | BN277: N/A | BO277: N/A | BP277: N/A | BQ277: N/A | BR277: N/A | BS277: N/A | BT277: N/A | BU277: N/A | BV277: N/A | BW277: N/A | BX277: N/A | BY277: N/A | BZ277: N/A | CA277: N/A
BB278: Did not go to work (amongst those who usually work) | BC278: N/A | BD278: N/A | BE278: N/A | BF278: N/A | BG278: N/A | BH278: N/A | BI278: N/A | BJ278: N/A | BK278: N/A | BL278: N/A | BM278: N/A | BN278: N/A | BO278: N/A | BP278: N/A | BQ278: N/A | BR278: N/A | BS278: N/A | BT278: N/A | BU278: N/A | BV278: N/A | BW278: N/A | BX278: N/A | BY278: N/A | BZ278: N/A | CA278: N/A
BB279: Did not participate in social activities | BC279: N/A | BD279: N/A | BE279: N/A | BF279: N/A | BG279: N/A | BH279: N/A | BI279: N/A | BJ279: N/A | BK279: N/A | BL279: N/A | BM279: N/A | BN279: N/A | BO279: N/A | BP279: N/A | BQ279: N/A | BR279: N/A | BS279: N/A | BT279: N/A | BU279: N/A | BV279: N/A | BW279: N/A | BX279: N/A | BY279: N/A | BZ279: N/A | CA279: N/A
BB280: Did not cook food | BC280: N/A | BD280: N/A | BE280: N/A | BF280: N/A | BG280: N/A | BH280: N/A | BI280: N/A | BJ280: N/A | BK280: N/A | BL280: N/A | BM280: N/A | BN280: N/A | BO280: N/A | BP280: N/A | BQ280: N/A | BR280: N/A | BS280: N/A | BT280: N/A | BU280: N/A | BV280: N/A | BW280: N/A | BX280: N/A | BY280: N/A | BZ280: N/A | CA280: N/A
BB281: Did not eat with others | BC281: N/A | BD281: N/A | BE281: N/A | BF281: N/A | BG281: N/A | BH281: N/A | BI281: N/A | BJ281: N/A | BK281: N/A | BL281: N/A | BM281: N/A | BN281: N/A | BO281: N/A | BP281: N/A | BQ281: N/A | BR281: N/A | BS281: N/A | BT281: N/A | BU281: N/A | BV281: N/A | BW281: N/A | BX281: N/A | BY281: N/A | BZ281: N/A | CA281: N/A
BB282: Did not bathe in regular place | BC282: N/A | BD282: N/A | BE282: N/A | BF282: N/A | BG282: N/A | BH282: N/A | BI282: N/A | BJ282: N/A | BK282: N/A | BL282: N/A | BM282: N/A | BN282: N/A | BO282: N/A | BP282: N/A | BQ282: N/A | BR282: N/A | BS282: N/A | BT282: N/A | BU282: N/A | BV282: N/A | BW282: N/A | BX282: N/A | BY282: N/A | BZ282: N/A | CA282: N/A
BB283: Did not participate in other activities | BC283: N/A | BD283: N/A | BE283: N/A | BF283: N/A | BG283: N/A | BH283: N/A | BI283: N/A | BJ283: N/A | BK283: N/A | BL283: N/A | BM283: N/A | BN283: N/A | BO283: N/A | BP283: N/A | BQ283: N/A | BR283: N/A | BS283: N/A | BT283: N/A | BU283: N/A | BV283: N/A | BW283: N/A | BX283: N/A | BY283: N/A | BZ283: N/A | CA283: N/A
BB284: DK/not sure/missing/no such activity | BC284: N/A | BD284: N/A | BE284: N/A | BF284: N/A | BG284: N/A | BH284: N/A | BI284: N/A | BJ284: N/A | BK284: N/A | BL284: N/A | BM284: N/A | BN284: N/A | BO284: N/A | BP284: N/A | BQ284: N/A | BR284: N/A | BS284: N/A | BT284: N/A | BU284: N/A | BV284: N/A | BW284: N/A | BX284: N/A | BY284: N/A | BZ284: N/A | CA284: N/A
BA339: Raw numbers of respondents: | BB339: Basic water, sanitation and hygiene | BC339: NATIONAL wealth index quintile | BH339: URBAN wealth index quintile | BM339: RURAL wealth index quintile | BR339: SUB-REGIONS:
BA340: WatSan data, raw numbers (weighted) | BC340: Poorest | BD340: Poor | BE340: Middle | BF340: Rich | BG340: Richest | BH340: Poorest | BI340: Poor | BJ340: Middle | BK340: Rich | BL340: Richest | BM340: Poorest | BN340: Poor | BO340: Middle | BP340: Rich | BQ340: Richest | BR340: Region 01 | BS340: Region 02 | BT340: Region 03 | BU340: Region 04 | BV340: Region 05 | BW340: Region 06 | BX340: Region 07 | BY340: Region 08 | BZ340: Region 09 | CA340: Region 10
BA341: Use of Basic Water Sanitation and Hygiene | BB341: Yes | BC341: N/A | BD341: N/A | BE341: N/A | BF341: N/A | BG341: N/A | BH341: N/A | BI341: N/A | BJ341: N/A | BK341: N/A | BL341: N/A | BM341: N/A | BN341: N/A | BO341: N/A | BP341: N/A | BQ341: N/A | BR341: N/A | BS341: N/A | BT341: N/A | BU341: N/A | BV341: N/A | BW341: N/A | BX341: N/A | BY341: N/A | BZ341: N/A | CA341: N/A
BB342: No | BC342: N/A | BD342: N/A | BE342: N/A | BF342: N/A | BG342: N/A | BH342: N/A | BI342: N/A | BJ342: N/A | BK342: N/A | BL342: N/A | BM342: N/A | BN342: N/A | BO342: N/A | BP342: N/A | BQ342: N/A | BR342: N/A | BS342: N/A | BT342: N/A | BU342: N/A | BV342: N/A | BW342: N/A | BX342: N/A | BY342: N/A | BZ342: N/A | CA342: N/A
BA343: Use of Basic Water and Sanitation | BB343: Yes | BC343: N/A | BD343: N/A | BE343: N/A | BF343: N/A | BG343: N/A | BH343: N/A | BI343: N/A | BJ343: N/A | BK343: N/A | BL343: N/A | BM343: N/A | BN343: N/A | BO343: N/A | BP343: N/A | BQ343: N/A | BR343: N/A | BS343: N/A | BT343: N/A | BU343: N/A | BV343: N/A | BW343: N/A | BX343: N/A | BY343: N/A | BZ343: N/A | CA343: N/A
BB344: No | BC344: N/A | BD344: N/A | BE344: N/A | BF344: N/A | BG344: N/A | BH344: N/A | BI344: N/A | BJ344: N/A | BK344: N/A | BL344: N/A | BM344: N/A | BN344: N/A | BO344: N/A | BP344: N/A | BQ344: N/A | BR344: N/A | BS344: N/A | BT344: N/A | BU344: N/A | BV344: N/A | BW344: N/A | BX344: N/A | BY344: N/A | BZ344: N/A | CA344: N/A
BA345: Use of Basic Water and Hygiene | BB345: Yes | BC345: N/A | BD345: N/A | BE345: N/A | BF345: N/A | BG345: N/A | BH345: N/A | BI345: N/A | BJ345: N/A | BK345: N/A | BL345: N/A | BM345: N/A | BN345: N/A | BO345: N/A | BP345: N/A | BQ345: N/A | BR345: N/A | BS345: N/A | BT345: N/A | BU345: N/A | BV345: N/A | BW345: N/A | BX345: N/A | BY345: N/A | BZ345: N/A | CA345: N/A
BB346: No | BC346: N/A | BD346: N/A | BE346: N/A | BF346: N/A | BG346: N/A | BH346: N/A | BI346: N/A | BJ346: N/A | BK346: N/A | BL346: N/A | BM346: N/A | BN346: N/A | BO346: N/A | BP346: N/A | BQ346: N/A | BR346: N/A | BS346: N/A | BT346: N/A | BU346: N/A | BV346: N/A | BW346: N/A | BX346: N/A | BY346: N/A | BZ346: N/A | CA346: N/A
BA347: Use of Basic Sanitation and Hygiene | BB347: Yes | BC347: N/A | BD347: N/A | BE347: N/A | BF347: N/A | BG347: N/A | BH347: N/A | BI347: N/A | BJ347: N/A | BK347: N/A | BL347: N/A | BM347: N/A | BN347: N/A | BO347: N/A | BP347: N/A | BQ347: N/A | BR347: N/A | BS347: N/A | BT347: N/A | BU347: N/A | BV347: N/A | BW347: N/A | BX347: N/A | BY347: N/A | BZ347: N/A | CA347: N/A
BB348: No | BC348: N/A | BD348: N/A | BE348: N/A | BF348: N/A | BG348: N/A | BH348: N/A | BI348: N/A | BJ348: N/A | BK348: N/A | BL348: N/A | BM348: N/A | BN348: N/A | BO348: N/A | BP348: N/A | BQ348: N/A | BR348: N/A | BS348: N/A | BT348: N/A | BU348: N/A | BV348: N/A | BW348: N/A | BX348: N/A | BY348: N/A | BZ348: N/A | CA348: N/A
BA349: Use of Basic Water | BB349: Yes | BC349: N/A | BD349: N/A | BE349: N/A | BF349: N/A | BG349: N/A | BH349: N/A | BI349: N/A | BJ349: N/A | BK349: N/A | BL349: N/A | BM349: N/A | BN349: N/A | BO349: N/A | BP349: N/A | BQ349: N/A | BR349: N/A | BS349: N/A | BT349: N/A | BU349: N/A | BV349: N/A | BW349: N/A | BX349: N/A | BY349: N/A | BZ349: N/A | CA349: N/A
BB350: No | BC350: N/A | BD350: N/A | BE350: N/A | BF350: N/A | BG350: N/A | BH350: N/A | BI350: N/A | BJ350: N/A | BK350: N/A | BL350: N/A | BM350: N/A | BN350: N/A | BO350: N/A | BP350: N/A | BQ350: N/A | BR350: N/A | BS350: N/A | BT350: N/A | BU350: N/A | BV350: N/A | BW350: N/A | BX350: N/A | BY350: N/A | BZ350: N/A | CA350: N/A
BA351: Use of Basic Sanitation | BB351: Yes | BC351: N/A | BD351: N/A | BE351: N/A | BF351: N/A | BG351: N/A | BH351: N/A | BI351: N/A | BJ351: N/A | BK351: N/A | BL351: N/A | BM351: N/A | BN351: N/A | BO351: N/A | BP351: N/A | BQ351: N/A | BR351: N/A | BS351: N/A | BT351: N/A | BU351: N/A | BV351: N/A | BW351: N/A | BX351: N/A | BY351: N/A | BZ351: N/A | CA351: N/A
BB352: No | BC352: N/A | BD352: N/A | BE352: N/A | BF352: N/A | BG352: N/A | BH352: N/A | BI352: N/A | BJ352: N/A | BK352: N/A | BL352: N/A | BM352: N/A | BN352: N/A | BO352: N/A | BP352: N/A | BQ352: N/A | BR352: N/A | BS352: N/A | BT352: N/A | BU352: N/A | BV352: N/A | BW352: N/A | BX352: N/A | BY352: N/A | BZ352: N/A | CA352: N/A
BA353: Access to Basic Hygiene | BB353: Yes | BC353: N/A | BD353: N/A | BE353: N/A | BF353: N/A | BG353: N/A | BH353: N/A | BI353: N/A | BJ353: N/A | BK353: N/A | BL353: N/A | BM353: N/A | BN353: N/A | BO353: N/A | BP353: N/A | BQ353: N/A | BR353: N/A | BS353: N/A | BT353: N/A | BU353: N/A | BV353: N/A | BW353: N/A | BX353: N/A | BY353: N/A | BZ353: N/A | CA353: N/A
BB354: No | BC354: N/A | BD354: N/A | BE354: N/A | BF354: N/A | BG354: N/A | BH354: N/A | BI354: N/A | BJ354: N/A | BK354: N/A | BL354: N/A | BM354: N/A | BN354: N/A | BO354: N/A | BP354: N/A | BQ354: N/A | BR354: N/A | BS354: N/A | BT354: N/A | BU354: N/A | BV354: N/A | BW354: N/A | BX354: N/A | BY354: N/A | BZ354: N/A | CA354: N/A
C399: INITIAL (national) Wealth Index | H399: URBAN Wealth Index | M399: RURAL Wealth Index
C400: Component Matrix | H400: Component Matrix | M400: Component Matrix
E401: Component | J401: Component | O401: Component
B402: Note: The INITIAL (national) Wealth Index is based on the first component of the Principal Component Analysis (PCA) which has been obtained at national level. The final national-level (NATIONAL) Wealth Index is based on the URBAN and RURAL specific wealth indexes. Regression procedures are used to establish the relationships between the two sets of scores (urban and rural) and the initial (national) wealth factors. This allows best use of the available information for each area and a better precision of the FINAL (NATIONAL) Wealth Index. For dependency reasons, all WASH variables (contained in the generic MICS and DHS scripts) have been excluded from the sets of asset variables used in the PCAs. The PCA can extracts as many components as there are asset variables in the input. Only the first of the components is used to represent the Wealth Index. The scores represent the weights of the asset variables on the Wealth Index (correlations between the variables and the component). The communalities are the proportion of each variable's variance that can be explained by the component. Proportion of explained variance is the part of the model's total variance that is explained by the component. For more information on the procedure used: The DHS Wealth Index, DHS Comparative Reports No. 6, Shea Oscar Rutstein, Kiersten Johnson, ORC Macro International Inc., 2004. The DHS Wealth Index: Approaches for Rural and Urban Areas, Shea O. Rutstein, ORC Macro International Inc., 2008. MICS Methodological Paper No. 4, Review of options for reporting water, sanitation and hygiene coverage by wealth quintile, UNICEF, 2016. | E402: 1 | J402: 1 | O402: 1
C403: Television | E403: 0.7862443682 | H403: Stove that works with solar energy | J403: 0.7231112866 | M403: Television | O403: 0.7934091026
C404: Electricity | E404: 0.7762961295 | H404: Natural gas fuel | J404: -0.7009621497 | M404: Electricity | O404: 0.7833584748
C405: Stove that works with solar energy | E405: 0.7350350084 | H405: LPG fuel | J405: 0.6868983501 | M405: Stove that works with solar energy | O405: 0.7272293573
C406: Kerosene fuel | E406: -0.7017428752 | H406: Refrigetaror | J406: 0.6733672203 | M406: Kerosene fuel | O406: -0.7210460702
C407: Ceramic tiles roof | E407: 0.6805608212 | H407: Sofa | J407: 0.6652419692 | M407: Ceramic tiles roof | O407: 0.7059813028
C408: Thatch/palm leaf roof | E408: -0.6656831851 | H408: Television | J408: 0.5895879686 | M408: Thatch/palm leaf roof | O408: -0.6845911607
C409: LPG fuel | E409: 0.6179864379 | H409: Fan | J409: 0.5777271343 | M409: LPG fuel | O409: 0.5954193676
C410: Refrigetaror | E410: 0.609351922 | H410: Electricity | J410: 0.5739753846 | M410: Non-mobile telephone | O410: 0.5949617068
C411: Non-mobile telephone | E411: 0.600844662 | H411: Animal drawn cart | J411: 0.5080944702 | M411: Refrigetaror | O411: 0.5628761725
C412: Persons per sleeping rooms | E412: -0.551476061 | H412: Air conditioner | J412: 0.4588830474 | M412: Persons per sleeping rooms | O412: -0.5463446111
C413: Sofa | E413: 0.5335251395 | H413: Wood planks floor | J413: -0.4490288935 | M413: Sofa | O413: 0.4822386633
C414: Crop floor | E414: -0.4778484345 | H414: Non-mobile telephone | J414: 0.4308258597 | M414: Crop floor | O414: -0.4803471991
C415: Watch | E415: 0.455831574 | H415: Radio | J415: 0.4284052988 | M415: Watch | O415: 0.4587388954
... 202 more rows

Sheet DHS09
A2: =A1026 -> Guyana
A3: =A1034 -> 2009
A4: Use of drinking water sources
A5: by wealth quintile and sub-national region
A6: Notes:
A7: WHO/UNICEF JMP customised wealth index excludes water,
A8: sanitation and hygiene assets.
A9: Survey used for analysis: | B9: =A1025 -> DHS09
A10: =B1028 -> 
A11: =B1027 -> 
A14: Use of drinking water sources | C14: NATIONAL wealth index quintile | H14: URBAN wealth index quintile | M14: RURAL wealth index quintile | R14: SUB-REGIONS: | BA14: Raw numbers of respondents: | BB14: Use of drinking water sources | BC14: NATIONAL wealth index quintile | BH14: URBAN wealth index quintile | BM14: RURAL wealth index quintile | BR14: SUB-REGIONS:
A15: Weighted percentage (used in graphs) | C15: Poorest | D15: Poor | E15: Middle | F15: Rich | G15: Richest | H15: Poorest | I15: Poor | J15: Middle | K15: Rich | L15: Richest | M15: Poorest | N15: Poor | O15: Middle | P15: Rich | Q15: Richest | R15: Region 1 | S15: Region 10 | T15: Region 2 | U15: Region 3 | V15: Region 4 | W15: Region 5 | X15: Region 6 | Y15: Region 7 | Z15: Region 8 | AA15: Region 9 | BA15: Water data, raw numbers (weighted) | BC15: Poorest | BD15: Poor | BE15: Middle | BF15: Rich | BG15: Richest | BH15: Poorest | BI15: Poor | BJ15: Middle | BK15: Rich | BL15: Richest | BM15: Poorest | BN15: Poor | BO15: Middle | BP15: Rich | BQ15: Richest | BR15: Region 1 | BS15: Region 10 | BT15: Region 2 | BU15: Region 3 | BV15: Region 4 | BW15: Region 5 | BX15: Region 6 | BY15: Region 7 | BZ15: Region 8 | CA15: Region 9
A16: Water | B16: Improved | C16: 75.71848408 | D16: 96.68385639 | E16: 98.02123118 | F16: 98.45012117 | G16: 99.56306706 | H16: 97.3010649 | I16: 98.1675164 | J16: 99.77130271 | K16: 98.10735013 | L16: 99.80041976 | M16: 69.50625413 | N16: 94.38987455 | O16: 96.81068817 | P16: 98.2250288 | Q16: 99.9735523 | R16: 79.41182793 | S16: 89.57797879 | T16: 89.62745941 | U16: 92.58930732 | V16: 99.19390836 | W16: 96.87968894 | X16: 98.35873663 | Y16: 70.64313761 | Z16: 60.03089989 | AA16: 60.85527122 | BA16: Water | BB16: Improved | BC16: N/A | BD16: N/A | BE16: N/A | BF16: N/A | BG16: N/A | BH16: N/A | BI16: N/A | BJ16: N/A | BK16: N/A | BL16: N/A | BM16: N/A | BN16: N/A | BO16: N/A | BP16: N/A | BQ16: N/A | BR16: N/A | BS16: N/A | BT16: N/A | BU16: N/A | BV16: N/A | BW16: N/A | BX16: N/A | BY16: N/A | BZ16: N/A | CA16: N/A
B17: Not Improved | C17: 24.28151592 | D17: 3.316143611 | E17: 1.978768818 | F17: 1.549878833 | G17: 0.4369329379 | H17: 2.698935097 | I17: 1.832483604 | J17: 0.2286972899 | K17: 1.892649873 | L17: 0.199580237 | M17: 30.49374587 | N17: 5.610125447 | O17: 3.189311833 | P17: 1.774971201 | Q17: 0.02644769586 | R17: 20.58817207 | S17: 10.42202121 | T17: 10.37254059 | U17: 7.410692683 | V17: 0.8060916361 | W17: 3.120311058 | X17: 1.641263369 | Y17: 29.35686239 | Z17: 39.96910011 | AA17: 39.14472878 | BB17: Not Improved | BC17: N/A | BD17: N/A | BE17: N/A | BF17: N/A | BG17: N/A | BH17: N/A | BI17: N/A | BJ17: N/A | BK17: N/A | BL17: N/A | BM17: N/A | BN17: N/A | BO17: N/A | BP17: N/A | BQ17: N/A | BR17: N/A | BS17: N/A | BT17: N/A | BU17: N/A | BV17: N/A | BW17: N/A | BX17: N/A | BY17: N/A | BZ17: N/A | CA17: N/A
